Workbook

Sheet PANEL
E106: SUBREGION | F106: CLAS | G106: EJECUTORA | H106: ESTABLEC | I106: PROVINCIA | J106: RED | K106: DISTRITO | L106: NIVEL | N106: A01 | O106: Valoracion clinica masculino 60-69a. (saludable) | P106: A01
D107: =VLOOKUP(INFORME_ITS!$R$3,$C$109:$D$127,2,0) -> 12 | E107: LUCIANO CASTILLO COLONNA | F107: (Todas) | G107: (Todas) | H107: (Todas) | I107: (Todas) | J107: (Todas) | K107: (Todas) | N107: A02 | O107: Valoracion clinica femenino 60-69a. (saludable) | P107: A02
C108: MESES | E108: MORROPON HUANCABAMBA | F108: CLAS ALGARROBOS | G108: SALUD PIURA | H108: HOSPITAL DE APOYO II - 2, SULLANA | I108: AYABACA | J108: AYABACA | K108: AMOTAPE | L108: SUBREGION | N108: A03 | P108: A03
C109: Enero | D109: 3 | E109: PIURA SECHURA | F109: CLAS BATANES | G109: HOSPITAL DE APOYO I SANTA ROSA | H109: AYABACA | I109: HUANCABAMBA | J109: BAJO PIURA | K109: ARENAL | L109: EJECUTORA | N109: A04 | P109: A04
B110: VAL. CLINICA_FCAT_RIESGO_18-29 (5001502) | C110: Febrero | D110: 4 | F110: CLAS BELLAVISTA | G110: HOSPITAL DE APOYO I CHULUCANAS | H110: TAPAL | I110: MORROPON | J110: HUANCABAMBA | K110: AYABACA | L110: RED | N110: A05 | P110: A05
B111: VAL. CLINICA_FACT_RIESGO_30-39 (5001503) | C111: Marzo | D111: 5 | F111: CLAS BERNAL | G111: HOSPITAL DE APOYO I NUESTRA SEÑORA DE LAS MERCEDES DE PAITA | H111: CHINCHIN | I111: PAITA | J111: HUARMACA | K111: BELLAVISTA | L111: PROVINCIA | N111: A06 | P111: A06
B112: VAL. CLINICA_FACT_RIESGO_(5001507) | C112: Abril | D112: 6 | F112: CLAS BUENOS AIRES | G112: HOSPITAL DE APOYO III SULLANA | H112: OLLEROS | I112: PIURA | J112: MORROPON CHULUCANAS | K112: BELLAVISTA DE LA UNION | L112: CLAS | N112: A07 | P112: A07
B113: VAL. CLINICA_FCAT_RIESGO_60ymás (5001507) | C113: Mayo | D113: 7 | F113: CLAS CANCHAQUE | G113: SALUD LUCIANO CASTILLO COLONNA | H113: ARAGOTO | I113: SECHURA | J113: PIURA CASTILLA | K113: BERNAL | L113: DISTRITO | N113: A08 | P113: A08
B114: EMERGENCIAS_URGENCIAS HIPERTENS_(5001601) | C114: Junio | D114: 8 | F114: CLAS CASA GRANDE | G114: REGION PIURA-SALUD MORROPON-CHULUCANAS | H114: CHOCAN | I114: SULLANA | J114: SULLANA | K114: BUENOS AIRES | L114: IPRESS | N114: A09 | P114: A09
B115: TTO_CONT_PERS_DISLIPIDEMIAS_(5001602) | C115: Julio | D115: 9 | F115: CLAS CATACAOS | H115: YANCHALA | I115: TALARA | K115: CANCHAQUE | N115: A10 | P115: A10
B116: HIPERTENSO_NO ALTO RIESGO NO PC_(5001603) | C116: Agosto | D116: 10 | F116: CLAS CAYETANO HEREDIA | H116: ARREYPITE - PINGOLA | K116: CASTILLA | N116: A11 | P116: A11
B117: HIPERTENSO_NO ALTO RIESGO PC_(5001604) | C117: Septiembre | D117: 11 | F117: CLAS CHALACO | H117: CALVAS DE SAMANGA | K117: CATACAOS | N117: A12 | P117: A12
B118: PACIENTES_ENF. CARDIOMET_RECIBEN EDUC_(5001605) | C118: Octubre | D118: 12 | F118: CLAS CHATITO | H118: ESPINDOLA | K118: CHALACO | N118: A13 | P118: A13
B119: HIPERTENSOS_TTO. ESPECIALIZADO_(5001606) | C119: Noviembre | D119: 13 | F119: CLAS CURA MORI | H119: REMOLINOS | K119: CHULUCANAS | N119: A14 | P119: A14
B120: HIPERTENSOS_ESTRATIF_RIESGO_CARDIOVAS_(5001608) | C120: Diciembre | D120: 14 | F120: CLAS FRIAS | H120: ANDURCO | K120: COLAN | N120: A15 | P120: A15
B121: MANEJO BASICO_CRISIS HIPOGLU_HIPERGLU_(5001701) | C121: Total | D121: 15 | F121: CLAS HIGUERON | H121: HUIRIQUINGUE | K121: CRISTO NOS VALGA | N121: A16 | P121: A16
B122: DIABETICO NO COMPLIC_NO PC_(5001702) | C122: I-Trim | D122: 16 | F122: CLAS HOSPITALES PIURA | H122: HUACHUMA | K122: CURA MORI | N122: A17 | P122: A17
B123: VAL. CLINICA_FACT_RIESGO_5-11 (5001504) | C123: II-Trim | D123: 17 | F123: CLAS HOSPITALES SULLANA | H123: SAUSAL | K123: EL ALTO | N123: A18 | P123: A18
B124: VAL. CLINICA_FACT_RIESGO_12-17 (5001501) | C124: III-Trim | D124: 18 | F124: CLAS IGNACIO MERINO | H124: EL TOLDO | K124: EL CARMEN DE LA FRONTERA | N124: A19 | P124: A19
B125: DIABETICOS_NO_COMPLIC_PC_(5001703) | C125: IV-Trim | D125: 19 | F125: CLAS KM 50 | H125: SAMANGUILLA | K125: EL TALLAN | N125: A20 | P125: A20
B126: DIABETICOS_TTO_ESPECIALIZADO_(5001704) | C126: I-Sem | D126: 20 | F126: CLAS LA ARENA | H126: CHARAN | K126: FRIAS | N126: A21 | P126: A21
B127: VALORACION_COMPLICACIONES_PERS_DIABET_(5001705) | C127: II-Sem | D127: 21 | F127: CLAS LA LEGUA | H127: LAGUNAS DE CANGLY | K127: HUANCABAMBA | N127: A22 | P127: A22
F128: CLAS LA MATANZA | H128: PORTACHUELO DE YANTA | K128: HUARMACA | N128: A23 | P128: A23
F129: CLAS LA UNION | H129: GICLAS | K129: IGNACIO ESCUDERO | N129: A24 | P129: A24
F130: CLAS LAGRIMAS DE CURUMUY | H130: LAS LOMAS | K130: JILILI | N130: A25 | P130: A25
F131: CLAS LALAQUIZ | H131: POTRERILLO | K131: LA ARENA | N131: A26 | P131: A26
F132: CLAS LETIRA-BECARA | H132: CHIPILLICO | K132: LA BREA | N132: A27 | P132: A27
F133: CLAS MEDIO PIURA | H133: EL SAUCE-LAS LOMAS | K133: LA HUACA | N133: A28 | P133: A28
F134: CLAS MONTE SULLON- NARIHUALA-PEDRE | H134: PAMPA ELERA BAJA | K134: LA MATANZA | N134: A29 | P134: A29
F135: CLAS MORROPON | H135: PELINGARA | K135: LA UNION | N135: A30 | P135: A30
F136: CLAS NANGAY DE MATALACAS | H136: HUACHUMA ALTA | K136: LAGUNAS | N136: A31 | P136: A31
F137: CLAS PACAIPAMPA | H137: SAN FRANCISCO DE PAMPA ELERA | K137: LALAQUIZ | N137: A32 | P137: A32
F138: CLAS PACHITEA | H138: SANTA ELENA - LAS LOMAS | K138: LANCONES | N138: A33 | P138: A33
F139: CLAS PARACHIQUE | H139: PUERTA PULACHE | K139: LAS LOMAS | N139: A34 | P139: A34
F140: CLAS RINCONADA LICUAR | H140: GARABATOS | K140: LOBITOS | N140: A35 | P140: A35
F141: CLAS SALITRAL | H141: EL PARTIDOR | K141: LOS ORGANOS | N141: A36 | P141: A36
F142: CLAS SALUD PARA TODOS | H142: LA MENTA | K142: MANCORA | N142: A37 | P142: A37
F143: CLAS SAN JUAN DE BIGOTE | H143: SUYO | K143: MARCAVELICA | N143: A38 | P143: A38
F144: CLAS SAN MIGUEL DE PIURA | H144: CHIRINOS | K144: MIGUEL CHECA | N144: A39 | P144: A39
F145: CLAS SAN MIGUEL DEL FAIQUE | H145: PAMPA LARGA-GUITARRAS | K145: MONTERO | N145: A40 | P145: A40
F146: CLAS SANTA CATALINA DE MOSSA | H146: LA TINA | K146: MORROPON | N146: A41 | P146: A41
F147: CLAS SANTA ROSA | H147: LA TIENDA | K147: PACAIPAMPA | N147: A42 | P147: A42
F148: CLAS SANTA ROSA - NUEVO TALLAN | H148: SURPAMPA | K148: PAIMAS | N148: A43 | P148: A43
F149: CLAS SANTO CRISTO DE CRISTO NOS VA | H149: SARAYUYO | K149: PAITA | N149: A44 | P149: A44
F150: CLAS SANTO DOMINGO | H150: PUENTE INTERNACIONAL | K150: PARIÑAS | N150: A45 | P150: A45
F151: CLAS SECHURA | H151: SANTA ANA DE QUIROZ | K151: PIURA | N151: A46 | P151: A46
F152: CLAS SILAHUA | H152: LA LAGUNA | K152: QUERECOTILLO | N152: A47 | P152: A47
F153: CLAS SIN CLAS PIURA | H153: SAPILLLICA | K153: RINCONADA LLICUAR | N153: A48 | P153: A48
F154: CLAS SIN CLAS SULLANA | H154: TASAJERAS | K154: SALITRAL | N154: A49 | P154: A49
F155: CLAS SINCHAO GRANDE - EL TALLAN | H155: COLETAS-CHACHACOMAL | K155: SAN JUAN DE BIGOTE | N155: A50 | P155: A50
F156: CLAS TAMBOYA | H156: EL SAUCE-SAPILLICA | K156: SAN MIGUEL DE EL FAIQUE | N156: A51 | P156: A51
F157: CLAS VICE | H157: PAIMAS | K157: SANTA CATALINA DE MOSSA | N157: A52 | P157: A52
F158: CLAS VILLA LOS RANCHOS | H158: LA SAUCHA | K158: SANTO DOMINGO | N158: A53 | P158: A53
F159: CLAS YAMANGO | H159: TONDOPA | K159: SAPILLICA | N159: A54 | P159: A54
F160: CLAS YAPATERA | H160: JILILI | K160: SECHURA | N160: A55 | P160: A55
F161: CLAS EL OBRERO | H161: ANCHALAY | K161: SICCHEZ | N161: A56 | P161: A56
F162: CLAS IGNACIO ESCUDERO | H162: CUCUYAS | K162: SONDOR | N162: A57 | P162: A57
F163: CLAS JILILI | H163: LAGUNAS | K163: SONDORILLO | N163: A58 | P163: A58
F164: CLAS LA HUACA | H164: EL LUCUMO | K164: SULLANA | N164: A59 | P164: A59
F165: CLAS LA PEÐA-LA HORCA | H165: SALVIA | K165: SUYO | N165: A60 | P165: A60
F166: CLAS LA TORTUGA | H166: SAN JUAN DE LAGUNAS | K166: TAMARINDO | N166: A61 | P166: A61
F167: CLAS MALLARES | H167: PILLO | K167: TAMBO GRANDE | N167: A62 | P167: A62
F168: CLAS NEGRITOS | H168: MONTERO | K168: VEINTISEIS DE OCTUB | N168: A63 | P168: A63
F169: CLAS NUEVE DE OCTUBRE | H169: SICACATE | K169: VICE | N169: A64 | P169: A64
F170: CLAS PUEBLO NUEVO COLAN | H170: MARMAS ALTO | K170: VICHAYAL | N170: A65 | P170: A65
F171: CLAS QUERECOTILLO | H171: QUEBRADA DE AGUA | K171: YAMANGO | N171: A66 | P171: A66
F172: CLAS SAN FRANCISCO DE CHOCAN | H172: SICCHEZ | N172: A67 | P172: A67
F173: CLAS SANTA CRUZ | H173: OXAHUAY | N173: A68 | P173: A68
F174: CLAS SANTA TERESITA | H174: AMBASAL | N174: A69 | P174: A69
F175: CLAS SICCHEZ | H175: TAMBOGRANDE | N175: A70 | P175: A70
F176: CLAS TAMBOGRANDE | H176: SAN ISIDRO | N176: A71 | P176: A71
F177: CLAS VICHAYAL | H177: CRUCETA | N177: A72 | P177: A72
H178: TEJEDORES | N178: A73 | P178: A73
H179: MALINGAS | N179: A74 | P179: A74
H180: MALINGUITAS | N180: A75 | P180: A75
H181: PAPAYO - ALGARROBO | N181: A76 | P181: A76
H182: SANTA ANA | N182: A77 | P182: A77
H183: LA PEÑITA | N183: A78 | P183: A78
H184: CHICA ALTA | N184: A79 | P184: A79
H185: SINCHI ROCA | N185: A80 | P185: A80
H186: LAS MONICAS | N186: A81 | P186: A81
H187: PEDREGAL | N187: A82 | P187: A82
H188: PALOMINOS | N188: A83 | P188: A83
H189: LLOQUE YUPANQUI | N189: A84 | P189: A84
H190: EL PORVENIR | N190: A85 | P190: A85
H191: YAHUAR HUACA | N191: A86 | P191: A86
H192: OCOTO ALTO | N192: A87 | P192: A87
H193: PROGRESO BAJO | N193: A88 | P193: A88
H194: CP3-SAN MARTIN | N194: A89 | P194: A89
H195: CP4 | N195: A90 | P195: A90
H196: GUARAGUAOS | N196: A91 | P196: A91
H197: LA GREDA | N197: A92 | P197: A92
H198: LA RITA | N198: A93 | P198: A93
H199: BELLAVISTA | N199: A94 | P199: A94
H200: SOMATE CENTRO DE SERVICIOS | N200: A95 | P200: A95
H201: HUANGALA | N201: A96 | P201: A96
H202: CHALACALA | N202: A97 | P202: A97
H203: STA. ROSA DE PIEDRA RODADA | N203: A98 | P203: A98
H204: SOMATE BAJO | N204: A99 | P204: A99
H205: SAN VICENTE-PIEDRA RODADA | N205: A100 | P205: A100
H206: SOMATE ALTO | N206: A101 | P206: A101
H207: EL CUCHO | N207: A102 | P207: A102
H208: JOSE OLAYA | N208: A103 | P208: A103
H209: SANTA TERESITA | N209: A104 | P209: A104
H210: VILLA PRIMAVERA | N210: A105 | P210: A105
H211: NUEVE DE OCTUBRE | N211: A106 | P211: A106
H212: EL OBRERO | N212: A107 | P212: A107
H213: CIENEGUILLO CENTRO | N213: A108 | P213: A108
H214: CANAL MOCHO-CIENEG.SUR | N214: A109 | P214: A109
H215: NUEVO SULLANA | N215: A110 | P215: A110
H216: COMUNIDAD SALUDABLE | N216: A111 | P216: A111
H217: MIGUEL CHECA | N217: A112 | P217: A112
H218: JIBITO | N218: A113 | P218: A113
H219: HOSPITAL NUESTRA SEÑORA DE LAS MERCEDES - PAITA | N219: A114 | P219: A114
H220: LA ISLILLA | N220: A115 | P220: A115
H221: YACILA | N221: A116 | P221: A116
H222: SAN LUCAS DE COLAN | N222: A117 | P222: A117
H223: EL ARENAL | N223: A118 | P223: A118
H224: PUEBLO NUEVO DE COLAN | N224: A119 | P224: A119
H225: LA HUACA | N225: A120 | P225: A120
H226: VIVIATE | N226: A121 | P226: A121
H227: NOMARA | N227: A122 | P227: A122
H228: MACACARA | N228: A123 | P228: A123
H229: LA ISLA SAN LORENZO | N229: A124 | P229: A124
H230: MARCAVELICA | N230: A125 | P230: A125
H231: MALLARITOS | N231: A126 | P231: A126
H232: LA GOLONDRINA | N232: A127 | P232: A127
H233: MALLARES | N233: A128 | P233: A128
H234: MONTERON | N234: A129 | P234: A129
H235: TANGARARA | N235: A130 | P235: A130
H236: SAMAN | N236: A131 | P236: A131
H237: VISTA FLORIDA | N237: A132 | P237: A132
H238: LA NORIA | N238: A133 | P238: A133
H239: LA QUINTA | N239: A134 | P239: A134
H240: IGNACIO ESCUDERO | N240: A135 | P240: A135
H241: SAN JUAN DE LA VIRGEN | N241: A136 | P241: A136
H242: MONTELIMA | N242: A137 | P242: A137
H243: SANTA SOFIA | N243: A138 | P243: A138
H244: SAN MIGUEL | N244: A139 | P244: A139
H245: AMOTAPE | N245: A140 | P245: A140
H246: EL TAMBO | N246: A141 | P246: A141
H247: TAMARINDO | N247: A142 | P247: A142
H248: CLAS QUERECOTILLO | N248: A143 | P248: A143
H249: SAN FRANCISCO CHOCAN | N249: A144 | P249: A144
H250: LA PEÑA - LA HORCA | N250: A145 | P250: A145
H251: LA MARGARITA | N251: A146 | P251: A146
H252: SANTA VICTORIA | N252: A147 | P252: A147
H253: PUENTE DE LOS SERRANOS | N253: A148 | P253: A148
H254: SANTA CRUZ | N254: A149 | P254: A149
H255: SALITRAL | N255: A150 | P255: A150
H256: MIRAFLORES | N256: A151 | P256: A151
H257: LANCONES | N257: A152 | P257: A152
H258: ENCUENTRO DE PILARES | N258: A153 | P258: A153
H259: JAHUAY NEGRO | N259: A154 | P259: A154
H260: HUASIMAL DE LA SOLANA | N260: A155 | P260: A155
H261: PLAYAS DE ROMERO | N261: A156 | P261: A156
H262: EL ALAMOR | N262: A157 | P262: A157
H263: QUEBRADA SECA | N263: A158 | P263: A158
H264: EL PITAYO | N264: A159 | P264: A159
H265: CHILACO PELADOS | N265: A160 | P265: A160
H266: PILARES | N266: A161 | P266: A161
H267: CHORRERA DE PULGUERAS | N267: A162 | P267: A162
H268: LA PEÑITA | N268: A163 | P268: A163
H269: CASAS QUEMADAS | N269: A164 | P269: A164
H270: JOSE ABELARDO QUINONES | N270: A165 | P270: A165
H271: TALARA II | N271: A166 | P271: A166
H272: NEGRITOS | N272: A167 | P272: A167
H273: SAN PABLO | N273: A168 | P273: A168
H274: LOBITOS | N274: A169 | P274: A169
H275: VICHAYAL | N275: A170 | P275: A170
H276: MIRAMAR | N276: A171 | P276: A171
H277: LOS ORGANOS | N277: A172 | P277: A172
H278: EL ÑURO | N278: A173 | P278: A173
H279: EL ALTO | N279: A174 | P279: A174
H280: CABO BLANCO | N280: A175 | P280: A175
H281: HOSPITAL DE LA AMISTAD PERU - COREA SANTA ROSA II-2 | N281: A176 | P281: A176
H282: LOS ALGARROBOS | N282: A177 | P282: A177
H283: C.S PACHITEA | N283: A178 | P283: A178
H284: C.S MICAELA BASTIDAS | N284: A179 | P284: A179
H285: E.S I-4 CONSUELO DE VELASCO | N285: A180 | P285: A180
H286: C.S NUEVA ESPERANZA | N286: A181 | P286: A181
H287: E.S SANTA JULIA | N287: A182 | P287: A182
H288: C.S SAN JOSE | N288: A183 | P288: A183
H289: C.S SAN PEDRO | N289: A184 | P289: A184
H290: P.S SAN SEBASTIAN | N290: A185 | P290: A185
H291: P.S VICTOR RAUL HAYA DE LA TORRE | N291: A186 | P291: A186
H292: E.S. CIENEGUILLO SUR | N292: A187 | P292: A187
H293: P.S LAS VEGAS DE CIENEGUILLO | N293: A188 | P293: A188
H294: P.S. LAGRIMAS DE CURUMUY | N294: A189 | P294: A189
H295: E.S. I-4 CASTILLA | N295: A190 | P295: A190
H296: C.S. EL INDIO | N296: A191 | P296: A191
H297: C.S TACALA | N297: A192 | P297: A192
H298: C.S CHICLAYITO | N298: A193 | P298: A193
H299: C. S. MARIA GORETTI | N299: A194 | P299: A194
H300: P.S SAN RAFAEL | N300: A195 | P300: A195
H301: P.S TERELA | N301: A196 | P301: A196
H302: P.S LA OBRILLA | N302: A197 | P302: A197
H303: P.S CHAPAIRA | N303: A198 | P303: A198
H304: P.S EL PAPAYO | N304: A199 | P304: A199
H305: P.S CRUZ DE CAÑA | N305: A200 | P305: A200
... 221 more rows

Sheet FORM (hidden)
B1: MATRIZ Nº 1
A2: INFORMACION MENSUAL DE SALUD MENTAL
B3: DEPARTAMENTO PIURA
B4: RESPONSABLE DE SALUD MENTAL: | F4: MES | G4: Anual | T4: AÑO: 2013
B5: I. TAMIZAJE
B6: ETAPA DE VIDA | C6: NIÑO | K6: ADOLESCENTE | O6: JOVEN | S6: ADULTO | W6: ADULTO MAYOR | AA6: TOTAL TAMIZAJES
B7: EDAD | C7: <1 | E7: 1, - 4 | G7: 5, - 9 | I7: 10. - 11. | K7: 12, - 14 | M7: 15 - 17 | O7: 18 - 24 | Q7: 25 - 29 | S7: 30 - 39 | U7: 40 - 59 | W7: 60 a 79 | Y7: 80 + | AA7: META ANUAL | AB7: AVANCE MES | AC7: ACUM. ANUAL
B8: SEXO | C8: M | D8: F | E8: M | F8: F | G8: M | H8: F | I8: M | J8: F | K8: M | L8: F | M8: M | N8: F | O8: M | P8: F | Q8: M | R8: F | S8: M | T8: F | U8: M | V8: F | W8: M | X8: F | Y8: M | Z8: F
B9: VIOLENCIA FAMILIAR / MALTRATO INFANTIL | C9: MSM01_M1A | D9: FSM01_M1A | E9: MSM01_14A | F9: FSM01_14A | G9: MSM01_59A | H9: FSM01_59A | I9: MSM01_1011A | J9: FSM01_1011A | K9: MSM01_1214A | L9: FSM01_1214A | M9: MSM01_1517A | N9: FSM01_1517A | O9: MSM01_1824A | P9: FSM01_1824A | Q9: MSM01_2529A | R9: FSM01_2529A | S9: MSM01_3039A | T9: FSM01_3039A | U9: MSM01_4059A | V9: FSM01_4059A | W9: MSM01_6079A | X9: FSM01_6079A | Y9: MSM01_80A | Z9: FSM01_80A | AB9: =SUM(C9:Z9) -> 0
B10: TRASTORNO DEPRESIVO | C10: MSM02_M1A | D10: FSM02_M1A | E10: MSM02_14A | F10: FSM02_14A | G10: MSM02_59A | H10: FSM02_59A | I10: MSM02_1011A | J10: FSM02_1011A | K10: MSM02_1214A | L10: FSM02_1214A | M10: MSM02_1517A | N10: FSM02_1517A | O10: MSM02_1824A | P10: FSM02_1824A | Q10: MSM02_2529A | R10: FSM02_2529A | S10: MSM02_3039A | T10: FSM02_3039A | U10: MSM02_4059A | V10: FSM02_4059A | W10: MSM02_6079A | X10: FSM02_6079A | Y10: MSM02_80A | Z10: FSM02_80A | AB10: =SUM(C10:Z10) -> 0
B11: TRAST. CONSUMO DE ALCOHOL | C11: MSM03_M1A | D11: FSM03_M1A | E11: MSM03_14A | F11: FSM03_14A | G11: MSM03_59A | H11: FSM03_59A | I11: MSM03_1011A | J11: FSM03_1011A | K11: MSM03_1214A | L11: FSM03_1214A | M11: MSM03_1517A | N11: FSM03_1517A | O11: MSM03_1824A | P11: FSM03_1824A | Q11: MSM03_2529A | R11: FSM03_2529A | S11: MSM03_3039A | T11: FSM03_3039A | U11: MSM03_4059A | V11: FSM03_4059A | W11: MSM03_6079A | X11: FSM03_6079A | Y11: MSM03_80A | Z11: FSM03_80A | AB11: =SUM(C11:Z11) -> 0
B12: SIND.y/o TRAS.PSICOTICO | C12: MSM04_M1A | D12: FSM04_M1A | E12: MSM04_14A | F12: FSM04_14A | G12: MSM04_59A | H12: FSM04_59A | I12: MSM04_1011A | J12: FSM04_1011A | K12: MSM04_1214A | L12: FSM04_1214A | M12: MSM04_1517A | N12: FSM04_1517A | O12: MSM04_1824A | P12: FSM04_1824A | Q12: MSM04_2529A | R12: FSM04_2529A | S12: MSM04_3039A | T12: FSM04_3039A | U12: MSM04_4059A | V12: FSM04_4059A | W12: MSM04_6079A | X12: FSM04_6079A | Y12: MSM04_80A | Z12: FSM04_80A | AB12: =SUM(C12:Z12) -> 0
B13: * Todo tamizaje tiene una consejería, sea positivo o negativo.
B15: II. ATENDIDOS (CASOS NUEVOS MAS REINGRESOS)
B16: ETAPA DE VIDA | C16: NIÑO | K16: ADOLESCENTE | O16: JOVEN | S16: ADULTO | W16: ADULTO MAYOR | AA16: TOTAL | AD16: TOTAL ATENCIONES
B17: EDAD | C17: <1 | E17: 1, - 4 | G17: 5, - 9 | I17: 10. - 11. | K17: 12, - 14 | M17: 15 - 17 | O17: 18 - 24 | Q17: 25 - 29 | S17: 30 - 39 | U17: 40 - 59 | W17: 60 a 79 | Y17: 80 + | AA17: ATENDIDOS | AB17: ATENCIONES | AC17: ACUM. ANUAL | AD17: META ANUAL | AE17: AVANCE MES | AF17: ACUM. ANUAL
B18: SEXO | C18: M | D18: F | E18: M | F18: F | G18: M | H18: F | I18: M | J18: F | K18: M | L18: F | M18: M | N18: F | O18: M | P18: F | Q18: M | R18: F | S18: M | T18: F | U18: M | V18: F | W18: M | X18: F | Y18: M | Z18: F
B19: VIOLENCIA FAMILIAR / MALTRATO INFANTIL | C19: MSM05_M1A | D19: FSM05_M1A | E19: MSM05_14A | F19: FSM05_14A | G19: MSM05_59A | H19: FSM05_59A | I19: MSM05_1011A | J19: FSM05_1011A | K19: MSM05_1214A | L19: FSM05_1214A | M19: MSM05_1517A | N19: FSM05_1517A | O19: MSM05_1824A | P19: FSM05_1824A | Q19: MSM05_2529A | R19: FSM05_2529A | S19: MSM05_3039A | T19: FSM05_3039A | U19: MSM05_4059A | V19: FSM05_4059A | W19: MSM05_6079A | X19: FSM05_6079A | Y19: MSM05_80A | Z19: FSM05_80A | AB19: TSM05C
B20: TRASTORNO DEPRESIVO | C20: MSM06_M1A | D20: FSM06_M1A | E20: MSM06_14A | F20: FSM06_14A | G20: MSM06_59A | H20: FSM06_59A | I20: MSM06_1011A | J20: FSM06_1011A | K20: MSM06_1214A | L20: FSM06_1214A | M20: MSM06_1517A | N20: FSM06_1517A | O20: MSM06_1824A | P20: FSM06_1824A | Q20: MSM06_2529A | R20: FSM06_2529A | S20: MSM06_3039A | T20: FSM06_3039A | U20: MSM06_4059A | V20: FSM06_4059A | W20: MSM06_6079A | X20: FSM06_6079A | Y20: MSM06_80A | Z20: FSM06_80A | AB20: TSM06C
B21: TRAST. CONSUMO DE ALCOHOL | C21: MSM07_M1A | D21: FSM07_M1A | E21: MSM07_14A | F21: FSM07_14A | G21: MSM07_59A | H21: FSM07_59A | I21: MSM07_1011A | J21: FSM07_1011A | K21: MSM07_1214A | L21: FSM07_1214A | M21: MSM07_1517A | N21: FSM07_1517A | O21: MSM07_1824A | P21: FSM07_1824A | Q21: MSM07_2529A | R21: FSM07_2529A | S21: MSM07_3039A | T21: FSM07_3039A | U21: MSM07_4059A | V21: FSM07_4059A | W21: MSM07_6079A | X21: FSM07_6079A | Y21: MSM07_80A | Z21: FSM07_80A | AB21: TSM07C
B22: TRAST. CONSUMO DE OTRAS DROGAS | C22: MSM08_M1A | D22: FSM08_M1A | E22: MSM08_14A | F22: FSM08_14A | G22: MSM08_59A | H22: FSM08_59A | I22: MSM08_1011A | J22: FSM08_1011A | K22: MSM08_1214A | L22: FSM08_1214A | M22: MSM08_1517A | N22: FSM08_1517A | O22: MSM08_1824A | P22: FSM08_1824A | Q22: MSM08_2529A | R22: FSM08_2529A | S22: MSM08_3039A | T22: FSM08_3039A | U22: MSM08_4059A | V22: FSM08_4059A | W22: MSM08_6079A | X22: FSM08_6079A | Y22: MSM08_80A | Z22: FSM08_80A | AB22: TSM08C
B23: INTENTO DE SUICIDIO | C23: MSM09_M1A | D23: FSM09_M1A | E23: MSM09_14A | F23: FSM09_14A | G23: MSM09_59A | H23: FSM09_59A | I23: MSM09_1011A | J23: FSM09_1011A | K23: MSM09_1214A | L23: FSM09_1214A | M23: MSM09_1517A | N23: FSM09_1517A | O23: MSM09_1824A | P23: FSM09_1824A | Q23: MSM09_2529A | R23: FSM09_2529A | S23: MSM09_3039A | T23: FSM09_3039A | U23: MSM09_4059A | V23: FSM09_4059A | W23: MSM09_6079A | X23: FSM09_6079A | Y23: MSM09_80A | Z23: FSM09_80A | AB23: TSM09C
B24: ANSIEDAD | C24: MSM10_M1A | D24: FSM10_M1A | E24: MSM10_14A | F24: FSM10_14A | G24: MSM10_59A | H24: FSM10_59A | I24: MSM10_1011A | J24: FSM10_1011A | K24: MSM10_1214A | L24: FSM10_1214A | M24: MSM10_1517A | N24: FSM10_1517A | O24: MSM10_1824A | P24: FSM10_1824A | Q24: MSM10_2529A | R24: FSM10_2529A | S24: MSM10_3039A | T24: FSM10_3039A | U24: MSM10_4059A | V24: FSM10_4059A | W24: MSM10_6079A | X24: FSM10_6079A | Y24: MSM10_80A | Z24: FSM10_80A | AB24: TSM10C
B25: SIND.y/o TRAS.PSICOTICO | C25: MSM11_M1A | D25: FSM11_M1A | E25: MSM11_14A | F25: FSM11_14A | G25: MSM11_59A | H25: FSM11_59A | I25: MSM11_1011A | J25: FSM11_1011A | K25: MSM11_1214A | L25: FSM11_1214A | M25: MSM11_1517A | N25: FSM11_1517A | O25: MSM11_1824A | P25: FSM11_1824A | Q25: MSM11_2529A | R25: FSM11_2529A | S25: MSM11_3039A | T25: FSM11_3039A | U25: MSM11_4059A | V25: FSM11_4059A | W25: MSM11_6079A | X25: FSM11_6079A | Y25: MSM11_80A | Z25: FSM11_80A | AB25: TSM12C
B26: OTROS
B27: 1 TRASTORNOS EMOCIONALES | C27: MSM12_M1A | D27: FSM12_M1A | E27: MSM12_14A | F27: FSM12_14A | G27: MSM12_59A | H27: FSM12_59A | I27: MSM12_1011A | J27: FSM12_1011A | K27: MSM12_1214A | L27: FSM12_1214A | M27: MSM12_1517A | N27: FSM12_1517A | O27: MSM12_1824A | P27: FSM12_1824A | Q27: MSM12_2529A | R27: FSM12_2529A | S27: MSM12_3039A | T27: FSM12_3039A | U27: MSM12_6079A | V27: FSM12_6079A | W27: MSM12_4059A | X27: FSM12_4059A | Y27: MSM12_80A | Z27: FSM12_80A | AB27: TSM11C
B28: 2 TRASTORNOS DEL DESARROLLO PSICOLOGICO | C28: MSM13_M1A | D28: FSM13_M1A | E28: MSM13_14A | F28: FSM13_14A | G28: MSM13_59A | H28: FSM13_59A | I28: MSM13_1011A | J28: FSM13_1011A | K28: MSM13_1214A | L28: FSM13_1214A | M28: MSM13_1824A | N28: FSM13_1824A | O28: MSM13_1517A | P28: FSM13_1517A | Q28: MSM13_2529A | R28: FSM13_2529A | S28: MSM13_3039A | T28: FSM13_3039A | U28: MSM13_4059A | V28: FSM13_4059A | W28: MSM13_6079A | X28: FSM13_6079A | Y28: MSM13_80A | Z28: FSM13_80A | AB28: TSM13C
B29: * AFECTADO POR VIOLENCIA POLITICA | C29: MSM14_M1A | D29: FSM14_M1A | E29: MSM14_14A | F29: FSM14_14A | G29: MSM14_59A | H29: FSM14_59A | I29: MSM14_1011A | J29: FSM14_1011A | K29: MSM14_1214A | L29: FSM14_1214A | M29: MSM14_1517A | N29: FSM14_1517A | O29: MSM14_1824A | P29: FSM14_1824A | Q29: MSM14_2529A | R29: FSM14_2529A | S29: MSM14_3039A | T29: FSM14_3039A | U29: MSM14_4059A | V29: FSM14_4059A | W29: MSM14_6079A | X29: FSM14_6079A | Y29: MSM14_80A | Z29: FSM14_80A | AB29: TSM14C
B30: TOTAL | C30: =SUM(C19:C29) -> 0 | D30: 0 | E30: 0 | F30: 0 | G30: 0 | H30: 0 | I30: 0 | J30: 0 | K30: 0 | L30: 0 | M30: 0 | N30: 0 | O30: 0 | P30: 0 | Q30: 0 | R30: 0 | S30: 0 | T30: 0 | U30: 0 | V30: 0 | W30: 0 | X30: 0 | Y30: 0 | Z30: 0 | AA30: 0 | AB30: =SUM(#REF!) ->  | AE30: =SUM(AB19:AB29) -> 0
B31: (1 Y 2) Consigne las 2 morbilidades de mayor prevalencia en en el rubro "otros" de acuerdo a los codigos de diagnosticos del cie-10
B32: * Especifique si las personas con algun tipo de morbilidad han sido afectadas por Violencia Politica. Verificar con el Registro Unico de Victimas (RUV).
B34: III. MODULOS DE ATENCION AL MALTRATO INFANTIL (MAMIS)
B35: ETAPA DE VIDA | C35: NIÑO | K35: ADOLESCENTE | O35: TOTAL ATENDIDOS | U35: TOTAL ATENCIONES
B36: EDAD | C36: <1 | E36: 1, - 4 | G36: 5, - 9 | I36: 10. - 11. | K36: 12, - 14 | M36: 15 - 17 | O36: META ANUAL | Q36: AVANCE MES | S36: ACUM. ANUAL | U36: META ANUAL | W36: AVANCE MES | Y36: ACUM. ANUAL
B37: SEXO | C37: M | D37: F | E37: M | F37: F | G37: M | H37: F | I37: M | J37: F | K37: M | L37: F | M37: M | N37: F
B38: ABUSO FISICO | C38: MSM15_M1A | D38: FSM15_M1A | E38: MSM15_14A | F38: FSM15_14A | G38: MSM15_59A | H38: FSM15_59A | I38: MSM15_1011A | J38: FSM15_1011A | K38: MSM15_1214A | L38: FSM15_1214A | M38: MSM15_1517A | N38: FSM15_1517A | Q38: =SUM(C38:N38) -> 0 | W38: TSM15C
B39: ABUSO PSICOLOGICO | C39: MSM16_M1A | D39: FSM16_M1A | E39: MSM16_14A | F39: FSM16_14A | G39: MSM16_59A | H39: FSM16_59A | I39: MSM16_1011A | J39: FSM16_1011A | K39: MSM16_1214A | L39: FSM16_1214A | M39: MSM16_1517A | N39: FSM16_1517A | Q39: =SUM(C39:N39) -> 0 | W39: TSM16C
B40: ABUSO SEXUAL | C40: MSM17_M1A | D40: FSM17_M1A | E40: MSM17_14A | F40: FSM17_14A | G40: MSM17_59A | H40: FSM17_59A | I40: MSM17_1011A | J40: FSM17_1011A | K40: MSM17_1214A | L40: FSM17_1214A | M40: MSM17_1517A | N40: FSM17_1517A | Q40: =SUM(C40:N40) -> 0 | W40: TSM17C
B41: NEGLIGENCIA | C41: MSM18_M1A | D41: FSM18_M1A | E41: MSM18_14A | F41: FSM18_14A | G41: MSM18_59A | H41: FSM18_59A | I41: MSM18_1011A | J41: FSM18_1011A | K41: MSM18_1214A | L41: FSM18_1214A | M41: MSM18_1517A | N41: FSM18_1517A | Q41: =SUM(C41:N41) -> 0 | W41: TSM18C
B42: TOTAL | C42: =SUM(C38:C41) -> 0 | D42: =SUM(D38:D41) -> 0 | E42: =SUM(E38:E41) -> 0 | F42: 0 | G42: 0 | H42: 0 | I42: 0 | J42: 0 | K42: 0 | L42: 0 | M42: 0 | N42: =SUM(N38:N41) -> 0 | Q42: =SUM(Q38:R41) -> 0 | W42: =SUM(W38:W41) -> 0
B44: IV. VISITA FAMILIAR INTEGRAL
B45: PROBLEMA DE SALUD MENTAL | D45: META ANUAL | F45: AVANCE MES | H45: ACUM ANUAL.
B46: VIOLENCIA FAMILIAR | F46: TSM19
B47: TRASTORNO DEPRESIVO (F33+D) | F47: TSM20
B48: ABUSO DE ALCOHOL (F10+D) | F48: TSM21
B49: INTENTO DE SUICIDIO | F49: TSM22
B50: TRAS. PSICOTICO (F23+F28+D) | F50: TSM23
B51: TOTAL
B52: V. TALLERES
B53: ACTIVIDAD | D53: META ANUAL | J53: AVANCE MES | P53: ACUMULADO ANUAL
D54: Sesiones | F54: Taller | H54: Benef | J54: Sesiones | L54: Taller | N54: Benef | P54: Sesiones | R54: Taller | T54: Benef
B55: PAUTAS DE CRIANZA | J55: TSM24 | L55: TSM24B | N55: TSM24C
B56: FAMILIAS FUERTES | J56: TSM25 | L56: TSM25B | N56: TSM25C
B57: PROMOCION DE VALORES Y BUEN TRATO | J57: TSM26 | L57: TSM26B | N57: TSM26C
B58: CONVIVENCIA EN PAREJA
B59: HABILIDADES SOCIALES EN NIÑOS (8-11 años) | J59: TSM28T | N59: TSM28T
B60: HABILIDADES SOCIALES EN ADOLESCENTES (12- 17 años) | J60: TSM29T | N60: TSM29T
B61: GRUPOS DE AYUDA MUTUA
B62: TOTAL | K62: =SUM(K55:K61) -> 0 | M62: =SUM(M55:M61) -> 0 | O62: =SUM(O55:O61) -> 0 | Q62: =SUM(Q55:Q61) -> 0 | S62: =SUM(S55:S61) -> 0 | U62: =SUM(U55:U61) -> 0
D65: NIÑO | J65: ADOLESCENTE
B66: ACTIVIDAD | D66: META ANUAL | F66: AVANCE MES | H66: ACUMULADO ANUAL | J66: META ANUAL | L66: AVANCE MES | N66: ACUMULADO ANUAL
D67: Benef | F67: Benef | H67: Benef | J67: Benef | L67: Benef | N67: Benef
B68: APLICACIÓN DE CUESTIONARIO DE HABILIDADES SOCIALES | F68: TSM28 | L68: TSM28AD
B69: CONSEJERIA EN HABILIDADES SOCIALES
B70: TOTAL
B72: VI. SESIONES PSICOEDUCATIVAS EN PROBLEMAS Y TRASTORNOS DE SALUD MENTAL
B73: SESIONES | D73: META ANUAL | H73: AVANCE MES | L73: ACUMULADO ANUAL
D74: Nº | F74: Benef. | H74: Nº | J74: Benef. | L74: Nº | N74: Benef.
B75: VIOLENCIA FAMILIAR (C0009+LAB+VIF+D) | H75: TSM33 | J75: TSM33B
B76: DEPRESION (C0009+LAB+TD+D) | H76: TSM34 | J76: TSM34B
B77: ALCOHOL Y DROGAS (C0009+LAB+AD+D) | H77: TSM35 | J77: TSM35B
B78: PSICOSIS / ESQUIZOFRENIA (C0009+LAB+EP+D) | H78: TSM36 | J78: TSM36B
B79: INTENTO SUICIDA (C0009+LAB+IS+D) | H79: TSM37 | J79: TSM37B
B80: TOTAL | I80: =SUM(H75:H79) -> 0 | K80: =SUM(J75:J79) -> 0
B82: VII. INTERVENCION COMUNITARIA
B83: ACTIVIDAD | D83: META ANUAL | F83: AVANCE MES | N83: ACUMULADO ANUAL
D84: Total | F84: Escrita | H84: Radial | J84: Televisiva | L84: Otros | N84: Total
B85: CAMPAÑA EN MEDIOS MASIVOS | H85: TSM38B
B87: ACTIVIDAD | D87: META ANUAL | F87: AVANCE MES | R87: ACUMULADO ANUAL
D88: Total | F88: Publicidad alternativa | H88: Benef. | J88: Movilización social | L88: Benef. | N88: Animación sociocultural | P88: Benef. | R88: Total
B89: CAMPAÑA EN MEDIOS ALTERNATIVOS | F89: TSM39 | H89: TSM39B | J89: TSM40 | L89: TSM40B | N89: TSM41 | P89: TSM41B
B91: ACTIVIDADES | D91: META ANUAL | F91: AVANCE MES | N91: ACUMULADO ANUAL
D92: Total | F92: Reuniones Multisectoriales | H92: Benef. | J92: Reuniones de Sensibilización | L92: Benef.
B93: LIDERES DE OPINION | F93: TSM42 | H93: TSM42B | J93: TSM43 | L93: TSM43B
B95: VIII CAPACITACION DE RECURSOS HUMANOS
B96: RR.HH. | D96: VIF | F96: ADICCIONES | H96: DEPRESION | J96: SUICIDIO | L96: TRAS. PSICOTICO | N96: OTROS | P96: AVANCE MES | R96: ACUMULADO ANUAL
B97: MEDICO GENERAL
B98: PSICOLOGO
B99: ENFERMERO
B100: OBSTETRIZ
B101: TRABAJADORA SOCIAL
B102: TEC. DE ENFERMERIA
B103: AGENTES COMUNITARIOS
B104: OTROS
B105: TOTAL

Sheet TABLA_23
B2: EJECUTORA | C2: SALUD PIURA
A3: 1 | B3: 2 | C3: 3 | D3: 4 | E3: 5 | F3: 6 | G3: 7 | H3: 8 | I3: 9 | J3: 10 | K3: 11 | L3: 12 | M3: 13 | N3: 14 | O3: 15 | P3: 16 | Q3: 17 | R3: 18 | S3: 19 | T3: 20 | U3: 21
C4: Etiquetas de columna
B5: Valores | C5: 1 | D5: 2 | E5: 3 | F5: 4 | G5: 5 | H5: 6 | I5: 7 | J5: 8 | K5: 9 | L5: 10 | O5: Total | P5: I-Trim | Q5: II-Trim | R5: III-Trim | S5: IV-Trim | T5: I-Sem | U5: II-Sem
A6: =MID(B6,9,15) -> PG1 | B6: Suma de PG1 | C6: 0 | D6: 2 | E6: 0 | F6: 1 | G6: 1 | H6: 1 | I6: 1 | J6: 0 | K6: 1 | L6: 1 | O6: =SUM(C6:N6) -> 8 | P6: =SUM(C6:E6) -> 2 | Q6: =SUM(F6:H6) -> 3 | R6: =SUM(I6:K6) -> 2 | S6: =SUM(L6:N6) -> 1 | T6: =SUM(P6:Q6) -> 5 | U6: =SUM(R6:S6) -> 3
A7: =MID(B7,9,15) -> PG2 | B7: Suma de PG2 | C7: 0 | D7: 0 | E7: 0 | F7: 0 | G7: 0 | H7: 1 | I7: 0 | J7: 0 | K7: 0 | L7: 0 | O7: =SUM(C7:N7) -> 1 | P7: =SUM(C7:E7) -> 0 | Q7: =SUM(F7:H7) -> 1 | R7: =SUM(I7:K7) -> 0 | S7: =SUM(L7:N7) -> 0 | T7: =SUM(P7:Q7) -> 1 | U7: =SUM(R7:S7) -> 0
A8: PG3 | B8: Suma de PG3 | C8: 3 | D8: 4 | E8: 5 | F8: 7 | G8: 6 | H8: 7 | I8: 2 | J8: 6 | K8: 7 | L8: 9 | O8: 56 | P8: 12 | Q8: 20 | R8: 15 | S8: 9 | T8: 32 | U8: 24
A9: PG4 | B9: Suma de PG4 | C9: 3 | D9: 0 | E9: 1 | F9: 2 | G9: 5 | H9: 6 | I9: 1 | J9: 2 | K9: 3 | L9: 6 | O9: 29 | P9: 4 | Q9: 13 | R9: 6 | S9: 6 | T9: 17 | U9: 12
A10: PG5 | B10: Suma de PG5 | C10: 88 | D10: 98 | E10: 96 | F10: 81 | G10: 83 | H10: 104 | I10: 80 | J10: 50 | K10: 68 | L10: 299 | O10: 1047 | P10: 282 | Q10: 268 | R10: 198 | S10: 299 | T10: 550 | U10: 497
A11: PG6 | B11: Suma de PG6 | C11: 37 | D11: 45 | E11: 51 | F11: 43 | G11: 50 | H11: 75 | I11: 50 | J11: 31 | K11: 41 | L11: 262 | O11: 685 | P11: 133 | Q11: 168 | R11: 122 | S11: 262 | T11: 301 | U11: 384
A12: PG7 | B12: Suma de PG7 | C12: 89 | D12: 97 | E12: 101 | F12: 69 | G12: 93 | H12: 116 | I12: 79 | J12: 77 | K12: 91 | L12: 399 | O12: 1211 | P12: 287 | Q12: 278 | R12: 247 | S12: 399 | T12: 565 | U12: 646
A13: PG8 | B13: Suma de PG8 | C13: 53 | D13: 50 | E13: 77 | F13: 40 | G13: 53 | H13: 84 | I13: 48 | J13: 50 | K13: 64 | L13: 368 | O13: 887 | P13: 180 | Q13: 177 | R13: 162 | S13: 368 | T13: 357 | U13: 530
A14: PG9 | B14: Suma de PG9 | C14: 2 | D14: 4 | E14: 4 | F14: 1 | G14: 4 | H14: 1 | I14: 3 | J14: 1 | K14: 2 | L14: 12 | O14: 34 | P14: 10 | Q14: 6 | R14: 6 | S14: 12 | T14: 16 | U14: 18
A15: PG10 | B15: Suma de PG10 | C15: 1 | D15: 1 | E15: 3 | F15: 1 | G15: 2 | H15: 1 | I15: 2 | J15: 0 | K15: 1 | L15: 12 | O15: 24 | P15: 5 | Q15: 4 | R15: 3 | S15: 12 | T15: 9 | U15: 15
A16: PG11 | B16: Suma de PG11 | C16: 0 | D16: 0 | E16: 0 | F16: 0 | G16: 0 | H16: 0 | I16: 0 | J16: 0 | K16: 0 | L16: 0 | O16: 0 | P16: 0 | Q16: 0 | R16: 0 | S16: 0 | T16: 0 | U16: 0
A17: PG12 | B17: Suma de PG12 | C17: 0 | D17: 0 | E17: 0 | F17: 0 | G17: 0 | H17: 0 | I17: 0 | J17: 0 | K17: 0 | L17: 0 | O17: 0 | P17: 0 | Q17: 0 | R17: 0 | S17: 0 | T17: 0 | U17: 0
A18: PG13 | B18: Suma de PG13 | C18: 0 | D18: 0 | E18: 0 | F18: 0 | G18: 0 | H18: 0 | I18: 0 | J18: 0 | K18: 0 | L18: 0 | O18: 0 | P18: 0 | Q18: 0 | R18: 0 | S18: 0 | T18: 0 | U18: 0
A19: PG14 | B19: Suma de PG14 | C19: 0 | D19: 0 | E19: 0 | F19: 0 | G19: 0 | H19: 0 | I19: 0 | J19: 0 | K19: 0 | L19: 0 | O19: 0 | P19: 0 | Q19: 0 | R19: 0 | S19: 0 | T19: 0 | U19: 0
A20: PG15 | B20: Suma de PG15 | C20: 0 | D20: 0 | E20: 0 | F20: 0 | G20: 1 | H20: 1 | I20: 1 | J20: 0 | K20: 1 | L20: 0 | O20: 4 | P20: 0 | Q20: 2 | R20: 2 | S20: 0 | T20: 2 | U20: 2
A21: PG16 | B21: Suma de PG16 | C21: 0 | D21: 0 | E21: 0 | F21: 0 | G21: 0 | H21: 0 | I21: 0 | J21: 0 | K21: 1 | L21: 0 | O21: 1 | P21: 0 | Q21: 0 | R21: 1 | S21: 0 | T21: 0 | U21: 1
A22: PG17 | B22: Suma de PG17 | C22: 0 | D22: 0 | E22: 0 | F22: 0 | G22: 0 | H22: 0 | I22: 0 | J22: 0 | K22: 0 | L22: 0 | O22: 0 | P22: 0 | Q22: 0 | R22: 0 | S22: 0 | T22: 0 | U22: 0
A23: PG18 | B23: Suma de PG18 | C23: 0 | D23: 0 | E23: 0 | F23: 0 | G23: 0 | H23: 0 | I23: 0 | J23: 0 | K23: 0 | L23: 0 | O23: 0 | P23: 0 | Q23: 0 | R23: 0 | S23: 0 | T23: 0 | U23: 0
A24: PG19 | B24: Suma de PG19 | C24: 0 | D24: 0 | E24: 0 | F24: 0 | G24: 0 | H24: 0 | I24: 0 | J24: 0 | K24: 0 | L24: 0 | O24: 0 | P24: 0 | Q24: 0 | R24: 0 | S24: 0 | T24: 0 | U24: 0
A25: PG20 | B25: Suma de PG20 | C25: 0 | D25: 0 | E25: 0 | F25: 0 | G25: 0 | H25: 0 | I25: 0 | J25: 0 | K25: 0 | L25: 0 | O25: 0 | P25: 0 | Q25: 0 | R25: 0 | S25: 0 | T25: 0 | U25: 0
A26: PG21 | B26: Suma de PG21 | C26: 0 | D26: 0 | E26: 0 | F26: 0 | G26: 0 | H26: 0 | I26: 0 | J26: 0 | K26: 0 | L26: 0 | O26: 0 | P26: 0 | Q26: 0 | R26: 0 | S26: 0 | T26: 0 | U26: 0
A27: PG22 | B27: Suma de PG22 | C27: 0 | D27: 0 | E27: 0 | F27: 0 | G27: 0 | H27: 0 | I27: 0 | J27: 0 | K27: 0 | L27: 0 | O27: 0 | P27: 0 | Q27: 0 | R27: 0 | S27: 0 | T27: 0 | U27: 0
A28: PG23 | B28: Suma de PG23 | C28: 0 | D28: 0 | E28: 0 | F28: 0 | G28: 0 | H28: 0 | I28: 0 | J28: 0 | K28: 0 | L28: 0 | O28: 0 | P28: 0 | Q28: 0 | R28: 0 | S28: 0 | T28: 0 | U28: 0
A29: PG24 | B29: Suma de PG24 | C29: 0 | D29: 0 | E29: 0 | F29: 0 | G29: 0 | H29: 0 | I29: 0 | J29: 0 | K29: 0 | L29: 0 | O29: 0 | P29: 0 | Q29: 0 | R29: 0 | S29: 0 | T29: 0 | U29: 0
A30: PG25 | B30: Suma de PG25 | C30: 0 | D30: 0 | E30: 0 | F30: 0 | G30: 0 | H30: 0 | I30: 0 | J30: 0 | K30: 1 | L30: 0 | O30: 1 | P30: 0 | Q30: 0 | R30: 1 | S30: 0 | T30: 0 | U30: 1
A31: PG26 | B31: Suma de PG26 | C31: 0 | D31: 0 | E31: 0 | F31: 0 | G31: 0 | H31: 0 | I31: 0 | J31: 0 | K31: 1 | L31: 0 | O31: 1 | P31: 0 | Q31: 0 | R31: 1 | S31: 0 | T31: 0 | U31: 1
A32: PG27 | B32: Suma de PG27 | C32: 0 | D32: 0 | E32: 0 | F32: 0 | G32: 0 | H32: 0 | I32: 0 | J32: 0 | K32: 0 | L32: 0 | O32: 0 | P32: 0 | Q32: 0 | R32: 0 | S32: 0 | T32: 0 | U32: 0
A33: PG28 | B33: Suma de PG28 | C33: 0 | D33: 0 | E33: 0 | F33: 0 | G33: 0 | H33: 0 | I33: 0 | J33: 0 | K33: 0 | L33: 0 | O33: 0 | P33: 0 | Q33: 0 | R33: 0 | S33: 0 | T33: 0 | U33: 0
A34: PG29 | B34: Suma de PG29 | C34: 0 | D34: 0 | E34: 0 | F34: 0 | G34: 0 | H34: 0 | I34: 0 | J34: 0 | K34: 0 | L34: 0 | O34: 0 | P34: 0 | Q34: 0 | R34: 0 | S34: 0 | T34: 0 | U34: 0
A35: PG30 | B35: Suma de PG30 | C35: 0 | D35: 0 | E35: 0 | F35: 0 | G35: 0 | H35: 0 | I35: 0 | J35: 0 | K35: 0 | L35: 0 | O35: 0 | P35: 0 | Q35: 0 | R35: 0 | S35: 0 | T35: 0 | U35: 0
A36: PG31 | B36: Suma de PG31 | C36: 0 | D36: 0 | E36: 0 | F36: 1 | G36: 0 | H36: 1 | I36: 0 | J36: 0 | K36: 0 | L36: 0 | O36: 2 | P36: 0 | Q36: 2 | R36: 0 | S36: 0 | T36: 2 | U36: 0
A37: PG32 | B37: Suma de PG32 | C37: 0 | D37: 0 | E37: 0 | F37: 0 | G37: 0 | H37: 1 | I37: 0 | J37: 0 | K37: 0 | L37: 0 | O37: 1 | P37: 0 | Q37: 1 | R37: 0 | S37: 0 | T37: 1 | U37: 0
A38: PG33 | B38: Suma de PG33 | C38: 3 | D38: 3 | E38: 4 | F38: 6 | G38: 6 | H38: 6 | I38: 2 | J38: 5 | K38: 7 | L38: 9 | O38: 51 | P38: 10 | Q38: 18 | R38: 14 | S38: 9 | T38: 28 | U38: 23
A39: PG34 | B39: Suma de PG34 | C39: 3 | D39: 0 | E39: 1 | F39: 2 | G39: 5 | H39: 5 | I39: 1 | J39: 2 | K39: 3 | L39: 6 | O39: 28 | P39: 4 | Q39: 12 | R39: 6 | S39: 6 | T39: 16 | U39: 12
A40: PG35 | B40: Suma de PG35 | C40: 77 | D40: 80 | E40: 88 | F40: 69 | G40: 69 | H40: 78 | I40: 67 | J40: 47 | K40: 60 | L40: 282 | O40: 917 | P40: 245 | Q40: 216 | R40: 174 | S40: 282 | T40: 461 | U40: 456
A41: PG36 | B41: Suma de PG36 | C41: 34 | D41: 36 | E41: 48 | F41: 41 | G41: 44 | H41: 56 | I41: 46 | J41: 31 | K41: 39 | L41: 257 | O41: 632 | P41: 118 | Q41: 141 | R41: 116 | S41: 257 | T41: 259 | U41: 373
A42: PG37 | B42: Suma de PG37 | C42: 77 | D42: 75 | E42: 91 | F42: 57 | G42: 80 | H42: 85 | I42: 63 | J42: 68 | K42: 84 | L42: 379 | O42: 1059 | P42: 243 | Q42: 222 | R42: 215 | S42: 379 | T42: 465 | U42: 594
A43: PG38 | B43: Suma de PG38 | C43: 48 | D43: 41 | E43: 72 | F43: 35 | G43: 52 | H43: 65 | I43: 42 | J43: 48 | K43: 62 | L43: 357 | O43: 822 | P43: 161 | Q43: 152 | R43: 152 | S43: 357 | T43: 313 | U43: 509
A44: PG39 | B44: Suma de PG39 | C44: 2 | D44: 2 | E44: 3 | F44: 1 | G44: 2 | H44: 1 | I44: 3 | J44: 0 | K44: 1 | L44: 12 | O44: 27 | P44: 7 | Q44: 4 | R44: 4 | S44: 12 | T44: 11 | U44: 16
A45: PG40 | B45: Suma de PG40 | C45: 1 | D45: 1 | E45: 3 | F45: 1 | G45: 2 | H45: 1 | I45: 2 | J45: 0 | K45: 1 | L45: 12 | O45: 24 | P45: 5 | Q45: 4 | R45: 3 | S45: 12 | T45: 9 | U45: 15
A46: PG41 | B46: Suma de PG41 | C46: 0 | D46: 0 | E46: 0 | F46: 0 | G46: 0 | H46: 0 | I46: 0 | J46: 0 | K46: 0 | L46: 0 | O46: 0 | P46: 0 | Q46: 0 | R46: 0 | S46: 0 | T46: 0 | U46: 0
A47: PG42 | B47: Suma de PG42 | C47: 0 | D47: 0 | E47: 0 | F47: 0 | G47: 0 | H47: 0 | I47: 0 | J47: 0 | K47: 0 | L47: 0 | O47: 0 | P47: 0 | Q47: 0 | R47: 0 | S47: 0 | T47: 0 | U47: 0
A48: PG43 | B48: Suma de PG43 | C48: 0 | D48: 0 | E48: 0 | F48: 1 | G48: 0 | H48: 0 | I48: 0 | J48: 0 | K48: 0 | L48: 0 | O48: 1 | P48: 0 | Q48: 1 | R48: 0 | S48: 0 | T48: 1 | U48: 0
A49: PG44 | B49: Suma de PG44 | C49: 0 | D49: 0 | E49: 0 | F49: 0 | G49: 0 | H49: 0 | I49: 0 | J49: 0 | K49: 0 | L49: 0 | O49: 0 | P49: 0 | Q49: 0 | R49: 0 | S49: 0 | T49: 0 | U49: 0
A50: PG45 | B50: Suma de PG45 | C50: 2 | D50: 0 | E50: 2 | F50: 2 | G50: 0 | H50: 2 | I50: 0 | J50: 0 | K50: 0 | L50: 0 | O50: 8 | P50: 4 | Q50: 4 | R50: 0 | S50: 0 | T50: 8 | U50: 0
A51: PG46 | B51: Suma de PG46 | C51: 0 | D51: 0 | E51: 1 | F51: 0 | G51: 0 | H51: 0 | I51: 0 | J51: 0 | K51: 0 | L51: 0 | O51: 1 | P51: 1 | Q51: 0 | R51: 0 | S51: 0 | T51: 1 | U51: 0
A52: PG47 | B52: Suma de PG47 | C52: 0 | D52: 1 | E52: 0 | F52: 2 | G52: 2 | H52: 2 | I52: 0 | J52: 0 | K52: 1 | L52: 0 | O52: 8 | P52: 1 | Q52: 6 | R52: 1 | S52: 0 | T52: 7 | U52: 1
A53: PG48 | B53: Suma de PG48 | C53: 0 | D53: 0 | E53: 0 | F53: 0 | G53: 0 | H53: 0 | I53: 0 | J53: 0 | K53: 0 | L53: 0 | O53: 0 | P53: 0 | Q53: 0 | R53: 0 | S53: 0 | T53: 0 | U53: 0
A54: PG49 | B54: Suma de PG49 | C54: 0 | D54: 0 | E54: 0 | F54: 0 | G54: 0 | H54: 0 | I54: 0 | J54: 0 | K54: 0 | L54: 0 | O54: 0 | P54: 0 | Q54: 0 | R54: 0 | S54: 0 | T54: 0 | U54: 0
A55: PG50 | B55: Suma de PG50 | C55: 0 | D55: 0 | E55: 0 | F55: 0 | G55: 0 | H55: 0 | I55: 0 | J55: 0 | K55: 0 | L55: 0 | O55: 0 | P55: 0 | Q55: 0 | R55: 0 | S55: 0 | T55: 0 | U55: 0
A56: PG51 | B56: Suma de PG51 | C56: 0 | D56: 0 | E56: 0 | F56: 0 | G56: 0 | H56: 0 | I56: 0 | J56: 0 | K56: 0 | L56: 0 | O56: 0 | P56: 0 | Q56: 0 | R56: 0 | S56: 0 | T56: 0 | U56: 0
A57: PG52 | B57: Suma de PG52 | C57: 0 | D57: 0 | E57: 0 | F57: 0 | G57: 0 | H57: 0 | I57: 0 | J57: 0 | K57: 0 | L57: 0 | O57: 0 | P57: 0 | Q57: 0 | R57: 0 | S57: 0 | T57: 0 | U57: 0
A58: PG53 | B58: Suma de PG53 | C58: 0 | D58: 0 | E58: 0 | F58: 0 | G58: 0 | H58: 0 | I58: 0 | J58: 0 | K58: 0 | L58: 0 | O58: 0 | P58: 0 | Q58: 0 | R58: 0 | S58: 0 | T58: 0 | U58: 0
A59: PG54 | B59: Suma de PG54 | C59: 0 | D59: 0 | E59: 0 | F59: 0 | G59: 0 | H59: 0 | I59: 0 | J59: 0 | K59: 0 | L59: 0 | O59: 0 | P59: 0 | Q59: 0 | R59: 0 | S59: 0 | T59: 0 | U59: 0
A60: PG55 | B60: Suma de PG55 | C60: 0 | D60: 0 | E60: 0 | F60: 0 | G60: 1 | H60: 1 | I60: 1 | J60: 0 | K60: 0 | L60: 0 | O60: 3 | P60: 0 | Q60: 2 | R60: 1 | S60: 0 | T60: 2 | U60: 1
A61: PG56 | B61: Suma de PG56 | C61: 0 | D61: 0 | E61: 0 | F61: 0 | G61: 0 | H61: 0 | I61: 0 | J61: 0 | K61: 0 | L61: 0 | O61: 0 | P61: 0 | Q61: 0 | R61: 0 | S61: 0 | T61: 0 | U61: 0
A62: PG57 | B62: Suma de PG57 | C62: 0 | D62: 0 | E62: 0 | F62: 0 | G62: 0 | H62: 0 | I62: 0 | J62: 0 | K62: 0 | L62: 0 | O62: 0 | P62: 0 | Q62: 0 | R62: 0 | S62: 0 | T62: 0 | U62: 0
A63: PG58 | B63: Suma de PG58 | C63: 0 | D63: 0 | E63: 0 | F63: 0 | G63: 0 | H63: 0 | I63: 0 | J63: 0 | K63: 0 | L63: 0 | O63: 0 | P63: 0 | Q63: 0 | R63: 0 | S63: 0 | T63: 0 | U63: 0
A64: PG59 | B64: Suma de PG59 | C64: 0 | D64: 0 | E64: 0 | F64: 0 | G64: 0 | H64: 0 | I64: 0 | J64: 0 | K64: 0 | L64: 0 | O64: 0 | P64: 0 | Q64: 0 | R64: 0 | S64: 0 | T64: 0 | U64: 0
A65: PG60 | B65: Suma de PG60 | C65: 0 | D65: 0 | E65: 0 | F65: 0 | G65: 0 | H65: 0 | I65: 0 | J65: 0 | K65: 0 | L65: 0 | O65: 0 | P65: 0 | Q65: 0 | R65: 0 | S65: 0 | T65: 0 | U65: 0
A66: PG61 | B66: Suma de PG61 | C66: 0 | D66: 0 | E66: 0 | F66: 0 | G66: 0 | H66: 0 | I66: 0 | J66: 0 | K66: 0 | L66: 0 | O66: 0 | P66: 0 | Q66: 0 | R66: 0 | S66: 0 | T66: 0 | U66: 0
A67: PG62 | B67: Suma de PG62 | C67: 0 | D67: 0 | E67: 0 | F67: 0 | G67: 0 | H67: 0 | I67: 0 | J67: 0 | K67: 0 | L67: 0 | O67: 0 | P67: 0 | Q67: 0 | R67: 0 | S67: 0 | T67: 0 | U67: 0
A68: PG63 | B68: Suma de PG63 | C68: 0 | D68: 0 | E68: 0 | F68: 0 | G68: 0 | H68: 0 | I68: 0 | J68: 0 | K68: 0 | L68: 0 | O68: 0 | P68: 0 | Q68: 0 | R68: 0 | S68: 0 | T68: 0 | U68: 0
A69: PG64 | B69: Suma de PG64 | C69: 0 | D69: 0 | E69: 0 | F69: 0 | G69: 0 | H69: 0 | I69: 0 | J69: 0 | K69: 0 | L69: 0 | O69: 0 | P69: 0 | Q69: 0 | R69: 0 | S69: 0 | T69: 0 | U69: 0
A70: PG65 | B70: Suma de PG65 | C70: 0 | D70: 0 | E70: 0 | F70: 0 | G70: 0 | H70: 0 | I70: 1 | J70: 0 | K70: 0 | L70: 0 | O70: 1 | P70: 0 | Q70: 0 | R70: 1 | S70: 0 | T70: 0 | U70: 1
A71: =MID(B71,9,15) -> PG66 | B71: Suma de PG66 | C71: 0 | D71: 0 | E71: 0 | F71: 0 | G71: 0 | H71: 0 | I71: 0 | J71: 0 | K71: 0 | L71: 0 | O71: =SUM(C71:N71) -> 0 | P71: =SUM(C71:E71) -> 0 | Q71: =SUM(F71:H71) -> 0 | R71: =SUM(I71:K71) -> 0 | S71: =SUM(L71:N71) -> 0 | T71: =SUM(P71:Q71) -> 0 | U71: =SUM(R71:S71) -> 0
A72: PG67 | B72: Suma de PG67 | C72: 0 | D72: 0 | E72: 0 | F72: 0 | G72: 0 | H72: 1 | I72: 1 | J72: 0 | K72: 0 | L72: 1 | O72: 3 | P72: 0 | Q72: 1 | R72: 1 | S72: 1 | T72: 1 | U72: 2
A73: PG68 | B73: Suma de PG68 | C73: 0 | D73: 0 | E73: 0 | F73: 0 | G73: 0 | H73: 1 | I73: 0 | J73: 0 | K73: 0 | L73: 0 | O73: 1 | P73: 0 | Q73: 1 | R73: 0 | S73: 0 | T73: 1 | U73: 0
A74: PG69 | B74: Suma de PG69 | C74: 0 | D74: 0 | E74: 0 | F74: 0 | G74: 0 | H74: 0 | I74: 0 | J74: 0 | K74: 0 | L74: 0 | O74: 0 | P74: 0 | Q74: 0 | R74: 0 | S74: 0 | T74: 0 | U74: 0
A75: PG70 | B75: Suma de PG70 | C75: 0 | D75: 0 | E75: 0 | F75: 0 | G75: 0 | H75: 0 | I75: 0 | J75: 0 | K75: 0 | L75: 0 | O75: 0 | P75: 0 | Q75: 0 | R75: 0 | S75: 0 | T75: 0 | U75: 0
A76: PG71 | B76: Suma de PG71 | C76: 0 | D76: 0 | E76: 0 | F76: 0 | G76: 0 | H76: 0 | I76: 0 | J76: 0 | K76: 0 | L76: 0 | O76: 0 | P76: 0 | Q76: 0 | R76: 0 | S76: 0 | T76: 0 | U76: 0
A77: PG72 | B77: Suma de PG72 | C77: 0 | D77: 0 | E77: 0 | F77: 0 | G77: 0 | H77: 0 | I77: 0 | J77: 0 | K77: 0 | L77: 0 | O77: 0 | P77: 0 | Q77: 0 | R77: 0 | S77: 0 | T77: 0 | U77: 0
A78: PG73 | B78: Suma de PG73 | C78: 0 | D78: 0 | E78: 0 | F78: 0 | G78: 0 | H78: 0 | I78: 0 | J78: 0 | K78: 0 | L78: 0 | O78: 0 | P78: 0 | Q78: 0 | R78: 0 | S78: 0 | T78: 0 | U78: 0
A79: PG74 | B79: Suma de PG74 | C79: 0 | D79: 0 | E79: 0 | F79: 0 | G79: 0 | H79: 0 | I79: 0 | J79: 0 | K79: 0 | L79: 0 | O79: 0 | P79: 0 | Q79: 0 | R79: 0 | S79: 0 | T79: 0 | U79: 0
A80: PG75 | B80: Suma de PG75 | C80: 0 | D80: 0 | E80: 0 | F80: 0 | G80: 0 | H80: 0 | I80: 0 | J80: 0 | K80: 0 | L80: 0 | O80: 0 | P80: 0 | Q80: 0 | R80: 0 | S80: 0 | T80: 0 | U80: 0
A81: PG76 | B81: Suma de PG76 | C81: 0 | D81: 0 | E81: 0 | F81: 0 | G81: 0 | H81: 0 | I81: 0 | J81: 0 | K81: 0 | L81: 0 | O81: 0 | P81: 0 | Q81: 0 | R81: 0 | S81: 0 | T81: 0 | U81: 0
A82: PG77 | B82: Suma de PG77 | C82: 0 | D82: 0 | E82: 0 | F82: 0 | G82: 0 | H82: 0 | I82: 0 | J82: 0 | K82: 0 | L82: 0 | O82: 0 | P82: 0 | Q82: 0 | R82: 0 | S82: 0 | T82: 0 | U82: 0
A83: PG78 | B83: Suma de PG78 | C83: 0 | D83: 0 | E83: 0 | F83: 0 | G83: 0 | H83: 0 | I83: 0 | J83: 0 | K83: 0 | L83: 0 | O83: 0 | P83: 0 | Q83: 0 | R83: 0 | S83: 0 | T83: 0 | U83: 0
A84: PG79 | B84: Suma de PG79 | C84: 0 | D84: 0 | E84: 0 | F84: 0 | G84: 0 | H84: 0 | I84: 0 | J84: 0 | K84: 0 | L84: 0 | O84: 0 | P84: 0 | Q84: 0 | R84: 0 | S84: 0 | T84: 0 | U84: 0
A85: PG80 | B85: Suma de PG80 | C85: 0 | D85: 0 | E85: 0 | F85: 0 | G85: 0 | H85: 0 | I85: 0 | J85: 0 | K85: 0 | L85: 0 | O85: 0 | P85: 0 | Q85: 0 | R85: 0 | S85: 0 | T85: 0 | U85: 0
A86: PG81 | B86: Suma de PG81 | C86: 0 | D86: 2 | E86: 0 | F86: 0 | G86: 1 | H86: 0 | I86: 1 | J86: 0 | K86: 1 | L86: 1 | O86: 6 | P86: 2 | Q86: 1 | R86: 2 | S86: 1 | T86: 3 | U86: 3
A87: PG82 | B87: Suma de PG82 | C87: 0 | D87: 0 | E87: 0 | F87: 0 | G87: 0 | H87: 0 | I87: 0 | J87: 0 | K87: 0 | L87: 0 | O87: 0 | P87: 0 | Q87: 0 | R87: 0 | S87: 0 | T87: 0 | U87: 0
A88: PG83 | B88: Suma de PG83 | C88: 0 | D88: 1 | E88: 1 | F88: 0 | G88: 0 | H88: 1 | I88: 0 | J88: 1 | K88: 0 | L88: 0 | O88: 4 | P88: 2 | Q88: 1 | R88: 1 | S88: 0 | T88: 3 | U88: 1
A89: PG84 | B89: Suma de PG84 | C89: 0 | D89: 0 | E89: 0 | F89: 0 | G89: 0 | H89: 1 | I89: 0 | J89: 0 | K89: 0 | L89: 0 | O89: 1 | P89: 0 | Q89: 1 | R89: 0 | S89: 0 | T89: 1 | U89: 0
A90: PG85 | B90: Suma de PG85 | C90: 9 | D90: 18 | E90: 6 | F90: 9 | G90: 14 | H90: 24 | I90: 12 | J90: 3 | K90: 8 | L90: 18 | O90: 121 | P90: 33 | Q90: 47 | R90: 23 | S90: 18 | T90: 80 | U90: 41
A91: PG86 | B91: Suma de PG86 | C91: 3 | D91: 9 | E91: 4 | F91: 4 | G91: 6 | H91: 20 | I91: 6 | J91: 0 | K91: 2 | L91: 8 | O91: 62 | P91: 16 | Q91: 30 | R91: 8 | S91: 8 | T91: 46 | U91: 16
A92: PG87 | B92: Suma de PG87 | C92: 12 | D92: 22 | E92: 10 | F92: 10 | G92: 11 | H92: 28 | I92: 15 | J92: 9 | K92: 6 | L92: 19 | O92: 142 | P92: 44 | Q92: 49 | R92: 30 | S92: 19 | T92: 93 | U92: 49
A93: PG88 | B93: Suma de PG88 | C93: 5 | D93: 10 | E93: 5 | F93: 5 | G93: 2 | H93: 18 | I93: 6 | J93: 3 | K93: 2 | L93: 13 | O93: 69 | P93: 20 | Q93: 25 | R93: 11 | S93: 13 | T93: 45 | U93: 24
A94: PG89 | B94: Suma de PG89 | C94: 0 | D94: 2 | E94: 1 | F94: 0 | G94: 2 | H94: 0 | I94: 0 | J94: 1 | K94: 1 | L94: 0 | O94: 7 | P94: 3 | Q94: 2 | R94: 2 | S94: 0 | T94: 5 | U94: 2
A95: PG90 | B95: Suma de PG90 | C95: 0 | D95: 0 | E95: 0 | F95: 0 | G95: 0 | H95: 0 | I95: 0 | J95: 0 | K95: 0 | L95: 0 | O95: 0 | P95: 0 | Q95: 0 | R95: 0 | S95: 0 | T95: 0 | U95: 0
A96: PG91 | B96: Suma de PG91 | C96: 2 | D96: 0 | E96: 0 | F96: 0 | G96: 2 | H96: 0 | I96: 0 | J96: 0 | K96: 0 | L96: 0 | O96: 4 | P96: 2 | Q96: 2 | R96: 0 | S96: 0 | T96: 4 | U96: 0
A97: PG92 | B97: Suma de PG92 | C97: 0 | D97: 0 | E97: 0 | F97: 0 | G97: 0 | H97: 0 | I97: 0 | J97: 0 | K97: 0 | L97: 0 | O97: 0 | P97: 0 | Q97: 0 | R97: 0 | S97: 0 | T97: 0 | U97: 0
A98: PG93 | B98: Suma de PG93 | C98: 2 | D98: 0 | E98: 0 | F98: 1 | G98: 0 | H98: 0 | I98: 0 | J98: 1 | K98: 0 | L98: 1 | O98: 5 | P98: 2 | Q98: 1 | R98: 1 | S98: 1 | T98: 3 | U98: 2
A99: PG94 | B99: Suma de PG94 | C99: 0 | D99: 0 | E99: 0 | F99: 0 | G99: 0 | H99: 0 | I99: 0 | J99: 0 | K99: 0 | L99: 0 | O99: 0 | P99: 0 | Q99: 0 | R99: 0 | S99: 0 | T99: 0 | U99: 0
A100: PG95 | B100: Suma de PG95 | C100: 0 | D100: 4 | E100: 4 | F100: 5 | G100: 1 | H100: 2 | I100: 3 | J100: 2 | K100: 8 | L100: 1 | O100: 30 | P100: 8 | Q100: 8 | R100: 13 | S100: 1 | T100: 16 | U100: 14
A101: PG96 | B101: Suma de PG96 | C101: 0 | D101: 0 | E101: 0 | F101: 0 | G101: 0 | H101: 1 | I101: 0 | J101: 0 | K101: 0 | L101: 0 | O101: 1 | P101: 0 | Q101: 1 | R101: 0 | S101: 0 | T101: 1 | U101: 0
A102: PG97 | B102: Suma de PG97 | C102: 1 | D102: 1 | E102: 0 | F102: 1 | G102: 1 | H102: 0 | I102: 0 | J102: 1 | K102: 1 | L102: 1 | O102: 7 | P102: 2 | Q102: 2 | R102: 2 | S102: 1 | T102: 4 | U102: 3
A103: PG98 | B103: Suma de PG98 | C103: 0 | D103: 0 | E103: 0 | F103: 0 | G103: 0 | H103: 0 | I103: 0 | J103: 0 | K103: 0 | L103: 0 | O103: 0 | P103: 0 | Q103: 0 | R103: 0 | S103: 0 | T103: 0 | U103: 0
A104: PG99 | B104: Suma de PG99 | C104: 0 | D104: 0 | E104: 0 | F104: 0 | G104: 2 | H104: 0 | I104: 0 | J104: 0 | K104: 0 | L104: 2 | O104: 4 | P104: 0 | Q104: 2 | R104: 0 | S104: 2 | T104: 2 | U104: 2
A105: PG100 | B105: Suma de PG100 | C105: 0 | D105: 0 | E105: 0 | F105: 0 | G105: 0 | H105: 0 | I105: 0 | J105: 0 | K105: 0 | L105: 0 | O105: 0 | P105: 0 | Q105: 0 | R105: 0 | S105: 0 | T105: 0 | U105: 0
A106: PG101 | B106: Suma de PG101 | C106: 0 | D106: 0 | E106: 0 | F106: 0 | G106: 0 | H106: 0 | I106: 0 | J106: 0 | K106: 0 | L106: 0 | O106: 0 | P106: 0 | Q106: 0 | R106: 0 | S106: 0 | T106: 0 | U106: 0
A107: PG102 | B107: Suma de PG102 | C107: 0 | D107: 0 | E107: 0 | F107: 0 | G107: 0 | H107: 0 | I107: 0 | J107: 0 | K107: 0 | L107: 0 | O107: 0 | P107: 0 | Q107: 0 | R107: 0 | S107: 0 | T107: 0 | U107: 0
A108: PG103 | B108: Suma de PG103 | C108: 0 | D108: 0 | E108: 0 | F108: 0 | G108: 0 | H108: 1 | I108: 0 | J108: 0 | K108: 0 | L108: 0 | O108: 1 | P108: 0 | Q108: 1 | R108: 0 | S108: 0 | T108: 1 | U108: 0
A109: PG104 | B109: Suma de PG104 | C109: 0 | D109: 0 | E109: 0 | F109: 0 | G109: 0 | H109: 0 | I109: 0 | J109: 0 | K109: 0 | L109: 0 | O109: 0 | P109: 0 | Q109: 0 | R109: 0 | S109: 0 | T109: 0 | U109: 0
A110: PG105 | B110: Suma de PG105 | C110: 6 | D110: 0 | E110: 3 | F110: 1 | G110: 1 | H110: 2 | I110: 0 | J110: 1 | K110: 0 | L110: 2 | O110: 16 | P110: 9 | Q110: 4 | R110: 1 | S110: 2 | T110: 13 | U110: 3
A111: PG106 | B111: Suma de PG106 | C111: 0 | D111: 0 | E111: 0 | F111: 0 | G111: 1 | H111: 0 | I111: 0 | J111: 0 | K111: 0 | L111: 0 | O111: 1 | P111: 0 | Q111: 1 | R111: 0 | S111: 0 | T111: 1 | U111: 0
A112: PG107 | B112: Suma de PG107 | C112: 0 | D112: 2 | E112: 1 | F112: 0 | G112: 0 | H112: 0 | I112: 0 | J112: 3 | K112: 0 | L112: 0 | O112: 6 | P112: 3 | Q112: 0 | R112: 3 | S112: 0 | T112: 3 | U112: 3
A113: PG108 | B113: Suma de PG108 | C113: 0 | D113: 0 | E113: 0 | F113: 0 | G113: 0 | H113: 0 | I113: 0 | J113: 0 | K113: 0 | L113: 0 | O113: 0 | P113: 0 | Q113: 0 | R113: 0 | S113: 0 | T113: 0 | U113: 0
A114: PG109 | B114: Suma de PG109 | C114: 2 | D114: 1 | E114: 0 | F114: 0 | G114: 0 | H114: 0 | I114: 0 | J114: 0 | K114: 0 | L114: 0 | O114: 3 | P114: 3 | Q114: 0 | R114: 0 | S114: 0 | T114: 3 | U114: 0
A115: PG110 | B115: Suma de PG110 | C115: 0 | D115: 0 | E115: 0 | F115: 0 | G115: 0 | H115: 0 | I115: 0 | J115: 0 | K115: 0 | L115: 0 | O115: 0 | P115: 0 | Q115: 0 | R115: 0 | S115: 0 | T115: 0 | U115: 0
A116: PG111 | B116: Suma de PG111 | C116: 1 | D116: 1 | E116: 1 | F116: 3 | G116: 0 | H116: 0 | I116: 3 | J116: 0 | K116: 1 | L116: 2 | O116: 12 | P116: 3 | Q116: 3 | R116: 4 | S116: 2 | T116: 6 | U116: 6
A117: PG112 | B117: Suma de PG112 | C117: 0 | D117: 0 | E117: 0 | F117: 0 | G117: 0 | H117: 0 | I117: 0 | J117: 0 | K117: 0 | L117: 0 | O117: 0 | P117: 0 | Q117: 0 | R117: 0 | S117: 0 | T117: 0 | U117: 0
A118: PG113 | B118: Suma de PG113 | C118: 2 | D118: 1 | E118: 2 | F118: 0 | G118: 3 | H118: 0 | I118: 0 | J118: 1 | K118: 0 | L118: 0 | O118: 9 | P118: 5 | Q118: 3 | R118: 1 | S118: 0 | T118: 8 | U118: 1
A119: PG114 | B119: Suma de PG114 | C119: 0 | D119: 0 | E119: 0 | F119: 1 | G119: 0 | H119: 0 | I119: 0 | J119: 0 | K119: 0 | L119: 0 | O119: 1 | P119: 0 | Q119: 1 | R119: 0 | S119: 0 | T119: 1 | U119: 0
A120: PG115 | B120: Suma de PG115 | C120: 3 | D120: 4 | E120: 9 | F120: 6 | G120: 11 | H120: 5 | I120: 7 | J120: 7 | K120: 9 | L120: 16 | O120: 77 | P120: 16 | Q120: 22 | R120: 23 | S120: 16 | T120: 38 | U120: 39
A121: PG116 | B121: Suma de PG116 | C121: 0 | D121: 0 | E121: 1 | F121: 0 | G121: 0 | H121: 0 | I121: 0 | J121: 0 | K121: 0 | L121: 2 | O121: 3 | P121: 1 | Q121: 0 | R121: 0 | S121: 2 | T121: 1 | U121: 2
A122: PG117 | B122: Suma de PG117 | C122: 6 | D122: 5 | E122: 11 | F122: 4 | G122: 6 | H122: 5 | I122: 6 | J122: 3 | K122: 13 | L122: 7 | O122: 66 | P122: 22 | Q122: 15 | R122: 22 | S122: 7 | T122: 37 | U122: 29
A123: PG118 | B123: Suma de PG118 | C123: 0 | D123: 1 | E123: 2 | F123: 0 | G123: 0 | H123: 0 | I123: 0 | J123: 0 | K123: 1 | L123: 2 | O123: 6 | P123: 3 | Q123: 0 | R123: 1 | S123: 2 | T123: 3 | U123: 3
A124: PG119 | B124: Suma de PG119 | C124: 1 | D124: 1 | E124: 2 | F124: 1 | G124: 0 | H124: 0 | I124: 0 | J124: 1 | K124: 1 | L124: 0 | O124: 7 | P124: 4 | Q124: 1 | R124: 2 | S124: 0 | T124: 5 | U124: 2
A125: PG120 | B125: Suma de PG120 | C125: 0 | D125: 0 | E125: 0 | F125: 0 | G125: 0 | H125: 0 | I125: 0 | J125: 0 | K125: 0 | L125: 0 | O125: 0 | P125: 0 | Q125: 0 | R125: 0 | S125: 0 | T125: 0 | U125: 0
A126: PG121 | B126: Suma de PG121 | C126: 2 | D126: 0 | E126: 3 | F126: 0 | G126: 0 | H126: 3 | I126: 1 | J126: 1 | K126: 0 | L126: 1 | O126: 11 | P126: 5 | Q126: 3 | R126: 2 | S126: 1 | T126: 8 | U126: 3
A127: PG122 | B127: Suma de PG122 | C127: 0 | D127: 0 | E127: 0 | F127: 0 | G127: 0 | H127: 0 | I127: 0 | J127: 0 | K127: 0 | L127: 0 | O127: 0 | P127: 0 | Q127: 0 | R127: 0 | S127: 0 | T127: 0 | U127: 0
A128: PG123 | B128: Suma de PG123 | C128: 0 | D128: 1 | E128: 0 | F128: 1 | G128: 0 | H128: 1 | I128: 0 | J128: 0 | K128: 0 | L128: 0 | O128: 3 | P128: 1 | Q128: 2 | R128: 0 | S128: 0 | T128: 3 | U128: 0
A129: PG124 | B129: Suma de PG124 | C129: 0 | D129: 0 | E129: 0 | F129: 0 | G129: 0 | H129: 0 | I129: 0 | J129: 0 | K129: 0 | L129: 0 | O129: 0 | P129: 0 | Q129: 0 | R129: 0 | S129: 0 | T129: 0 | U129: 0
A130: PG125 | B130: Suma de PG125 | C130: 2 | D130: 7 | E130: 5 | F130: 4 | G130: 5 | H130: 4 | I130: 1 | J130: 0 | K130: 1 | L130: 2 | O130: 31 | P130: 14 | Q130: 13 | R130: 2 | S130: 2 | T130: 27 | U130: 4
A131: PG126 | B131: Suma de PG126 | C131: 0 | D131: 0 | E131: 0 | F131: 0 | G131: 0 | H131: 0 | I131: 0 | J131: 0 | K131: 0 | L131: 0 | O131: 0 | P131: 0 | Q131: 0 | R131: 0 | S131: 0 | T131: 0 | U131: 0
A132: PG127 | B132: Suma de PG127 | C132: 4 | D132: 6 | E132: 3 | F132: 2 | G132: 1 | H132: 3 | I132: 2 | J132: 0 | K132: 2 | L132: 3 | O132: 26 | P132: 13 | Q132: 6 | R132: 4 | S132: 3 | T132: 19 | U132: 7
A133: PG128 | B133: Suma de PG128 | C133: 0 | D133: 0 | E133: 0 | F133: 0 | G133: 0 | H133: 0 | I133: 0 | J133: 0 | K133: 0 | L133: 0 | O133: 0 | P133: 0 | Q133: 0 | R133: 0 | S133: 0 | T133: 0 | U133: 0
A134: PG129 | B134: Suma de PG129 | C134: 0 | D134: 0 | E134: 0 | F134: 0 | G134: 1 | H134: 0 | I134: 0 | J134: 0 | K134: 0 | L134: 0 | O134: 1 | P134: 0 | Q134: 1 | R134: 0 | S134: 0 | T134: 1 | U134: 0
A135: =MID(B135,9,15) -> PG130 | B135: Suma de PG130 | C135: 0 | D135: 0 | E135: 0 | F135: 0 | G135: 0 | H135: 0 | I135: 0 | J135: 0 | K135: 0 | L135: 0 | O135: =SUM(C135:N135) -> 0 | P135: =SUM(C135:E135) -> 0 | Q135: =SUM(F135:H135) -> 0 | R135: =SUM(I135:K135) -> 0 | S135: =SUM(L135:N135) -> 0 | T135: =SUM(P135:Q135) -> 0 | U135: =SUM(R135:S135) -> 0
A136: PG131 | B136: Suma de PG131 | C136: 0 | D136: 2 | E136: 0 | F136: 0 | G136: 0 | H136: 0 | I136: 0 | J136: 0 | K136: 0 | L136: 0 | O136: 2 | P136: 2 | Q136: 0 | R136: 0 | S136: 0 | T136: 2 | U136: 0
A137: PG132 | B137: Suma de PG132 | C137: 0 | D137: 0 | E137: 0 | F137: 0 | G137: 0 | H137: 0 | I137: 0 | J137: 0 | K137: 0 | L137: 0 | O137: 0 | P137: 0 | Q137: 0 | R137: 0 | S137: 0 | T137: 0 | U137: 0
A138: PG133 | B138: Suma de PG133 | C138: 0 | D138: 0 | E138: 0 | F138: 0 | G138: 0 | H138: 0 | I138: 0 | J138: 0 | K138: 0 | L138: 0 | O138: 0 | P138: 0 | Q138: 0 | R138: 0 | S138: 0 | T138: 0 | U138: 0
A139: PG134 | B139: Suma de PG134 | C139: 0 | D139: 0 | E139: 0 | F139: 0 | G139: 0 | H139: 0 | I139: 0 | J139: 0 | K139: 0 | L139: 0 | O139: 0 | P139: 0 | Q139: 0 | R139: 0 | S139: 0 | T139: 0 | U139: 0
A140: PG135 | B140: Suma de PG135 | C140: 1 | D140: 1 | E140: 1 | F140: 0 | G140: 1 | H140: 0 | I140: 2 | J140: 1 | K140: 0 | L140: 0 | O140: 7 | P140: 3 | Q140: 1 | R140: 3 | S140: 0 | T140: 4 | U140: 3
A141: PG136 | B141: Suma de PG136 | C141: 0 | D141: 0 | E141: 0 | F141: 0 | G141: 0 | H141: 0 | I141: 0 | J141: 0 | K141: 0 | L141: 0 | O141: 0 | P141: 0 | Q141: 0 | R141: 0 | S141: 0 | T141: 0 | U141: 0
A142: PG137 | B142: Suma de PG137 | C142: 0 | D142: 0 | E142: 0 | F142: 0 | G142: 0 | H142: 0 | I142: 0 | J142: 0 | K142: 0 | L142: 1 | O142: 1 | P142: 0 | Q142: 0 | R142: 0 | S142: 1 | T142: 0 | U142: 1
A143: PG138 | B143: Suma de PG138 | C143: 0 | D143: 0 | E143: 0 | F143: 0 | G143: 0 | H143: 0 | I143: 0 | J143: 0 | K143: 0 | L143: 0 | O143: 0 | P143: 0 | Q143: 0 | R143: 0 | S143: 0 | T143: 0 | U143: 0
A144: PG139 | B144: Suma de PG139 | C144: 0 | D144: 0 | E144: 0 | F144: 0 | G144: 0 | H144: 0 | I144: 0 | J144: 0 | K144: 0 | L144: 0 | O144: 0 | P144: 0 | Q144: 0 | R144: 0 | S144: 0 | T144: 0 | U144: 0
A145: PG140 | B145: Suma de PG140 | C145: 0 | D145: 0 | E145: 0 | F145: 0 | G145: 0 | H145: 0 | I145: 0 | J145: 0 | K145: 0 | L145: 0 | O145: 0 | P145: 0 | Q145: 0 | R145: 0 | S145: 0 | T145: 0 | U145: 0
A146: PG141 | B146: Suma de PG141 | C146: 0 | D146: 0 | E146: 0 | F146: 0 | G146: 0 | H146: 0 | I146: 0 | J146: 0 | K146: 0 | L146: 0 | O146: 0 | P146: 0 | Q146: 0 | R146: 0 | S146: 0 | T146: 0 | U146: 0
A147: PG142 | B147: Suma de PG142 | C147: 0 | D147: 0 | E147: 0 | F147: 0 | G147: 0 | H147: 0 | I147: 0 | J147: 0 | K147: 0 | L147: 0 | O147: 0 | P147: 0 | Q147: 0 | R147: 0 | S147: 0 | T147: 0 | U147: 0
A148: PG143 | B148: Suma de PG143 | C148: 0 | D148: 1 | E148: 0 | F148: 0 | G148: 0 | H148: 0 | I148: 0 | J148: 0 | K148: 1 | L148: 0 | O148: 2 | P148: 1 | Q148: 0 | R148: 1 | S148: 0 | T148: 1 | U148: 1
A149: PG144 | B149: Suma de PG144 | C149: 0 | D149: 0 | E149: 0 | F149: 0 | G149: 0 | H149: 0 | I149: 0 | J149: 0 | K149: 0 | L149: 0 | O149: 0 | P149: 0 | Q149: 0 | R149: 0 | S149: 0 | T149: 0 | U149: 0
A150: PG145 | B150: Suma de PG145 | C150: 0 | D150: 1 | E150: 1 | F150: 0 | G150: 0 | H150: 1 | I150: 0 | J150: 0 | K150: 0 | L150: 1 | O150: 4 | P150: 2 | Q150: 1 | R150: 0 | S150: 1 | T150: 3 | U150: 1
A151: PG146 | B151: Suma de PG146 | C151: 0 | D151: 0 | E151: 0 | F151: 0 | G151: 0 | H151: 0 | I151: 0 | J151: 0 | K151: 0 | L151: 0 | O151: 0 | P151: 0 | Q151: 0 | R151: 0 | S151: 0 | T151: 0 | U151: 0
A152: PG147 | B152: Suma de PG147 | C152: 0 | D152: 1 | E152: 0 | F152: 0 | G152: 0 | H152: 0 | I152: 0 | J152: 0 | K152: 0 | L152: 0 | O152: 1 | P152: 1 | Q152: 0 | R152: 0 | S152: 0 | T152: 1 | U152: 0
A153: PG148 | B153: Suma de PG148 | C153: 0 | D153: 0 | E153: 0 | F153: 0 | G153: 0 | H153: 0 | I153: 0 | J153: 0 | K153: 0 | L153: 0 | O153: 0 | P153: 0 | Q153: 0 | R153: 0 | S153: 0 | T153: 0 | U153: 0
A154: PG149 | B154: Suma de PG149 | C154: 0 | D154: 0 | E154: 0 | F154: 0 | G154: 0 | H154: 0 | I154: 1 | J154: 0 | K154: 0 | L154: 0 | O154: 1 | P154: 0 | Q154: 0 | R154: 1 | S154: 0 | T154: 0 | U154: 1
A155: PG150 | B155: Suma de PG150 | C155: 0 | D155: 0 | E155: 0 | F155: 0 | G155: 0 | H155: 0 | I155: 0 | J155: 0 | K155: 0 | L155: 0 | O155: 0 | P155: 0 | Q155: 0 | R155: 0 | S155: 0 | T155: 0 | U155: 0
A156: PG151 | B156: Suma de PG151 | C156: 0 | D156: 0 | E156: 1 | F156: 3 | G156: 0 | H156: 0 | I156: 2 | J156: 0 | K156: 1 | L156: 0 | O156: 7 | P156: 1 | Q156: 3 | R156: 3 | S156: 0 | T156: 4 | U156: 3
A157: PG152 | B157: Suma de PG152 | C157: 0 | D157: 0 | E157: 0 | F157: 0 | G157: 0 | H157: 0 | I157: 0 | J157: 0 | K157: 0 | L157: 0 | O157: 0 | P157: 0 | Q157: 0 | R157: 0 | S157: 0 | T157: 0 | U157: 0
A158: PG153 | B158: Suma de PG153 | C158: 1 | D158: 0 | E158: 0 | F158: 0 | G158: 2 | H158: 0 | I158: 0 | J158: 0 | K158: 0 | L158: 0 | O158: 3 | P158: 1 | Q158: 2 | R158: 0 | S158: 0 | T158: 3 | U158: 0
A159: PG154 | B159: Suma de PG154 | C159: 0 | D159: 0 | E159: 0 | F159: 0 | G159: 0 | H159: 0 | I159: 0 | J159: 0 | K159: 0 | L159: 0 | O159: 0 | P159: 0 | Q159: 0 | R159: 0 | S159: 0 | T159: 0 | U159: 0
A160: PG155 | B160: Suma de PG155 | C160: 1 | D160: 3 | E160: 2 | F160: 2 | G160: 5 | H160: 3 | I160: 4 | J160: 5 | K160: 3 | L160: 6 | O160: 34 | P160: 6 | Q160: 10 | R160: 12 | S160: 6 | T160: 16 | U160: 18
A161: PG156 | B161: Suma de PG156 | C161: 0 | D161: 0 | E161: 0 | F161: 0 | G161: 0 | H161: 0 | I161: 0 | J161: 0 | K161: 0 | L161: 2 | O161: 2 | P161: 0 | Q161: 0 | R161: 0 | S161: 2 | T161: 0 | U161: 2
A162: PG157 | B162: Suma de PG157 | C162: 0 | D162: 0 | E162: 4 | F162: 2 | G162: 2 | H162: 2 | I162: 0 | J162: 1 | K162: 1 | L162: 1 | O162: 13 | P162: 4 | Q162: 6 | R162: 2 | S162: 1 | T162: 10 | U162: 3
A163: PG158 | B163: Suma de PG158 | C163: 0 | D163: 0 | E163: 0 | F163: 0 | G163: 0 | H163: 0 | I163: 0 | J163: 0 | K163: 0 | L163: 0 | O163: 0 | P163: 0 | Q163: 0 | R163: 0 | S163: 0 | T163: 0 | U163: 0
A164: PG159 | B164: Suma de PG159 | C164: 0 | D164: 0 | E164: 1 | F164: 1 | G164: 0 | H164: 0 | I164: 0 | J164: 1 | K164: 0 | L164: 0 | O164: 3 | P164: 1 | Q164: 1 | R164: 1 | S164: 0 | T164: 2 | U164: 1
A165: PG160 | B165: Suma de PG160 | C165: 0 | D165: 0 | E165: 0 | F165: 0 | G165: 0 | H165: 0 | I165: 0 | J165: 0 | K165: 0 | L165: 0 | O165: 0 | P165: 0 | Q165: 0 | R165: 0 | S165: 0 | T165: 0 | U165: 0
A166: PG161 | B166: Suma de PG161 | C166: 2 | D166: 0 | E166: 3 | F166: 0 | G166: 0 | H166: 3 | I166: 1 | J166: 1 | K166: 0 | L166: 1 | O166: 11 | P166: 5 | Q166: 3 | R166: 2 | S166: 1 | T166: 8 | U166: 3
A167: PG162 | B167: Suma de PG162 | C167: 0 | D167: 0 | E167: 0 | F167: 0 | G167: 0 | H167: 0 | I167: 0 | J167: 0 | K167: 0 | L167: 0 | O167: 0 | P167: 0 | Q167: 0 | R167: 0 | S167: 0 | T167: 0 | U167: 0
A168: PG163 | B168: Suma de PG163 | C168: 0 | D168: 0 | E168: 0 | F168: 1 | G168: 0 | H168: 1 | I168: 0 | J168: 0 | K168: 0 | L168: 0 | O168: 2 | P168: 0 | Q168: 2 | R168: 0 | S168: 0 | T168: 2 | U168: 0
A169: PG164 | B169: Suma de PG164 | C169: 0 | D169: 0 | E169: 0 | F169: 0 | G169: 0 | H169: 0 | I169: 0 | J169: 0 | K169: 0 | L169: 0 | O169: 0 | P169: 0 | Q169: 0 | R169: 0 | S169: 0 | T169: 0 | U169: 0
A170: PG165 | B170: Suma de PG165 | C170: 2 | D170: 7 | E170: 4 | F170: 4 | G170: 5 | H170: 2 | I170: 1 | J170: 0 | K170: 1 | L170: 2 | O170: 28 | P170: 13 | Q170: 11 | R170: 2 | S170: 2 | T170: 24 | U170: 4
A171: PG166 | B171: Suma de PG166 | C171: 0 | D171: 0 | E171: 0 | F171: 0 | G171: 0 | H171: 0 | I171: 0 | J171: 0 | K171: 0 | L171: 0 | O171: 0 | P171: 0 | Q171: 0 | R171: 0 | S171: 0 | T171: 0 | U171: 0
A172: PG167 | B172: Suma de PG167 | C172: 3 | D172: 5 | E172: 2 | F172: 1 | G172: 1 | H172: 3 | I172: 2 | J172: 0 | K172: 1 | L172: 3 | O172: 21 | P172: 10 | Q172: 5 | R172: 3 | S172: 3 | T172: 15 | U172: 6
A173: PG168 | B173: Suma de PG168 | C173: 0 | D173: 0 | E173: 0 | F173: 0 | G173: 0 | H173: 0 | I173: 0 | J173: 0 | K173: 0 | L173: 0 | O173: 0 | P173: 0 | Q173: 0 | R173: 0 | S173: 0 | T173: 0 | U173: 0
A174: PG169 | B174: Suma de PG169 | C174: 0 | D174: 0 | E174: 0 | F174: 0 | G174: 1 | H174: 0 | I174: 0 | J174: 0 | K174: 0 | L174: 0 | O174: 1 | P174: 0 | Q174: 1 | R174: 0 | S174: 0 | T174: 1 | U174: 0
A175: PG170 | B175: Suma de PG170 | C175: 0 | D175: 0 | E175: 0 | F175: 0 | G175: 0 | H175: 0 | I175: 0 | J175: 0 | K175: 0 | L175: 0 | O175: 0 | P175: 0 | Q175: 0 | R175: 0 | S175: 0 | T175: 0 | U175: 0
A176: PG171 | B176: Suma de PG171 | C176: 0 | D176: 1 | E176: 3 | F176: 0 | G176: 1 | H176: 0 | I176: 0 | J176: 1 | K176: 2 | L176: 0 | O176: 8 | P176: 4 | Q176: 1 | R176: 3 | S176: 0 | T176: 5 | U176: 3
A177: PG172 | B177: Suma de PG172 | C177: 131 | D177: 82 | E177: 150 | F177: 135 | G177: 94 | H177: 49 | I177: 56 | J177: 57 | K177: 55 | L177: 28 | O177: 837 | P177: 363 | Q177: 278 | R177: 168 | S177: 28 | T177: 641 | U177: 196
A178: PG173 | B178: Suma de PG173 | C178: 1105 | D178: 768 | E178: 780 | F178: 673 | G178: 392 | H178: 473 | I178: 403 | J178: 524 | K178: 416 | L178: 382 | O178: 5916 | P178: 2653 | Q178: 1538 | R178: 1343 | S178: 382 | T178: 4191 | U178: 1725
A179: PG174 | B179: Suma de PG174 | C179: 712 | D179: 554 | E179: 438 | F179: 407 | G179: 279 | H179: 275 | I179: 272 | J179: 328 | K179: 294 | L179: 226 | O179: 3785 | P179: 1704 | Q179: 961 | R179: 894 | S179: 226 | T179: 2665 | U179: 1120
A180: PG175 | B180: Suma de PG175 | C180: 10 | D180: 9 | E180: 5 | F180: 8 | G180: 9 | H180: 3 | I180: 8 | J180: 10 | K180: 4 | L180: 5 | O180: 71 | P180: 24 | Q180: 20 | R180: 22 | S180: 5 | T180: 44 | U180: 27
A181: PG176 | B181: Suma de PG176 | C181: 0 | D181: 2 | E181: 1 | F181: 0 | G181: 1 | H181: 0 | I181: 0 | J181: 0 | K181: 0 | L181: 1 | O181: 5 | P181: 3 | Q181: 1 | R181: 0 | S181: 1 | T181: 4 | U181: 1
A182: PG177 | B182: Suma de PG177 | C182: 7 | D182: 6 | E182: 80 | F182: 73 | G182: 59 | H182: 21 | I182: 22 | J182: 34 | K182: 9 | L182: 66 | O182: 377 | P182: 93 | Q182: 153 | R182: 65 | S182: 66 | T182: 246 | U182: 131
A183: PG178 | B183: Suma de PG178 | C183: 118 | D183: 112 | E183: 212 | F183: 222 | G183: 198 | H183: 213 | I183: 179 | J183: 371 | K183: 149 | L183: 337 | O183: 2111 | P183: 442 | Q183: 633 | R183: 699 | S183: 337 | T183: 1075 | U183: 1036
A184: PG179 | B184: Suma de PG179 | C184: 108 | D184: 167 | E184: 246 | F184: 198 | G184: 137 | H184: 155 | I184: 175 | J184: 152 | K184: 182 | L184: 269 | O184: 1789 | P184: 521 | Q184: 490 | R184: 509 | S184: 269 | T184: 1011 | U184: 778
A185: PG180 | B185: Suma de PG180 | C185: 18 | D185: 21 | E185: 15 | F185: 21 | G185: 11 | H185: 16 | I185: 12 | J185: 10 | K185: 13 | L185: 23 | O185: 160 | P185: 54 | Q185: 48 | R185: 35 | S185: 23 | T185: 102 | U185: 58
A186: PG181 | B186: Suma de PG181 | C186: 0 | D186: 0 | E186: 0 | F186: 0 | G186: 0 | H186: 0 | I186: 0 | J186: 0 | K186: 0 | L186: 0 | O186: 0 | P186: 0 | Q186: 0 | R186: 0 | S186: 0 | T186: 0 | U186: 0
A187: PG182 | B187: Suma de PG182 | C187: 1 | D187: 1 | E187: 3 | F187: 0 | G187: 0 | H187: 1 | I187: 2 | J187: 0 | K187: 0 | L187: 0 | O187: 8 | P187: 5 | Q187: 1 | R187: 2 | S187: 0 | T187: 6 | U187: 2
A188: PG183 | B188: Suma de PG183 | C188: 7 | D188: 11 | E188: 7 | F188: 10 | G188: 5 | H188: 2 | I188: 1 | J188: 1 | K188: 4 | L188: 4 | O188: 52 | P188: 25 | Q188: 17 | R188: 6 | S188: 4 | T188: 42 | U188: 10
A189: PG184 | B189: Suma de PG184 | C189: 1 | D189: 1 | E189: 1 | F189: 3 | G189: 2 | H189: 0 | I189: 0 | J189: 0 | K189: 3 | L189: 0 | O189: 11 | P189: 3 | Q189: 5 | R189: 3 | S189: 0 | T189: 8 | U189: 3
A190: PG185 | B190: Suma de PG185 | C190: 0 | D190: 0 | E190: 0 | F190: 0 | G190: 0 | H190: 0 | I190: 0 | J190: 0 | K190: 0 | L190: 0 | O190: 0 | P190: 0 | Q190: 0 | R190: 0 | S190: 0 | T190: 0 | U190: 0
A191: PG186 | B191: Suma de PG186 | C191: 0 | D191: 0 | E191: 0 | F191: 0 | G191: 0 | H191: 0 | I191: 0 | J191: 0 | K191: 0 | L191: 0 | O191: 0 | P191: 0 | Q191: 0 | R191: 0 | S191: 0 | T191: 0 | U191: 0
A192: PG187 | B192: Suma de PG187 | C192: 0 | D192: 0 | E192: 0 | F192: 0 | G192: 0 | H192: 0 | I192: 0 | J192: 0 | K192: 0 | L192: 0 | O192: 0 | P192: 0 | Q192: 0 | R192: 0 | S192: 0 | T192: 0 | U192: 0
A193: PG188 | B193: Suma de PG188 | C193: 1 | D193: 0 | E193: 1 | F193: 4 | G193: 1 | H193: 5 | I193: 0 | J193: 0 | K193: 4 | L193: 1 | O193: 17 | P193: 2 | Q193: 10 | R193: 4 | S193: 1 | T193: 12 | U193: 5
A194: PG189 | B194: Suma de PG189 | C194: 1 | D194: 1 | E194: 1 | F194: 0 | G194: 1 | H194: 1 | I194: 0 | J194: 0 | K194: 3 | L194: 2 | O194: 10 | P194: 3 | Q194: 2 | R194: 3 | S194: 2 | T194: 5 | U194: 5
A195: PG190 | B195: Suma de PG190 | C195: 0 | D195: 0 | E195: 0 | F195: 0 | G195: 0 | H195: 0 | I195: 0 | J195: 1 | K195: 1 | L195: 0 | O195: 2 | P195: 0 | Q195: 0 | R195: 2 | S195: 0 | T195: 0 | U195: 2
A196: PG191 | B196: Suma de PG191 | C196: 234 | D196: 190 | E196: 291 | F196: 404 | G196: 333 | H196: 630 | I196: 344 | J196: 580 | K196: 467 | L196: 315 | O196: 3788 | P196: 715 | Q196: 1367 | R196: 1391 | S196: 315 | T196: 2082 | U196: 1706
A197: PG192 | B197: Suma de PG192 | C197: 1892 | D197: 1507 | E197: 1753 | F197: 1440 | G197: 1379 | H197: 1500 | I197: 1354 | J197: 1614 | K197: 1539 | L197: 1762 | O197: 15740 | P197: 5152 | Q197: 4319 | R197: 4507 | S197: 1762 | T197: 9471 | U197: 6269
A198: PG193 | B198: Suma de PG193 | C198: 1453 | D198: 1173 | E198: 1256 | F198: 1105 | G198: 1071 | H198: 1027 | I198: 1076 | J198: 1142 | K198: 1169 | L198: 1577 | O198: 12049 | P198: 3882 | Q198: 3203 | R198: 3387 | S198: 1577 | T198: 7085 | U198: 4964
A199: =MID(B199,9,15) -> PG194 | B199: Suma de PG194 | C199: 20 | D199: 27 | E199: 29 | F199: 36 | G199: 31 | H199: 30 | I199: 22 | J199: 34 | K199: 50 | L199: 37 | O199: =SUM(C199:N199) -> 316 | P199: =SUM(C199:E199) -> 76 | Q199: =SUM(F199:H199) -> 97 | R199: =SUM(I199:K199) -> 106 | S199: =SUM(L199:N199) -> 37 | T199: =SUM(P199:Q199) -> 173 | U199: =SUM(R199:S199) -> 143
A200: PG195 | B200: Suma de PG195 | C200: 47 | D200: 34 | E200: 119 | F200: 253 | G200: 260 | H200: 487 | I200: 257 | J200: 500 | K200: 284 | L200: 208 | O200: 2449 | P200: 200 | Q200: 1000 | R200: 1041 | S200: 208 | T200: 1200 | U200: 1249
A201: PG196 | B201: Suma de PG196 | C201: 184 | D201: 195 | E201: 411 | F201: 416 | G201: 408 | H201: 458 | I201: 568 | J201: 665 | K201: 470 | L201: 1016 | O201: 4791 | P201: 790 | Q201: 1282 | R201: 1703 | S201: 1016 | T201: 2072 | U201: 2719
... 1007 more rows

Sheet INFORME_ITS
A1: HOJA DE MONITORIZACION MENSUAL DE LA ESN PREVENCION Y CONTROL DE ITS, VIH/SIDA Y HEPATITIS
B3: =IF(B2="REGION DE SALUD PIURA","REGION",TABLA_23!B2) -> EJECUTORA | D3: =IF(TABLA_23!C2="(Todas)","REGION DE SALUD PIURA",TABLA_23!C2) -> SALUD PIURA | O3: Periodo: | R3: Octubre
A6: 1.- POBLACION GENERAL: ITS | C6: Femenino | M6: Masculino | W6: Total Diagnósticos | Y6: Total Tratados | AA6: Contactos | AB6: Contactos Tratados
C7: 01d - 11a | E7: 12a - 17a | G7: 18a - 29a | I7: 30a - 59a | K7: 60a + | M7: 01d - 11a | O7: 12a - 17a | Q7: 18a - 29a | S7: 30a - 59a | U7: 60a +
C8: Diag. | D8: Tto. | E8: Diag. | F8: Tto. | G8: Diag. | H8: Tto. | I8: Diag. | J8: Tto. | K8: Diag. | L8: Tto. | M8: Diag. | N8: Tto. | O8: Diag. | P8: Tto. | Q8: Diag. | R8: Tto. | S8: Diag. | T8: Tto. | U8: Diag. | V8: Tto. | W8: F | X8: M | Y8: F | Z8: M
A9: 1.1 | B9: Personas con manejo sindrómico | C9: =VLOOKUP(FORMATO_VALORES!C9,TABLA_23!$A$5:$U$1163,PANEL!$D$107,0) -> 1 | D9: =VLOOKUP(FORMATO_VALORES!D9,TABLA_23!$A$5:$U$1163,PANEL!$D$107,0) -> 0 | E9: =VLOOKUP(FORMATO_VALORES!E9,TABLA_23!$A$5:$U$1163,PANEL!$D$107,0) -> 9 | F9: =VLOOKUP(FORMATO_VALORES!F9,TABLA_23!$A$5:$U$1163,PANEL!$D$107,0) -> 6 | G9: =VLOOKUP(FORMATO_VALORES!G9,TABLA_23!$A$5:$U$1163,PANEL!$D$107,0) -> 299 | H9: =VLOOKUP(FORMATO_VALORES!H9,TABLA_23!$A$5:$U$1163,PANEL!$D$107,0) -> 262 | I9: =VLOOKUP(FORMATO_VALORES!I9,TABLA_23!$A$5:$U$1163,PANEL!$D$107,0) -> 399 | J9: =VLOOKUP(FORMATO_VALORES!J9,TABLA_23!$A$5:$U$1163,PANEL!$D$107,0) -> 368 | K9: =VLOOKUP(FORMATO_VALORES!K9,TABLA_23!$A$5:$U$1163,PANEL!$D$107,0) -> 12 | L9: =VLOOKUP(FORMATO_VALORES!L9,TABLA_23!$A$5:$U$1163,PANEL!$D$107,0) -> 12 | M9: =VLOOKUP(FORMATO_VALORES!M9,TABLA_23!$A$5:$U$1163,PANEL!$D$107,0) -> 0 | N9: =VLOOKUP(FORMATO_VALORES!N9,TABLA_23!$A$5:$U$1163,PANEL!$D$107,0) -> 0 | O9: =VLOOKUP(FORMATO_VALORES!O9,TABLA_23!$A$5:$U$1163,PANEL!$D$107,0) -> 0 | P9: =VLOOKUP(FORMATO_VALORES!P9,TABLA_23!$A$5:$U$1163,PANEL!$D$107,0) -> 0 | Q9: =VLOOKUP(FORMATO_VALORES!Q9,TABLA_23!$A$5:$U$1163,PANEL!$D$107,0) -> 0 | R9: =VLOOKUP(FORMATO_VALORES!R9,TABLA_23!$A$5:$U$1163,PANEL!$D$107,0) -> 0 | S9: =VLOOKUP(FORMATO_VALORES!S9,TABLA_23!$A$5:$U$1163,PANEL!$D$107,0) -> 0 | T9: =VLOOKUP(FORMATO_VALORES!T9,TABLA_23!$A$5:$U$1163,PANEL!$D$107,0) -> 0 | U9: =VLOOKUP(FORMATO_VALORES!U9,TABLA_23!$A$5:$U$1163,PANEL!$D$107,0) -> 0 | V9: =VLOOKUP(FORMATO_VALORES!V9,TABLA_23!$A$5:$U$1163,PANEL!$D$107,0) -> 0 | W9: =+C9+E9+G9+I9+K9 -> 720 | X9: =+M9+O9+Q9+S9+U9 -> 0 | Y9: =+D9+F9+H9+J9+L9 -> 648 | Z9: =+N9+P9+R9+T9+V9 -> 0 | AA9: =VLOOKUP(FORMATO_VALORES!AA9,TABLA_23!$A$5:$U$1163,PANEL!$D$107,0) -> 17 | AB9: =VLOOKUP(FORMATO_VALORES!AB9,TABLA_23!$A$5:$U$1163,PANEL!$D$107,0) -> 0
A10: 1.2 | B10: Casos de descarga uretral | M10: =VLOOKUP(FORMATO_VALORES!M10,TABLA_23!$A$5:$U$1163,PANEL!$D$107,0) -> 0 | N10: =VLOOKUP(FORMATO_VALORES!N10,TABLA_23!$A$5:$U$1163,PANEL!$D$107,0) -> 0 | O10: =VLOOKUP(FORMATO_VALORES!O10,TABLA_23!$A$5:$U$1163,PANEL!$D$107,0) -> 0 | P10: =VLOOKUP(FORMATO_VALORES!P10,TABLA_23!$A$5:$U$1163,PANEL!$D$107,0) -> 0 | Q10: =VLOOKUP(FORMATO_VALORES!Q10,TABLA_23!$A$5:$U$1163,PANEL!$D$107,0) -> 0 | R10: =VLOOKUP(FORMATO_VALORES!R10,TABLA_23!$A$5:$U$1163,PANEL!$D$107,0) -> 0 | S10: =VLOOKUP(FORMATO_VALORES!S10,TABLA_23!$A$5:$U$1163,PANEL!$D$107,0) -> 0 | T10: =VLOOKUP(FORMATO_VALORES!T10,TABLA_23!$A$5:$U$1163,PANEL!$D$107,0) -> 0 | U10: =VLOOKUP(FORMATO_VALORES!U10,TABLA_23!$A$5:$U$1163,PANEL!$D$107,0) -> 0 | V10: =VLOOKUP(FORMATO_VALORES!V10,TABLA_23!$A$5:$U$1163,PANEL!$D$107,0) -> 0 | X10: =+M10+O10+Q10+S10+U10 -> 0 | Z10: =+N10+P10+R10+T10+V10 -> 0 | AA10: =VLOOKUP(FORMATO_VALORES!AA10,TABLA_23!$A$5:$U$1163,PANEL!$D$107,0) -> 0 | AB10: =VLOOKUP(FORMATO_VALORES!AB10,TABLA_23!$A$5:$U$1163,PANEL!$D$107,0) -> 0
A11: 1.3 | B11: Casos de flujo vaginal compatible con ITS | C11: =VLOOKUP(FORMATO_VALORES!C11,TABLA_23!$A$5:$U$1163,PANEL!$D$107,0) -> 0 | D11: =VLOOKUP(FORMATO_VALORES!D11,TABLA_23!$A$5:$U$1163,PANEL!$D$107,0) -> 0 | E11: =VLOOKUP(FORMATO_VALORES!E11,TABLA_23!$A$5:$U$1163,PANEL!$D$107,0) -> 9 | F11: =VLOOKUP(FORMATO_VALORES!F11,TABLA_23!$A$5:$U$1163,PANEL!$D$107,0) -> 6 | G11: =VLOOKUP(FORMATO_VALORES!G11,TABLA_23!$A$5:$U$1163,PANEL!$D$107,0) -> 282 | H11: =VLOOKUP(FORMATO_VALORES!H11,TABLA_23!$A$5:$U$1163,PANEL!$D$107,0) -> 257 | I11: =VLOOKUP(FORMATO_VALORES!I11,TABLA_23!$A$5:$U$1163,PANEL!$D$107,0) -> 379 | J11: =VLOOKUP(FORMATO_VALORES!J11,TABLA_23!$A$5:$U$1163,PANEL!$D$107,0) -> 357 | K11: =VLOOKUP(FORMATO_VALORES!K11,TABLA_23!$A$5:$U$1163,PANEL!$D$107,0) -> 12 | L11: =VLOOKUP(FORMATO_VALORES!L11,TABLA_23!$A$5:$U$1163,PANEL!$D$107,0) -> 12 | W11: =+C11+E11+G11+I11+K11 -> 682 | Y11: =+D11+F11+H11+J11+L11 -> 632 | AA11: =VLOOKUP(FORMATO_VALORES!AA11,TABLA_23!$A$5:$U$1163,PANEL!$D$107,0) -> 17 | AB11: =VLOOKUP(FORMATO_VALORES!AB11,TABLA_23!$A$5:$U$1163,PANEL!$D$107,0) -> 0
A12: 1.4 | B12: Casos de úlcera genital | C12: =VLOOKUP(FORMATO_VALORES!C12,TABLA_23!$A$5:$U$1163,PANEL!$D$107,0) -> 0 | D12: =VLOOKUP(FORMATO_VALORES!D12,TABLA_23!$A$5:$U$1163,PANEL!$D$107,0) -> 0 | E12: =VLOOKUP(FORMATO_VALORES!E12,TABLA_23!$A$5:$U$1163,PANEL!$D$107,0) -> 0 | F12: =VLOOKUP(FORMATO_VALORES!F12,TABLA_23!$A$5:$U$1163,PANEL!$D$107,0) -> 0 | G12: =VLOOKUP(FORMATO_VALORES!G12,TABLA_23!$A$5:$U$1163,PANEL!$D$107,0) -> 0 | H12: =VLOOKUP(FORMATO_VALORES!H12,TABLA_23!$A$5:$U$1163,PANEL!$D$107,0) -> 0 | I12: =VLOOKUP(FORMATO_VALORES!I12,TABLA_23!$A$5:$U$1163,PANEL!$D$107,0) -> 0 | J12: =VLOOKUP(FORMATO_VALORES!J12,TABLA_23!$A$5:$U$1163,PANEL!$D$107,0) -> 0 | K12: =VLOOKUP(FORMATO_VALORES!K12,TABLA_23!$A$5:$U$1163,PANEL!$D$107,0) -> 0 | L12: =VLOOKUP(FORMATO_VALORES!L12,TABLA_23!$A$5:$U$1163,PANEL!$D$107,0) -> 0 | M12: =VLOOKUP(FORMATO_VALORES!M12,TABLA_23!$A$5:$U$1163,PANEL!$D$107,0) -> 0 | N12: =VLOOKUP(FORMATO_VALORES!N12,TABLA_23!$A$5:$U$1163,PANEL!$D$107,0) -> 0 | O12: =VLOOKUP(FORMATO_VALORES!O12,TABLA_23!$A$5:$U$1163,PANEL!$D$107,0) -> 0 | P12: =VLOOKUP(FORMATO_VALORES!P12,TABLA_23!$A$5:$U$1163,PANEL!$D$107,0) -> 0 | Q12: =VLOOKUP(FORMATO_VALORES!Q12,TABLA_23!$A$5:$U$1163,PANEL!$D$107,0) -> 0 | R12: =VLOOKUP(FORMATO_VALORES!R12,TABLA_23!$A$5:$U$1163,PANEL!$D$107,0) -> 0 | S12: =VLOOKUP(FORMATO_VALORES!S12,TABLA_23!$A$5:$U$1163,PANEL!$D$107,0) -> 0 | T12: =VLOOKUP(FORMATO_VALORES!T12,TABLA_23!$A$5:$U$1163,PANEL!$D$107,0) -> 0 | U12: =VLOOKUP(FORMATO_VALORES!U12,TABLA_23!$A$5:$U$1163,PANEL!$D$107,0) -> 0 | V12: =VLOOKUP(FORMATO_VALORES!V12,TABLA_23!$A$5:$U$1163,PANEL!$D$107,0) -> 0 | W12: =+C12+E12+G12+I12+K12 -> 0 | X12: =+M12+O12+Q12+S12+U12 -> 0 | Y12: =+D12+F12+H12+J12+L12 -> 0 | Z12: =+N12+P12+R12+T12+V12 -> 0 | AA12: =VLOOKUP(FORMATO_VALORES!AA12,TABLA_23!$A$5:$U$1163,PANEL!$D$107,0) -> 0 | AB12: =VLOOKUP(FORMATO_VALORES!AB12,TABLA_23!$A$5:$U$1163,PANEL!$D$107,0) -> 0
A13: 1.5 | B13: Casos de bubón inguinal | C13: =VLOOKUP(FORMATO_VALORES!C13,TABLA_23!$A$5:$U$1163,PANEL!$D$107,0) -> 0 | D13: =VLOOKUP(FORMATO_VALORES!D13,TABLA_23!$A$5:$U$1163,PANEL!$D$107,0) -> 0 | E13: =VLOOKUP(FORMATO_VALORES!E13,TABLA_23!$A$5:$U$1163,PANEL!$D$107,0) -> 0 | F13: =VLOOKUP(FORMATO_VALORES!F13,TABLA_23!$A$5:$U$1163,PANEL!$D$107,0) -> 0 | G13: =VLOOKUP(FORMATO_VALORES!G13,TABLA_23!$A$5:$U$1163,PANEL!$D$107,0) -> 0 | H13: =VLOOKUP(FORMATO_VALORES!H13,TABLA_23!$A$5:$U$1163,PANEL!$D$107,0) -> 0 | I13: =VLOOKUP(FORMATO_VALORES!I13,TABLA_23!$A$5:$U$1163,PANEL!$D$107,0) -> 1 | J13: =VLOOKUP(FORMATO_VALORES!J13,TABLA_23!$A$5:$U$1163,PANEL!$D$107,0) -> 0 | K13: =VLOOKUP(FORMATO_VALORES!K13,TABLA_23!$A$5:$U$1163,PANEL!$D$107,0) -> 0 | L13: =VLOOKUP(FORMATO_VALORES!L13,TABLA_23!$A$5:$U$1163,PANEL!$D$107,0) -> 0 | M13: =VLOOKUP(FORMATO_VALORES!M13,TABLA_23!$A$5:$U$1163,PANEL!$D$107,0) -> 0 | N13: =VLOOKUP(FORMATO_VALORES!N13,TABLA_23!$A$5:$U$1163,PANEL!$D$107,0) -> 0 | O13: =VLOOKUP(FORMATO_VALORES!O13,TABLA_23!$A$5:$U$1163,PANEL!$D$107,0) -> 0 | P13: =VLOOKUP(FORMATO_VALORES!P13,TABLA_23!$A$5:$U$1163,PANEL!$D$107,0) -> 0 | Q13: =VLOOKUP(FORMATO_VALORES!Q13,TABLA_23!$A$5:$U$1163,PANEL!$D$107,0) -> 0 | R13: =VLOOKUP(FORMATO_VALORES!R13,TABLA_23!$A$5:$U$1163,PANEL!$D$107,0) -> 0 | S13: =VLOOKUP(FORMATO_VALORES!S13,TABLA_23!$A$5:$U$1163,PANEL!$D$107,0) -> 0 | T13: =VLOOKUP(FORMATO_VALORES!T13,TABLA_23!$A$5:$U$1163,PANEL!$D$107,0) -> 0 | U13: =VLOOKUP(FORMATO_VALORES!U13,TABLA_23!$A$5:$U$1163,PANEL!$D$107,0) -> 0 | V13: =VLOOKUP(FORMATO_VALORES!V13,TABLA_23!$A$5:$U$1163,PANEL!$D$107,0) -> 0 | W13: 1 | X13: =+M13+O13+Q13+S13+U13 -> 0 | Y13: 0 | Z13: =+N13+P13+R13+T13+V13 -> 0 | AA13: =VLOOKUP(FORMATO_VALORES!AA13,TABLA_23!$A$5:$U$1163,PANEL!$D$107,0) -> 0 | AB13: =VLOOKUP(FORMATO_VALORES!AB13,TABLA_23!$A$5:$U$1163,PANEL!$D$107,0) -> 0
A14: 1.6 | B14: Casos con síndrome de dolor abdominal bajo | C14: =VLOOKUP(FORMATO_VALORES!C14,TABLA_23!$A$5:$U$1163,PANEL!$D$107,0) -> 1 | D14: =VLOOKUP(FORMATO_VALORES!D14,TABLA_23!$A$5:$U$1163,PANEL!$D$107,0) -> 0 | E14: =VLOOKUP(FORMATO_VALORES!E14,TABLA_23!$A$5:$U$1163,PANEL!$D$107,0) -> 0 | F14: =VLOOKUP(FORMATO_VALORES!F14,TABLA_23!$A$5:$U$1163,PANEL!$D$107,0) -> 0 | G14: =VLOOKUP(FORMATO_VALORES!G14,TABLA_23!$A$5:$U$1163,PANEL!$D$107,0) -> 18 | H14: =VLOOKUP(FORMATO_VALORES!H14,TABLA_23!$A$5:$U$1163,PANEL!$D$107,0) -> 8 | I14: =VLOOKUP(FORMATO_VALORES!I14,TABLA_23!$A$5:$U$1163,PANEL!$D$107,0) -> 19 | J14: =VLOOKUP(FORMATO_VALORES!J14,TABLA_23!$A$5:$U$1163,PANEL!$D$107,0) -> 13 | K14: =VLOOKUP(FORMATO_VALORES!K14,TABLA_23!$A$5:$U$1163,PANEL!$D$107,0) -> 0 | L14: =VLOOKUP(FORMATO_VALORES!L14,TABLA_23!$A$5:$U$1163,PANEL!$D$107,0) -> 0 | W14: 38 | Y14: 21 | AA14: =VLOOKUP(FORMATO_VALORES!AA14,TABLA_23!$A$5:$U$1163,PANEL!$D$107,0) -> 0 | AB14: =VLOOKUP(FORMATO_VALORES!AB14,TABLA_23!$A$5:$U$1163,PANEL!$D$107,0) -> 0
A15: 1.7 | B15: Casos de condiloma | C15: =VLOOKUP(FORMATO_VALORES!C15,TABLA_23!$A$5:$U$1163,PANEL!$D$107,0) -> 0 | D15: =VLOOKUP(FORMATO_VALORES!D15,TABLA_23!$A$5:$U$1163,PANEL!$D$107,0) -> 0 | E15: =VLOOKUP(FORMATO_VALORES!E15,TABLA_23!$A$5:$U$1163,PANEL!$D$107,0) -> 1 | F15: =VLOOKUP(FORMATO_VALORES!F15,TABLA_23!$A$5:$U$1163,PANEL!$D$107,0) -> 0 | G15: =VLOOKUP(FORMATO_VALORES!G15,TABLA_23!$A$5:$U$1163,PANEL!$D$107,0) -> 1 | H15: =VLOOKUP(FORMATO_VALORES!H15,TABLA_23!$A$5:$U$1163,PANEL!$D$107,0) -> 0 | I15: =VLOOKUP(FORMATO_VALORES!I15,TABLA_23!$A$5:$U$1163,PANEL!$D$107,0) -> 1 | J15: =VLOOKUP(FORMATO_VALORES!J15,TABLA_23!$A$5:$U$1163,PANEL!$D$107,0) -> 0 | K15: =VLOOKUP(FORMATO_VALORES!K15,TABLA_23!$A$5:$U$1163,PANEL!$D$107,0) -> 2 | L15: =VLOOKUP(FORMATO_VALORES!L15,TABLA_23!$A$5:$U$1163,PANEL!$D$107,0) -> 0 | M15: =VLOOKUP(FORMATO_VALORES!M15,TABLA_23!$A$5:$U$1163,PANEL!$D$107,0) -> 0 | N15: =VLOOKUP(FORMATO_VALORES!N15,TABLA_23!$A$5:$U$1163,PANEL!$D$107,0) -> 0 | O15: =VLOOKUP(FORMATO_VALORES!O15,TABLA_23!$A$5:$U$1163,PANEL!$D$107,0) -> 0 | P15: =VLOOKUP(FORMATO_VALORES!P15,TABLA_23!$A$5:$U$1163,PANEL!$D$107,0) -> 0 | Q15: =VLOOKUP(FORMATO_VALORES!Q15,TABLA_23!$A$5:$U$1163,PANEL!$D$107,0) -> 2 | R15: =VLOOKUP(FORMATO_VALORES!R15,TABLA_23!$A$5:$U$1163,PANEL!$D$107,0) -> 0 | S15: =VLOOKUP(FORMATO_VALORES!S15,TABLA_23!$A$5:$U$1163,PANEL!$D$107,0) -> 0 | T15: =VLOOKUP(FORMATO_VALORES!T15,TABLA_23!$A$5:$U$1163,PANEL!$D$107,0) -> 0 | U15: =VLOOKUP(FORMATO_VALORES!U15,TABLA_23!$A$5:$U$1163,PANEL!$D$107,0) -> 0 | V15: =VLOOKUP(FORMATO_VALORES!V15,TABLA_23!$A$5:$U$1163,PANEL!$D$107,0) -> 0 | W15: 5 | X15: =+M15+O15+Q15+S15+U15 -> 2 | Y15: 0 | Z15: =+N15+P15+R15+T15+V15 -> 0 | AA15: =VLOOKUP(FORMATO_VALORES!AA15,TABLA_23!$A$5:$U$1163,PANEL!$D$107,0) -> 0 | AB15: =VLOOKUP(FORMATO_VALORES!AB15,TABLA_23!$A$5:$U$1163,PANEL!$D$107,0) -> 0
A16: 1.8 | B16: Personas con manejo etiológico | C16: =VLOOKUP(FORMATO_VALORES!C16,TABLA_23!$A$5:$U$1163,PANEL!$D$107,0) -> 2 | D16: =VLOOKUP(FORMATO_VALORES!D16,TABLA_23!$A$5:$U$1163,PANEL!$D$107,0) -> 0 | E16: =VLOOKUP(FORMATO_VALORES!E16,TABLA_23!$A$5:$U$1163,PANEL!$D$107,0) -> 0 | F16: =VLOOKUP(FORMATO_VALORES!F16,TABLA_23!$A$5:$U$1163,PANEL!$D$107,0) -> 0 | G16: =VLOOKUP(FORMATO_VALORES!G16,TABLA_23!$A$5:$U$1163,PANEL!$D$107,0) -> 16 | H16: =VLOOKUP(FORMATO_VALORES!H16,TABLA_23!$A$5:$U$1163,PANEL!$D$107,0) -> 2 | I16: =VLOOKUP(FORMATO_VALORES!I16,TABLA_23!$A$5:$U$1163,PANEL!$D$107,0) -> 7 | J16: =VLOOKUP(FORMATO_VALORES!J16,TABLA_23!$A$5:$U$1163,PANEL!$D$107,0) -> 2 | K16: =VLOOKUP(FORMATO_VALORES!K16,TABLA_23!$A$5:$U$1163,PANEL!$D$107,0) -> 0 | L16: =VLOOKUP(FORMATO_VALORES!L16,TABLA_23!$A$5:$U$1163,PANEL!$D$107,0) -> 0 | M16: =VLOOKUP(FORMATO_VALORES!M16,TABLA_23!$A$5:$U$1163,PANEL!$D$107,0) -> 1 | N16: =VLOOKUP(FORMATO_VALORES!N16,TABLA_23!$A$5:$U$1163,PANEL!$D$107,0) -> 0 | O16: =VLOOKUP(FORMATO_VALORES!O16,TABLA_23!$A$5:$U$1163,PANEL!$D$107,0) -> 0 | P16: =VLOOKUP(FORMATO_VALORES!P16,TABLA_23!$A$5:$U$1163,PANEL!$D$107,0) -> 0 | Q16: =VLOOKUP(FORMATO_VALORES!Q16,TABLA_23!$A$5:$U$1163,PANEL!$D$107,0) -> 2 | R16: =VLOOKUP(FORMATO_VALORES!R16,TABLA_23!$A$5:$U$1163,PANEL!$D$107,0) -> 0 | S16: =VLOOKUP(FORMATO_VALORES!S16,TABLA_23!$A$5:$U$1163,PANEL!$D$107,0) -> 3 | T16: =VLOOKUP(FORMATO_VALORES!T16,TABLA_23!$A$5:$U$1163,PANEL!$D$107,0) -> 0 | U16: =VLOOKUP(FORMATO_VALORES!U16,TABLA_23!$A$5:$U$1163,PANEL!$D$107,0) -> 0 | V16: =VLOOKUP(FORMATO_VALORES!V16,TABLA_23!$A$5:$U$1163,PANEL!$D$107,0) -> 0 | W16: 25 | X16: =+M16+O16+Q16+S16+U16 -> 6 | Y16: 4 | Z16: =+N16+P16+R16+T16+V16 -> 0 | AA16: =VLOOKUP(FORMATO_VALORES!AA16,TABLA_23!$A$5:$U$1163,PANEL!$D$107,0) -> 4 | AB16: =VLOOKUP(FORMATO_VALORES!AB16,TABLA_23!$A$5:$U$1163,PANEL!$D$107,0) -> 0
A17: 1.9 | B17: Casos con Gonorrea | C17: =VLOOKUP(FORMATO_VALORES!C17,TABLA_23!$A$5:$U$1163,PANEL!$D$107,0) -> 0 | D17: =VLOOKUP(FORMATO_VALORES!D17,TABLA_23!$A$5:$U$1163,PANEL!$D$107,0) -> 0 | E17: =VLOOKUP(FORMATO_VALORES!E17,TABLA_23!$A$5:$U$1163,PANEL!$D$107,0) -> 0 | F17: =VLOOKUP(FORMATO_VALORES!F17,TABLA_23!$A$5:$U$1163,PANEL!$D$107,0) -> 0 | G17: =VLOOKUP(FORMATO_VALORES!G17,TABLA_23!$A$5:$U$1163,PANEL!$D$107,0) -> 0 | H17: =VLOOKUP(FORMATO_VALORES!H17,TABLA_23!$A$5:$U$1163,PANEL!$D$107,0) -> 0 | I17: =VLOOKUP(FORMATO_VALORES!I17,TABLA_23!$A$5:$U$1163,PANEL!$D$107,0) -> 1 | J17: =VLOOKUP(FORMATO_VALORES!J17,TABLA_23!$A$5:$U$1163,PANEL!$D$107,0) -> 0 | K17: =VLOOKUP(FORMATO_VALORES!K17,TABLA_23!$A$5:$U$1163,PANEL!$D$107,0) -> 0 | L17: =VLOOKUP(FORMATO_VALORES!L17,TABLA_23!$A$5:$U$1163,PANEL!$D$107,0) -> 0 | M17: =VLOOKUP(FORMATO_VALORES!M17,TABLA_23!$A$5:$U$1163,PANEL!$D$107,0) -> 0 | N17: =VLOOKUP(FORMATO_VALORES!N17,TABLA_23!$A$5:$U$1163,PANEL!$D$107,0) -> 0 | O17: =VLOOKUP(FORMATO_VALORES!O17,TABLA_23!$A$5:$U$1163,PANEL!$D$107,0) -> 0 | P17: =VLOOKUP(FORMATO_VALORES!P17,TABLA_23!$A$5:$U$1163,PANEL!$D$107,0) -> 0 | Q17: =VLOOKUP(FORMATO_VALORES!Q17,TABLA_23!$A$5:$U$1163,PANEL!$D$107,0) -> 1 | R17: =VLOOKUP(FORMATO_VALORES!R17,TABLA_23!$A$5:$U$1163,PANEL!$D$107,0) -> 0 | S17: =VLOOKUP(FORMATO_VALORES!S17,TABLA_23!$A$5:$U$1163,PANEL!$D$107,0) -> 0 | T17: =VLOOKUP(FORMATO_VALORES!T17,TABLA_23!$A$5:$U$1163,PANEL!$D$107,0) -> 0 | U17: =VLOOKUP(FORMATO_VALORES!U17,TABLA_23!$A$5:$U$1163,PANEL!$D$107,0) -> 0 | V17: =VLOOKUP(FORMATO_VALORES!V17,TABLA_23!$A$5:$U$1163,PANEL!$D$107,0) -> 0 | W17: 1 | X17: 1 | Y17: 0 | Z17: 0 | AA17: =VLOOKUP(FORMATO_VALORES!AA17,TABLA_23!$A$5:$U$1163,PANEL!$D$107,0) -> 0 | AB17: =VLOOKUP(FORMATO_VALORES!AB17,TABLA_23!$A$5:$U$1163,PANEL!$D$107,0) -> 0
A18: 1.10 | B18: Casos de Sífilis | C18: =VLOOKUP(FORMATO_VALORES!C18,TABLA_23!$A$5:$U$1163,PANEL!$D$107,0) -> 0 | D18: =VLOOKUP(FORMATO_VALORES!D18,TABLA_23!$A$5:$U$1163,PANEL!$D$107,0) -> 0 | E18: =VLOOKUP(FORMATO_VALORES!E18,TABLA_23!$A$5:$U$1163,PANEL!$D$107,0) -> 0 | F18: =VLOOKUP(FORMATO_VALORES!F18,TABLA_23!$A$5:$U$1163,PANEL!$D$107,0) -> 0 | G18: =VLOOKUP(FORMATO_VALORES!G18,TABLA_23!$A$5:$U$1163,PANEL!$D$107,0) -> 6 | H18: =VLOOKUP(FORMATO_VALORES!H18,TABLA_23!$A$5:$U$1163,PANEL!$D$107,0) -> 2 | I18: =VLOOKUP(FORMATO_VALORES!I18,TABLA_23!$A$5:$U$1163,PANEL!$D$107,0) -> 1 | J18: =VLOOKUP(FORMATO_VALORES!J18,TABLA_23!$A$5:$U$1163,PANEL!$D$107,0) -> 0 | K18: =VLOOKUP(FORMATO_VALORES!K18,TABLA_23!$A$5:$U$1163,PANEL!$D$107,0) -> 0 | L18: =VLOOKUP(FORMATO_VALORES!L18,TABLA_23!$A$5:$U$1163,PANEL!$D$107,0) -> 0 | M18: =VLOOKUP(FORMATO_VALORES!M18,TABLA_23!$A$5:$U$1163,PANEL!$D$107,0) -> 1 | N18: =VLOOKUP(FORMATO_VALORES!N18,TABLA_23!$A$5:$U$1163,PANEL!$D$107,0) -> 0 | O18: =VLOOKUP(FORMATO_VALORES!O18,TABLA_23!$A$5:$U$1163,PANEL!$D$107,0) -> 0 | P18: =VLOOKUP(FORMATO_VALORES!P18,TABLA_23!$A$5:$U$1163,PANEL!$D$107,0) -> 0 | Q18: =VLOOKUP(FORMATO_VALORES!Q18,TABLA_23!$A$5:$U$1163,PANEL!$D$107,0) -> 2 | R18: =VLOOKUP(FORMATO_VALORES!R18,TABLA_23!$A$5:$U$1163,PANEL!$D$107,0) -> 0 | S18: =VLOOKUP(FORMATO_VALORES!S18,TABLA_23!$A$5:$U$1163,PANEL!$D$107,0) -> 3 | T18: =VLOOKUP(FORMATO_VALORES!T18,TABLA_23!$A$5:$U$1163,PANEL!$D$107,0) -> 0 | U18: =VLOOKUP(FORMATO_VALORES!U18,TABLA_23!$A$5:$U$1163,PANEL!$D$107,0) -> 0 | V18: =VLOOKUP(FORMATO_VALORES!V18,TABLA_23!$A$5:$U$1163,PANEL!$D$107,0) -> 0 | W18: 7 | X18: 6 | Y18: 2 | Z18: 0 | AA18: =VLOOKUP(FORMATO_VALORES!AA18,TABLA_23!$A$5:$U$1163,PANEL!$D$107,0) -> 4 | AB18: =VLOOKUP(FORMATO_VALORES!AB18,TABLA_23!$A$5:$U$1163,PANEL!$D$107,0) -> 0
A19: 1.11 | B19: Personas tamizadas para Sífilis | C19: =VLOOKUP(FORMATO_VALORES!C19,TABLA_23!$A$5:$U$1163,PANEL!$D$107,0) -> 0 | E19: =VLOOKUP(FORMATO_VALORES!E19,TABLA_23!$A$5:$U$1163,PANEL!$D$107,0) -> 28 | G19: =VLOOKUP(FORMATO_VALORES!G19,TABLA_23!$A$5:$U$1163,PANEL!$D$107,0) -> 382 | I19: =VLOOKUP(FORMATO_VALORES!I19,TABLA_23!$A$5:$U$1163,PANEL!$D$107,0) -> 226 | K19: =VLOOKUP(FORMATO_VALORES!K19,TABLA_23!$A$5:$U$1163,PANEL!$D$107,0) -> 5 | M19: =VLOOKUP(FORMATO_VALORES!M19,TABLA_23!$A$5:$U$1163,PANEL!$D$107,0) -> 1 | O19: =VLOOKUP(FORMATO_VALORES!O19,TABLA_23!$A$5:$U$1163,PANEL!$D$107,0) -> 66 | Q19: =VLOOKUP(FORMATO_VALORES!Q19,TABLA_23!$A$5:$U$1163,PANEL!$D$107,0) -> 337 | S19: =VLOOKUP(FORMATO_VALORES!S19,TABLA_23!$A$5:$U$1163,PANEL!$D$107,0) -> 269 | U19: =VLOOKUP(FORMATO_VALORES!U19,TABLA_23!$A$5:$U$1163,PANEL!$D$107,0) -> 23 | W19: 641 | X19: 696
A20: 1.12 | B20: Casos con serología reactiva para Sífilis | C20: =VLOOKUP(FORMATO_VALORES!C20,TABLA_23!$A$5:$U$1163,PANEL!$D$107,0) -> 0 | E20: =VLOOKUP(FORMATO_VALORES!E20,TABLA_23!$A$5:$U$1163,PANEL!$D$107,0) -> 0 | G20: =VLOOKUP(FORMATO_VALORES!G20,TABLA_23!$A$5:$U$1163,PANEL!$D$107,0) -> 4 | I20: =VLOOKUP(FORMATO_VALORES!I20,TABLA_23!$A$5:$U$1163,PANEL!$D$107,0) -> 0 | K20: =VLOOKUP(FORMATO_VALORES!K20,TABLA_23!$A$5:$U$1163,PANEL!$D$107,0) -> 0 | M20: =VLOOKUP(FORMATO_VALORES!M20,TABLA_23!$A$5:$U$1163,PANEL!$D$107,0) -> 0 | O20: =VLOOKUP(FORMATO_VALORES!O20,TABLA_23!$A$5:$U$1163,PANEL!$D$107,0) -> 0 | Q20: =VLOOKUP(FORMATO_VALORES!Q20,TABLA_23!$A$5:$U$1163,PANEL!$D$107,0) -> 1 | S20: =VLOOKUP(FORMATO_VALORES!S20,TABLA_23!$A$5:$U$1163,PANEL!$D$107,0) -> 2 | U20: =VLOOKUP(FORMATO_VALORES!U20,TABLA_23!$A$5:$U$1163,PANEL!$D$107,0) -> 0 | W20: 4 | X20: 3
A21: 1.13 | B21: Personas que reciben consejería en ITS | E21: =VLOOKUP(FORMATO_VALORES!E21,TABLA_23!$A$5:$U$1163,PANEL!$D$107,0) -> 315 | G21: =VLOOKUP(FORMATO_VALORES!G21,TABLA_23!$A$5:$U$1163,PANEL!$D$107,0) -> 1,762 | I21: =VLOOKUP(FORMATO_VALORES!I21,TABLA_23!$A$5:$U$1163,PANEL!$D$107,0) -> 1,577 | K21: =VLOOKUP(FORMATO_VALORES!K21,TABLA_23!$A$5:$U$1163,PANEL!$D$107,0) -> 37 | O21: =VLOOKUP(FORMATO_VALORES!O21,TABLA_23!$A$5:$U$1163,PANEL!$D$107,0) -> 208 | Q21: =VLOOKUP(FORMATO_VALORES!Q21,TABLA_23!$A$5:$U$1163,PANEL!$D$107,0) -> 1,016 | S21: =VLOOKUP(FORMATO_VALORES!S21,TABLA_23!$A$5:$U$1163,PANEL!$D$107,0) -> 1,038 | U21: =VLOOKUP(FORMATO_VALORES!U21,TABLA_23!$A$5:$U$1163,PANEL!$D$107,0) -> 85 | W21: 3,691 | X21: 2,347
A23: 2.- HEPATITIS B | C23: Femenino | H23: Masculino | M23: Total
C24: 01 - 11a | D24: 12 - 17a | E24: 18a - 29a | F24: 30 - 59a | G24: 60a + | H24: 01 - 11a | I24: 12 - 17a | J24: 18a - 29a | K24: 30 - 59a | L24: 60a + | M24: F | N24: M | O24: Total
A25: 2.1 | B25: Personas tamizadas a Hepatitis B | C25: =VLOOKUP(FORMATO_VALORES!C25,TABLA_23!$A$5:$U$1163,PANEL!$D$107,0) -> 1 | D25: =VLOOKUP(FORMATO_VALORES!D25,TABLA_23!$A$5:$U$1163,PANEL!$D$107,0) -> 57 | E25: =VLOOKUP(FORMATO_VALORES!E25,TABLA_23!$A$5:$U$1163,PANEL!$D$107,0) -> 519 | F25: =VLOOKUP(FORMATO_VALORES!F25,TABLA_23!$A$5:$U$1163,PANEL!$D$107,0) -> 286 | G25: =VLOOKUP(FORMATO_VALORES!G25,TABLA_23!$A$5:$U$1163,PANEL!$D$107,0) -> 1 | H25: =VLOOKUP(FORMATO_VALORES!H25,TABLA_23!$A$5:$U$1163,PANEL!$D$107,0) -> 2 | I25: =VLOOKUP(FORMATO_VALORES!I25,TABLA_23!$A$5:$U$1163,PANEL!$D$107,0) -> 34 | J25: =VLOOKUP(FORMATO_VALORES!J25,TABLA_23!$A$5:$U$1163,PANEL!$D$107,0) -> 205 | K25: =VLOOKUP(FORMATO_VALORES!K25,TABLA_23!$A$5:$U$1163,PANEL!$D$107,0) -> 200 | L25: =VLOOKUP(FORMATO_VALORES!L25,TABLA_23!$A$5:$U$1163,PANEL!$D$107,0) -> 23 | M25: =SUM(C25:G25) -> 864 | N25: =SUM(H25:L25) -> 464 | O25: =SUM(M25:N25) -> 1,328
A26: 2.2 | B26: Personas tamiz. reactivas a Hepatitis B | C26: =VLOOKUP(FORMATO_VALORES!C26,TABLA_23!$A$5:$U$1163,PANEL!$D$107,0) -> 0 | D26: =VLOOKUP(FORMATO_VALORES!D26,TABLA_23!$A$5:$U$1163,PANEL!$D$107,0) -> 0 | E26: =VLOOKUP(FORMATO_VALORES!E26,TABLA_23!$A$5:$U$1163,PANEL!$D$107,0) -> 0 | F26: =VLOOKUP(FORMATO_VALORES!F26,TABLA_23!$A$5:$U$1163,PANEL!$D$107,0) -> 1 | G26: =VLOOKUP(FORMATO_VALORES!G26,TABLA_23!$A$5:$U$1163,PANEL!$D$107,0) -> 0 | H26: =VLOOKUP(FORMATO_VALORES!H26,TABLA_23!$A$5:$U$1163,PANEL!$D$107,0) -> 0 | I26: =VLOOKUP(FORMATO_VALORES!I26,TABLA_23!$A$5:$U$1163,PANEL!$D$107,0) -> 0 | J26: =VLOOKUP(FORMATO_VALORES!J26,TABLA_23!$A$5:$U$1163,PANEL!$D$107,0) -> 0 | K26: =VLOOKUP(FORMATO_VALORES!K26,TABLA_23!$A$5:$U$1163,PANEL!$D$107,0) -> 1 | L26: =VLOOKUP(FORMATO_VALORES!L26,TABLA_23!$A$5:$U$1163,PANEL!$D$107,0) -> 0 | M26: =SUM(C26:G26) -> 1 | N26: =SUM(H26:L26) -> 1 | O26: =SUM(M26:N26) -> 2
A27: 2.3 | B27: Personas con diagnós. confirmado de Hepatitis B Crónica | C27: =VLOOKUP(FORMATO_VALORES!C27,TABLA_23!$A$5:$U$1163,PANEL!$D$107,0) -> 0 | D27: =VLOOKUP(FORMATO_VALORES!D27,TABLA_23!$A$5:$U$1163,PANEL!$D$107,0) -> 0 | E27: =VLOOKUP(FORMATO_VALORES!E27,TABLA_23!$A$5:$U$1163,PANEL!$D$107,0) -> 0 | F27: =VLOOKUP(FORMATO_VALORES!F27,TABLA_23!$A$5:$U$1163,PANEL!$D$107,0) -> 0 | G27: =VLOOKUP(FORMATO_VALORES!G27,TABLA_23!$A$5:$U$1163,PANEL!$D$107,0) -> 0 | H27: =VLOOKUP(FORMATO_VALORES!H27,TABLA_23!$A$5:$U$1163,PANEL!$D$107,0) -> 0 | I27: =VLOOKUP(FORMATO_VALORES!I27,TABLA_23!$A$5:$U$1163,PANEL!$D$107,0) -> 0 | J27: =VLOOKUP(FORMATO_VALORES!J27,TABLA_23!$A$5:$U$1163,PANEL!$D$107,0) -> 0 | K27: =VLOOKUP(FORMATO_VALORES!K27,TABLA_23!$A$5:$U$1163,PANEL!$D$107,0) -> 0 | L27: =VLOOKUP(FORMATO_VALORES!L27,TABLA_23!$A$5:$U$1163,PANEL!$D$107,0) -> 0 | M27: 0 | N27: 0 | O27: 0
A28: 2.4 | B28: Personas de pob. indígena tamizadas a Hepatitis B | M28: 0 | N28: 0 | O28: 0
A29: 2.5 | B29: Personas de pob. indígena tamizadas reactivas a Hepatitis B | M29: 0 | N29: 0 | O29: 0
A30: 2.6 | B30: Pob. indígena con diagnós. confirmado de Hepatitis B Crónica | M30: 0 | N30: 0 | O30: 0
A31: 2.7 | B31: Personas con diagnós. de hepatitis B - inician tratamiento (Incluye todas las poblaciones) | C31: =VLOOKUP(FORMATO_VALORES!C31,TABLA_23!$A$5:$U$1163,PANEL!$D$107,0) -> 0 | D31: =VLOOKUP(FORMATO_VALORES!D31,TABLA_23!$A$5:$U$1163,PANEL!$D$107,0) -> 0 | E31: =VLOOKUP(FORMATO_VALORES!E31,TABLA_23!$A$5:$U$1163,PANEL!$D$107,0) -> 0 | F31: =VLOOKUP(FORMATO_VALORES!F31,TABLA_23!$A$5:$U$1163,PANEL!$D$107,0) -> 0 | G31: =VLOOKUP(FORMATO_VALORES!G31,TABLA_23!$A$5:$U$1163,PANEL!$D$107,0) -> 0 | H31: =VLOOKUP(FORMATO_VALORES!H31,TABLA_23!$A$5:$U$1163,PANEL!$D$107,0) -> 0 | I31: =VLOOKUP(FORMATO_VALORES!I31,TABLA_23!$A$5:$U$1163,PANEL!$D$107,0) -> 0 | J31: =VLOOKUP(FORMATO_VALORES!J31,TABLA_23!$A$5:$U$1163,PANEL!$D$107,0) -> 0 | K31: =VLOOKUP(FORMATO_VALORES!K31,TABLA_23!$A$5:$U$1163,PANEL!$D$107,0) -> 0 | L31: =VLOOKUP(FORMATO_VALORES!L31,TABLA_23!$A$5:$U$1163,PANEL!$D$107,0) -> 0 | M31: 0 | N31: 0 | O31: 0
A32: 2.8 | B32: Personas con diagnós. de hepatitis B-con tratmiento anual completo (Incluye todas las poblaciones) | C32: =VLOOKUP(FORMATO_VALORES!C32,TABLA_23!$A$5:$U$1163,PANEL!$D$107,0) -> 0 | D32: =VLOOKUP(FORMATO_VALORES!D32,TABLA_23!$A$5:$U$1163,PANEL!$D$107,0) -> 0 | E32: =VLOOKUP(FORMATO_VALORES!E32,TABLA_23!$A$5:$U$1163,PANEL!$D$107,0) -> 0 | F32: =VLOOKUP(FORMATO_VALORES!F32,TABLA_23!$A$5:$U$1163,PANEL!$D$107,0) -> 0 | G32: =VLOOKUP(FORMATO_VALORES!G32,TABLA_23!$A$5:$U$1163,PANEL!$D$107,0) -> 0 | H32: =VLOOKUP(FORMATO_VALORES!H32,TABLA_23!$A$5:$U$1163,PANEL!$D$107,0) -> 0 | I32: =VLOOKUP(FORMATO_VALORES!I32,TABLA_23!$A$5:$U$1163,PANEL!$D$107,0) -> 0 | J32: =VLOOKUP(FORMATO_VALORES!J32,TABLA_23!$A$5:$U$1163,PANEL!$D$107,0) -> 0 | K32: =VLOOKUP(FORMATO_VALORES!K32,TABLA_23!$A$5:$U$1163,PANEL!$D$107,0) -> 0 | L32: =VLOOKUP(FORMATO_VALORES!L32,TABLA_23!$A$5:$U$1163,PANEL!$D$107,0) -> 0 | M32: 0 | N32: 0 | O32: 0
A34: 2A.- HEPATITIS C | C34: Femenino | H34: Masculino | M34: Total
C35: 01 - 11a | D35: 12 - 17a | E35: 18a - 29a | F35: 30a - 59a | G35: 60a más | H35: 01 - 11a | I35: 12 - 17a | J35: 18a - 29a | K35: 30 - 59a | L35: 60a+ | M35: F | N35: M | O35: Total
A36: 2A.1 | B36: Personas tamizadas a Hepatitis C | C36: =VLOOKUP(FORMATO_VALORES!C36,TABLA_23!$A$5:$U$1163,PANEL!$D$107,0) -> 0 | D36: =VLOOKUP(FORMATO_VALORES!D36,TABLA_23!$A$5:$U$1163,PANEL!$D$107,0) -> 0 | E36: =VLOOKUP(FORMATO_VALORES!E36,TABLA_23!$A$5:$U$1163,PANEL!$D$107,0) -> 0 | F36: =VLOOKUP(FORMATO_VALORES!F36,TABLA_23!$A$5:$U$1163,PANEL!$D$107,0) -> 0 | G36: =VLOOKUP(FORMATO_VALORES!G36,TABLA_23!$A$5:$U$1163,PANEL!$D$107,0) -> 0 | H36: =VLOOKUP(FORMATO_VALORES!H36,TABLA_23!$A$5:$U$1163,PANEL!$D$107,0) -> 0 | I36: =VLOOKUP(FORMATO_VALORES!I36,TABLA_23!$A$5:$U$1163,PANEL!$D$107,0) -> 0 | J36: =VLOOKUP(FORMATO_VALORES!J36,TABLA_23!$A$5:$U$1163,PANEL!$D$107,0) -> 1 | K36: =VLOOKUP(FORMATO_VALORES!K36,TABLA_23!$A$5:$U$1163,PANEL!$D$107,0) -> 0 | L36: =VLOOKUP(FORMATO_VALORES!L36,TABLA_23!$A$5:$U$1163,PANEL!$D$107,0) -> 0 | M36: =SUM(C36:G36) -> 0 | N36: =SUM(H36:L36) -> 1 | O36: =SUM(M36:N36) -> 1
A37: 2A.2 | B37: Personas tamizadas reactivas a Hepatitis C | C37: =VLOOKUP(FORMATO_VALORES!C37,TABLA_23!$A$5:$U$1163,PANEL!$D$107,0) -> 0 | D37: =VLOOKUP(FORMATO_VALORES!D37,TABLA_23!$A$5:$U$1163,PANEL!$D$107,0) -> 0 | E37: =VLOOKUP(FORMATO_VALORES!E37,TABLA_23!$A$5:$U$1163,PANEL!$D$107,0) -> 0 | F37: =VLOOKUP(FORMATO_VALORES!F37,TABLA_23!$A$5:$U$1163,PANEL!$D$107,0) -> 0 | G37: =VLOOKUP(FORMATO_VALORES!G37,TABLA_23!$A$5:$U$1163,PANEL!$D$107,0) -> 0 | H37: =VLOOKUP(FORMATO_VALORES!H37,TABLA_23!$A$5:$U$1163,PANEL!$D$107,0) -> 0 | I37: =VLOOKUP(FORMATO_VALORES!I37,TABLA_23!$A$5:$U$1163,PANEL!$D$107,0) -> 0 | J37: =VLOOKUP(FORMATO_VALORES!J37,TABLA_23!$A$5:$U$1163,PANEL!$D$107,0) -> 0 | K37: =VLOOKUP(FORMATO_VALORES!K37,TABLA_23!$A$5:$U$1163,PANEL!$D$107,0) -> 0 | L37: =VLOOKUP(FORMATO_VALORES!L37,TABLA_23!$A$5:$U$1163,PANEL!$D$107,0) -> 0 | M37: =SUM(C37:G37) -> 0 | N37: =SUM(H37:L37) -> 0 | O37: =SUM(M37:N37) -> 0
A38: 2A.3 | B38: Personas con diagnóstico confirmado de Hepatitis C Crónica | C38: =VLOOKUP(FORMATO_VALORES!C38,TABLA_23!$A$5:$U$1163,PANEL!$D$107,0) -> 0 | D38: =VLOOKUP(FORMATO_VALORES!D38,TABLA_23!$A$5:$U$1163,PANEL!$D$107,0) -> 0 | E38: =VLOOKUP(FORMATO_VALORES!E38,TABLA_23!$A$5:$U$1163,PANEL!$D$107,0) -> 0 | F38: =VLOOKUP(FORMATO_VALORES!F38,TABLA_23!$A$5:$U$1163,PANEL!$D$107,0) -> 0 | G38: =VLOOKUP(FORMATO_VALORES!G38,TABLA_23!$A$5:$U$1163,PANEL!$D$107,0) -> 0 | H38: =VLOOKUP(FORMATO_VALORES!H38,TABLA_23!$A$5:$U$1163,PANEL!$D$107,0) -> 0 | I38: =VLOOKUP(FORMATO_VALORES!I38,TABLA_23!$A$5:$U$1163,PANEL!$D$107,0) -> 0 | J38: =VLOOKUP(FORMATO_VALORES!J38,TABLA_23!$A$5:$U$1163,PANEL!$D$107,0) -> 0 | K38: =VLOOKUP(FORMATO_VALORES!K38,TABLA_23!$A$5:$U$1163,PANEL!$D$107,0) -> 0 | L38: =VLOOKUP(FORMATO_VALORES!L38,TABLA_23!$A$5:$U$1163,PANEL!$D$107,0) -> 0 | M38: 0 | N38: 0 | O38: 0
A39: 2A.4 | B39: Personas con diagnóstico de hepatitis C - inician tratamiento | C39: =VLOOKUP(FORMATO_VALORES!C39,TABLA_23!$A$5:$U$1163,PANEL!$D$107,0) -> 0 | D39: =VLOOKUP(FORMATO_VALORES!D39,TABLA_23!$A$5:$U$1163,PANEL!$D$107,0) -> 0 | E39: =VLOOKUP(FORMATO_VALORES!E39,TABLA_23!$A$5:$U$1163,PANEL!$D$107,0) -> 0 | F39: =VLOOKUP(FORMATO_VALORES!F39,TABLA_23!$A$5:$U$1163,PANEL!$D$107,0) -> 0 | G39: =VLOOKUP(FORMATO_VALORES!G39,TABLA_23!$A$5:$U$1163,PANEL!$D$107,0) -> 0 | H39: =VLOOKUP(FORMATO_VALORES!H39,TABLA_23!$A$5:$U$1163,PANEL!$D$107,0) -> 0 | I39: =VLOOKUP(FORMATO_VALORES!I39,TABLA_23!$A$5:$U$1163,PANEL!$D$107,0) -> 0 | J39: =VLOOKUP(FORMATO_VALORES!J39,TABLA_23!$A$5:$U$1163,PANEL!$D$107,0) -> 0 | K39: =VLOOKUP(FORMATO_VALORES!K39,TABLA_23!$A$5:$U$1163,PANEL!$D$107,0) -> 0 | L39: =VLOOKUP(FORMATO_VALORES!L39,TABLA_23!$A$5:$U$1163,PANEL!$D$107,0) -> 0 | M39: 0 | N39: 0 | O39: 0
A40: 2A.5 | B40: Personas con diagnóstico de hepatitis C - con tratmiento completo | C40: =VLOOKUP(FORMATO_VALORES!C40,TABLA_23!$A$5:$U$1163,PANEL!$D$107,0) -> 0 | D40: =VLOOKUP(FORMATO_VALORES!D40,TABLA_23!$A$5:$U$1163,PANEL!$D$107,0) -> 0 | E40: =VLOOKUP(FORMATO_VALORES!E40,TABLA_23!$A$5:$U$1163,PANEL!$D$107,0) -> 0 | F40: =VLOOKUP(FORMATO_VALORES!F40,TABLA_23!$A$5:$U$1163,PANEL!$D$107,0) -> 0 | G40: =VLOOKUP(FORMATO_VALORES!G40,TABLA_23!$A$5:$U$1163,PANEL!$D$107,0) -> 0 | H40: =VLOOKUP(FORMATO_VALORES!H40,TABLA_23!$A$5:$U$1163,PANEL!$D$107,0) -> 0 | I40: =VLOOKUP(FORMATO_VALORES!I40,TABLA_23!$A$5:$U$1163,PANEL!$D$107,0) -> 0 | J40: =VLOOKUP(FORMATO_VALORES!J40,TABLA_23!$A$5:$U$1163,PANEL!$D$107,0) -> 0 | K40: =VLOOKUP(FORMATO_VALORES!K40,TABLA_23!$A$5:$U$1163,PANEL!$D$107,0) -> 0 | L40: =VLOOKUP(FORMATO_VALORES!L40,TABLA_23!$A$5:$U$1163,PANEL!$D$107,0) -> 0 | M40: 0 | N40: 0 | O40: 0
A41: 2A.6 | B41: Personas con diagnóstico de Hepatitis C curadas | C41: =VLOOKUP(FORMATO_VALORES!C41,TABLA_23!$A$5:$U$1163,PANEL!$D$107,0) -> 0 | D41: =VLOOKUP(FORMATO_VALORES!D41,TABLA_23!$A$5:$U$1163,PANEL!$D$107,0) -> 0 | E41: =VLOOKUP(FORMATO_VALORES!E41,TABLA_23!$A$5:$U$1163,PANEL!$D$107,0) -> 0 | F41: =VLOOKUP(FORMATO_VALORES!F41,TABLA_23!$A$5:$U$1163,PANEL!$D$107,0) -> 0 | G41: =VLOOKUP(FORMATO_VALORES!G41,TABLA_23!$A$5:$U$1163,PANEL!$D$107,0) -> 0 | H41: =VLOOKUP(FORMATO_VALORES!H41,TABLA_23!$A$5:$U$1163,PANEL!$D$107,0) -> 0 | I41: =VLOOKUP(FORMATO_VALORES!I41,TABLA_23!$A$5:$U$1163,PANEL!$D$107,0) -> 0 | J41: =VLOOKUP(FORMATO_VALORES!J41,TABLA_23!$A$5:$U$1163,PANEL!$D$107,0) -> 0 | K41: =VLOOKUP(FORMATO_VALORES!K41,TABLA_23!$A$5:$U$1163,PANEL!$D$107,0) -> 0 | L41: =VLOOKUP(FORMATO_VALORES!L41,TABLA_23!$A$5:$U$1163,PANEL!$D$107,0) -> 0 | M41: 0 | N41: 0 | O41: 0
A43: 3.- POBLACION GENERAL: TAMIZAJE VIH | C43: Femenino | H43: Masculino | M43: Total
C44: 01 - 11a | D44: 12 - 17a | E44: 18a - 29a | F44: 30 - 59a | G44: 60a más | H44: 01 - 11a | I44: 12 - 17a | J44: 18a - 29a | K44: 30 - 59a | L44: 60a + | M44: F | N44: M | O44: Total
A45: 3.1 | B45: Personas tamiz. para VIH (excepto gest, pob. clave, TBC e indígena) | C45: =VLOOKUP(FORMATO_VALORES!C45,TABLA_23!$A$5:$U$1163,PANEL!$D$107,0) -> 1 | D45: =VLOOKUP(FORMATO_VALORES!D45,TABLA_23!$A$5:$U$1163,PANEL!$D$107,0) -> 115 | E45: =VLOOKUP(FORMATO_VALORES!E45,TABLA_23!$A$5:$U$1163,PANEL!$D$107,0) -> 1320 | F45: =VLOOKUP(FORMATO_VALORES!F45,TABLA_23!$A$5:$U$1163,PANEL!$D$107,0) -> 933 | G45: =VLOOKUP(FORMATO_VALORES!G45,TABLA_23!$A$5:$U$1163,PANEL!$D$107,0) -> 35 | H45: =VLOOKUP(FORMATO_VALORES!H45,TABLA_23!$A$5:$U$1163,PANEL!$D$107,0) -> 6 | I45: =VLOOKUP(FORMATO_VALORES!I45,TABLA_23!$A$5:$U$1163,PANEL!$D$107,0) -> 114 | J45: =VLOOKUP(FORMATO_VALORES!J45,TABLA_23!$A$5:$U$1163,PANEL!$D$107,0) -> 1557 | K45: =VLOOKUP(FORMATO_VALORES!K45,TABLA_23!$A$5:$U$1163,PANEL!$D$107,0) -> 1824 | L45: =VLOOKUP(FORMATO_VALORES!L45,TABLA_23!$A$5:$U$1163,PANEL!$D$107,0) -> 133 | M45: =SUM(C45:G45) -> 2,404 | N45: =SUM(H45:L45) -> 3,634 | O45: =SUM(M45:N45) -> 6,038
A46: 3.2 | B46: Personas tamiz. para VIH resultado reactivo (excepto gest, pob. clave,TBC e indígena) | C46: =VLOOKUP(FORMATO_VALORES!C46,TABLA_23!$A$5:$U$1163,PANEL!$D$107,0) -> 0 | D46: =VLOOKUP(FORMATO_VALORES!D46,TABLA_23!$A$5:$U$1163,PANEL!$D$107,0) -> 0 | E46: =VLOOKUP(FORMATO_VALORES!E46,TABLA_23!$A$5:$U$1163,PANEL!$D$107,0) -> 1 | F46: =VLOOKUP(FORMATO_VALORES!F46,TABLA_23!$A$5:$U$1163,PANEL!$D$107,0) -> 0 | G46: =VLOOKUP(FORMATO_VALORES!G46,TABLA_23!$A$5:$U$1163,PANEL!$D$107,0) -> 0 | H46: =VLOOKUP(FORMATO_VALORES!H46,TABLA_23!$A$5:$U$1163,PANEL!$D$107,0) -> 0 | I46: =VLOOKUP(FORMATO_VALORES!I46,TABLA_23!$A$5:$U$1163,PANEL!$D$107,0) -> 0 | J46: =VLOOKUP(FORMATO_VALORES!J46,TABLA_23!$A$5:$U$1163,PANEL!$D$107,0) -> 4 | K46: =VLOOKUP(FORMATO_VALORES!K46,TABLA_23!$A$5:$U$1163,PANEL!$D$107,0) -> 10 | L46: =VLOOKUP(FORMATO_VALORES!L46,TABLA_23!$A$5:$U$1163,PANEL!$D$107,0) -> 1 | M46: =SUM(C46:G46) -> 1 | N46: =SUM(H46:L46) -> 15 | O46: =SUM(M46:N46) -> 16
A47: 3.3 | B47: Personas con TB tamizadas para VIH | C47: =VLOOKUP(FORMATO_VALORES!C47,TABLA_23!$A$5:$U$1163,PANEL!$D$107,0) -> 0 | D47: =VLOOKUP(FORMATO_VALORES!D47,TABLA_23!$A$5:$U$1163,PANEL!$D$107,0) -> 0 | E47: =VLOOKUP(FORMATO_VALORES!E47,TABLA_23!$A$5:$U$1163,PANEL!$D$107,0) -> 0 | F47: =VLOOKUP(FORMATO_VALORES!F47,TABLA_23!$A$5:$U$1163,PANEL!$D$107,0) -> 0 | G47: =VLOOKUP(FORMATO_VALORES!G47,TABLA_23!$A$5:$U$1163,PANEL!$D$107,0) -> 0 | H47: =VLOOKUP(FORMATO_VALORES!H47,TABLA_23!$A$5:$U$1163,PANEL!$D$107,0) -> 0 | I47: =VLOOKUP(FORMATO_VALORES!I47,TABLA_23!$A$5:$U$1163,PANEL!$D$107,0) -> 0 | J47: =VLOOKUP(FORMATO_VALORES!J47,TABLA_23!$A$5:$U$1163,PANEL!$D$107,0) -> 0 | K47: =VLOOKUP(FORMATO_VALORES!K47,TABLA_23!$A$5:$U$1163,PANEL!$D$107,0) -> 0 | L47: =VLOOKUP(FORMATO_VALORES!L47,TABLA_23!$A$5:$U$1163,PANEL!$D$107,0) -> 0 | M47: 0 | N47: 0 | O47: 0
A48: 3.4 | B48: Personas con TB tamiz. reactivas para VIH | C48: =VLOOKUP(FORMATO_VALORES!C48,TABLA_23!$A$5:$U$1163,PANEL!$D$107,0) -> 0 | D48: =VLOOKUP(FORMATO_VALORES!D48,TABLA_23!$A$5:$U$1163,PANEL!$D$107,0) -> 0 | E48: =VLOOKUP(FORMATO_VALORES!E48,TABLA_23!$A$5:$U$1163,PANEL!$D$107,0) -> 0 | F48: =VLOOKUP(FORMATO_VALORES!F48,TABLA_23!$A$5:$U$1163,PANEL!$D$107,0) -> 0 | G48: =VLOOKUP(FORMATO_VALORES!G48,TABLA_23!$A$5:$U$1163,PANEL!$D$107,0) -> 0 | H48: =VLOOKUP(FORMATO_VALORES!H48,TABLA_23!$A$5:$U$1163,PANEL!$D$107,0) -> 0 | I48: =VLOOKUP(FORMATO_VALORES!I48,TABLA_23!$A$5:$U$1163,PANEL!$D$107,0) -> 0 | J48: =VLOOKUP(FORMATO_VALORES!J48,TABLA_23!$A$5:$U$1163,PANEL!$D$107,0) -> 0 | K48: =VLOOKUP(FORMATO_VALORES!K48,TABLA_23!$A$5:$U$1163,PANEL!$D$107,0) -> 0 | L48: =VLOOKUP(FORMATO_VALORES!L48,TABLA_23!$A$5:$U$1163,PANEL!$D$107,0) -> 0 | M48: 0 | N48: 0 | O48: 0
A49: 3.5 | B49: Personas de pob. indígena tamiz. para VIH | M49: 0 | N49: 0 | O49: 0
A50: 3.6 | B50: Personas de pob. indígena tamiz. para VIH resultado reactivo | M50: 0 | N50: 0 | O50: 0
A51: 3.7 | B51: Personas PPL tamiz. para VIH | C51: =VLOOKUP(FORMATO_VALORES!C51,TABLA_23!$A$5:$U$1163,PANEL!$D$107,0) -> 0 | D51: =VLOOKUP(FORMATO_VALORES!D51,TABLA_23!$A$5:$U$1163,PANEL!$D$107,0) -> 0 | E51: =VLOOKUP(FORMATO_VALORES!E51,TABLA_23!$A$5:$U$1163,PANEL!$D$107,0) -> 0 | F51: =VLOOKUP(FORMATO_VALORES!F51,TABLA_23!$A$5:$U$1163,PANEL!$D$107,0) -> 0 | G51: =VLOOKUP(FORMATO_VALORES!G51,TABLA_23!$A$5:$U$1163,PANEL!$D$107,0) -> 0 | H51: =VLOOKUP(FORMATO_VALORES!H51,TABLA_23!$A$5:$U$1163,PANEL!$D$107,0) -> 0 | I51: =VLOOKUP(FORMATO_VALORES!I51,TABLA_23!$A$5:$U$1163,PANEL!$D$107,0) -> 0 | J51: =VLOOKUP(FORMATO_VALORES!J51,TABLA_23!$A$5:$U$1163,PANEL!$D$107,0) -> 0 | K51: =VLOOKUP(FORMATO_VALORES!K51,TABLA_23!$A$5:$U$1163,PANEL!$D$107,0) -> 0 | L51: =VLOOKUP(FORMATO_VALORES!L51,TABLA_23!$A$5:$U$1163,PANEL!$D$107,0) -> 0 | M51: 0 | N51: 0 | O51: 0
A52: 3.8 | B52: Personas PPL tamiz. reactivas para VIH | C52: =VLOOKUP(FORMATO_VALORES!C52,TABLA_23!$A$5:$U$1163,PANEL!$D$107,0) -> 0 | D52: =VLOOKUP(FORMATO_VALORES!D52,TABLA_23!$A$5:$U$1163,PANEL!$D$107,0) -> 0 | E52: =VLOOKUP(FORMATO_VALORES!E52,TABLA_23!$A$5:$U$1163,PANEL!$D$107,0) -> 0 | F52: =VLOOKUP(FORMATO_VALORES!F52,TABLA_23!$A$5:$U$1163,PANEL!$D$107,0) -> 0 | G52: =VLOOKUP(FORMATO_VALORES!G52,TABLA_23!$A$5:$U$1163,PANEL!$D$107,0) -> 0 | H52: =VLOOKUP(FORMATO_VALORES!H52,TABLA_23!$A$5:$U$1163,PANEL!$D$107,0) -> 0 | I52: =VLOOKUP(FORMATO_VALORES!I52,TABLA_23!$A$5:$U$1163,PANEL!$D$107,0) -> 0 | J52: =VLOOKUP(FORMATO_VALORES!J52,TABLA_23!$A$5:$U$1163,PANEL!$D$107,0) -> 0 | K52: =VLOOKUP(FORMATO_VALORES!K52,TABLA_23!$A$5:$U$1163,PANEL!$D$107,0) -> 0 | L52: =VLOOKUP(FORMATO_VALORES!L52,TABLA_23!$A$5:$U$1163,PANEL!$D$107,0) -> 0 | M52: 0 | N52: 0 | O52: 0
A53: 3.9 | B53: Personas con VIH (todas las poblaciones) | C53: =VLOOKUP(FORMATO_VALORES!C53,TABLA_23!$A$5:$U$1163,PANEL!$D$107,0) -> 0 | D53: =VLOOKUP(FORMATO_VALORES!D53,TABLA_23!$A$5:$U$1163,PANEL!$D$107,0) -> 0 | E53: =VLOOKUP(FORMATO_VALORES!E53,TABLA_23!$A$5:$U$1163,PANEL!$D$107,0) -> 3 | F53: =VLOOKUP(FORMATO_VALORES!F53,TABLA_23!$A$5:$U$1163,PANEL!$D$107,0) -> 4 | G53: =VLOOKUP(FORMATO_VALORES!G53,TABLA_23!$A$5:$U$1163,PANEL!$D$107,0) -> 1 | H53: =VLOOKUP(FORMATO_VALORES!H53,TABLA_23!$A$5:$U$1163,PANEL!$D$107,0) -> 0 | I53: =VLOOKUP(FORMATO_VALORES!I53,TABLA_23!$A$5:$U$1163,PANEL!$D$107,0) -> 0 | J53: =VLOOKUP(FORMATO_VALORES!J53,TABLA_23!$A$5:$U$1163,PANEL!$D$107,0) -> 11 | K53: =VLOOKUP(FORMATO_VALORES!K53,TABLA_23!$A$5:$U$1163,PANEL!$D$107,0) -> 14 | L53: =VLOOKUP(FORMATO_VALORES!L53,TABLA_23!$A$5:$U$1163,PANEL!$D$107,0) -> 1 | M53: 8 | N53: 26 | O53: 34
A55: 4.- EXPOSICION A VIH/HEPATITIS B | C55: Femenino | H55: Masculino | M55: Total
C56: 01 - 11a | D56: 12 - 17a | E56: 18a - 29a | F56: 30 - 59a | G56: 60a + | H56: 01 - 11a | I56: 12a - 17a | J56: 18a - 29a | K56: 30 - 59a | L56: 60a + | M56: F | N56: M | O56: Total
A57: 4.1 | B57: Personas que sufrieron exposición ocupacional al VIH | E57: =VLOOKUP(FORMATO_VALORES!E57,TABLA_23!$A$5:$U$1163,PANEL!$D$107,0) -> 0 | F57: =VLOOKUP(FORMATO_VALORES!F57,TABLA_23!$A$5:$U$1163,PANEL!$D$107,0) -> 0 | G57: =VLOOKUP(FORMATO_VALORES!G57,TABLA_23!$A$5:$U$1163,PANEL!$D$107,0) -> 0 | J57: =VLOOKUP(FORMATO_VALORES!J57,TABLA_23!$A$5:$U$1163,PANEL!$D$107,0) -> 0 | K57: =VLOOKUP(FORMATO_VALORES!K57,TABLA_23!$A$5:$U$1163,PANEL!$D$107,0) -> 0 | L57: =VLOOKUP(FORMATO_VALORES!L57,TABLA_23!$A$5:$U$1163,PANEL!$D$107,0) -> 0 | M57: =SUM(E57:G57) -> 0 | N57: =SUM(J57:L57) -> 0 | O57: =SUM(M57:N57) -> 0
A58: 4.2 | B58: Personas que sufrieron exposición ocupacional al VIH y reciben profilaxis ARV | E58: =VLOOKUP(FORMATO_VALORES!E58,TABLA_23!$A$5:$U$1163,PANEL!$D$107,0) -> 0 | F58: =VLOOKUP(FORMATO_VALORES!F58,TABLA_23!$A$5:$U$1163,PANEL!$D$107,0) -> 0 | G58: =VLOOKUP(FORMATO_VALORES!G58,TABLA_23!$A$5:$U$1163,PANEL!$D$107,0) -> 0 | J58: =VLOOKUP(FORMATO_VALORES!J58,TABLA_23!$A$5:$U$1163,PANEL!$D$107,0) -> 0 | K58: =VLOOKUP(FORMATO_VALORES!K58,TABLA_23!$A$5:$U$1163,PANEL!$D$107,0) -> 0 | L58: =VLOOKUP(FORMATO_VALORES!L58,TABLA_23!$A$5:$U$1163,PANEL!$D$107,0) -> 0 | M58: =SUM(C58:G58) -> 0 | N58: =SUM(H58:L58) -> 0 | O58: =SUM(M58:N58) -> 0
A59: 4.3 | B59: Personas expuestas a VIH por exposición no ocupacional | C59: =VLOOKUP(FORMATO_VALORES!C59,TABLA_23!$A$5:$U$1163,PANEL!$D$107,0) -> 0 | D59: =VLOOKUP(FORMATO_VALORES!D59,TABLA_23!$A$5:$U$1163,PANEL!$D$107,0) -> 0 | E59: =VLOOKUP(FORMATO_VALORES!E59,TABLA_23!$A$5:$U$1163,PANEL!$D$107,0) -> 0 | F59: =VLOOKUP(FORMATO_VALORES!F59,TABLA_23!$A$5:$U$1163,PANEL!$D$107,0) -> 0 | G59: =VLOOKUP(FORMATO_VALORES!G59,TABLA_23!$A$5:$U$1163,PANEL!$D$107,0) -> 0 | H59: =VLOOKUP(FORMATO_VALORES!H59,TABLA_23!$A$5:$U$1163,PANEL!$D$107,0) -> 0 | I59: =VLOOKUP(FORMATO_VALORES!I59,TABLA_23!$A$5:$U$1163,PANEL!$D$107,0) -> 0 | J59: =VLOOKUP(FORMATO_VALORES!J59,TABLA_23!$A$5:$U$1163,PANEL!$D$107,0) -> 0 | K59: =VLOOKUP(FORMATO_VALORES!K59,TABLA_23!$A$5:$U$1163,PANEL!$D$107,0) -> 0 | L59: =VLOOKUP(FORMATO_VALORES!L59,TABLA_23!$A$5:$U$1163,PANEL!$D$107,0) -> 0 | M59: =SUM(C59:G59) -> 0 | N59: =SUM(H59:L59) -> 0 | O59: =SUM(M59:N59) -> 0
A60: 4.4 | B60: Personas expuestas a VIH por exposición no ocupacional y reciben profilaxis ARV | C60: =VLOOKUP(FORMATO_VALORES!C60,TABLA_23!$A$5:$U$1163,PANEL!$D$107,0) -> 0 | D60: =VLOOKUP(FORMATO_VALORES!D60,TABLA_23!$A$5:$U$1163,PANEL!$D$107,0) -> 0 | E60: =VLOOKUP(FORMATO_VALORES!E60,TABLA_23!$A$5:$U$1163,PANEL!$D$107,0) -> 0 | F60: =VLOOKUP(FORMATO_VALORES!F60,TABLA_23!$A$5:$U$1163,PANEL!$D$107,0) -> 0 | G60: =VLOOKUP(FORMATO_VALORES!G60,TABLA_23!$A$5:$U$1163,PANEL!$D$107,0) -> 0 | H60: =VLOOKUP(FORMATO_VALORES!H60,TABLA_23!$A$5:$U$1163,PANEL!$D$107,0) -> 0 | I60: =VLOOKUP(FORMATO_VALORES!I60,TABLA_23!$A$5:$U$1163,PANEL!$D$107,0) -> 0 | J60: =VLOOKUP(FORMATO_VALORES!J60,TABLA_23!$A$5:$U$1163,PANEL!$D$107,0) -> 0 | K60: =VLOOKUP(FORMATO_VALORES!K60,TABLA_23!$A$5:$U$1163,PANEL!$D$107,0) -> 0 | L60: =VLOOKUP(FORMATO_VALORES!L60,TABLA_23!$A$5:$U$1163,PANEL!$D$107,0) -> 0 | M60: 0 | N60: 0 | O60: 0
A61: 4.5 | B61: Personas con diagnóstico de VIH por exposición ocupacional | E61: =VLOOKUP(FORMATO_VALORES!E61,TABLA_23!$A$5:$U$1163,PANEL!$D$107,0) -> 0 | F61: =VLOOKUP(FORMATO_VALORES!F61,TABLA_23!$A$5:$U$1163,PANEL!$D$107,0) -> 0 | G61: =VLOOKUP(FORMATO_VALORES!G61,TABLA_23!$A$5:$U$1163,PANEL!$D$107,0) -> 0 | J61: =VLOOKUP(FORMATO_VALORES!J61,TABLA_23!$A$5:$U$1163,PANEL!$D$107,0) -> 0 | K61: =VLOOKUP(FORMATO_VALORES!K61,TABLA_23!$A$5:$U$1163,PANEL!$D$107,0) -> 0 | L61: =VLOOKUP(FORMATO_VALORES!L61,TABLA_23!$A$5:$U$1163,PANEL!$D$107,0) -> 0 | M61: 0 | N61: 0 | O61: 0
A62: 4.6 | B62: Personas con diagnóstico de ITS por exposición no ocupacional | C62: =VLOOKUP(FORMATO_VALORES!C62,TABLA_23!$A$5:$U$1163,PANEL!$D$107,0) -> 0 | D62: =VLOOKUP(FORMATO_VALORES!D62,TABLA_23!$A$5:$U$1163,PANEL!$D$107,0) -> 0 | E62: =VLOOKUP(FORMATO_VALORES!E62,TABLA_23!$A$5:$U$1163,PANEL!$D$107,0) -> 0 | F62: =VLOOKUP(FORMATO_VALORES!F62,TABLA_23!$A$5:$U$1163,PANEL!$D$107,0) -> 0 | G62: =VLOOKUP(FORMATO_VALORES!G62,TABLA_23!$A$5:$U$1163,PANEL!$D$107,0) -> 0 | H62: =VLOOKUP(FORMATO_VALORES!H62,TABLA_23!$A$5:$U$1163,PANEL!$D$107,0) -> 0 | I62: =VLOOKUP(FORMATO_VALORES!I62,TABLA_23!$A$5:$U$1163,PANEL!$D$107,0) -> 0 | J62: =VLOOKUP(FORMATO_VALORES!J62,TABLA_23!$A$5:$U$1163,PANEL!$D$107,0) -> 0 | K62: =VLOOKUP(FORMATO_VALORES!K62,TABLA_23!$A$5:$U$1163,PANEL!$D$107,0) -> 0 | L62: =VLOOKUP(FORMATO_VALORES!L62,TABLA_23!$A$5:$U$1163,PANEL!$D$107,0) -> 0 | M62: 0 | N62: 0 | O62: 0
A63: 4.7 | B63: Personas con diagnóstico de VIH por exposición no ocupacional | C63: =VLOOKUP(FORMATO_VALORES!C63,TABLA_23!$A$5:$U$1163,PANEL!$D$107,0) -> 0 | D63: =VLOOKUP(FORMATO_VALORES!D63,TABLA_23!$A$5:$U$1163,PANEL!$D$107,0) -> 0 | E63: =VLOOKUP(FORMATO_VALORES!E63,TABLA_23!$A$5:$U$1163,PANEL!$D$107,0) -> 0 | F63: =VLOOKUP(FORMATO_VALORES!F63,TABLA_23!$A$5:$U$1163,PANEL!$D$107,0) -> 0 | G63: =VLOOKUP(FORMATO_VALORES!G63,TABLA_23!$A$5:$U$1163,PANEL!$D$107,0) -> 0 | H63: =VLOOKUP(FORMATO_VALORES!H63,TABLA_23!$A$5:$U$1163,PANEL!$D$107,0) -> 0 | I63: =VLOOKUP(FORMATO_VALORES!I63,TABLA_23!$A$5:$U$1163,PANEL!$D$107,0) -> 0 | J63: =VLOOKUP(FORMATO_VALORES!J63,TABLA_23!$A$5:$U$1163,PANEL!$D$107,0) -> 0 | K63: =VLOOKUP(FORMATO_VALORES!K63,TABLA_23!$A$5:$U$1163,PANEL!$D$107,0) -> 0 | L63: =VLOOKUP(FORMATO_VALORES!L63,TABLA_23!$A$5:$U$1163,PANEL!$D$107,0) -> 0 | M63: 0 | N63: 0 | O63: 0
A64: 4.8 | B64: Personas que sufrieron exposición ocupacional a Hepatitis B | E64: =VLOOKUP(FORMATO_VALORES!E64,TABLA_23!$A$5:$U$1163,PANEL!$D$107,0) -> 0 | F64: =VLOOKUP(FORMATO_VALORES!F64,TABLA_23!$A$5:$U$1163,PANEL!$D$107,0) -> 0 | G64: =VLOOKUP(FORMATO_VALORES!G64,TABLA_23!$A$5:$U$1163,PANEL!$D$107,0) -> 0 | J64: =VLOOKUP(FORMATO_VALORES!J64,TABLA_23!$A$5:$U$1163,PANEL!$D$107,0) -> 0 | K64: =VLOOKUP(FORMATO_VALORES!K64,TABLA_23!$A$5:$U$1163,PANEL!$D$107,0) -> 0 | L64: =VLOOKUP(FORMATO_VALORES!L64,TABLA_23!$A$5:$U$1163,PANEL!$D$107,0) -> 0 | M64: =SUM(E64:G64) -> 0 | N64: =SUM(J64:L64) -> 0 | O64: 0
A65: 4.9 | B65: Personas que sufrieron exposición ocupacional a Hepatitis B y no fueron previamente vacunados. | E65: =VLOOKUP(FORMATO_VALORES!E65,TABLA_23!$A$5:$U$1163,PANEL!$D$107,0) -> 0 | F65: =VLOOKUP(FORMATO_VALORES!F65,TABLA_23!$A$5:$U$1163,PANEL!$D$107,0) -> 0 | G65: =VLOOKUP(FORMATO_VALORES!G65,TABLA_23!$A$5:$U$1163,PANEL!$D$107,0) -> 0 | J65: =VLOOKUP(FORMATO_VALORES!J65,TABLA_23!$A$5:$U$1163,PANEL!$D$107,0) -> 0 | K65: =VLOOKUP(FORMATO_VALORES!K65,TABLA_23!$A$5:$U$1163,PANEL!$D$107,0) -> 0 | L65: =VLOOKUP(FORMATO_VALORES!L65,TABLA_23!$A$5:$U$1163,PANEL!$D$107,0) -> 0 | M65: =SUM(E65:G65) -> 0 | N65: =SUM(J65:L65) -> 0 | O65: 0
A67: 5.- EXPOSICION A VIH / HEPATITIS B (VIOLENCIA SEXUAL) | C67: Femenino | H67: Masculino | M67: Total
C68: 01 - 11a | D68: 12 - 17a | E68: 18a - 29a | F68: 30 - 59a | G68: 60a + | H68: 01 - 11a | I68: 12a - 17a | J68: 18a - 29a | K68: 30 - 59a | L68: 60a + | M68: F | N68: M | O68: Total
A69: 5.1 | B69: Personas con exposición al VIH por violencia sexual que reciben profilaxis ARV | C69: =VLOOKUP(FORMATO_VALORES!C69,TABLA_23!$A$5:$U$1163,PANEL!$D$107,0) -> 0 | D69: =VLOOKUP(FORMATO_VALORES!D69,TABLA_23!$A$5:$U$1163,PANEL!$D$107,0) -> 0 | E69: =VLOOKUP(FORMATO_VALORES!E69,TABLA_23!$A$5:$U$1163,PANEL!$D$107,0) -> 0 | F69: =VLOOKUP(FORMATO_VALORES!F69,TABLA_23!$A$5:$U$1163,PANEL!$D$107,0) -> 0 | G69: =VLOOKUP(FORMATO_VALORES!G69,TABLA_23!$A$5:$U$1163,PANEL!$D$107,0) -> 0 | H69: =VLOOKUP(FORMATO_VALORES!H69,TABLA_23!$A$5:$U$1163,PANEL!$D$107,0) -> 0 | I69: =VLOOKUP(FORMATO_VALORES!I69,TABLA_23!$A$5:$U$1163,PANEL!$D$107,0) -> 0 | J69: =VLOOKUP(FORMATO_VALORES!J69,TABLA_23!$A$5:$U$1163,PANEL!$D$107,0) -> 0 | K69: =VLOOKUP(FORMATO_VALORES!K69,TABLA_23!$A$5:$U$1163,PANEL!$D$107,0) -> 0 | L69: =VLOOKUP(FORMATO_VALORES!L69,TABLA_23!$A$5:$U$1163,PANEL!$D$107,0) -> 0 | M69: =SUM(C69:G69) -> 0 | N69: =SUM(H69:L69) -> 0 | O69: =SUM(M69:N69) -> 0
A70: 5.2 | B70: Personas con exposición a ITS y hepatitis B por violencia sexual que reciben profilaxis | C70: =VLOOKUP(FORMATO_VALORES!C70,TABLA_23!$A$5:$U$1163,PANEL!$D$107,0) -> 0 | D70: =VLOOKUP(FORMATO_VALORES!D70,TABLA_23!$A$5:$U$1163,PANEL!$D$107,0) -> 0 | E70: =VLOOKUP(FORMATO_VALORES!E70,TABLA_23!$A$5:$U$1163,PANEL!$D$107,0) -> 0 | F70: =VLOOKUP(FORMATO_VALORES!F70,TABLA_23!$A$5:$U$1163,PANEL!$D$107,0) -> 0 | G70: =VLOOKUP(FORMATO_VALORES!G70,TABLA_23!$A$5:$U$1163,PANEL!$D$107,0) -> 0 | H70: =VLOOKUP(FORMATO_VALORES!H70,TABLA_23!$A$5:$U$1163,PANEL!$D$107,0) -> 0 | I70: =VLOOKUP(FORMATO_VALORES!I70,TABLA_23!$A$5:$U$1163,PANEL!$D$107,0) -> 0 | J70: =VLOOKUP(FORMATO_VALORES!J70,TABLA_23!$A$5:$U$1163,PANEL!$D$107,0) -> 0 | K70: =VLOOKUP(FORMATO_VALORES!K70,TABLA_23!$A$5:$U$1163,PANEL!$D$107,0) -> 0 | L70: =VLOOKUP(FORMATO_VALORES!L70,TABLA_23!$A$5:$U$1163,PANEL!$D$107,0) -> 0 | M70: =SUM(C70:G70) -> 0 | N70: =SUM(H70:L70) -> 0 | O70: 0
A71: 5.3 | B71: Personas con exposición al VIH por violencia sexual con diagnóstico de ITS (incluye hepatitis B) | C71: =VLOOKUP(FORMATO_VALORES!C71,TABLA_23!$A$5:$U$1163,PANEL!$D$107,0) -> 0 | D71: =VLOOKUP(FORMATO_VALORES!D71,TABLA_23!$A$5:$U$1163,PANEL!$D$107,0) -> 0 | E71: =VLOOKUP(FORMATO_VALORES!E71,TABLA_23!$A$5:$U$1163,PANEL!$D$107,0) -> 0 | F71: =VLOOKUP(FORMATO_VALORES!F71,TABLA_23!$A$5:$U$1163,PANEL!$D$107,0) -> 0 | G71: =VLOOKUP(FORMATO_VALORES!G71,TABLA_23!$A$5:$U$1163,PANEL!$D$107,0) -> 0 | H71: =VLOOKUP(FORMATO_VALORES!H71,TABLA_23!$A$5:$U$1163,PANEL!$D$107,0) -> 0 | I71: =VLOOKUP(FORMATO_VALORES!I71,TABLA_23!$A$5:$U$1163,PANEL!$D$107,0) -> 0 | J71: =VLOOKUP(FORMATO_VALORES!J71,TABLA_23!$A$5:$U$1163,PANEL!$D$107,0) -> 0 | K71: =VLOOKUP(FORMATO_VALORES!K71,TABLA_23!$A$5:$U$1163,PANEL!$D$107,0) -> 0 | L71: =VLOOKUP(FORMATO_VALORES!L71,TABLA_23!$A$5:$U$1163,PANEL!$D$107,0) -> 0 | M71: 0 | N71: 0 | O71: 0
A72: 5.4 | B72: Personas con exposición al VIH por violencia sexual con diagnóstico de VIH | C72: =VLOOKUP(FORMATO_VALORES!C72,TABLA_23!$A$5:$U$1163,PANEL!$D$107,0) -> 0 | D72: =VLOOKUP(FORMATO_VALORES!D72,TABLA_23!$A$5:$U$1163,PANEL!$D$107,0) -> 0 | E72: =VLOOKUP(FORMATO_VALORES!E72,TABLA_23!$A$5:$U$1163,PANEL!$D$107,0) -> 0 | F72: =VLOOKUP(FORMATO_VALORES!F72,TABLA_23!$A$5:$U$1163,PANEL!$D$107,0) -> 0 | G72: =VLOOKUP(FORMATO_VALORES!G72,TABLA_23!$A$5:$U$1163,PANEL!$D$107,0) -> 0 | H72: =VLOOKUP(FORMATO_VALORES!H72,TABLA_23!$A$5:$U$1163,PANEL!$D$107,0) -> 0 | I72: =VLOOKUP(FORMATO_VALORES!I72,TABLA_23!$A$5:$U$1163,PANEL!$D$107,0) -> 0 | J72: =VLOOKUP(FORMATO_VALORES!J72,TABLA_23!$A$5:$U$1163,PANEL!$D$107,0) -> 0 | K72: =VLOOKUP(FORMATO_VALORES!K72,TABLA_23!$A$5:$U$1163,PANEL!$D$107,0) -> 0 | L72: =VLOOKUP(FORMATO_VALORES!L72,TABLA_23!$A$5:$U$1163,PANEL!$D$107,0) -> 0 | M72: 0 | N72: 0 | O72: 0
A73: 5.5 | B73: Personas con exposición al VIH por violencia sexual con seguimiento completo | C73: =VLOOKUP(FORMATO_VALORES!C73,TABLA_23!$A$5:$U$1163,PANEL!$D$107,0) -> 0 | D73: =VLOOKUP(FORMATO_VALORES!D73,TABLA_23!$A$5:$U$1163,PANEL!$D$107,0) -> 0 | E73: =VLOOKUP(FORMATO_VALORES!E73,TABLA_23!$A$5:$U$1163,PANEL!$D$107,0) -> 0 | F73: =VLOOKUP(FORMATO_VALORES!F73,TABLA_23!$A$5:$U$1163,PANEL!$D$107,0) -> 0 | G73: =VLOOKUP(FORMATO_VALORES!G73,TABLA_23!$A$5:$U$1163,PANEL!$D$107,0) -> 0 | H73: =VLOOKUP(FORMATO_VALORES!H73,TABLA_23!$A$5:$U$1163,PANEL!$D$107,0) -> 0 | I73: =VLOOKUP(FORMATO_VALORES!I73,TABLA_23!$A$5:$U$1163,PANEL!$D$107,0) -> 0 | J73: =VLOOKUP(FORMATO_VALORES!J73,TABLA_23!$A$5:$U$1163,PANEL!$D$107,0) -> 0 | K73: =VLOOKUP(FORMATO_VALORES!K73,TABLA_23!$A$5:$U$1163,PANEL!$D$107,0) -> 0 | L73: =VLOOKUP(FORMATO_VALORES!L73,TABLA_23!$A$5:$U$1163,PANEL!$D$107,0) -> 0 | M73: 0 | N73: 0 | O73: 0
A75: 6.- PVVIH: ATENCIÓN INTEGRAL | C75: Femenino | H75: Masculino | M75: Total
C76: 01 - 11a | D76: 12 - 17a | E76: 18a - 29a | F76: 30 - 59a | G76: 60a más | H76: 01 - 11a | I76: 12a - 17a | J76: 18a - 29a | K76: 30 - 59a | L76: 60a + | M76: F | N76: M | O76: Total
A77: 6.1 | B77: PVVIH que inician Terapia preventiva con Cotrimoxazol (TPC) | C77: =VLOOKUP(FORMATO_VALORES!C77,TABLA_23!$A$5:$U$1163,PANEL!$D$107,0) -> 0 | D77: =VLOOKUP(FORMATO_VALORES!D77,TABLA_23!$A$5:$U$1163,PANEL!$D$107,0) -> 0 | E77: =VLOOKUP(FORMATO_VALORES!E77,TABLA_23!$A$5:$U$1163,PANEL!$D$107,0) -> 0 | F77: =VLOOKUP(FORMATO_VALORES!F77,TABLA_23!$A$5:$U$1163,PANEL!$D$107,0) -> 0 | G77: =VLOOKUP(FORMATO_VALORES!G77,TABLA_23!$A$5:$U$1163,PANEL!$D$107,0) -> 0 | H77: =VLOOKUP(FORMATO_VALORES!H77,TABLA_23!$A$5:$U$1163,PANEL!$D$107,0) -> 0 | I77: =VLOOKUP(FORMATO_VALORES!I77,TABLA_23!$A$5:$U$1163,PANEL!$D$107,0) -> 0 | J77: =VLOOKUP(FORMATO_VALORES!J77,TABLA_23!$A$5:$U$1163,PANEL!$D$107,0) -> 0 | K77: =VLOOKUP(FORMATO_VALORES!K77,TABLA_23!$A$5:$U$1163,PANEL!$D$107,0) -> 0 | L77: =VLOOKUP(FORMATO_VALORES!L77,TABLA_23!$A$5:$U$1163,PANEL!$D$107,0) -> 0 | M77: =SUM(C77:G77) -> 0 | N77: =SUM(H77:L77) -> 0 | O77: =SUM(M77:N77) -> 0
A78: 6.2 | B78: PVVIH que inician Terapia preventiva para tuberculosis (TPTB) | C78: =VLOOKUP(FORMATO_VALORES!C78,TABLA_23!$A$5:$U$1163,PANEL!$D$107,0) -> 0 | D78: =VLOOKUP(FORMATO_VALORES!D78,TABLA_23!$A$5:$U$1163,PANEL!$D$107,0) -> 0 | E78: =VLOOKUP(FORMATO_VALORES!E78,TABLA_23!$A$5:$U$1163,PANEL!$D$107,0) -> 0 | F78: =VLOOKUP(FORMATO_VALORES!F78,TABLA_23!$A$5:$U$1163,PANEL!$D$107,0) -> 0 | G78: =VLOOKUP(FORMATO_VALORES!G78,TABLA_23!$A$5:$U$1163,PANEL!$D$107,0) -> 0 | H78: =VLOOKUP(FORMATO_VALORES!H78,TABLA_23!$A$5:$U$1163,PANEL!$D$107,0) -> 0 | I78: =VLOOKUP(FORMATO_VALORES!I78,TABLA_23!$A$5:$U$1163,PANEL!$D$107,0) -> 0 | J78: =VLOOKUP(FORMATO_VALORES!J78,TABLA_23!$A$5:$U$1163,PANEL!$D$107,0) -> 0 | K78: =VLOOKUP(FORMATO_VALORES!K78,TABLA_23!$A$5:$U$1163,PANEL!$D$107,0) -> 0 | L78: =VLOOKUP(FORMATO_VALORES!L78,TABLA_23!$A$5:$U$1163,PANEL!$D$107,0) -> 0 | M78: =SUM(C78:G78) -> 0 | N78: =SUM(H78:L78) -> 0 | O78: 0
A79: 6.3 | B79: PVVIH que completan Terapia preventiva para tuberculosis (TPTB) | C79: =VLOOKUP(FORMATO_VALORES!C79,TABLA_23!$A$5:$U$1163,PANEL!$D$107,0) -> 0 | D79: =VLOOKUP(FORMATO_VALORES!D79,TABLA_23!$A$5:$U$1163,PANEL!$D$107,0) -> 0 | E79: =VLOOKUP(FORMATO_VALORES!E79,TABLA_23!$A$5:$U$1163,PANEL!$D$107,0) -> 0 | F79: =VLOOKUP(FORMATO_VALORES!F79,TABLA_23!$A$5:$U$1163,PANEL!$D$107,0) -> 0 | G79: =VLOOKUP(FORMATO_VALORES!G79,TABLA_23!$A$5:$U$1163,PANEL!$D$107,0) -> 0 | H79: =VLOOKUP(FORMATO_VALORES!H79,TABLA_23!$A$5:$U$1163,PANEL!$D$107,0) -> 0 | I79: =VLOOKUP(FORMATO_VALORES!I79,TABLA_23!$A$5:$U$1163,PANEL!$D$107,0) -> 0 | J79: =VLOOKUP(FORMATO_VALORES!J79,TABLA_23!$A$5:$U$1163,PANEL!$D$107,0) -> 0 | K79: =VLOOKUP(FORMATO_VALORES!K79,TABLA_23!$A$5:$U$1163,PANEL!$D$107,0) -> 0 | L79: =VLOOKUP(FORMATO_VALORES!L79,TABLA_23!$A$5:$U$1163,PANEL!$D$107,0) -> 0 | M79: 0 | N79: 0 | O79: 0
A80: 6.4 | B80: PVVIH con diagnóstico de TB | C80: =VLOOKUP(FORMATO_VALORES!C80,TABLA_23!$A$5:$U$1163,PANEL!$D$107,0) -> 0 | D80: =VLOOKUP(FORMATO_VALORES!D80,TABLA_23!$A$5:$U$1163,PANEL!$D$107,0) -> 0 | E80: =VLOOKUP(FORMATO_VALORES!E80,TABLA_23!$A$5:$U$1163,PANEL!$D$107,0) -> 0 | F80: =VLOOKUP(FORMATO_VALORES!F80,TABLA_23!$A$5:$U$1163,PANEL!$D$107,0) -> 0 | G80: =VLOOKUP(FORMATO_VALORES!G80,TABLA_23!$A$5:$U$1163,PANEL!$D$107,0) -> 0 | H80: =VLOOKUP(FORMATO_VALORES!H80,TABLA_23!$A$5:$U$1163,PANEL!$D$107,0) -> 0 | I80: =VLOOKUP(FORMATO_VALORES!I80,TABLA_23!$A$5:$U$1163,PANEL!$D$107,0) -> 0 | J80: =VLOOKUP(FORMATO_VALORES!J80,TABLA_23!$A$5:$U$1163,PANEL!$D$107,0) -> 1 | K80: =VLOOKUP(FORMATO_VALORES!K80,TABLA_23!$A$5:$U$1163,PANEL!$D$107,0) -> 0 | L80: =VLOOKUP(FORMATO_VALORES!L80,TABLA_23!$A$5:$U$1163,PANEL!$D$107,0) -> 0 | M80: 0 | N80: 1 | O80: 1
A81: 6.5 | B81: PVVIH con tamizaje para hepatitis B | C81: =VLOOKUP(FORMATO_VALORES!C81,TABLA_23!$A$5:$U$1163,PANEL!$D$107,0) -> 0 | D81: =VLOOKUP(FORMATO_VALORES!D81,TABLA_23!$A$5:$U$1163,PANEL!$D$107,0) -> 0 | E81: =VLOOKUP(FORMATO_VALORES!E81,TABLA_23!$A$5:$U$1163,PANEL!$D$107,0) -> 0 | F81: =VLOOKUP(FORMATO_VALORES!F81,TABLA_23!$A$5:$U$1163,PANEL!$D$107,0) -> 0 | G81: =VLOOKUP(FORMATO_VALORES!G81,TABLA_23!$A$5:$U$1163,PANEL!$D$107,0) -> 0 | H81: =VLOOKUP(FORMATO_VALORES!H81,TABLA_23!$A$5:$U$1163,PANEL!$D$107,0) -> 0 | I81: =VLOOKUP(FORMATO_VALORES!I81,TABLA_23!$A$5:$U$1163,PANEL!$D$107,0) -> 0 | J81: =VLOOKUP(FORMATO_VALORES!J81,TABLA_23!$A$5:$U$1163,PANEL!$D$107,0) -> 0 | K81: =VLOOKUP(FORMATO_VALORES!K81,TABLA_23!$A$5:$U$1163,PANEL!$D$107,0) -> 0 | L81: =VLOOKUP(FORMATO_VALORES!L81,TABLA_23!$A$5:$U$1163,PANEL!$D$107,0) -> 0 | M81: 0 | N81: 0 | O81: 0
A82: 6.6 | B82: PVVIH con hepatitis B crónica | C82: =VLOOKUP(FORMATO_VALORES!C82,TABLA_23!$A$5:$U$1163,PANEL!$D$107,0) -> 0 | D82: =VLOOKUP(FORMATO_VALORES!D82,TABLA_23!$A$5:$U$1163,PANEL!$D$107,0) -> 0 | E82: =VLOOKUP(FORMATO_VALORES!E82,TABLA_23!$A$5:$U$1163,PANEL!$D$107,0) -> 0 | F82: =VLOOKUP(FORMATO_VALORES!F82,TABLA_23!$A$5:$U$1163,PANEL!$D$107,0) -> 0 | G82: =VLOOKUP(FORMATO_VALORES!G82,TABLA_23!$A$5:$U$1163,PANEL!$D$107,0) -> 0 | H82: =VLOOKUP(FORMATO_VALORES!H82,TABLA_23!$A$5:$U$1163,PANEL!$D$107,0) -> 0 | I82: =VLOOKUP(FORMATO_VALORES!I82,TABLA_23!$A$5:$U$1163,PANEL!$D$107,0) -> 0 | J82: =VLOOKUP(FORMATO_VALORES!J82,TABLA_23!$A$5:$U$1163,PANEL!$D$107,0) -> 0 | K82: =VLOOKUP(FORMATO_VALORES!K82,TABLA_23!$A$5:$U$1163,PANEL!$D$107,0) -> 0 | L82: =VLOOKUP(FORMATO_VALORES!L82,TABLA_23!$A$5:$U$1163,PANEL!$D$107,0) -> 0 | M82: 0 | N82: 0 | O82: 0
A83: 6.7 | B83: PVVIH que completan vacunación de Hepatitis B | C83: =VLOOKUP(FORMATO_VALORES!C83,TABLA_23!$A$5:$U$1163,PANEL!$D$107,0) -> 0 | D83: =VLOOKUP(FORMATO_VALORES!D83,TABLA_23!$A$5:$U$1163,PANEL!$D$107,0) -> 0 | E83: =VLOOKUP(FORMATO_VALORES!E83,TABLA_23!$A$5:$U$1163,PANEL!$D$107,0) -> 0 | F83: =VLOOKUP(FORMATO_VALORES!F83,TABLA_23!$A$5:$U$1163,PANEL!$D$107,0) -> 0 | G83: =VLOOKUP(FORMATO_VALORES!G83,TABLA_23!$A$5:$U$1163,PANEL!$D$107,0) -> 0 | H83: =VLOOKUP(FORMATO_VALORES!H83,TABLA_23!$A$5:$U$1163,PANEL!$D$107,0) -> 0 | I83: =VLOOKUP(FORMATO_VALORES!I83,TABLA_23!$A$5:$U$1163,PANEL!$D$107,0) -> 0 | J83: =VLOOKUP(FORMATO_VALORES!J83,TABLA_23!$A$5:$U$1163,PANEL!$D$107,0) -> 0 | K83: =VLOOKUP(FORMATO_VALORES!K83,TABLA_23!$A$5:$U$1163,PANEL!$D$107,0) -> 0 | L83: =VLOOKUP(FORMATO_VALORES!L83,TABLA_23!$A$5:$U$1163,PANEL!$D$107,0) -> 0 | M83: 0 | N83: 0 | O83: 0
A84: 6.8 | B84: PVVIH que completan vacunación de neumococo | C84: =VLOOKUP(FORMATO_VALORES!C84,TABLA_23!$A$5:$U$1163,PANEL!$D$107,0) -> 0 | D84: =VLOOKUP(FORMATO_VALORES!D84,TABLA_23!$A$5:$U$1163,PANEL!$D$107,0) -> 0 | E84: =VLOOKUP(FORMATO_VALORES!E84,TABLA_23!$A$5:$U$1163,PANEL!$D$107,0) -> 0 | F84: =VLOOKUP(FORMATO_VALORES!F84,TABLA_23!$A$5:$U$1163,PANEL!$D$107,0) -> 0 | G84: =VLOOKUP(FORMATO_VALORES!G84,TABLA_23!$A$5:$U$1163,PANEL!$D$107,0) -> 0 | H84: =VLOOKUP(FORMATO_VALORES!H84,TABLA_23!$A$5:$U$1163,PANEL!$D$107,0) -> 0 | I84: =VLOOKUP(FORMATO_VALORES!I84,TABLA_23!$A$5:$U$1163,PANEL!$D$107,0) -> 0 | J84: =VLOOKUP(FORMATO_VALORES!J84,TABLA_23!$A$5:$U$1163,PANEL!$D$107,0) -> 0 | K84: =VLOOKUP(FORMATO_VALORES!K84,TABLA_23!$A$5:$U$1163,PANEL!$D$107,0) -> 0 | L84: =VLOOKUP(FORMATO_VALORES!L84,TABLA_23!$A$5:$U$1163,PANEL!$D$107,0) -> 0 | M84: 0 | N84: 0 | O84: 0
A85: 6.9 | B85: PVVIH con tamizaje para hepatitis C | C85: =VLOOKUP(FORMATO_VALORES!C85,TABLA_23!$A$5:$U$1163,PANEL!$D$107,0) -> 0 | D85: =VLOOKUP(FORMATO_VALORES!D85,TABLA_23!$A$5:$U$1163,PANEL!$D$107,0) -> 0 | E85: =VLOOKUP(FORMATO_VALORES!E85,TABLA_23!$A$5:$U$1163,PANEL!$D$107,0) -> 0 | F85: =VLOOKUP(FORMATO_VALORES!F85,TABLA_23!$A$5:$U$1163,PANEL!$D$107,0) -> 0 | G85: =VLOOKUP(FORMATO_VALORES!G85,TABLA_23!$A$5:$U$1163,PANEL!$D$107,0) -> 0 | H85: =VLOOKUP(FORMATO_VALORES!H85,TABLA_23!$A$5:$U$1163,PANEL!$D$107,0) -> 0 | I85: =VLOOKUP(FORMATO_VALORES!I85,TABLA_23!$A$5:$U$1163,PANEL!$D$107,0) -> 0 | J85: =VLOOKUP(FORMATO_VALORES!J85,TABLA_23!$A$5:$U$1163,PANEL!$D$107,0) -> 0 | K85: =VLOOKUP(FORMATO_VALORES!K85,TABLA_23!$A$5:$U$1163,PANEL!$D$107,0) -> 0 | L85: =VLOOKUP(FORMATO_VALORES!L85,TABLA_23!$A$5:$U$1163,PANEL!$D$107,0) -> 0 | M85: 0 | N85: 0 | O85: 0
A86: 6.10 | B86: PVVIH con hepatitis C | C86: =VLOOKUP(FORMATO_VALORES!C86,TABLA_23!$A$5:$U$1163,PANEL!$D$107,0) -> 0 | D86: =VLOOKUP(FORMATO_VALORES!D86,TABLA_23!$A$5:$U$1163,PANEL!$D$107,0) -> 0 | E86: =VLOOKUP(FORMATO_VALORES!E86,TABLA_23!$A$5:$U$1163,PANEL!$D$107,0) -> 0 | F86: =VLOOKUP(FORMATO_VALORES!F86,TABLA_23!$A$5:$U$1163,PANEL!$D$107,0) -> 0 | G86: =VLOOKUP(FORMATO_VALORES!G86,TABLA_23!$A$5:$U$1163,PANEL!$D$107,0) -> 0 | H86: =VLOOKUP(FORMATO_VALORES!H86,TABLA_23!$A$5:$U$1163,PANEL!$D$107,0) -> 0 | I86: =VLOOKUP(FORMATO_VALORES!I86,TABLA_23!$A$5:$U$1163,PANEL!$D$107,0) -> 0 | J86: =VLOOKUP(FORMATO_VALORES!J86,TABLA_23!$A$5:$U$1163,PANEL!$D$107,0) -> 0 | K86: =VLOOKUP(FORMATO_VALORES!K86,TABLA_23!$A$5:$U$1163,PANEL!$D$107,0) -> 0 | L86: =VLOOKUP(FORMATO_VALORES!L86,TABLA_23!$A$5:$U$1163,PANEL!$D$107,0) -> 0 | M86: 0 | N86: 0 | O86: 0
A87: 6.11 | B87: PVVIH con hepatitis C que inician tratamiento | C87: =VLOOKUP(FORMATO_VALORES!C87,TABLA_23!$A$5:$U$1163,PANEL!$D$107,0) -> 0 | D87: =VLOOKUP(FORMATO_VALORES!D87,TABLA_23!$A$5:$U$1163,PANEL!$D$107,0) -> 0 | E87: =VLOOKUP(FORMATO_VALORES!E87,TABLA_23!$A$5:$U$1163,PANEL!$D$107,0) -> 0 | F87: =VLOOKUP(FORMATO_VALORES!F87,TABLA_23!$A$5:$U$1163,PANEL!$D$107,0) -> 0 | G87: =VLOOKUP(FORMATO_VALORES!G87,TABLA_23!$A$5:$U$1163,PANEL!$D$107,0) -> 0 | H87: =VLOOKUP(FORMATO_VALORES!H87,TABLA_23!$A$5:$U$1163,PANEL!$D$107,0) -> 0 | I87: =VLOOKUP(FORMATO_VALORES!I87,TABLA_23!$A$5:$U$1163,PANEL!$D$107,0) -> 0 | J87: =VLOOKUP(FORMATO_VALORES!J87,TABLA_23!$A$5:$U$1163,PANEL!$D$107,0) -> 0 | K87: =VLOOKUP(FORMATO_VALORES!K87,TABLA_23!$A$5:$U$1163,PANEL!$D$107,0) -> 0 | L87: =VLOOKUP(FORMATO_VALORES!L87,TABLA_23!$A$5:$U$1163,PANEL!$D$107,0) -> 0 | M87: 0 | N87: 0 | O87: 0
A88: 6.12 | B88: PVVIH con hepatitis C que completan tratamiento | C88: =VLOOKUP(FORMATO_VALORES!C88,TABLA_23!$A$5:$U$1163,PANEL!$D$107,0) -> 0 | D88: =VLOOKUP(FORMATO_VALORES!D88,TABLA_23!$A$5:$U$1163,PANEL!$D$107,0) -> 0 | E88: =VLOOKUP(FORMATO_VALORES!E88,TABLA_23!$A$5:$U$1163,PANEL!$D$107,0) -> 0 | F88: =VLOOKUP(FORMATO_VALORES!F88,TABLA_23!$A$5:$U$1163,PANEL!$D$107,0) -> 0 | G88: =VLOOKUP(FORMATO_VALORES!G88,TABLA_23!$A$5:$U$1163,PANEL!$D$107,0) -> 0 | H88: =VLOOKUP(FORMATO_VALORES!H88,TABLA_23!$A$5:$U$1163,PANEL!$D$107,0) -> 0 | I88: =VLOOKUP(FORMATO_VALORES!I88,TABLA_23!$A$5:$U$1163,PANEL!$D$107,0) -> 0 | J88: =VLOOKUP(FORMATO_VALORES!J88,TABLA_23!$A$5:$U$1163,PANEL!$D$107,0) -> 0 | K88: =VLOOKUP(FORMATO_VALORES!K88,TABLA_23!$A$5:$U$1163,PANEL!$D$107,0) -> 0 | L88: =VLOOKUP(FORMATO_VALORES!L88,TABLA_23!$A$5:$U$1163,PANEL!$D$107,0) -> 0 | M88: 0 | N88: 0 | O88: 0
A90: 7.- GESTANTES Y RECIÉN NACIDOS: Transmisión Materno Infantil (Sífilis, VIH, Hepatitis B) | D90: 12 - 17a | E90: 18a - 29a | F90: 30a - 59a | G90: Total | H90: TRIMESTRES DE EMBARAZO | K90: Total
H91: 1er Trim. | I91: 2do Trim. | J91: 3er Trim. | O91: * Si la suma del total de Gestantes por trimestre de gestación no coincide con el total de gestantes desagregados por edades es porque se ha registrado una gestante con dx de sífilis fuera de la Atención Prenatal sin considerar el trimestre de gestación.
A92: 7.1 | B92: Gestantes tamizadas para Sífilis (1er tamizaje) | D92: =VLOOKUP(FORMATO_VALORES!D92,TABLA_23!$A$5:$U$1163,PANEL!$D$107,0) -> 0 | E92: =VLOOKUP(FORMATO_VALORES!E92,TABLA_23!$A$5:$U$1163,PANEL!$D$107,0) -> 9 | F92: =VLOOKUP(FORMATO_VALORES!F92,TABLA_23!$A$5:$U$1163,PANEL!$D$107,0) -> 4 | G92: =SUM(D92:F92) -> 13 | H92: =VLOOKUP(FORMATO_VALORES!H92,TABLA_23!$A$5:$U$1163,PANEL!$D$107,0) -> 322 | I92: =VLOOKUP(FORMATO_VALORES!I92,TABLA_23!$A$5:$U$1163,PANEL!$D$107,0) -> 303 | J92: =VLOOKUP(FORMATO_VALORES!J92,TABLA_23!$A$5:$U$1163,PANEL!$D$107,0) -> 578 | K92: =SUM(H92:J92) -> 1,203
A93: 7.2 | B93: Gestantes tamizadas reactivas para Sífilis | D93: =VLOOKUP(FORMATO_VALORES!D93,TABLA_23!$A$5:$U$1163,PANEL!$D$107,0) -> 0 | E93: =VLOOKUP(FORMATO_VALORES!E93,TABLA_23!$A$5:$U$1163,PANEL!$D$107,0) -> 0 | F93: =VLOOKUP(FORMATO_VALORES!F93,TABLA_23!$A$5:$U$1163,PANEL!$D$107,0) -> 0 | G93: =SUM(D93:F93) -> 0 | H93: =VLOOKUP(FORMATO_VALORES!H93,TABLA_23!$A$5:$U$1163,PANEL!$D$107,0) -> 328 | I93: =VLOOKUP(FORMATO_VALORES!I93,TABLA_23!$A$5:$U$1163,PANEL!$D$107,0) -> 309 | J93: =VLOOKUP(FORMATO_VALORES!J93,TABLA_23!$A$5:$U$1163,PANEL!$D$107,0) -> 584 | K93: =SUM(H93:J93) -> 1,221
A94: 7.3 | B94: Gestantes con Sífilis que reciben tto. completo | D94: =VLOOKUP(FORMATO_VALORES!D94,TABLA_23!$A$5:$U$1163,PANEL!$D$107,0) -> 0 | E94: =VLOOKUP(FORMATO_VALORES!E94,TABLA_23!$A$5:$U$1163,PANEL!$D$107,0) -> 0 | F94: =VLOOKUP(FORMATO_VALORES!F94,TABLA_23!$A$5:$U$1163,PANEL!$D$107,0) -> 0 | G94: 0 | H94: =VLOOKUP(FORMATO_VALORES!H94,TABLA_23!$A$5:$U$1163,PANEL!$D$107,0) -> 322 | I94: =VLOOKUP(FORMATO_VALORES!I94,TABLA_23!$A$5:$U$1163,PANEL!$D$107,0) -> 303 | J94: =VLOOKUP(FORMATO_VALORES!J94,TABLA_23!$A$5:$U$1163,PANEL!$D$107,0) -> 578 | K94: 1,203
A95: 7.4 | B95: Gestantes tamizadas para VIH (1er tamizaje) | D95: =VLOOKUP(FORMATO_VALORES!D95,TABLA_23!$A$5:$U$1163,PANEL!$D$107,0) -> 0 | E95: =VLOOKUP(FORMATO_VALORES!E95,TABLA_23!$A$5:$U$1163,PANEL!$D$107,0) -> 9 | F95: =VLOOKUP(FORMATO_VALORES!F95,TABLA_23!$A$5:$U$1163,PANEL!$D$107,0) -> 7 | G95: 16 | H95: =VLOOKUP(FORMATO_VALORES!H95,TABLA_23!$A$5:$U$1163,PANEL!$D$107,0) -> 322 | I95: =VLOOKUP(FORMATO_VALORES!I95,TABLA_23!$A$5:$U$1163,PANEL!$D$107,0) -> 303 | J95: =VLOOKUP(FORMATO_VALORES!J95,TABLA_23!$A$5:$U$1163,PANEL!$D$107,0) -> 578 | K95: 1,203
A96: 7.5 | B96: Gestantes tamizadas reactivas para VIH | D96: =VLOOKUP(FORMATO_VALORES!D96,TABLA_23!$A$5:$U$1163,PANEL!$D$107,0) -> 0 | E96: =VLOOKUP(FORMATO_VALORES!E96,TABLA_23!$A$5:$U$1163,PANEL!$D$107,0) -> 0 | F96: =VLOOKUP(FORMATO_VALORES!F96,TABLA_23!$A$5:$U$1163,PANEL!$D$107,0) -> 0 | G96: 0 | H96: =VLOOKUP(FORMATO_VALORES!H96,TABLA_23!$A$5:$U$1163,PANEL!$D$107,0) -> 326 | I96: =VLOOKUP(FORMATO_VALORES!I96,TABLA_23!$A$5:$U$1163,PANEL!$D$107,0) -> 307 | J96: =VLOOKUP(FORMATO_VALORES!J96,TABLA_23!$A$5:$U$1163,PANEL!$D$107,0) -> 582 | K96: 1,215
A97: 7.6 | B97: Gest. con VIH que reciben TARGA (inician) | D97: =VLOOKUP(FORMATO_VALORES!D97,TABLA_23!$A$5:$U$1163,PANEL!$D$107,0) -> 2956 | E97: =VLOOKUP(FORMATO_VALORES!E97,TABLA_23!$A$5:$U$1163,PANEL!$D$107,0) -> 2956 | F97: =VLOOKUP(FORMATO_VALORES!F97,TABLA_23!$A$5:$U$1163,PANEL!$D$107,0) -> 2956 | G97: 8,868 | H97: =VLOOKUP(FORMATO_VALORES!H97,TABLA_23!$A$5:$U$1163,PANEL!$D$107,0) -> 322 | I97: =VLOOKUP(FORMATO_VALORES!I97,TABLA_23!$A$5:$U$1163,PANEL!$D$107,0) -> 303 | J97: =VLOOKUP(FORMATO_VALORES!J97,TABLA_23!$A$5:$U$1163,PANEL!$D$107,0) -> 578 | K97: 1,203
A98: 7.7 | B98: Gest. Tamiz. para Hepatitis B (1° tamiz.) | D98: =VLOOKUP(FORMATO_VALORES!D98,TABLA_23!$A$5:$U$1163,PANEL!$D$107,0) -> 1 | E98: =VLOOKUP(FORMATO_VALORES!E98,TABLA_23!$A$5:$U$1163,PANEL!$D$107,0) -> 6 | F98: =VLOOKUP(FORMATO_VALORES!F98,TABLA_23!$A$5:$U$1163,PANEL!$D$107,0) -> 2 | G98: 9 | H98: =VLOOKUP(FORMATO_VALORES!H98,TABLA_23!$A$5:$U$1163,PANEL!$D$107,0) -> 322 | I98: =VLOOKUP(FORMATO_VALORES!I98,TABLA_23!$A$5:$U$1163,PANEL!$D$107,0) -> 303 | J98: =VLOOKUP(FORMATO_VALORES!J98,TABLA_23!$A$5:$U$1163,PANEL!$D$107,0) -> 578 | K98: 1,203
A99: 7.8 | B99: Gestantes tamizadas reactivas para Hepatitis B | D99: =VLOOKUP(FORMATO_VALORES!D99,TABLA_23!$A$5:$U$1163,PANEL!$D$107,0) -> 0 | E99: =VLOOKUP(FORMATO_VALORES!E99,TABLA_23!$A$5:$U$1163,PANEL!$D$107,0) -> 0 | F99: =VLOOKUP(FORMATO_VALORES!F99,TABLA_23!$A$5:$U$1163,PANEL!$D$107,0) -> 0 | G99: 0 | H99: =VLOOKUP(FORMATO_VALORES!H99,TABLA_23!$A$5:$U$1163,PANEL!$D$107,0) -> 322 | I99: =VLOOKUP(FORMATO_VALORES!I99,TABLA_23!$A$5:$U$1163,PANEL!$D$107,0) -> 303 | J99: =VLOOKUP(FORMATO_VALORES!J99,TABLA_23!$A$5:$U$1163,PANEL!$D$107,0) -> 578 | K99: 1,203
A100: 7.9 | B100: Gestantes con hepatitis B que reciben tratamiento (inician) | D100: =VLOOKUP(FORMATO_VALORES!D100,TABLA_23!$A$5:$U$1163,PANEL!$D$107,0) -> 2956 | E100: =VLOOKUP(FORMATO_VALORES!E100,TABLA_23!$A$5:$U$1163,PANEL!$D$107,0) -> 2956 | F100: =VLOOKUP(FORMATO_VALORES!F100,TABLA_23!$A$5:$U$1163,PANEL!$D$107,0) -> 2956 | G100: 8,868 | H100: =VLOOKUP(FORMATO_VALORES!H100,TABLA_23!$A$5:$U$1163,PANEL!$D$107,0) -> 1 | I100: =VLOOKUP(FORMATO_VALORES!I100,TABLA_23!$A$5:$U$1163,PANEL!$D$107,0) -> 0 | J100: =VLOOKUP(FORMATO_VALORES!J100,TABLA_23!$A$5:$U$1163,PANEL!$D$107,0) -> 0 | K100: 1
A101: 7.10 | B101: Gestantes cerodiscordantes para VIH | D101: =VLOOKUP(FORMATO_VALORES!D101,TABLA_23!$A$5:$U$1163,PANEL!$D$107,0) -> 0 | E101: =VLOOKUP(FORMATO_VALORES!E101,TABLA_23!$A$5:$U$1163,PANEL!$D$107,0) -> 0 | F101: =VLOOKUP(FORMATO_VALORES!F101,TABLA_23!$A$5:$U$1163,PANEL!$D$107,0) -> 0 | G101: 0 | H101: =VLOOKUP(FORMATO_VALORES!H101,TABLA_23!$A$5:$U$1163,PANEL!$D$107,0) -> 322 | I101: =VLOOKUP(FORMATO_VALORES!I101,TABLA_23!$A$5:$U$1163,PANEL!$D$107,0) -> 303 | J101: =VLOOKUP(FORMATO_VALORES!J101,TABLA_23!$A$5:$U$1163,PANEL!$D$107,0) -> 578 | K101: 1,203
A102: 7.11 | B102: Gestantes cerodiscordantes para VIH con profilaxis pre exposición | D102: =VLOOKUP(FORMATO_VALORES!D102,TABLA_23!$A$5:$U$1163,PANEL!$D$107,0) -> 0 | E102: =VLOOKUP(FORMATO_VALORES!E102,TABLA_23!$A$5:$U$1163,PANEL!$D$107,0) -> 0 | F102: =VLOOKUP(FORMATO_VALORES!F102,TABLA_23!$A$5:$U$1163,PANEL!$D$107,0) -> 0 | G102: 0 | H102: =VLOOKUP(FORMATO_VALORES!H102,TABLA_23!$A$5:$U$1163,PANEL!$D$107,0) -> 322 | I102: =VLOOKUP(FORMATO_VALORES!I102,TABLA_23!$A$5:$U$1163,PANEL!$D$107,0) -> 303 | J102: =VLOOKUP(FORMATO_VALORES!J102,TABLA_23!$A$5:$U$1163,PANEL!$D$107,0) -> 578 | K102: 1,203
A104: 7A.-RECIÉN NACIDOS: (Sífilis, VIH, Hepatitis B) | C104: Total
A105: 7A.1 | B105: RN con Sífilis congénita que reciben tratamiento completo | C105: =VLOOKUP(FORMATO_VALORES!C105,TABLA_23!$A$5:$U$1163,PANEL!$D$107,0) -> 0
A106: 7A.2 | B106: RN expuestos a VIH que reciben ARV | C106: =VLOOKUP(FORMATO_VALORES!C106,TABLA_23!$A$5:$U$1163,PANEL!$D$107,0) -> 0
A107: 7A.3 | B107: RN expuestos a VIH que inician sucedáneos de leche materna | C107: =VLOOKUP(FORMATO_VALORES!C107,TABLA_23!$A$5:$U$1163,PANEL!$D$107,0) -> 0
A108: 7A.4 | B108: RN expuestos a VIH que reciben sucedáneos de leche materna | C108: =VLOOKUP(FORMATO_VALORES!C108,TABLA_23!$A$5:$U$1163,PANEL!$D$107,0) -> 0
A109: 7A.5 | B109: RN expuestos a VIH quecompletan sucedáneos de leche materna | C109: =VLOOKUP(FORMATO_VALORES!C109,TABLA_23!$A$5:$U$1163,PANEL!$D$107,0) -> 0
A110: 7A.6 | B110: RN expuestos a Hepatitis B | C110: =VLOOKUP(FORMATO_VALORES!C110,TABLA_23!$A$5:$U$1163,PANEL!$D$107,0) -> 0
A111: 7A.7 | B111: RN expuestos con Vacuna de Hepatitis B en atención de Parto antes de las 24 horas | C111: =VLOOKUP(FORMATO_VALORES!C111,TABLA_23!$A$5:$U$1163,PANEL!$D$107,0) -> 0
A112: 7A.8 | B112: RN expuestos con Vacuna de Hepatitis B en atención de Parto después de las 24 horas | C112: =VLOOKUP(FORMATO_VALORES!C112,TABLA_23!$A$5:$U$1163,PANEL!$D$107,0) -> 0
A113: 7A.9 | B113: RN expuestos que reciben Inmunoglobulina (HBIG) dento de las 12 h. | C113: =VLOOKUP(FORMATO_VALORES!C113,TABLA_23!$A$5:$U$1163,PANEL!$D$107,0) -> 0
A114: 7A.10 | B114: RN expuestos que reciben Inmunoglob. (HBIG) después de 12 h. y hasta las 24 h. | C114: =VLOOKUP(FORMATO_VALORES!C114,TABLA_23!$A$5:$U$1163,PANEL!$D$107,0) -> 0
A116: 8.- POBLACION CLAVE: HSH/trans/Trabajadoras(es) Sexuales | C116: HSH | F116: Trans (TRA-M) | I116: TS - (Femenino) | L116: TS - Trans (TTS - masculino) | O116: TS - HSH (HTS) | R116: Total
C117: 18 -29a | D117: 30 - 59a | E117: 60a + | F117: 18-29a | G117: 30-59a | H117: 60a + | I117: 18-29a | J117: 30-59a | K117: 60a + | L117: 18-29a | M117: 30-59a | N117: 60a + | O117: 18-29a | P117: 30-59a | Q117: 60a + | R117: HSH | S117: Trans | T117: TS-Fem. | U117: TS-Trans | V117: HTS
A118: 8.1 | B118: TS/HSH/TRANS atendidos(as) (AMP) | C118: =VLOOKUP(FORMATO_VALORES!C118,TABLA_23!$A$5:$U$1163,PANEL!$D$107,0) -> 0 | D118: =VLOOKUP(FORMATO_VALORES!D118,TABLA_23!$A$5:$U$1163,PANEL!$D$107,0) -> 0 | E118: =VLOOKUP(FORMATO_VALORES!E118,TABLA_23!$A$5:$U$1163,PANEL!$D$107,0) -> 0 | F118: =VLOOKUP(FORMATO_VALORES!F118,TABLA_23!$A$5:$U$1163,PANEL!$D$107,0) -> 0 | G118: =VLOOKUP(FORMATO_VALORES!G118,TABLA_23!$A$5:$U$1163,PANEL!$D$107,0) -> 0 | H118: =VLOOKUP(FORMATO_VALORES!H118,TABLA_23!$A$5:$U$1163,PANEL!$D$107,0) -> 0 | I118: =VLOOKUP(FORMATO_VALORES!I118,TABLA_23!$A$5:$U$1163,PANEL!$D$107,0) -> 0 | J118: =VLOOKUP(FORMATO_VALORES!J118,TABLA_23!$A$5:$U$1163,PANEL!$D$107,0) -> 0 | K118: =VLOOKUP(FORMATO_VALORES!K118,TABLA_23!$A$5:$U$1163,PANEL!$D$107,0) -> 0 | L118: =VLOOKUP(FORMATO_VALORES!L118,TABLA_23!$A$5:$U$1163,PANEL!$D$107,0) -> 0 | M118: =VLOOKUP(FORMATO_VALORES!M118,TABLA_23!$A$5:$U$1163,PANEL!$D$107,0) -> 0 | N118: =VLOOKUP(FORMATO_VALORES!N118,TABLA_23!$A$5:$U$1163,PANEL!$D$107,0) -> 0 | O118: =VLOOKUP(FORMATO_VALORES!O118,TABLA_23!$A$5:$U$1163,PANEL!$D$107,0) -> 0 | P118: =VLOOKUP(FORMATO_VALORES!P118,TABLA_23!$A$5:$U$1163,PANEL!$D$107,0) -> 0 | Q118: =VLOOKUP(FORMATO_VALORES!Q118,TABLA_23!$A$5:$U$1163,PANEL!$D$107,0) -> 0 | R118: =SUM(C118:E118) -> 0 | S118: =SUM(F118:H118) -> 0 | T118: =SUM(I118:K118) -> 0 | U118: =SUM(L118:N118) -> 0 | V118: =SUM(O118:Q118) -> 0
A119: 8.2 | B119: Atenciones a TS/HSH/TRANS (AMP) | C119: =VLOOKUP(FORMATO_VALORES!C119,TABLA_23!$A$5:$U$1163,PANEL!$D$107,0) -> 0 | D119: =VLOOKUP(FORMATO_VALORES!D119,TABLA_23!$A$5:$U$1163,PANEL!$D$107,0) -> 0 | E119: =VLOOKUP(FORMATO_VALORES!E119,TABLA_23!$A$5:$U$1163,PANEL!$D$107,0) -> 0 | F119: =VLOOKUP(FORMATO_VALORES!F119,TABLA_23!$A$5:$U$1163,PANEL!$D$107,0) -> 0 | G119: =VLOOKUP(FORMATO_VALORES!G119,TABLA_23!$A$5:$U$1163,PANEL!$D$107,0) -> 0 | H119: =VLOOKUP(FORMATO_VALORES!H119,TABLA_23!$A$5:$U$1163,PANEL!$D$107,0) -> 0 | I119: =VLOOKUP(FORMATO_VALORES!I119,TABLA_23!$A$5:$U$1163,PANEL!$D$107,0) -> 0 | J119: =VLOOKUP(FORMATO_VALORES!J119,TABLA_23!$A$5:$U$1163,PANEL!$D$107,0) -> 0 | K119: =VLOOKUP(FORMATO_VALORES!K119,TABLA_23!$A$5:$U$1163,PANEL!$D$107,0) -> 0 | L119: =VLOOKUP(FORMATO_VALORES!L119,TABLA_23!$A$5:$U$1163,PANEL!$D$107,0) -> 0 | M119: =VLOOKUP(FORMATO_VALORES!M119,TABLA_23!$A$5:$U$1163,PANEL!$D$107,0) -> 0 | N119: =VLOOKUP(FORMATO_VALORES!N119,TABLA_23!$A$5:$U$1163,PANEL!$D$107,0) -> 0 | O119: =VLOOKUP(FORMATO_VALORES!O119,TABLA_23!$A$5:$U$1163,PANEL!$D$107,0) -> 0 | P119: =VLOOKUP(FORMATO_VALORES!P119,TABLA_23!$A$5:$U$1163,PANEL!$D$107,0) -> 0 | Q119: =VLOOKUP(FORMATO_VALORES!Q119,TABLA_23!$A$5:$U$1163,PANEL!$D$107,0) -> 0 | R119: =SUM(C119:E119) -> 0 | S119: =SUM(F119:H119) -> 0 | T119: =SUM(I119:K119) -> 0 | U119: =SUM(L119:N119) -> 0 | V119: =SUM(O119:Q119) -> 0
A120: 8.3 | B120: TS/HSH/TRANS tamizados para sífilis (1° tamizaje) | C120: =VLOOKUP(FORMATO_VALORES!C120,TABLA_23!$A$5:$U$1163,PANEL!$D$107,0) -> 14 | D120: =VLOOKUP(FORMATO_VALORES!D120,TABLA_23!$A$5:$U$1163,PANEL!$D$107,0) -> 15 | E120: =VLOOKUP(FORMATO_VALORES!E120,TABLA_23!$A$5:$U$1163,PANEL!$D$107,0) -> 1 | F120: =VLOOKUP(FORMATO_VALORES!F120,TABLA_23!$A$5:$U$1163,PANEL!$D$107,0) -> 0 | G120: =VLOOKUP(FORMATO_VALORES!G120,TABLA_23!$A$5:$U$1163,PANEL!$D$107,0) -> 0 | H120: =VLOOKUP(FORMATO_VALORES!H120,TABLA_23!$A$5:$U$1163,PANEL!$D$107,0) -> 0 | I120: =VLOOKUP(FORMATO_VALORES!I120,TABLA_23!$A$5:$U$1163,PANEL!$D$107,0) -> 3 | J120: =VLOOKUP(FORMATO_VALORES!J120,TABLA_23!$A$5:$U$1163,PANEL!$D$107,0) -> 0 | K120: =VLOOKUP(FORMATO_VALORES!K120,TABLA_23!$A$5:$U$1163,PANEL!$D$107,0) -> 0 | L120: =VLOOKUP(FORMATO_VALORES!L120,TABLA_23!$A$5:$U$1163,PANEL!$D$107,0) -> 0 | M120: =VLOOKUP(FORMATO_VALORES!M120,TABLA_23!$A$5:$U$1163,PANEL!$D$107,0) -> 0 | N120: =VLOOKUP(FORMATO_VALORES!N120,TABLA_23!$A$5:$U$1163,PANEL!$D$107,0) -> 0 | O120: =VLOOKUP(FORMATO_VALORES!O120,TABLA_23!$A$5:$U$1163,PANEL!$D$107,0) -> 5 | P120: =VLOOKUP(FORMATO_VALORES!P120,TABLA_23!$A$5:$U$1163,PANEL!$D$107,0) -> 7 | Q120: =VLOOKUP(FORMATO_VALORES!Q120,TABLA_23!$A$5:$U$1163,PANEL!$D$107,0) -> 0 | R120: 30 | S120: 0 | T120: 3 | U120: 0 | V120: 12
A121: 8.4 | B121: TS/HSH/TRANS tamizados para sífilis con resultado reactivo | C121: =VLOOKUP(FORMATO_VALORES!C121,TABLA_23!$A$5:$U$1163,PANEL!$D$107,0) -> 0 | D121: =VLOOKUP(FORMATO_VALORES!D121,TABLA_23!$A$5:$U$1163,PANEL!$D$107,0) -> 0 | E121: =VLOOKUP(FORMATO_VALORES!E121,TABLA_23!$A$5:$U$1163,PANEL!$D$107,0) -> 0 | F121: =VLOOKUP(FORMATO_VALORES!F121,TABLA_23!$A$5:$U$1163,PANEL!$D$107,0) -> 0 | G121: =VLOOKUP(FORMATO_VALORES!G121,TABLA_23!$A$5:$U$1163,PANEL!$D$107,0) -> 0 | H121: =VLOOKUP(FORMATO_VALORES!H121,TABLA_23!$A$5:$U$1163,PANEL!$D$107,0) -> 0 | I121: =VLOOKUP(FORMATO_VALORES!I121,TABLA_23!$A$5:$U$1163,PANEL!$D$107,0) -> 0 | J121: =VLOOKUP(FORMATO_VALORES!J121,TABLA_23!$A$5:$U$1163,PANEL!$D$107,0) -> 0 | K121: =VLOOKUP(FORMATO_VALORES!K121,TABLA_23!$A$5:$U$1163,PANEL!$D$107,0) -> 0 | L121: =VLOOKUP(FORMATO_VALORES!L121,TABLA_23!$A$5:$U$1163,PANEL!$D$107,0) -> 0 | M121: =VLOOKUP(FORMATO_VALORES!M121,TABLA_23!$A$5:$U$1163,PANEL!$D$107,0) -> 0 | N121: =VLOOKUP(FORMATO_VALORES!N121,TABLA_23!$A$5:$U$1163,PANEL!$D$107,0) -> 0 | O121: =VLOOKUP(FORMATO_VALORES!O121,TABLA_23!$A$5:$U$1163,PANEL!$D$107,0) -> 0 | P121: =VLOOKUP(FORMATO_VALORES!P121,TABLA_23!$A$5:$U$1163,PANEL!$D$107,0) -> 0 | Q121: =VLOOKUP(FORMATO_VALORES!Q121,TABLA_23!$A$5:$U$1163,PANEL!$D$107,0) -> 0 | R121: 0 | S121: 0 | T121: 0 | U121: 0 | V121: 0
A122: 8.5 | B122: TS/HSH/TRANS tamizados(as) para VIH (1º Tamizaje) | C122: =VLOOKUP(FORMATO_VALORES!C122,TABLA_23!$A$5:$U$1163,PANEL!$D$107,0) -> 51 | D122: =VLOOKUP(FORMATO_VALORES!D122,TABLA_23!$A$5:$U$1163,PANEL!$D$107,0) -> 52 | E122: =VLOOKUP(FORMATO_VALORES!E122,TABLA_23!$A$5:$U$1163,PANEL!$D$107,0) -> 2 | F122: =VLOOKUP(FORMATO_VALORES!F122,TABLA_23!$A$5:$U$1163,PANEL!$D$107,0) -> 0 | G122: =VLOOKUP(FORMATO_VALORES!G122,TABLA_23!$A$5:$U$1163,PANEL!$D$107,0) -> 2 | H122: =VLOOKUP(FORMATO_VALORES!H122,TABLA_23!$A$5:$U$1163,PANEL!$D$107,0) -> 0 | I122: =VLOOKUP(FORMATO_VALORES!I122,TABLA_23!$A$5:$U$1163,PANEL!$D$107,0) -> 46 | J122: =VLOOKUP(FORMATO_VALORES!J122,TABLA_23!$A$5:$U$1163,PANEL!$D$107,0) -> 23 | K122: =VLOOKUP(FORMATO_VALORES!K122,TABLA_23!$A$5:$U$1163,PANEL!$D$107,0) -> 0 | L122: =VLOOKUP(FORMATO_VALORES!L122,TABLA_23!$A$5:$U$1163,PANEL!$D$107,0) -> 0 | M122: =VLOOKUP(FORMATO_VALORES!M122,TABLA_23!$A$5:$U$1163,PANEL!$D$107,0) -> 0 | N122: =VLOOKUP(FORMATO_VALORES!N122,TABLA_23!$A$5:$U$1163,PANEL!$D$107,0) -> 0 | O122: =VLOOKUP(FORMATO_VALORES!O122,TABLA_23!$A$5:$U$1163,PANEL!$D$107,0) -> 5 | P122: =VLOOKUP(FORMATO_VALORES!P122,TABLA_23!$A$5:$U$1163,PANEL!$D$107,0) -> 8 | Q122: =VLOOKUP(FORMATO_VALORES!Q122,TABLA_23!$A$5:$U$1163,PANEL!$D$107,0) -> 0 | R122: 105 | S122: 2 | T122: 69 | U122: 0 | V122: 13
A123: 8.6 | B123: TS/HSH/TRANS con tamizaje para VIH con resultado reactivo | C123: =VLOOKUP(FORMATO_VALORES!C123,TABLA_23!$A$5:$U$1163,PANEL!$D$107,0) -> 0 | D123: =VLOOKUP(FORMATO_VALORES!D123,TABLA_23!$A$5:$U$1163,PANEL!$D$107,0) -> 0 | E123: =VLOOKUP(FORMATO_VALORES!E123,TABLA_23!$A$5:$U$1163,PANEL!$D$107,0) -> 0 | F123: =VLOOKUP(FORMATO_VALORES!F123,TABLA_23!$A$5:$U$1163,PANEL!$D$107,0) -> 0 | G123: =VLOOKUP(FORMATO_VALORES!G123,TABLA_23!$A$5:$U$1163,PANEL!$D$107,0) -> 0 | H123: =VLOOKUP(FORMATO_VALORES!H123,TABLA_23!$A$5:$U$1163,PANEL!$D$107,0) -> 0 | I123: =VLOOKUP(FORMATO_VALORES!I123,TABLA_23!$A$5:$U$1163,PANEL!$D$107,0) -> 0 | J123: =VLOOKUP(FORMATO_VALORES!J123,TABLA_23!$A$5:$U$1163,PANEL!$D$107,0) -> 0 | K123: =VLOOKUP(FORMATO_VALORES!K123,TABLA_23!$A$5:$U$1163,PANEL!$D$107,0) -> 0 | L123: =VLOOKUP(FORMATO_VALORES!L123,TABLA_23!$A$5:$U$1163,PANEL!$D$107,0) -> 0 | M123: =VLOOKUP(FORMATO_VALORES!M123,TABLA_23!$A$5:$U$1163,PANEL!$D$107,0) -> 0 | N123: =VLOOKUP(FORMATO_VALORES!N123,TABLA_23!$A$5:$U$1163,PANEL!$D$107,0) -> 0 | O123: =VLOOKUP(FORMATO_VALORES!O123,TABLA_23!$A$5:$U$1163,PANEL!$D$107,0) -> 0 | P123: =VLOOKUP(FORMATO_VALORES!P123,TABLA_23!$A$5:$U$1163,PANEL!$D$107,0) -> 0 | Q123: =VLOOKUP(FORMATO_VALORES!Q123,TABLA_23!$A$5:$U$1163,PANEL!$D$107,0) -> 0 | R123: 0 | S123: 0 | T123: 0 | U123: 0 | V123: 0
A124: 8.7 | B124: TS/HSH/TRANS con diagnóstico de VIH | C124: =VLOOKUP(FORMATO_VALORES!C124,TABLA_23!$A$5:$U$1163,PANEL!$D$107,0) -> 0 | D124: =VLOOKUP(FORMATO_VALORES!D124,TABLA_23!$A$5:$U$1163,PANEL!$D$107,0) -> 0 | E124: =VLOOKUP(FORMATO_VALORES!E124,TABLA_23!$A$5:$U$1163,PANEL!$D$107,0) -> 0 | F124: =VLOOKUP(FORMATO_VALORES!F124,TABLA_23!$A$5:$U$1163,PANEL!$D$107,0) -> 0 | G124: =VLOOKUP(FORMATO_VALORES!G124,TABLA_23!$A$5:$U$1163,PANEL!$D$107,0) -> 0 | H124: =VLOOKUP(FORMATO_VALORES!H124,TABLA_23!$A$5:$U$1163,PANEL!$D$107,0) -> 0 | I124: =VLOOKUP(FORMATO_VALORES!I124,TABLA_23!$A$5:$U$1163,PANEL!$D$107,0) -> 0 | J124: =VLOOKUP(FORMATO_VALORES!J124,TABLA_23!$A$5:$U$1163,PANEL!$D$107,0) -> 0 | K124: =VLOOKUP(FORMATO_VALORES!K124,TABLA_23!$A$5:$U$1163,PANEL!$D$107,0) -> 0 | L124: =VLOOKUP(FORMATO_VALORES!L124,TABLA_23!$A$5:$U$1163,PANEL!$D$107,0) -> 0 | M124: =VLOOKUP(FORMATO_VALORES!M124,TABLA_23!$A$5:$U$1163,PANEL!$D$107,0) -> 0 | N124: =VLOOKUP(FORMATO_VALORES!N124,TABLA_23!$A$5:$U$1163,PANEL!$D$107,0) -> 0 | O124: =VLOOKUP(FORMATO_VALORES!O124,TABLA_23!$A$5:$U$1163,PANEL!$D$107,0) -> 0 | P124: =VLOOKUP(FORMATO_VALORES!P124,TABLA_23!$A$5:$U$1163,PANEL!$D$107,0) -> 0 | Q124: =VLOOKUP(FORMATO_VALORES!Q124,TABLA_23!$A$5:$U$1163,PANEL!$D$107,0) -> 0 | R124: 0 | S124: 0 | T124: 0 | U124: 0 | V124: 0
A125: 8.8 | B125: TS/HSH/TRANS que inician Terapia Antiretroviral | C125: =VLOOKUP(FORMATO_VALORES!C125,TABLA_23!$A$5:$U$1163,PANEL!$D$107,0) -> 0 | D125: =VLOOKUP(FORMATO_VALORES!D125,TABLA_23!$A$5:$U$1163,PANEL!$D$107,0) -> 0 | E125: =VLOOKUP(FORMATO_VALORES!E125,TABLA_23!$A$5:$U$1163,PANEL!$D$107,0) -> 0 | F125: =VLOOKUP(FORMATO_VALORES!F125,TABLA_23!$A$5:$U$1163,PANEL!$D$107,0) -> 0 | G125: =VLOOKUP(FORMATO_VALORES!G125,TABLA_23!$A$5:$U$1163,PANEL!$D$107,0) -> 0 | H125: =VLOOKUP(FORMATO_VALORES!H125,TABLA_23!$A$5:$U$1163,PANEL!$D$107,0) -> 0 | I125: =VLOOKUP(FORMATO_VALORES!I125,TABLA_23!$A$5:$U$1163,PANEL!$D$107,0) -> 0 | J125: =VLOOKUP(FORMATO_VALORES!J125,TABLA_23!$A$5:$U$1163,PANEL!$D$107,0) -> 0 | K125: =VLOOKUP(FORMATO_VALORES!K125,TABLA_23!$A$5:$U$1163,PANEL!$D$107,0) -> 0 | L125: =VLOOKUP(FORMATO_VALORES!L125,TABLA_23!$A$5:$U$1163,PANEL!$D$107,0) -> 0 | M125: =VLOOKUP(FORMATO_VALORES!M125,TABLA_23!$A$5:$U$1163,PANEL!$D$107,0) -> 0 | N125: =VLOOKUP(FORMATO_VALORES!N125,TABLA_23!$A$5:$U$1163,PANEL!$D$107,0) -> 0 | O125: =VLOOKUP(FORMATO_VALORES!O125,TABLA_23!$A$5:$U$1163,PANEL!$D$107,0) -> 0 | P125: =VLOOKUP(FORMATO_VALORES!P125,TABLA_23!$A$5:$U$1163,PANEL!$D$107,0) -> 0 | Q125: =VLOOKUP(FORMATO_VALORES!Q125,TABLA_23!$A$5:$U$1163,PANEL!$D$107,0) -> 0 | R125: 0 | S125: 0 | T125: 0 | U125: 0 | V125: 0
A126: 8.9 | B126: TS/HSH/TRANS tamizados/as para Hepatitis B | C126: =VLOOKUP(FORMATO_VALORES!C126,TABLA_23!$A$5:$U$1163,PANEL!$D$107,0) -> 49 | D126: =VLOOKUP(FORMATO_VALORES!D126,TABLA_23!$A$5:$U$1163,PANEL!$D$107,0) -> 3 | E126: =VLOOKUP(FORMATO_VALORES!E126,TABLA_23!$A$5:$U$1163,PANEL!$D$107,0) -> 0 | F126: =VLOOKUP(FORMATO_VALORES!F126,TABLA_23!$A$5:$U$1163,PANEL!$D$107,0) -> 0 | G126: =VLOOKUP(FORMATO_VALORES!G126,TABLA_23!$A$5:$U$1163,PANEL!$D$107,0) -> 3 | H126: =VLOOKUP(FORMATO_VALORES!H126,TABLA_23!$A$5:$U$1163,PANEL!$D$107,0) -> 0 | I126: =VLOOKUP(FORMATO_VALORES!I126,TABLA_23!$A$5:$U$1163,PANEL!$D$107,0) -> 27 | J126: =VLOOKUP(FORMATO_VALORES!J126,TABLA_23!$A$5:$U$1163,PANEL!$D$107,0) -> 20 | K126: =VLOOKUP(FORMATO_VALORES!K126,TABLA_23!$A$5:$U$1163,PANEL!$D$107,0) -> 0 | L126: =VLOOKUP(FORMATO_VALORES!L126,TABLA_23!$A$5:$U$1163,PANEL!$D$107,0) -> 0 | M126: =VLOOKUP(FORMATO_VALORES!M126,TABLA_23!$A$5:$U$1163,PANEL!$D$107,0) -> 2 | N126: =VLOOKUP(FORMATO_VALORES!N126,TABLA_23!$A$5:$U$1163,PANEL!$D$107,0) -> 0 | O126: =VLOOKUP(FORMATO_VALORES!O126,TABLA_23!$A$5:$U$1163,PANEL!$D$107,0) -> 8 | P126: =VLOOKUP(FORMATO_VALORES!P126,TABLA_23!$A$5:$U$1163,PANEL!$D$107,0) -> 10 | Q126: =VLOOKUP(FORMATO_VALORES!Q126,TABLA_23!$A$5:$U$1163,PANEL!$D$107,0) -> 1 | R126: 52 | S126: 3 | T126: 47 | U126: 2 | V126: 19
A127: 8.10 | B127: TS/HSH/TRANS con tamizaje reactivo para Hepatitis B | C127: =VLOOKUP(FORMATO_VALORES!C127,TABLA_23!$A$5:$U$1163,PANEL!$D$107,0) -> 0 | D127: =VLOOKUP(FORMATO_VALORES!D127,TABLA_23!$A$5:$U$1163,PANEL!$D$107,0) -> 0 | E127: =VLOOKUP(FORMATO_VALORES!E127,TABLA_23!$A$5:$U$1163,PANEL!$D$107,0) -> 0 | F127: =VLOOKUP(FORMATO_VALORES!F127,TABLA_23!$A$5:$U$1163,PANEL!$D$107,0) -> 0 | G127: =VLOOKUP(FORMATO_VALORES!G127,TABLA_23!$A$5:$U$1163,PANEL!$D$107,0) -> 0 | H127: =VLOOKUP(FORMATO_VALORES!H127,TABLA_23!$A$5:$U$1163,PANEL!$D$107,0) -> 0 | I127: =VLOOKUP(FORMATO_VALORES!I127,TABLA_23!$A$5:$U$1163,PANEL!$D$107,0) -> 0 | J127: =VLOOKUP(FORMATO_VALORES!J127,TABLA_23!$A$5:$U$1163,PANEL!$D$107,0) -> 0 | K127: =VLOOKUP(FORMATO_VALORES!K127,TABLA_23!$A$5:$U$1163,PANEL!$D$107,0) -> 0 | L127: =VLOOKUP(FORMATO_VALORES!L127,TABLA_23!$A$5:$U$1163,PANEL!$D$107,0) -> 0 | M127: =VLOOKUP(FORMATO_VALORES!M127,TABLA_23!$A$5:$U$1163,PANEL!$D$107,0) -> 0 | N127: =VLOOKUP(FORMATO_VALORES!N127,TABLA_23!$A$5:$U$1163,PANEL!$D$107,0) -> 0 | O127: =VLOOKUP(FORMATO_VALORES!O127,TABLA_23!$A$5:$U$1163,PANEL!$D$107,0) -> 0 | P127: =VLOOKUP(FORMATO_VALORES!P127,TABLA_23!$A$5:$U$1163,PANEL!$D$107,0) -> 0 | Q127: =VLOOKUP(FORMATO_VALORES!Q127,TABLA_23!$A$5:$U$1163,PANEL!$D$107,0) -> 0 | R127: 0 | S127: 0 | T127: 0 | U127: 0 | V127: 0
A128: 8.11 | B128: TS/HSH/TRANS que completan vacunación de Hepatitis B | C128: =VLOOKUP(FORMATO_VALORES!C128,TABLA_23!$A$5:$U$1163,PANEL!$D$107,0) -> 0 | D128: =VLOOKUP(FORMATO_VALORES!D128,TABLA_23!$A$5:$U$1163,PANEL!$D$107,0) -> 0 | E128: =VLOOKUP(FORMATO_VALORES!E128,TABLA_23!$A$5:$U$1163,PANEL!$D$107,0) -> 0 | F128: =VLOOKUP(FORMATO_VALORES!F128,TABLA_23!$A$5:$U$1163,PANEL!$D$107,0) -> 0 | G128: =VLOOKUP(FORMATO_VALORES!G128,TABLA_23!$A$5:$U$1163,PANEL!$D$107,0) -> 0 | H128: =VLOOKUP(FORMATO_VALORES!H128,TABLA_23!$A$5:$U$1163,PANEL!$D$107,0) -> 0 | I128: =VLOOKUP(FORMATO_VALORES!I128,TABLA_23!$A$5:$U$1163,PANEL!$D$107,0) -> 0 | J128: =VLOOKUP(FORMATO_VALORES!J128,TABLA_23!$A$5:$U$1163,PANEL!$D$107,0) -> 0 | K128: =VLOOKUP(FORMATO_VALORES!K128,TABLA_23!$A$5:$U$1163,PANEL!$D$107,0) -> 0 | L128: =VLOOKUP(FORMATO_VALORES!L128,TABLA_23!$A$5:$U$1163,PANEL!$D$107,0) -> 0 | M128: =VLOOKUP(FORMATO_VALORES!M128,TABLA_23!$A$5:$U$1163,PANEL!$D$107,0) -> 0 | N128: =VLOOKUP(FORMATO_VALORES!N128,TABLA_23!$A$5:$U$1163,PANEL!$D$107,0) -> 0 | O128: =VLOOKUP(FORMATO_VALORES!O128,TABLA_23!$A$5:$U$1163,PANEL!$D$107,0) -> 0 | P128: =VLOOKUP(FORMATO_VALORES!P128,TABLA_23!$A$5:$U$1163,PANEL!$D$107,0) -> 0 | Q128: =VLOOKUP(FORMATO_VALORES!Q128,TABLA_23!$A$5:$U$1163,PANEL!$D$107,0) -> 0 | R128: 0 | S128: 0 | T128: 0 | U128: 0 | V128: 0
A129: 8.12 | B129: TS/HSH/TRANS tamizados/as para Hepatitis C | C129: =VLOOKUP(FORMATO_VALORES!C129,TABLA_23!$A$5:$U$1163,PANEL!$D$107,0) -> 0 | D129: =VLOOKUP(FORMATO_VALORES!D129,TABLA_23!$A$5:$U$1163,PANEL!$D$107,0) -> 0 | E129: =VLOOKUP(FORMATO_VALORES!E129,TABLA_23!$A$5:$U$1163,PANEL!$D$107,0) -> 0 | F129: =VLOOKUP(FORMATO_VALORES!F129,TABLA_23!$A$5:$U$1163,PANEL!$D$107,0) -> 0 | G129: =VLOOKUP(FORMATO_VALORES!G129,TABLA_23!$A$5:$U$1163,PANEL!$D$107,0) -> 0 | H129: =VLOOKUP(FORMATO_VALORES!H129,TABLA_23!$A$5:$U$1163,PANEL!$D$107,0) -> 0 | I129: =VLOOKUP(FORMATO_VALORES!I129,TABLA_23!$A$5:$U$1163,PANEL!$D$107,0) -> 0 | J129: =VLOOKUP(FORMATO_VALORES!J129,TABLA_23!$A$5:$U$1163,PANEL!$D$107,0) -> 0 | K129: =VLOOKUP(FORMATO_VALORES!K129,TABLA_23!$A$5:$U$1163,PANEL!$D$107,0) -> 0 | L129: =VLOOKUP(FORMATO_VALORES!L129,TABLA_23!$A$5:$U$1163,PANEL!$D$107,0) -> 0 | M129: =VLOOKUP(FORMATO_VALORES!M129,TABLA_23!$A$5:$U$1163,PANEL!$D$107,0) -> 0 | N129: =VLOOKUP(FORMATO_VALORES!N129,TABLA_23!$A$5:$U$1163,PANEL!$D$107,0) -> 0 | O129: =VLOOKUP(FORMATO_VALORES!O129,TABLA_23!$A$5:$U$1163,PANEL!$D$107,0) -> 0 | P129: =VLOOKUP(FORMATO_VALORES!P129,TABLA_23!$A$5:$U$1163,PANEL!$D$107,0) -> 0 | Q129: =VLOOKUP(FORMATO_VALORES!Q129,TABLA_23!$A$5:$U$1163,PANEL!$D$107,0) -> 0 | R129: 0 | S129: 0 | T129: 0 | U129: 0 | V129: 0
A131: 9.- POBLACION CLAVE: HSH/trans/Trabajadoras(es) Sexuales: ITS | C131: HSH | F131: Trans (TRA-M) | I131: TS - (Femenino) | L131: TS - Trans (TTS - masculino) | O131: TS - HSH (HTS) | R131: Tratados | W131: Contac. | X131: Contac. Tratados
C132: 18 -29a | D132: 30 - 59a | E132: 60a + | F132: 18-29a | G132: 30-59a | H132: 60a + | I132: 18-29a | J132: 30-59a | K132: 60a + | L132: 18-29a | M132: 30-59a | N132: 60a + | O132: 18-29a | P132: 30-59a | Q132: 60a + | R132: HSH | S132: Trans | T132: TS-Fem. | U132: TS-Trans | V132: HTS
A133: 9.1 | B133: Personas con manejo sindrómico | C133: =VLOOKUP(FORMATO_VALORES!C133,TABLA_23!$A$5:$U$1163,PANEL!$D$107,0) -> 0 | D133: =VLOOKUP(FORMATO_VALORES!D133,TABLA_23!$A$5:$U$1163,PANEL!$D$107,0) -> 0 | E133: =VLOOKUP(FORMATO_VALORES!E133,TABLA_23!$A$5:$U$1163,PANEL!$D$107,0) -> 0 | F133: =VLOOKUP(FORMATO_VALORES!F133,TABLA_23!$A$5:$U$1163,PANEL!$D$107,0) -> 0 | G133: =VLOOKUP(FORMATO_VALORES!G133,TABLA_23!$A$5:$U$1163,PANEL!$D$107,0) -> 0 | H133: =VLOOKUP(FORMATO_VALORES!H133,TABLA_23!$A$5:$U$1163,PANEL!$D$107,0) -> 0 | I133: =VLOOKUP(FORMATO_VALORES!I133,TABLA_23!$A$5:$U$1163,PANEL!$D$107,0) -> 10 | J133: =VLOOKUP(FORMATO_VALORES!J133,TABLA_23!$A$5:$U$1163,PANEL!$D$107,0) -> 6 | K133: =VLOOKUP(FORMATO_VALORES!K133,TABLA_23!$A$5:$U$1163,PANEL!$D$107,0) -> 0 | L133: =VLOOKUP(FORMATO_VALORES!L133,TABLA_23!$A$5:$U$1163,PANEL!$D$107,0) -> 0 | M133: =VLOOKUP(FORMATO_VALORES!M133,TABLA_23!$A$5:$U$1163,PANEL!$D$107,0) -> 0 | N133: =VLOOKUP(FORMATO_VALORES!N133,TABLA_23!$A$5:$U$1163,PANEL!$D$107,0) -> 0 | O133: =VLOOKUP(FORMATO_VALORES!O133,TABLA_23!$A$5:$U$1163,PANEL!$D$107,0) -> 0 | P133: =VLOOKUP(FORMATO_VALORES!P133,TABLA_23!$A$5:$U$1163,PANEL!$D$107,0) -> 0 | Q133: =VLOOKUP(FORMATO_VALORES!Q133,TABLA_23!$A$5:$U$1163,PANEL!$D$107,0) -> 0 | R133: =VLOOKUP(FORMATO_VALORES!R133,TABLA_23!$A$5:$U$1163,PANEL!$D$107,0) -> 0 | S133: =VLOOKUP(FORMATO_VALORES!S133,TABLA_23!$A$5:$U$1163,PANEL!$D$107,0) -> 0 | T133: =VLOOKUP(FORMATO_VALORES!T133,TABLA_23!$A$5:$U$1163,PANEL!$D$107,0) -> 0 | U133: =VLOOKUP(FORMATO_VALORES!U133,TABLA_23!$A$5:$U$1163,PANEL!$D$107,0) -> 0 | V133: =VLOOKUP(FORMATO_VALORES!V133,TABLA_23!$A$5:$U$1163,PANEL!$D$107,0) -> 0 | W133: =VLOOKUP(FORMATO_VALORES!W133,TABLA_23!$A$5:$U$1163,PANEL!$D$107,0) -> 0 | X133: =VLOOKUP(FORMATO_VALORES!X133,TABLA_23!$A$5:$U$1163,PANEL!$D$107,0) -> 0
A134: 9.2 | B134: Casos con descarga uretral | C134: =VLOOKUP(FORMATO_VALORES!C134,TABLA_23!$A$5:$U$1163,PANEL!$D$107,0) -> 0 | D134: =VLOOKUP(FORMATO_VALORES!D134,TABLA_23!$A$5:$U$1163,PANEL!$D$107,0) -> 0 | E134: =VLOOKUP(FORMATO_VALORES!E134,TABLA_23!$A$5:$U$1163,PANEL!$D$107,0) -> 0 | F134: =VLOOKUP(FORMATO_VALORES!F134,TABLA_23!$A$5:$U$1163,PANEL!$D$107,0) -> 0 | G134: =VLOOKUP(FORMATO_VALORES!G134,TABLA_23!$A$5:$U$1163,PANEL!$D$107,0) -> 0 | H134: =VLOOKUP(FORMATO_VALORES!H134,TABLA_23!$A$5:$U$1163,PANEL!$D$107,0) -> 0 | L134: =VLOOKUP(FORMATO_VALORES!L134,TABLA_23!$A$5:$U$1163,PANEL!$D$107,0) -> 0 | M134: =VLOOKUP(FORMATO_VALORES!M134,TABLA_23!$A$5:$U$1163,PANEL!$D$107,0) -> 0 | N134: =VLOOKUP(FORMATO_VALORES!N134,TABLA_23!$A$5:$U$1163,PANEL!$D$107,0) -> 0 | O134: =VLOOKUP(FORMATO_VALORES!O134,TABLA_23!$A$5:$U$1163,PANEL!$D$107,0) -> 0 | P134: =VLOOKUP(FORMATO_VALORES!P134,TABLA_23!$A$5:$U$1163,PANEL!$D$107,0) -> 0 | Q134: =VLOOKUP(FORMATO_VALORES!Q134,TABLA_23!$A$5:$U$1163,PANEL!$D$107,0) -> 0 | R134: =VLOOKUP(FORMATO_VALORES!R134,TABLA_23!$A$5:$U$1163,PANEL!$D$107,0) -> 0 | S134: =VLOOKUP(FORMATO_VALORES!S134,TABLA_23!$A$5:$U$1163,PANEL!$D$107,0) -> 0 | U134: =VLOOKUP(FORMATO_VALORES!U134,TABLA_23!$A$5:$U$1163,PANEL!$D$107,0) -> 0 | V134: =VLOOKUP(FORMATO_VALORES!V134,TABLA_23!$A$5:$U$1163,PANEL!$D$107,0) -> 0 | W134: =VLOOKUP(FORMATO_VALORES!W134,TABLA_23!$A$5:$U$1163,PANEL!$D$107,0) -> 0 | X134: =VLOOKUP(FORMATO_VALORES!X134,TABLA_23!$A$5:$U$1163,PANEL!$D$107,0) -> 0
A135: 9.3 | B135: Casos con flujo vaginal compatible con ITS | I135: =VLOOKUP(FORMATO_VALORES!I135,TABLA_23!$A$5:$U$1163,PANEL!$D$107,0) -> 10 | J135: =VLOOKUP(FORMATO_VALORES!J135,TABLA_23!$A$5:$U$1163,PANEL!$D$107,0) -> 6 | K135: =VLOOKUP(FORMATO_VALORES!K135,TABLA_23!$A$5:$U$1163,PANEL!$D$107,0) -> 0 | T135: =VLOOKUP(FORMATO_VALORES!T135,TABLA_23!$A$5:$U$1163,PANEL!$D$107,0) -> 0 | W135: =VLOOKUP(FORMATO_VALORES!W135,TABLA_23!$A$5:$U$1163,PANEL!$D$107,0) -> 0 | X135: =VLOOKUP(FORMATO_VALORES!X135,TABLA_23!$A$5:$U$1163,PANEL!$D$107,0) -> 0
A136: 9.4 | B136: Casos de úlcera genital | C136: =VLOOKUP(FORMATO_VALORES!C136,TABLA_23!$A$5:$U$1163,PANEL!$D$107,0) -> 0 | D136: =VLOOKUP(FORMATO_VALORES!D136,TABLA_23!$A$5:$U$1163,PANEL!$D$107,0) -> 0 | E136: =VLOOKUP(FORMATO_VALORES!E136,TABLA_23!$A$5:$U$1163,PANEL!$D$107,0) -> 0 | F136: =VLOOKUP(FORMATO_VALORES!F136,TABLA_23!$A$5:$U$1163,PANEL!$D$107,0) -> 0 | G136: =VLOOKUP(FORMATO_VALORES!G136,TABLA_23!$A$5:$U$1163,PANEL!$D$107,0) -> 0 | H136: =VLOOKUP(FORMATO_VALORES!H136,TABLA_23!$A$5:$U$1163,PANEL!$D$107,0) -> 0 | I136: =VLOOKUP(FORMATO_VALORES!I136,TABLA_23!$A$5:$U$1163,PANEL!$D$107,0) -> 0 | J136: =VLOOKUP(FORMATO_VALORES!J136,TABLA_23!$A$5:$U$1163,PANEL!$D$107,0) -> 0 | K136: =VLOOKUP(FORMATO_VALORES!K136,TABLA_23!$A$5:$U$1163,PANEL!$D$107,0) -> 0 | L136: =VLOOKUP(FORMATO_VALORES!L136,TABLA_23!$A$5:$U$1163,PANEL!$D$107,0) -> 0 | M136: =VLOOKUP(FORMATO_VALORES!M136,TABLA_23!$A$5:$U$1163,PANEL!$D$107,0) -> 0 | N136: =VLOOKUP(FORMATO_VALORES!N136,TABLA_23!$A$5:$U$1163,PANEL!$D$107,0) -> 0 | O136: =VLOOKUP(FORMATO_VALORES!O136,TABLA_23!$A$5:$U$1163,PANEL!$D$107,0) -> 0 | P136: =VLOOKUP(FORMATO_VALORES!P136,TABLA_23!$A$5:$U$1163,PANEL!$D$107,0) -> 0 | Q136: =VLOOKUP(FORMATO_VALORES!Q136,TABLA_23!$A$5:$U$1163,PANEL!$D$107,0) -> 0 | R136: =VLOOKUP(FORMATO_VALORES!R136,TABLA_23!$A$5:$U$1163,PANEL!$D$107,0) -> 0 | S136: =VLOOKUP(FORMATO_VALORES!S136,TABLA_23!$A$5:$U$1163,PANEL!$D$107,0) -> 0 | T136: =VLOOKUP(FORMATO_VALORES!T136,TABLA_23!$A$5:$U$1163,PANEL!$D$107,0) -> 0 | U136: =VLOOKUP(FORMATO_VALORES!U136,TABLA_23!$A$5:$U$1163,PANEL!$D$107,0) -> 0 | V136: =VLOOKUP(FORMATO_VALORES!V136,TABLA_23!$A$5:$U$1163,PANEL!$D$107,0) -> 0 | W136: =VLOOKUP(FORMATO_VALORES!W136,TABLA_23!$A$5:$U$1163,PANEL!$D$107,0) -> 0 | X136: =VLOOKUP(FORMATO_VALORES!X136,TABLA_23!$A$5:$U$1163,PANEL!$D$107,0) -> 0
A137: 9.5 | B137: Casos de bubón inguinal | C137: =VLOOKUP(FORMATO_VALORES!C137,TABLA_23!$A$5:$U$1163,PANEL!$D$107,0) -> 0 | D137: =VLOOKUP(FORMATO_VALORES!D137,TABLA_23!$A$5:$U$1163,PANEL!$D$107,0) -> 0 | E137: =VLOOKUP(FORMATO_VALORES!E137,TABLA_23!$A$5:$U$1163,PANEL!$D$107,0) -> 0 | F137: =VLOOKUP(FORMATO_VALORES!F137,TABLA_23!$A$5:$U$1163,PANEL!$D$107,0) -> 0 | G137: =VLOOKUP(FORMATO_VALORES!G137,TABLA_23!$A$5:$U$1163,PANEL!$D$107,0) -> 0 | H137: =VLOOKUP(FORMATO_VALORES!H137,TABLA_23!$A$5:$U$1163,PANEL!$D$107,0) -> 0 | I137: =VLOOKUP(FORMATO_VALORES!I137,TABLA_23!$A$5:$U$1163,PANEL!$D$107,0) -> 0 | J137: =VLOOKUP(FORMATO_VALORES!J137,TABLA_23!$A$5:$U$1163,PANEL!$D$107,0) -> 0 | K137: =VLOOKUP(FORMATO_VALORES!K137,TABLA_23!$A$5:$U$1163,PANEL!$D$107,0) -> 0 | L137: =VLOOKUP(FORMATO_VALORES!L137,TABLA_23!$A$5:$U$1163,PANEL!$D$107,0) -> 0 | M137: =VLOOKUP(FORMATO_VALORES!M137,TABLA_23!$A$5:$U$1163,PANEL!$D$107,0) -> 0 | N137: =VLOOKUP(FORMATO_VALORES!N137,TABLA_23!$A$5:$U$1163,PANEL!$D$107,0) -> 0 | O137: =VLOOKUP(FORMATO_VALORES!O137,TABLA_23!$A$5:$U$1163,PANEL!$D$107,0) -> 0 | P137: =VLOOKUP(FORMATO_VALORES!P137,TABLA_23!$A$5:$U$1163,PANEL!$D$107,0) -> 0 | Q137: =VLOOKUP(FORMATO_VALORES!Q137,TABLA_23!$A$5:$U$1163,PANEL!$D$107,0) -> 0 | R137: =VLOOKUP(FORMATO_VALORES!R137,TABLA_23!$A$5:$U$1163,PANEL!$D$107,0) -> 0 | S137: =VLOOKUP(FORMATO_VALORES!S137,TABLA_23!$A$5:$U$1163,PANEL!$D$107,0) -> 0 | T137: =VLOOKUP(FORMATO_VALORES!T137,TABLA_23!$A$5:$U$1163,PANEL!$D$107,0) -> 0 | U137: =VLOOKUP(FORMATO_VALORES!U137,TABLA_23!$A$5:$U$1163,PANEL!$D$107,0) -> 0 | V137: =VLOOKUP(FORMATO_VALORES!V137,TABLA_23!$A$5:$U$1163,PANEL!$D$107,0) -> 0 | W137: =VLOOKUP(FORMATO_VALORES!W137,TABLA_23!$A$5:$U$1163,PANEL!$D$107,0) -> 0 | X137: =VLOOKUP(FORMATO_VALORES!X137,TABLA_23!$A$5:$U$1163,PANEL!$D$107,0) -> 0
A138: 9.6 | B138: Casos con síndrome de dolor abdominal bajo | I138: =VLOOKUP(FORMATO_VALORES!I138,TABLA_23!$A$5:$U$1163,PANEL!$D$107,0) -> 0 | J138: =VLOOKUP(FORMATO_VALORES!J138,TABLA_23!$A$5:$U$1163,PANEL!$D$107,0) -> 0 | K138: =VLOOKUP(FORMATO_VALORES!K138,TABLA_23!$A$5:$U$1163,PANEL!$D$107,0) -> 0 | T138: =VLOOKUP(FORMATO_VALORES!T138,TABLA_23!$A$5:$U$1163,PANEL!$D$107,0) -> 0 | W138: =VLOOKUP(FORMATO_VALORES!W138,TABLA_23!$A$5:$U$1163,PANEL!$D$107,0) -> 0 | X138: =VLOOKUP(FORMATO_VALORES!X138,TABLA_23!$A$5:$U$1163,PANEL!$D$107,0) -> 0
A139: 9.7 | B139: Casos de condiloma | C139: =VLOOKUP(FORMATO_VALORES!C139,TABLA_23!$A$5:$U$1163,PANEL!$D$107,0) -> 0 | D139: =VLOOKUP(FORMATO_VALORES!D139,TABLA_23!$A$5:$U$1163,PANEL!$D$107,0) -> 0 | E139: =VLOOKUP(FORMATO_VALORES!E139,TABLA_23!$A$5:$U$1163,PANEL!$D$107,0) -> 0 | F139: =VLOOKUP(FORMATO_VALORES!F139,TABLA_23!$A$5:$U$1163,PANEL!$D$107,0) -> 0 | G139: =VLOOKUP(FORMATO_VALORES!G139,TABLA_23!$A$5:$U$1163,PANEL!$D$107,0) -> 0 | H139: =VLOOKUP(FORMATO_VALORES!H139,TABLA_23!$A$5:$U$1163,PANEL!$D$107,0) -> 0 | I139: =VLOOKUP(FORMATO_VALORES!I139,TABLA_23!$A$5:$U$1163,PANEL!$D$107,0) -> 0 | J139: =VLOOKUP(FORMATO_VALORES!J139,TABLA_23!$A$5:$U$1163,PANEL!$D$107,0) -> 0 | K139: =VLOOKUP(FORMATO_VALORES!K139,TABLA_23!$A$5:$U$1163,PANEL!$D$107,0) -> 0 | L139: =VLOOKUP(FORMATO_VALORES!L139,TABLA_23!$A$5:$U$1163,PANEL!$D$107,0) -> 0 | M139: =VLOOKUP(FORMATO_VALORES!M139,TABLA_23!$A$5:$U$1163,PANEL!$D$107,0) -> 0 | N139: =VLOOKUP(FORMATO_VALORES!N139,TABLA_23!$A$5:$U$1163,PANEL!$D$107,0) -> 0 | O139: =VLOOKUP(FORMATO_VALORES!O139,TABLA_23!$A$5:$U$1163,PANEL!$D$107,0) -> 0 | P139: =VLOOKUP(FORMATO_VALORES!P139,TABLA_23!$A$5:$U$1163,PANEL!$D$107,0) -> 0 | Q139: =VLOOKUP(FORMATO_VALORES!Q139,TABLA_23!$A$5:$U$1163,PANEL!$D$107,0) -> 0 | R139: =VLOOKUP(FORMATO_VALORES!R139,TABLA_23!$A$5:$U$1163,PANEL!$D$107,0) -> 0 | S139: =VLOOKUP(FORMATO_VALORES!S139,TABLA_23!$A$5:$U$1163,PANEL!$D$107,0) -> 0 | T139: =VLOOKUP(FORMATO_VALORES!T139,TABLA_23!$A$5:$U$1163,PANEL!$D$107,0) -> 0 | U139: =VLOOKUP(FORMATO_VALORES!U139,TABLA_23!$A$5:$U$1163,PANEL!$D$107,0) -> 0 | V139: =VLOOKUP(FORMATO_VALORES!V139,TABLA_23!$A$5:$U$1163,PANEL!$D$107,0) -> 0 | W139: =VLOOKUP(FORMATO_VALORES!W139,TABLA_23!$A$5:$U$1163,PANEL!$D$107,0) -> 0 | X139: =VLOOKUP(FORMATO_VALORES!X139,TABLA_23!$A$5:$U$1163,PANEL!$D$107,0) -> 0
A140: 9.8 | B140: Casos de proctitis | C140: =VLOOKUP(FORMATO_VALORES!C140,TABLA_23!$A$5:$U$1163,PANEL!$D$107,0) -> 0 | D140: =VLOOKUP(FORMATO_VALORES!D140,TABLA_23!$A$5:$U$1163,PANEL!$D$107,0) -> 0 | E140: =VLOOKUP(FORMATO_VALORES!E140,TABLA_23!$A$5:$U$1163,PANEL!$D$107,0) -> 0 | F140: =VLOOKUP(FORMATO_VALORES!F140,TABLA_23!$A$5:$U$1163,PANEL!$D$107,0) -> 0 | G140: =VLOOKUP(FORMATO_VALORES!G140,TABLA_23!$A$5:$U$1163,PANEL!$D$107,0) -> 0 | H140: =VLOOKUP(FORMATO_VALORES!H140,TABLA_23!$A$5:$U$1163,PANEL!$D$107,0) -> 0 | L140: =VLOOKUP(FORMATO_VALORES!L140,TABLA_23!$A$5:$U$1163,PANEL!$D$107,0) -> 0 | M140: =VLOOKUP(FORMATO_VALORES!M140,TABLA_23!$A$5:$U$1163,PANEL!$D$107,0) -> 0 | N140: =VLOOKUP(FORMATO_VALORES!N140,TABLA_23!$A$5:$U$1163,PANEL!$D$107,0) -> 0 | O140: =VLOOKUP(FORMATO_VALORES!O140,TABLA_23!$A$5:$U$1163,PANEL!$D$107,0) -> 0 | P140: =VLOOKUP(FORMATO_VALORES!P140,TABLA_23!$A$5:$U$1163,PANEL!$D$107,0) -> 0 | Q140: =VLOOKUP(FORMATO_VALORES!Q140,TABLA_23!$A$5:$U$1163,PANEL!$D$107,0) -> 0 | R140: =VLOOKUP(FORMATO_VALORES!R140,TABLA_23!$A$5:$U$1163,PANEL!$D$107,0) -> 0 | S140: =VLOOKUP(FORMATO_VALORES!S140,TABLA_23!$A$5:$U$1163,PANEL!$D$107,0) -> 0 | U140: =VLOOKUP(FORMATO_VALORES!U140,TABLA_23!$A$5:$U$1163,PANEL!$D$107,0) -> 0 | V140: =VLOOKUP(FORMATO_VALORES!V140,TABLA_23!$A$5:$U$1163,PANEL!$D$107,0) -> 0 | W140: =VLOOKUP(FORMATO_VALORES!W140,TABLA_23!$A$5:$U$1163,PANEL!$D$107,0) -> 0 | X140: =VLOOKUP(FORMATO_VALORES!X140,TABLA_23!$A$5:$U$1163,PANEL!$D$107,0) -> 0
A141: 9.9 | B141: Personas con manejo etiológico | C141: =VLOOKUP(FORMATO_VALORES!C141,TABLA_23!$A$5:$U$1163,PANEL!$D$107,0) -> 6 | D141: =VLOOKUP(FORMATO_VALORES!D141,TABLA_23!$A$5:$U$1163,PANEL!$D$107,0) -> 3 | E141: =VLOOKUP(FORMATO_VALORES!E141,TABLA_23!$A$5:$U$1163,PANEL!$D$107,0) -> 0 | F141: =VLOOKUP(FORMATO_VALORES!F141,TABLA_23!$A$5:$U$1163,PANEL!$D$107,0) -> 0 | G141: =VLOOKUP(FORMATO_VALORES!G141,TABLA_23!$A$5:$U$1163,PANEL!$D$107,0) -> 0 | H141: =VLOOKUP(FORMATO_VALORES!H141,TABLA_23!$A$5:$U$1163,PANEL!$D$107,0) -> 0 | I141: =VLOOKUP(FORMATO_VALORES!I141,TABLA_23!$A$5:$U$1163,PANEL!$D$107,0) -> 1 | J141: =VLOOKUP(FORMATO_VALORES!J141,TABLA_23!$A$5:$U$1163,PANEL!$D$107,0) -> 0 | K141: =VLOOKUP(FORMATO_VALORES!K141,TABLA_23!$A$5:$U$1163,PANEL!$D$107,0) -> 0 | L141: =VLOOKUP(FORMATO_VALORES!L141,TABLA_23!$A$5:$U$1163,PANEL!$D$107,0) -> 0 | M141: =VLOOKUP(FORMATO_VALORES!M141,TABLA_23!$A$5:$U$1163,PANEL!$D$107,0) -> 0 | N141: =VLOOKUP(FORMATO_VALORES!N141,TABLA_23!$A$5:$U$1163,PANEL!$D$107,0) -> 0 | O141: =VLOOKUP(FORMATO_VALORES!O141,TABLA_23!$A$5:$U$1163,PANEL!$D$107,0) -> 0 | P141: =VLOOKUP(FORMATO_VALORES!P141,TABLA_23!$A$5:$U$1163,PANEL!$D$107,0) -> 0 | Q141: =VLOOKUP(FORMATO_VALORES!Q141,TABLA_23!$A$5:$U$1163,PANEL!$D$107,0) -> 0 | R141: =VLOOKUP(FORMATO_VALORES!R141,TABLA_23!$A$5:$U$1163,PANEL!$D$107,0) -> 0 | S141: =VLOOKUP(FORMATO_VALORES!S141,TABLA_23!$A$5:$U$1163,PANEL!$D$107,0) -> 0 | T141: =VLOOKUP(FORMATO_VALORES!T141,TABLA_23!$A$5:$U$1163,PANEL!$D$107,0) -> 0 | U141: =VLOOKUP(FORMATO_VALORES!U141,TABLA_23!$A$5:$U$1163,PANEL!$D$107,0) -> 0 | V141: =VLOOKUP(FORMATO_VALORES!V141,TABLA_23!$A$5:$U$1163,PANEL!$D$107,0) -> 0 | W141: =VLOOKUP(FORMATO_VALORES!W141,TABLA_23!$A$5:$U$1163,PANEL!$D$107,0) -> 0 | X141: =VLOOKUP(FORMATO_VALORES!X141,TABLA_23!$A$5:$U$1163,PANEL!$D$107,0) -> 0
A142: 9.10 | B142: Casos de gonorrea | C142: =VLOOKUP(FORMATO_VALORES!C142,TABLA_23!$A$5:$U$1163,PANEL!$D$107,0) -> 0 | D142: =VLOOKUP(FORMATO_VALORES!D142,TABLA_23!$A$5:$U$1163,PANEL!$D$107,0) -> 0 | E142: =VLOOKUP(FORMATO_VALORES!E142,TABLA_23!$A$5:$U$1163,PANEL!$D$107,0) -> 0 | F142: =VLOOKUP(FORMATO_VALORES!F142,TABLA_23!$A$5:$U$1163,PANEL!$D$107,0) -> 0 | G142: =VLOOKUP(FORMATO_VALORES!G142,TABLA_23!$A$5:$U$1163,PANEL!$D$107,0) -> 0 | H142: =VLOOKUP(FORMATO_VALORES!H142,TABLA_23!$A$5:$U$1163,PANEL!$D$107,0) -> 0 | I142: =VLOOKUP(FORMATO_VALORES!I142,TABLA_23!$A$5:$U$1163,PANEL!$D$107,0) -> 0 | J142: =VLOOKUP(FORMATO_VALORES!J142,TABLA_23!$A$5:$U$1163,PANEL!$D$107,0) -> 0 | K142: =VLOOKUP(FORMATO_VALORES!K142,TABLA_23!$A$5:$U$1163,PANEL!$D$107,0) -> 0 | L142: =VLOOKUP(FORMATO_VALORES!L142,TABLA_23!$A$5:$U$1163,PANEL!$D$107,0) -> 0 | M142: =VLOOKUP(FORMATO_VALORES!M142,TABLA_23!$A$5:$U$1163,PANEL!$D$107,0) -> 0 | N142: =VLOOKUP(FORMATO_VALORES!N142,TABLA_23!$A$5:$U$1163,PANEL!$D$107,0) -> 0 | O142: =VLOOKUP(FORMATO_VALORES!O142,TABLA_23!$A$5:$U$1163,PANEL!$D$107,0) -> 0 | P142: =VLOOKUP(FORMATO_VALORES!P142,TABLA_23!$A$5:$U$1163,PANEL!$D$107,0) -> 0 | Q142: =VLOOKUP(FORMATO_VALORES!Q142,TABLA_23!$A$5:$U$1163,PANEL!$D$107,0) -> 0 | R142: =VLOOKUP(FORMATO_VALORES!R142,TABLA_23!$A$5:$U$1163,PANEL!$D$107,0) -> 0 | S142: =VLOOKUP(FORMATO_VALORES!S142,TABLA_23!$A$5:$U$1163,PANEL!$D$107,0) -> 0 | T142: =VLOOKUP(FORMATO_VALORES!T142,TABLA_23!$A$5:$U$1163,PANEL!$D$107,0) -> 0 | U142: =VLOOKUP(FORMATO_VALORES!U142,TABLA_23!$A$5:$U$1163,PANEL!$D$107,0) -> 0 | V142: =VLOOKUP(FORMATO_VALORES!V142,TABLA_23!$A$5:$U$1163,PANEL!$D$107,0) -> 0 | W142: =VLOOKUP(FORMATO_VALORES!W142,TABLA_23!$A$5:$U$1163,PANEL!$D$107,0) -> 0 | X142: =VLOOKUP(FORMATO_VALORES!X142,TABLA_23!$A$5:$U$1163,PANEL!$D$107,0) -> 0
A143: 9.11 | B143: Casos de sífilis | C143: =VLOOKUP(FORMATO_VALORES!C143,TABLA_23!$A$5:$U$1163,PANEL!$D$107,0) -> 0 | D143: =VLOOKUP(FORMATO_VALORES!D143,TABLA_23!$A$5:$U$1163,PANEL!$D$107,0) -> 0 | E143: =VLOOKUP(FORMATO_VALORES!E143,TABLA_23!$A$5:$U$1163,PANEL!$D$107,0) -> 0 | F143: =VLOOKUP(FORMATO_VALORES!F143,TABLA_23!$A$5:$U$1163,PANEL!$D$107,0) -> 0 | G143: =VLOOKUP(FORMATO_VALORES!G143,TABLA_23!$A$5:$U$1163,PANEL!$D$107,0) -> 0 | H143: =VLOOKUP(FORMATO_VALORES!H143,TABLA_23!$A$5:$U$1163,PANEL!$D$107,0) -> 0 | I143: =VLOOKUP(FORMATO_VALORES!I143,TABLA_23!$A$5:$U$1163,PANEL!$D$107,0) -> 0 | J143: =VLOOKUP(FORMATO_VALORES!J143,TABLA_23!$A$5:$U$1163,PANEL!$D$107,0) -> 0 | K143: =VLOOKUP(FORMATO_VALORES!K143,TABLA_23!$A$5:$U$1163,PANEL!$D$107,0) -> 0 | L143: =VLOOKUP(FORMATO_VALORES!L143,TABLA_23!$A$5:$U$1163,PANEL!$D$107,0) -> 0 | M143: =VLOOKUP(FORMATO_VALORES!M143,TABLA_23!$A$5:$U$1163,PANEL!$D$107,0) -> 0 | N143: =VLOOKUP(FORMATO_VALORES!N143,TABLA_23!$A$5:$U$1163,PANEL!$D$107,0) -> 0 | O143: =VLOOKUP(FORMATO_VALORES!O143,TABLA_23!$A$5:$U$1163,PANEL!$D$107,0) -> 0 | P143: =VLOOKUP(FORMATO_VALORES!P143,TABLA_23!$A$5:$U$1163,PANEL!$D$107,0) -> 0 | Q143: =VLOOKUP(FORMATO_VALORES!Q143,TABLA_23!$A$5:$U$1163,PANEL!$D$107,0) -> 0 | R143: =VLOOKUP(FORMATO_VALORES!R143,TABLA_23!$A$5:$U$1163,PANEL!$D$107,0) -> 0 | S143: =VLOOKUP(FORMATO_VALORES!S143,TABLA_23!$A$5:$U$1163,PANEL!$D$107,0) -> 0 | T143: =VLOOKUP(FORMATO_VALORES!T143,TABLA_23!$A$5:$U$1163,PANEL!$D$107,0) -> 0 | U143: =VLOOKUP(FORMATO_VALORES!U143,TABLA_23!$A$5:$U$1163,PANEL!$D$107,0) -> 0 | V143: =VLOOKUP(FORMATO_VALORES!V143,TABLA_23!$A$5:$U$1163,PANEL!$D$107,0) -> 0 | W143: =VLOOKUP(FORMATO_VALORES!W143,TABLA_23!$A$5:$U$1163,PANEL!$D$107,0) -> 0 | X143: =VLOOKUP(FORMATO_VALORES!X143,TABLA_23!$A$5:$U$1163,PANEL!$D$107,0) -> 0
A145: 12.- TELEMEDICINA | C145: Femenino | H145: Masculino | M145: Total
C146: 01 - 11a | D146: 12 - 17a | E146: 18a - 29a | F146: 30 - 59a | G146: 60a+ | H146: 01 - 11a | I146: 12 - 17a | J146: 18a - 29a | K146: 30 - 59a | L146: 60a + | M146: F | N146: M | O146: Total
A147: 12.1 | B147: Teleorientaciones realizados en los servicios de VIH,ITS y HB | C147: =VLOOKUP(FORMATO_VALORES!C147,TABLA_23!$A$5:$U$1208,PANEL!$D$107,0) -> 0 | D147: =VLOOKUP(FORMATO_VALORES!D147,TABLA_23!$A$5:$U$1208,PANEL!$D$107,0) -> 0 | E147: =VLOOKUP(FORMATO_VALORES!E147,TABLA_23!$A$5:$U$1208,PANEL!$D$107,0) -> 4 | F147: =VLOOKUP(FORMATO_VALORES!F147,TABLA_23!$A$5:$U$1208,PANEL!$D$107,0) -> 2 | G147: =VLOOKUP(FORMATO_VALORES!G147,TABLA_23!$A$5:$U$1208,PANEL!$D$107,0) -> 0 | H147: =VLOOKUP(FORMATO_VALORES!H147,TABLA_23!$A$5:$U$1208,PANEL!$D$107,0) -> 0 | I147: =VLOOKUP(FORMATO_VALORES!I147,TABLA_23!$A$5:$U$1208,PANEL!$D$107,0) -> 0 | J147: =VLOOKUP(FORMATO_VALORES!J147,TABLA_23!$A$5:$U$1208,PANEL!$D$107,0) -> 0 | K147: =VLOOKUP(FORMATO_VALORES!K147,TABLA_23!$A$5:$U$1208,PANEL!$D$107,0) -> 0 | L147: =VLOOKUP(FORMATO_VALORES!L147,TABLA_23!$A$5:$U$1208,PANEL!$D$107,0) -> 0 | M147: =SUM(C147:G147) -> 6 | N147: =SUM(H147:L147) -> 0 | O147: =SUM(M147:N147) -> 6
A148: 13.2 | B148: Telemonitoreos realizados en los servicios de VIH,ITS y HB | C148: =VLOOKUP(FORMATO_VALORES!C148,TABLA_23!$A$5:$U$1208,PANEL!$D$107,0) -> 0 | D148: =VLOOKUP(FORMATO_VALORES!D148,TABLA_23!$A$5:$U$1208,PANEL!$D$107,0) -> 0 | E148: =VLOOKUP(FORMATO_VALORES!E148,TABLA_23!$A$5:$U$1208,PANEL!$D$107,0) -> 0 | F148: =VLOOKUP(FORMATO_VALORES!F148,TABLA_23!$A$5:$U$1208,PANEL!$D$107,0) -> 2 | G148: =VLOOKUP(FORMATO_VALORES!G148,TABLA_23!$A$5:$U$1208,PANEL!$D$107,0) -> 0 | H148: =VLOOKUP(FORMATO_VALORES!H148,TABLA_23!$A$5:$U$1208,PANEL!$D$107,0) -> 0 | I148: =VLOOKUP(FORMATO_VALORES!I148,TABLA_23!$A$5:$U$1208,PANEL!$D$107,0) -> 0 | J148: =VLOOKUP(FORMATO_VALORES!J148,TABLA_23!$A$5:$U$1208,PANEL!$D$107,0) -> 0 | K148: =VLOOKUP(FORMATO_VALORES!K148,TABLA_23!$A$5:$U$1208,PANEL!$D$107,0) -> 1 | L148: =VLOOKUP(FORMATO_VALORES!L148,TABLA_23!$A$5:$U$1208,PANEL!$D$107,0) -> 0 | M148: =SUM(C148:G148) -> 2 | N148: =SUM(H148:L148) -> 1 | O148: =SUM(M148:N148) -> 3
A149: 14.3 | B149: Teleconsultas realizados en los servicios de VIH,ITS y HB | C149: =VLOOKUP(FORMATO_VALORES!C149,TABLA_23!$A$5:$U$1208,PANEL!$D$107,0) -> 0 | D149: =VLOOKUP(FORMATO_VALORES!D149,TABLA_23!$A$5:$U$1208,PANEL!$D$107,0) -> 0 | E149: =VLOOKUP(FORMATO_VALORES!E149,TABLA_23!$A$5:$U$1208,PANEL!$D$107,0) -> 0 | F149: =VLOOKUP(FORMATO_VALORES!F149,TABLA_23!$A$5:$U$1208,PANEL!$D$107,0) -> 0 | G149: =VLOOKUP(FORMATO_VALORES!G149,TABLA_23!$A$5:$U$1208,PANEL!$D$107,0) -> 0 | H149: =VLOOKUP(FORMATO_VALORES!H149,TABLA_23!$A$5:$U$1208,PANEL!$D$107,0) -> 0 | I149: =VLOOKUP(FORMATO_VALORES!I149,TABLA_23!$A$5:$U$1208,PANEL!$D$107,0) -> 0 | J149: =VLOOKUP(FORMATO_VALORES!J149,TABLA_23!$A$5:$U$1208,PANEL!$D$107,0) -> 0 | K149: =VLOOKUP(FORMATO_VALORES!K149,TABLA_23!$A$5:$U$1208,PANEL!$D$107,0) -> 0 | L149: =VLOOKUP(FORMATO_VALORES!L149,TABLA_23!$A$5:$U$1208,PANEL!$D$107,0) -> 0 | M149: 0 | N149: 0 | O149: 0
A150: 15.4 | B150: Telemonitoreos realizados a los pacientes con VIH | C150: =VLOOKUP(FORMATO_VALORES!C150,TABLA_23!$A$5:$U$1208,PANEL!$D$107,0) -> 0 | D150: =VLOOKUP(FORMATO_VALORES!D150,TABLA_23!$A$5:$U$1208,PANEL!$D$107,0) -> 0 | E150: =VLOOKUP(FORMATO_VALORES!E150,TABLA_23!$A$5:$U$1208,PANEL!$D$107,0) -> 1 | F150: =VLOOKUP(FORMATO_VALORES!F150,TABLA_23!$A$5:$U$1208,PANEL!$D$107,0) -> 2 | G150: =VLOOKUP(FORMATO_VALORES!G150,TABLA_23!$A$5:$U$1208,PANEL!$D$107,0) -> 0 | H150: =VLOOKUP(FORMATO_VALORES!H150,TABLA_23!$A$5:$U$1208,PANEL!$D$107,0) -> 0 | I150: =VLOOKUP(FORMATO_VALORES!I150,TABLA_23!$A$5:$U$1208,PANEL!$D$107,0) -> 0 | J150: =VLOOKUP(FORMATO_VALORES!J150,TABLA_23!$A$5:$U$1208,PANEL!$D$107,0) -> 0 | K150: =VLOOKUP(FORMATO_VALORES!K150,TABLA_23!$A$5:$U$1208,PANEL!$D$107,0) -> 4 | L150: =VLOOKUP(FORMATO_VALORES!L150,TABLA_23!$A$5:$U$1208,PANEL!$D$107,0) -> 0 | M150: 3 | N150: 4 | O150: 7
A151: 16.5 | B151: Telemonitoreos realizados a los pacientes con HB crónica | C151: =VLOOKUP(FORMATO_VALORES!C151,TABLA_23!$A$5:$U$1208,PANEL!$D$107,0) -> 0 | D151: =VLOOKUP(FORMATO_VALORES!D151,TABLA_23!$A$5:$U$1208,PANEL!$D$107,0) -> 0 | E151: =VLOOKUP(FORMATO_VALORES!E151,TABLA_23!$A$5:$U$1208,PANEL!$D$107,0) -> 0 | F151: =VLOOKUP(FORMATO_VALORES!F151,TABLA_23!$A$5:$U$1208,PANEL!$D$107,0) -> 0 | G151: =VLOOKUP(FORMATO_VALORES!G151,TABLA_23!$A$5:$U$1208,PANEL!$D$107,0) -> 0 | H151: =VLOOKUP(FORMATO_VALORES!H151,TABLA_23!$A$5:$U$1208,PANEL!$D$107,0) -> 0 | I151: =VLOOKUP(FORMATO_VALORES!I151,TABLA_23!$A$5:$U$1208,PANEL!$D$107,0) -> 0 | J151: =VLOOKUP(FORMATO_VALORES!J151,TABLA_23!$A$5:$U$1208,PANEL!$D$107,0) -> 0 | K151: =VLOOKUP(FORMATO_VALORES!K151,TABLA_23!$A$5:$U$1208,PANEL!$D$107,0) -> 0 | L151: =VLOOKUP(FORMATO_VALORES!L151,TABLA_23!$A$5:$U$1208,PANEL!$D$107,0) -> 0 | M151: 0 | N151: 0 | O151: 0
B187: 922 consultas

Sheet db_ITS_2023
A1: SUBREGION | B1: PROVINCIA | C1: UBIGUEO_ESTABLECIMIENTO | D1: IPRESS | E1: CATEGORIA | F1: DISTRITO | G1: CLAS | H1: MICRORED | I1: RED | J1: EJECUTORA | K1: RENAES | L1: Mes | M1: PG1 | N1: PG2 | O1: PG3 | P1: PG4 | Q1: PG5 | R1: PG6 | S1: PG7 | T1: PG8 | U1: PG9 | V1: PG10 | W1: PG11 | X1: PG12 | Y1: PG13 | Z1: PG14 | AA1: PG15 | AB1: PG16 | AC1: PG17 | AD1: PG18 | AE1: PG19 | AF1: PG20 | AG1: PG21 | AH1: PG22 | AI1: PG23 | AJ1: PG24 | AK1: PG25 | AL1: PG26 | AM1: PG27 | AN1: PG28 | AO1: PG29 | AP1: PG30 | AQ1: PG31 | AR1: PG32 | AS1: PG33 | AT1: PG34 | AU1: PG35 | AV1: PG36 | AW1: PG37 | AX1: PG38 | AY1: PG39 | AZ1: PG40 | BA1: PG41 | BB1: PG42 | BC1: PG43 | BD1: PG44 | BE1: PG45 | BF1: PG46 | BG1: PG47 | BH1: PG48 | BI1: PG49 | BJ1: PG50 | BK1: PG51 | BL1: PG52 | BM1: PG53 | BN1: PG54 | BO1: PG55 | BP1: PG56 | BQ1: PG57 | BR1: PG58 | BS1: PG59 | BT1: PG60 | BU1: PG61 | BV1: PG62 | BW1: PG63 | BX1: PG64 | BY1: PG65 | BZ1: PG66 | CA1: PG67 | CB1: PG68 | CC1: PG69 | CD1: PG70 | CE1: PG71 | CF1: PG72 | CG1: PG73 | CH1: PG74 | CI1: PG75 | CJ1: PG76 | CK1: PG77 | CL1: PG78 | CM1: PG79 | CN1: PG80 | CO1: PG81 | CP1: PG82 | CQ1: PG83 | CR1: PG84 | CS1: PG85 | CT1: PG86 | CU1: PG87 | CV1: PG88 | CW1: PG89 | CX1: PG90 | CY1: PG91 | CZ1: PG92 | DA1: PG93 | DB1: PG94 | DC1: PG95 | DD1: PG96 | DE1: PG97 | DF1: PG98 | DG1: PG99 | DH1: PG100 | DI1: PG101 | DJ1: PG102 | DK1: PG103 | DL1: PG104 | DM1: PG105 | DN1: PG106 | DO1: PG107 | DP1: PG108 | DQ1: PG109 | DR1: PG110 | DS1: PG111 | DT1: PG112 | DU1: PG113 | DV1: PG114 | DW1: PG115 | DX1: PG116 | DY1: PG117 | DZ1: PG118 | EA1: PG119 | EB1: PG120 | EC1: PG121 | ED1: PG122 | EE1: PG123 | EF1: PG124 | EG1: PG125 | EH1: PG126 | EI1: PG127 | EJ1: PG128 | EK1: PG129 | EL1: PG130 | EM1: PG131 | EN1: PG132 | EO1: PG133 | EP1: PG134 | EQ1: PG135 | ER1: PG136 | ES1: PG137 | ET1: PG138 | EU1: PG139 | EV1: PG140 | EW1: PG141 | EX1: PG142 | EY1: PG143 | EZ1: PG144 | FA1: PG145 | FB1: PG146 | FC1: PG147 | FD1: PG148 | FE1: PG149 | FF1: PG150 | FG1: PG151 | FH1: PG152 | FI1: PG153 | FJ1: PG154 | FK1: PG155 | FL1: PG156 | FM1: PG157 | FN1: PG158 | FO1: PG159 | FP1: PG160 | FQ1: PG161 | FR1: PG162 | FS1: PG163 | FT1: PG164 | FU1: PG165 | FV1: PG166 | FW1: PG167 | FX1: PG168 | FY1: PG169 | FZ1: PG170 | GA1: PG171 | GB1: PG172 | GC1: PG173 | GD1: PG174 | GE1: PG175 | GF1: PG176 | GG1: PG177 | GH1: PG178 | GI1: PG179 | GJ1: PG180 | GK1: PG181 | GL1: PG182 | GM1: PG183 | GN1: PG184 | GO1: PG185 | GP1: PG186 | GQ1: PG187 | GR1: PG188 | GS1: PG189 | GT1: PG190 | GU1: PG191 | GV1: PG192 | GW1: PG193 | GX1: PG194 | GY1: PG195 | GZ1: PG196 | HA1: PG197 | HB1: PG198 | HC1: PG199 | HD1: PG200 | HE1: PG201 | HF1: PG202 | HG1: PG203 | HH1: PG204 | HI1: PG205 | HJ1: PG206 | HK1: PG207 | HL1: PG208 | HM1: PG209 | HN1: PG210 | HO1: PG211 | HP1: PG212 | HQ1: PG213 | HR1: PG214 | HS1: PG215 | HT1: PG216 | HU1: PG217 | HV1: PG218 | HW1: HB1 | HX1: HB2 | HY1: HB3 | HZ1: HB4 | IA1: HB5 | IB1: HB6 | IC1: HB7 | ID1: HB8 | IE1: HB9 | IF1: HB10 | IG1: HB11 | IH1: HB12 | II1: HB13 | IJ1: HB14 | IK1: HB15 | IL1: HB16 | IM1: HB17 | IN1: HB18 | IO1: HB19 | IP1: HB20 | IQ1: HB21 | IR1: HB22 | IS1: HB23 | IT1: HB24 | IU1: HB25 | IV1: HB26 | IW1: HB27 | IX1: HB28 | IY1: HB29 | IZ1: HB30 | JA1: HB61 | JB1: HB62 | JC1: HB63 | JD1: HB64 | JE1: HB65 | JF1: HB66 | JG1: HB67 | JH1: HB68 | JI1: HB69 | JJ1: HB70 | JK1: HB71 | JL1: HB72 | JM1: HB73 | JN1: HB74 | JO1: HB75 | JP1: HB76 | JQ1: HB77 | JR1: HB78 | JS1: HB79 | JT1: HB80 | JU1: HC1 | JV1: HC2 | JW1: HC3 | JX1: HC4 | JY1: HC5 | JZ1: HC6 | KA1: HC7 | KB1: HC8 | KC1: HC9 | KD1: HC10 | KE1: HC11 | KF1: HC12 | KG1: HC13 | KH1: HC14 | KI1: HC15 | KJ1: HC16 | KK1: HC17 | KL1: HC18 | KM1: HC19 | KN1: HC20 | KO1: HC21 | KP1: HC22 | KQ1: HC23 | KR1: HC24 | KS1: HC25 | KT1: HC26 | KU1: HC27 | KV1: HC28 | KW1: HC29 | KX1: HC30 | KY1: HC31 | KZ1: HC32 | LA1: HC33 | LB1: HC34 | LC1: HC35 | LD1: HC36 | LE1: HC37 | LF1: HC38 | LG1: HC39 | LH1: HC40 | LI1: HC41 | LJ1: HC42 | LK1: HC43 | LL1: HC44 | LM1: HC45 | LN1: HC46 | LO1: HC47 | LP1: HC48 | LQ1: HC49 | LR1: HC50 | LS1: HC51 | LT1: HC52 | LU1: HC53 | LV1: HC54 | LW1: HC55 | LX1: HC56 | LY1: HC57 | LZ1: HC58 | MA1: HC59 | MB1: HC60 | MC1: TVIH1 | MD1: TVIH2 | ME1: TVIH3 | MF1: TVIH4 | MG1: TVIH5 | MH1: TVIH6 | MI1: TVIH7 | MJ1: TVIH8 | MK1: TVIH9 | ML1: TVIH10 | MM1: TVIH11 | MN1: TVIH12 | MO1: TVIH13 | MP1: TVIH14 | MQ1: TVIH15 | MR1: TVIH16 | MS1: TVIH17 | MT1: TVIH18 | MU1: TVIH19 | MV1: TVIH20 | MW1: TVIH21 | MX1: TVIH22 | MY1: TVIH23 | MZ1: TVIH24 | NA1: TVIH25 | NB1: TVIH26 | NC1: TVIH27 | ND1: TVIH28 | NE1: TVIH29 | NF1: TVIH30 | NG1: TVIH31 | NH1: TVIH32 | NI1: TVIH33 | NJ1: TVIH34 | NK1: TVIH35 | NL1: TVIH36 | NM1: TVIH37 | NN1: TVIH38 | NO1: TVIH39 | NP1: TVIH40 | NQ1: TVIH61 | NR1: TVIH62 | NS1: TVIH63 | NT1: TVIH64 | NU1: TVIH65 | NV1: TVIH66 | NW1: TVIH67 | NX1: TVIH68 | NY1: TVIH69 | NZ1: TVIH70 | OA1: TVIH71 | OB1: TVIH72 | OC1: TVIH73 | OD1: TVIH74 | OE1: TVIH75 | OF1: TVIH76 | OG1: TVIH77 | OH1: TVIH78 | OI1: TVIH79 | OJ1: TVIH80 | OK1: TVIH81 | OL1: TVIH82 | OM1: TVIH83 | ON1: TVIH84 | OO1: TVIH85 | OP1: TVIH86 | OQ1: TVIH87 | OR1: TVIH88 | OS1: TVIH89 | OT1: TVIH90 | OU1: EXPO1 | OV1: EXPO2 | OW1: EXPO3 | OX1: EXPO4 | OY1: EXPO5 | OZ1: EXPO6 | PA1: EXPO7 | PB1: EXPO8 | PC1: EXPO9 | PD1: EXPO10 | PE1: EXPO11 | PF1: EXPO12 | PG1: EXPO13 | PH1: EXPO14 | PI1: EXPO15 | PJ1: EXPO16 | PK1: EXPO17 | PL1: EXPO18 | PM1: EXPO19 | PN1: EXPO20 | PO1: EXPO21 | PP1: EXPO22 | PQ1: EXPO23 | PR1: EXPO24 | PS1: EXPO25 | PT1: EXPO26 | PU1: EXPO27 | PV1: EXPO28 | PW1: EXPO29 | PX1: EXPO30 | PY1: EXPO31 | PZ1: EXPO32 | QA1: EXPO33 | QB1: EXPO34 | QC1: EXPO35 | QD1: EXPO36 | QE1: EXPO37 | QF1: EXPO38 | QG1: EXPO39 | QH1: EXPO40 | QI1: EXPO41 | QJ1: EXPO42 | QK1: EXPO43 | QL1: EXPO44 | QM1: EXPO45 | QN1: EXPO46 | QO1: EXPO47 | QP1: EXPO48 | QQ1: EXPO49 | QR1: EXPO50 | QS1: EXPO51 | QT1: EXPO52 | QU1: EXPO53 | QV1: EXPO54 | QW1: EXPO55 | QX1: EXPO56 | QY1: EXPO57 | QZ1: EXPO58 | RA1: EXPO59 | RB1: EXPO60 | RC1: EXPO61 | RD1: EXPO62 | RE1: EXPO63 | RF1: EXPO64 | RG1: EXPO65 | RH1: EXPO66 | RI1: EXPO67 | RJ1: EXPO68 | RK1: EXPO69 | RL1: EXPO70 | RM1: VS_1 | RN1: VS_2 | RO1: VS_3 | RP1: VS_4 | RQ1: VS_5 | RR1: VS_6 | RS1: VS_7 | RT1: VS_8 | RU1: VS_9 | RV1: VS_10 | RW1: VS_11 | RX1: VS_12 | RY1: VS_13 | RZ1: VS_14 | SA1: VS_15 | SB1: VS_16 | SC1: VS_17 | SD1: VS_18 | SE1: VS_19 | SF1: VS_20 | SG1: VS_21 | SH1: VS_22 | SI1: VS_23 | SJ1: VS_24 | SK1: VS_25 | SL1: VS_26 | SM1: VS_27 | SN1: VS_28 | SO1: VS_29 | SP1: VS_30 | SQ1: VS_31 | SR1: VS_32 | SS1: VS_33 | ST1: VS_34 | SU1: VS_35 | SV1: VS_36 | SW1: VS_37 | SX1: VS_38 | SY1: VS_39 | SZ1: VS_40 | TA1: VS_41 | TB1: VS_42 | TC1: VS_43 | TD1: VS_44 | TE1: VS_45 | TF1: VS_46 | TG1: VS_47 | TH1: VS_48 | TI1: VS_49 | TJ1: VS_50 | TK1: PVIH1 | TL1: PVIH2 | TM1: PVIH3 | TN1: PVIH4 | TO1: PVIH5 | TP1: PVIH6 | TQ1: PVIH7 | TR1: PVIH8 | TS1: PVIH9 | TT1: PVIH10 | TU1: PVIH11 | TV1: PVIH12 | TW1: PVIH13 | TX1: PVIH14 | TY1: PVIH15 | TZ1: PVIH16 | UA1: PVIH17 | UB1: PVIH18 | UC1: PVIH19 | UD1: PVIH20 | UE1: PVIH21 | UF1: PVIH22 | UG1: PVIH23 | UH1: PVIH24 | UI1: PVIH25 | UJ1: PVIH26 | UK1: PVIH27 | UL1: PVIH28 | UM1: PVIH29 | UN1: PVIH30 | UO1: PVIH31 | UP1: PVIH32 | UQ1: PVIH33 | UR1: PVIH34 | US1: PVIH35 | UT1: PVIH36 | UU1: PVIH37 | UV1: PVIH38 | UW1: PVIH39 | UX1: PVIH40 | UY1: PVIH41 | UZ1: PVIH42 | VA1: PVIH43 | VB1: PVIH44 | VC1: PVIH45 | VD1: PVIH46 | VE1: PVIH47 | VF1: PVIH48 | VG1: PVIH49 | VH1: PVIH50 | VI1: PVIH51 | VJ1: PVIH52 | VK1: PVIH53 | VL1: PVIH54 | VM1: PVIH55 | VN1: PVIH56 | VO1: PVIH57 | VP1: PVIH58 | VQ1: PVIH59 | VR1: PVIH60 | VS1: PVIH61 | VT1: PVIH62 | VU1: PVIH63 | VV1: PVIH64 | VW1: PVIH65 | VX1: PVIH66 | VY1: PVIH67 | VZ1: PVIH68 | WA1: PVIH69 | WB1: PVIH70 | WC1: PVIH71 | WD1: PVIH72 | WE1: PVIH73 | WF1: PVIH74 | WG1: PVIH75 | WH1: PVIH76 | WI1: PVIH77 | WJ1: PVIH78 | WK1: PVIH79 | WL1: PVIH80 | WM1: PVIH81 | WN1: PVIH82 | WO1: PVIH83 | WP1: PVIH84 | WQ1: PVIH85 | WR1: PVIH86 | WS1: PVIH87 | WT1: PVIH88 | WU1: PVIH89 | WV1: PVIH90 | WW1: PVIH91 | WX1: PVIH92 | WY1: PVIH93 | WZ1: PVIH94 | XA1: PVIH95 | XB1: PVIH96 | XC1: PVIH97 | XD1: PVIH98 | XE1: PVIH99 | XF1: PVIH100 | XG1: PVIH101 | XH1: PVIH102 | XI1: PVIH103 | XJ1: PVIH104 | XK1: PVIH105 | XL1: PVIH106 | XM1: PVIH107 | XN1: PVIH108 | XO1: PVIH109 | XP1: PVIH110 | XQ1: PVIH111 | XR1: PVIH112 | XS1: PVIH113 | XT1: PVIH114 | XU1: PVIH115 | XV1: PVIH116 | XW1: PVIH117 | XX1: PVIH118 | XY1: PVIH119 | XZ1: PVIH120 | YA1: G_R1 | YB1: G_R2 | YC1: G_R3 | YD1: G_R4 | YE1: G_R5 | YF1: G_R6 | YG1: G_R7 | YH1: G_R8 | YI1: G_R9 | YJ1: G_R10 | YK1: G_R11 | YL1: G_R12 | YM1: G_R13 | YN1: G_R14 | YO1: G_R15 | YP1: G_R16 | YQ1: G_R17 | YR1: G_R18 | YS1: G_R19 | YT1: G_R20 | YU1: G_R21 | YV1: G_R22 | YW1: G_R23 | YX1: G_R24 | YY1: G_R25 | YZ1: G_R26 | ZA1: G_R27 | ZB1: G_R28 | ZC1: G_R29 | ZD1: G_R30 | ZE1: G_R31 | ZF1: G_R32 | ZG1: G_R33 | ZH1: G_R34 | ZI1: G_R35 | ZJ1: G_R36 | ZK1: G_R37 | ZL1: G_R38 | ZM1: G_R39 | ZN1: G_R40 | ZO1: G_R41 | ZP1: G_R42 | ZQ1: G_R43 | ZR1: G_R44 | ZS1: G_R45 | ZT1: G_R46 | ZU1: G_R47 | ZV1: G_R48 | ZW1: G_R49 | ZX1: G_R50 | ZY1: G_R51 | ZZ1: G_R52 | AAA1: G_R53 | AAB1: G_R54 | AAC1: G_R55 | AAD1: G_R56 | AAE1: G_R57 | AAF1: G_R58 | AAG1: G_R59 | AAH1: G_R60 | AAI1: G_R61 | AAJ1: G_R62 | AAK1: G_R63 | AAL1: G_R64 | AAM1: G_R65 | AAN1: G_R66 | AAO1: RN1 | AAP1: RN2 | AAQ1: RN3 | AAR1: RN4 | AAS1: RN5 | AAT1: RN6 | AAU1: RN7 | AAV1: RN8 | AAW1: RN9 | AAX1: RN10 | AAY1: PC_1 | AAZ1: PC_2 | ABA1: PC_3 | ABB1: PC_4 | ABC1: PC_5 | ABD1: PC_6 | ABE1: PC_7 | ABF1: PC_8 | ABG1: PC_9 | ABH1: PC_10 | ABI1: PC_11 | ABJ1: PC_12 | ABK1: PC_13 | ABL1: PC_14 | ABM1: PC_15 | ABN1: PC_16 | ABO1: PC_17 | ABP1: PC_18 | ABQ1: PC_19 | ABR1: PC_20 | ABS1: PC_21 | ABT1: PC_22 | ABU1: PC_23 | ABV1: PC_24 | ABW1: PC_25 | ABX1: PC_26 | ABY1: PC_27 | ABZ1: PC_28 | ACA1: PC_29 | ACB1: PC_30 | ACC1: PC_31 | ACD1: PC_32 | ACE1: PC_33 | ACF1: PC_34 | ACG1: PC_35 | ACH1: PC_36 | ACI1: PC_37 | ACJ1: PC_38 | ACK1: PC_39 | ACL1: PC_40 | ACM1: PC_41 | ACN1: PC_42 | ACO1: PC_43 | ACP1: PC_44 | ACQ1: PC_45 | ACR1: PC_46 | ACS1: PC_47 | ACT1: PC_48 | ACU1: PC_49 | ACV1: PC_50 | ACW1: PC_51 | ACX1: PC_52 | ACY1: PC_53 | ACZ1: PC_54 | ADA1: PC_55 | ADB1: PC_56 | ADC1: PC_57 | ADD1: PC_58 | ADE1: PC_59 | ADF1: PC_60 | ADG1: PC_61 | ADH1: PC_62 | ADI1: PC_63 | ADJ1: PC_64 | ADK1: PC_65 | ADL1: PC_66 | ADM1: PC_67 | ADN1: PC_68 | ADO1: PC_69 | ADP1: PC_70 | ADQ1: PC_71 | ADR1: PC_72 | ADS1: PC_73 | ADT1: PC_74 | ADU1: PC_75 | ADV1: PC_76 | ADW1: PC_77 | ADX1: PC_78 | ADY1: PC_79 | ADZ1: PC_80 | AEA1: PC_81 | AEB1: PC_82 | AEC1: PC_83 | AED1: PC_84 | AEE1: PC_85 | AEF1: PC_86 | AEG1: PC_87 | AEH1: PC_88 | AEI1: PC_89 | AEJ1: PC_90 | AEK1: PC_91 | AEL1: PC_92 | AEM1: PC_93 | AEN1: PC_94 | AEO1: PC_95 | AEP1: PC_96 | AEQ1: PC_97 | AER1: PC_98 | AES1: PC_99 | AET1: PC_100 | AEU1: PC_101 | AEV1: PC_102 | AEW1: PC_103 | AEX1: PC_104 | AEY1: PC_105 | AEZ1: PC_106 | AFA1: PC_107 | AFB1: PC_108 | AFC1: PC_109 | AFD1: PC_110 | AFE1: PC_111 | AFF1: PC_112 | AFG1: PC_113 | AFH1: PC_114 | AFI1: PC_115 | AFJ1: PC_116 | AFK1: PC_117 | AFL1: PC_118 | AFM1: PC_119 | AFN1: PC_120 | AFO1: PC_121 | AFP1: PC_122 | AFQ1: PC_123 | AFR1: PC_124 | AFS1: PC_125 | AFT1: PC_126 | AFU1: PC_127 | AFV1: PC_128 | AFW1: PC_129 | AFX1: PC_130 | AFY1: PC_131 | AFZ1: PC_132 | AGA1: PC_133 | AGB1: PC_134 | AGC1: PC_135 | AGD1: PC_136 | AGE1: PC_137 | AGF1: PC_138 | AGG1: PC_139 | AGH1: PC_140 | AGI1: PC_141 | AGJ1: PC_142 | AGK1: PC_143 | AGL1: PC_144 | AGM1: PC_145 | AGN1: PC_146 | AGO1: PC_147 | AGP1: PC_148 | AGQ1: PC_149 | AGR1: PC_150 | AGS1: PC_151 | AGT1: PC_152 | AGU1: PC_153 | AGV1: PC_154 | AGW1: PC_155 | AGX1: PC_156 | AGY1: PC_157 | AGZ1: PC_158 | AHA1: PC_159 | AHB1: PC_160 | AHC1: PC_161 | AHD1: PC_162 | AHE1: PC_163 | AHF1: PC_164 | AHG1: PC_165 | AHH1: PC_166 | AHI1: PC_167 | AHJ1: PC_168 | AHK1: PC_169 | AHL1: PC_170 | AHM1: PC_171 | AHN1: PC_172 | AHO1: PC_173 | AHP1: PC_174 | AHQ1: PC_175 | AHR1: PC_176 | AHS1: PC_177 | AHT1: PC_178 | AHU1: PC_179 | AHV1: PC_180 | AHW1: PC_181 | AHX1: PC_182 | AHY1: PC_183 | AHZ1: PC_184 | AIA1: PC_185 | AIB1: PC_186 | AIC1: PC_187 | AID1: PC_188 | AIE1: PC_189 | AIF1: PC_190 | AIG1: PC_191 | AIH1: PC_192 | AII1: PC_193 | AIJ1: PC_194 | AIK1: PC_195 | AIL1: PC_196 | AIM1: PC_197 | AIN1: PC_198 | AIO1: PC_199 | AIP1: PC_200 | AIQ1: PC_201 | AIR1: PC_202 | AIS1: PC_203 | AIT1: PC_204 | AIU1: PC_205 | AIV1: PC_206 | AIW1: PC_207 | AIX1: PC_208 | AIY1: PC_209 | AIZ1: PC_210 | AJA1: PC_211 | AJB1: PC_212 | AJC1: PC_213 | AJD1: PC_214 | AJE1: PC_215 | AJF1: PC_216 | AJG1: PC_217 | AJH1: PC_218 | AJI1: PC_219 | AJJ1: PC_220 | AJK1: PC_221 | AJL1: PC_222 | AJM1: PC_223 | AJN1: PC_224 | AJO1: PC_225 | AJP1: PC_226 | AJQ1: PC_227 | AJR1: PC_228 | AJS1: PC_229 | AJT1: PC_230 | AJU1: PC_231 | AJV1: PC_232 | AJW1: PC_233 | AJX1: PC_234 | AJY1: PC_235 | AJZ1: PC_236 | AKA1: PC_237 | AKB1: PC_238 | AKC1: PC_239 | AKD1: PC_240 | AKE1: PC_241 | AKF1: PC_242 | AKG1: PC_243 | AKH1: PC_244 | AKI1: PC_245 | AKJ1: PC_246 | AKK1: PC_247 | AKL1: PC_248 | AKM1: PC_249 | AKN1: PC_250 | AKO1: PC_251 | AKP1: PC_252 | AKQ1: PC_253 | AKR1: PC_254 | AKS1: PC_255 | AKT1: PC_256 | AKU1: PC_257 | AKV1: PC_258 | AKW1: PC_259 | AKX1: PC_260 | AKY1: PC_261 | AKZ1: PC_262 | ALA1: PC_263 | ALB1: PC_264 | ALC1: PC_265 | ALD1: PC_266 | ALE1: PC_267 | ALF1: PC_268 | ALG1: PC_269 | ALH1: PC_270 | ALI1: PC_271 | ALJ1: PC_272 | ALK1: PC_273 | ALL1: PC_274 | ALM1: PC_275 | ALN1: PC_276 | ALO1: PC_277 | ALP1: PC_278 | ALQ1: PC_279 | ALR1: PC_280 | ALS1: PC_281 | ALT1: PC_282 | ALU1: PC_283 | ALV1: PC_284 | ALW1: PC_285 | ALX1: PC_286 | ALY1: PC_287 | ALZ1: PC_288 | AMA1: PC_289 | AMB1: PC_290 | AMC1: PC_291 | AMD1: PC_292 | AME1: PC_293 | AMF1: PC_294 | AMG1: PC_295 | AMH1: PC_296 | AMI1: PC_297 | AMJ1: PC_298 | AMK1: PC_299 | AML1: PC_300 | AMM1: PC_301 | AMN1: PC_302 | AMO1: PC_303 | AMP1: PC_304 | AMQ1: PC_305 | AMR1: PC_306 | AMS1: PC_307 | AMT1: PC_308 | AMU1: PC_309 | AMV1: PC_310 | AMW1: PC_311 | AMX1: PC_312 | AMY1: PC_313 | AMZ1: PC_314 | ANA1: PC_315 | ANB1: HSH_1 | ANC1: HSH_2 | AND1: HSH_3 | ANE1: HSH_4 | ANF1: HSH_5 | ANG1: HSH_6 | ANH1: HSH_7 | ANI1: HSH_8 | ANJ1: HSH_9 | ANK1: HSH_10 | ANL1: HSH_11 | ANM1: HSH_12 | ANN1: HSH_13 | ANO1: HSH_14 | ANP1: HSH_15 | ANQ1: HSH_16 | ANR1: HSH_17 | ANS1: HSH_18 | ANT1: HSH_19 | ANU1: HSH_20 | ANV1: HSH_21 | ANW1: HSH_22 | ANX1: HSH_23 | ANY1: HSH_24 | ANZ1: HSH_25 | AOA1: HSH_26 | AOB1: HSH_27 | AOC1: HSH_28 | AOD1: HSH_29 | AOE1: HSH_30 | AOF1: HSH_31 | AOG1: HSH_32 | AOH1: HSH_33 | AOI1: HSH_34 | AOJ1: HSH_35 | AOK1: HSH_36 | AOL1: HSH_37 | AOM1: HSH_38 | AON1: HSH_39 | AOO1: HSH_40 | AOP1: HSH_41 | AOQ1: HSH_42 | AOR1: HSH_43 | AOS1: HSH_44 | AOT1: HSH_45 | AOU1: PC_316 | AOV1: PC_317 | AOW1: PC_318 | AOX1: PC_319 | AOY1: PC_320 | AOZ1: PC_321 | APA1: PC_322 | APB1: PC_323 | APC1: PC_324 | APD1: PC_325 | APE1: PC_326 | APF1: PC_327 | APG1: PC_328 | APH1: PC_329 | API1: PC_330 | APJ1: PC_331 | APK1: PC_332 | APL1: PC_333 | APM1: PC_334 | APN1: PC_335 | APO1: PC_336 | APP1: PC_337 | APQ1: TELE1 | APR1: TELE2 | APS1: TELE3 | APT1: TELE4 | APU1: TELE5 | APV1: TELE6 | APW1: TELE7 | APX1: TELE8 | APY1: TELE9 | APZ1: TELE10 | AQA1: TELE11 | AQB1: TELE12 | AQC1: TELE13 | AQD1: TELE14 | AQE1: TELE15 | AQF1: TELE16 | AQG1: TELE17 | AQH1: TELE18 | AQI1: TELE19 | AQJ1: TELE20 | AQK1: TELE21 | AQL1: TELE22 | AQM1: TELE23 | AQN1: TELE24 | AQO1: TELE25 | AQP1: TELE26 | AQQ1: TELE27 | AQR1: TELE28 | AQS1: TELE29 | AQT1: TELE30 | AQU1: TELE31 | AQV1: TELE32 | AQW1: TELE33 | AQX1: TELE34 | AQY1: TELE35 | AQZ1: TELE36 | ARA1: TELE37 | ARB1: TELE38 | ARC1: TELE39 | ARD1: TELE40 | ARE1: TELE41 | ARF1: TELE42 | ARG1: TELE43 | ARH1: TELE44 | ARI1: TELE45 | ARJ1: TELE46 | ARK1: TELE47 | ARL1: TELE48 | ARM1: TELE49 | ARN1: TELE50
A2: LUCIANO CASTILLO COLONNA | B2: SULLANA | C2: 200601 | D2: HOSPITAL DE APOYO II - 2, SULLANA | E2: II-2 | F2: SULLANA | G2: CLAS HOSPITALES SULLANA | H2: NO PERTENECE A NINGUNA MICRORED | I2: NO PERTENECE A NINGUNA RED | J2: HOSPITAL DE APOYO III SULLANA | K2: 1910 | L2: 1 | M2: 0 | N2: 0 | O2: 0 | P2: 0 | Q2: 0 | R2: 0 | S2: 0 | T2: 0 | U2: 0 | V2: 0 | W2: 0 | X2: 0 | Y2: 0 | Z2: 0 | AA2: 0 | AB2: 0 | AC2: 0 | AD2: 0 | AE2: 0 | AF2: 0 | AG2: 0 | AH2: 0 | AI2: 0 | AJ2: 0 | AK2: 0 | AL2: 0 | AM2: 0 | AN2: 0 | AO2: 0 | AP2: 0 | AQ2: 0 | AR2: 0 | AS2: 0 | AT2: 0 | AU2: 0 | AV2: 0 | AW2: 0 | AX2: 0 | AY2: 0 | AZ2: 0 | BA2: 0 | BB2: 0 | BC2: 0 | BD2: 0 | BE2: 0 | BF2: 0 | BG2: 0 | BH2: 0 | BI2: 0 | BJ2: 0 | BK2: 0 | BL2: 0 | BM2: 0 | BN2: 0 | BO2: 0 | BP2: 0 | BQ2: 0 | BR2: 0 | BS2: 0 | BT2: 0 | BU2: 0 | BV2: 0 | BW2: 0 | BX2: 0 | BY2: 0 | BZ2: 0 | CA2: 0 | CB2: 0 | CC2: 0 | CD2: 0 | CE2: 0 | CF2: 0 | CG2: 0 | CH2: 0 | CI2: 0 | CJ2: 0 | CK2: 0 | CL2: 0 | CM2: 0 | CN2: 0 | CO2: 0 | CP2: 0 | CQ2: 0 | CR2: 0 | CS2: 0 | CT2: 0 | CU2: 0 | CV2: 0 | CW2: 0 | CX2: 0 | CY2: 0 | CZ2: 0 | DA2: 0 | DB2: 0 | DC2: 0 | DD2: 0 | DE2: 0 | DF2: 0 | DG2: 0 | DH2: 0 | DI2: 0 | DJ2: 0 | DK2: 0 | DL2: 0 | DM2: 0 | DN2: 0 | DO2: 1 | DP2: 0 | DQ2: 0 | DR2: 0 | DS2: 0 | DT2: 0 | DU2: 0 | DV2: 0 | DW2: 2 | DX2: 0 | DY2: 1 | DZ2: 1 | EA2: 0 | EB2: 0 | EC2: 0 | ED2: 0 | EE2: 0 | EF2: 0 | EG2: 3 | EH2: 0 | EI2: 2 | EJ2: 0 | EK2: 1 | EL2: 0 | EM2: 0 | EN2: 0 | EO2: 0 | EP2: 0 | EQ2: 0 | ER2: 0 | ES2: 0 | ET2: 0 | EU2: 0 | EV2: 0 | EW2: 0 | EX2: 0 | EY2: 0 | EZ2: 0 | FA2: 0 | FB2: 0 | FC2: 0 | FD2: 0 | FE2: 0 | FF2: 0 | FG2: 0 | FH2: 0 | FI2: 0 | FJ2: 0 | FK2: 0 | FL2: 0 | FM2: 0 | FN2: 1 | FO2: 0 | FP2: 0 | FQ2: 0 | FR2: 0 | FS2: 0 | FT2: 0 | FU2: 3 | FV2: 0 | FW2: 2 | FX2: 0 | FY2: 1 | FZ2: 0 | GA2: 0 | GB2: 4 | GC2: 17 | GD2: 29 | GE2: 2 | GF2: 0 | GG2: 1 | GH2: 31 | GI2: 69 | GJ2: 7 | GK2: 0 | GL2: 0 | GM2: 0 | GN2: 0 | GO2: 0 | GP2: 0 | GQ2: 0 | GR2: 4 | GS2: 3 | GT2: 1 | GU2: 9 | GV2: 85 | GW2: 75 | GX2: 6 | GY2: 2 | GZ2: 61 | HA2: 98 | HB2: 14 | HC2: 0 | HD2: 0 | HE2: 0 | HF2: 0 | HG2: 0 | HH2: 0 | HI2: 0 | HJ2: 0 | HK2: 0 | HL2: 0 | HM2: 0 | HN2: 0 | HO2: 0 | HP2: 0 | HQ2: 0 | HR2: 0 | HS2: 0 | HT2: 0 | HU2: 0 | HV2: 0 | HW2: 0 | HX2: 4 | HY2: 34 | HZ2: 48 | IA2: 6 | IB2: 2 | IC2: 2 | ID2: 43 | IE2: 90 | IF2: 13 | IG2: 0 | IH2: 0 | II2: 0 | IJ2: 0 | IK2: 0 | IL2: 0 | IM2: 0 | IN2: 0 | IO2: 0 | IP2: 0 | IQ2: 0 | IR2: 0 | IS2: 0 | IT2: 0 | IU2: 0 | IV2: 0 | IW2: 0 | IX2: 0 | IY2: 0 | IZ2: 0 | JA2: 0 | JB2: 0 | JC2: 0 | JD2: 0 | JE2: 0 | JF2: 0 | JG2: 0 | JH2: 0 | JI2: 0 | JJ2: 0 | JK2: 0 | JL2: 0 | JM2: 0 | JN2: 0 | JO2: 0 | JP2: 0 | JQ2: 0 | JR2: 0 | JS2: 0 | JT2: 0 | JU2: 0 | JV2: 0 | JW2: 0 | JX2: 0 | JY2: 0 | JZ2: 0 | KA2: 0 | KB2: 1 | KC2: 0 | KD2: 1 | KE2: 0 | KF2: 0 | KG2: 0 | KH2: 0 | KI2: 0 | KJ2: 0 | KK2: 0 | KL2: 0 | KM2: 0 | KN2: 0 | KO2: 0 | KP2: 0 | KQ2: 0 | KR2: 0 | KS2: 0 | KT2: 0 | KU2: 0 | KV2: 0 | KW2: 0 | KX2: 0 | KY2: 0 | KZ2: 0 | LA2: 0 | LB2: 0 | LC2: 0 | LD2: 0 | LE2: 0 | LF2: 0 | LG2: 0 | LH2: 0 | LI2: 0 | LJ2: 0 | LK2: 0 | LL2: 0 | LM2: 0 | LN2: 0 | LO2: 0 | LP2: 0 | LQ2: 0 | LR2: 0 | LS2: 0 | LT2: 0 | LU2: 0 | LV2: 0 | LW2: 0 | LX2: 0 | LY2: 0 | LZ2: 0 | MA2: 0 | MB2: 0 | MC2: 0 | MD2: 7 | ME2: 63 | MF2: 34 | MG2: 4 | MH2: 2 | MI2: 1 | MJ2: 17 | MK2: 23 | ML2: 6 | MM2: 0 | MN2: 0 | MO2: 0 | MP2: 1 | MQ2: 0 | MR2: 1 | MS2: 0 | MT2: 1 | MU2: 1 | MV2: 0 | MW2: 0 | MX2: 0 | MY2: 0 | MZ2: 0 | NA2: 0 | NB2: 0 | NC2: 0 | ND2: 0 | NE2: 0 | NF2: 0 | NG2: 0 | NH2: 0 | NI2: 0 | NJ2: 0 | NK2: 0 | NL2: 0 | NM2: 0 | NN2: 0 | NO2: 0 | NP2: 0 | NQ2: 0 | NR2: 0 | NS2: 0 | NT2: 0 | NU2: 0 | NV2: 0 | NW2: 0 | NX2: 0 | NY2: 0 | NZ2: 0 | OA2: 0 | OB2: 0 | OC2: 0 | OD2: 0 | OE2: 0 | OF2: 0 | OG2: 0 | OH2: 0 | OI2: 0 | OJ2: 0 | OK2: 0 | OL2: 0 | OM2: 3 | ON2: 5 | OO2: 0 | OP2: 1 | OQ2: 0 | OR2: 7 | OS2: 8 | OT2: 0 | OU2: 3 | OV2: 1 | OW2: 0 | OX2: 0 | OY2: 0 | OZ2: 0 | PA2: 1 | PB2: 0 | PC2: 0 | PD2: 0 | PE2: 0 | PF2: 0 | PG2: 0 | PH2: 0 | PI2: 0 | PJ2: 0 | PK2: 0 | PL2: 0 | PM2: 0 | PN2: 0 | PO2: 0 | PP2: 0 | PQ2: 0 | PR2: 0 | PS2: 0 | PT2: 0 | PU2: 0 | PV2: 0 | PW2: 0 | PX2: 0 | PY2: 0 | PZ2: 0 | QA2: 0 | QB2: 0 | QC2: 0 | QD2: 0 | QE2: 0 | QF2: 0 | QG2: 0 | QH2: 0 | QI2: 0 | QJ2: 0 | QK2: 0 | QL2: 0 | QM2: 0 | QN2: 0 | QO2: 0 | QP2: 0 | QQ2: 0 | QR2: 0 | QS2: 0 | QT2: 0 | QU2: 0 | QV2: 0 | QW2: 0 | QX2: 0 | QY2: 0 | QZ2: 0 | RA2: 0 | RB2: 0 | RC2: 0 | RD2: 0 | RE2: 0 | RF2: 0 | RG2: 0 | RH2: 0 | RI2: 0 | RJ2: 0 | RK2: 0 | RL2: 0 | RM2: 0 | RN2: 0 | RO2: 0 | RP2: 0 | RQ2: 0 | RR2: 0 | RS2: 0 | RT2: 0 | RU2: 0 | RV2: 0 | RW2: 0 | RX2: 0 | RY2: 0 | RZ2: 0 | SA2: 0 | SB2: 0 | SC2: 0 | SD2: 0 | SE2: 0 | SF2: 0 | SG2: 0 | SH2: 0 | SI2: 0 | SJ2: 0 | SK2: 0 | SL2: 0 | SM2: 0 | SN2: 0 | SO2: 0 | SP2: 0 | SQ2: 0 | SR2: 0 | SS2: 0 | ST2: 0 | SU2: 0 | SV2: 0 | SW2: 0 | SX2: 0 | SY2: 0 | SZ2: 0 | TA2: 0 | TB2: 0 | TC2: 0 | TD2: 0 | TE2: 0 | TF2: 0 | TG2: 0 | TH2: 0 | TI2: 0 | TJ2: 0 | TK2: 0 | TL2: 0 | TM2: 0 | TN2: 0 | TO2: 0 | TP2: 0 | TQ2: 0 | TR2: 1 | TS2: 2 | TT2: 0 | TU2: 0 | TV2: 0 | TW2: 0 | TX2: 0 | TY2: 0 | TZ2: 0 | UA2: 0 | UB2: 0 | UC2: 0 | UD2: 0 | UE2: 0 | UF2: 0 | UG2: 0 | UH2: 0 | UI2: 0 | UJ2: 0 | UK2: 0 | UL2: 0 | UM2: 0 | UN2: 0 | UO2: 0 | UP2: 0 | UQ2: 0 | UR2: 0 | US2: 0 | UT2: 0 | UU2: 0 | UV2: 0 | UW2: 0 | UX2: 0 | UY2: 0 | UZ2: 0 | VA2: 0 | VB2: 0 | VC2: 0 | VD2: 0 | VE2: 0 | VF2: 0 | VG2: 0 | VH2: 0 | VI2: 0 | VJ2: 0 | VK2: 0 | VL2: 0 | VM2: 0 | VN2: 0 | VO2: 0 | VP2: 0 | VQ2: 0 | VR2: 0 | VS2: 0 | VT2: 0 | VU2: 0 | VV2: 0 | VW2: 0 | VX2: 0 | VY2: 0 | VZ2: 0 | WA2: 0 | WB2: 0 | WC2: 0 | WD2: 0 | WE2: 0 | WF2: 0 | WG2: 0 | WH2: 0 | WI2: 0 | WJ2: 0 | WK2: 0 | WL2: 0 | WM2: 0 | WN2: 0 | WO2: 0 | WP2: 0 | WQ2: 0 | WR2: 0 | WS2: 0 | WT2: 0 | WU2: 0 | WV2: 0 | WW2: 0 | WX2: 0 | WY2: 0 | WZ2: 0 | XA2: 0 | XB2: 0 | XC2: 0 | XD2: 0 | XE2: 0 | XF2: 0 | XG2: 0 | XH2: 0 | XI2: 0 | XJ2: 0 | XK2: 0 | XL2: 0 | XM2: 0 | XN2: 0 | XO2: 0 | XP2: 0 | XQ2: 0 | XR2: 0 | XS2: 0 | XT2: 0 | XU2: 0 | XV2: 0 | XW2: 0 | XX2: 0 | XY2: 0 | XZ2: 0 | YA2: 0 | YB2: 1 | YC2: 0 | YD2: 0 | YE2: 0 | YF2: 0 | YG2: 0 | YH2: 0 | YI2: 0 | YJ2: 0 | YK2: 0 | YL2: 0 | YM2: 0 | YN2: 0 | YO2: 0 | YP2: 478 | YQ2: 478 | YR2: 478 | YS2: 0 | YT2: 0 | YU2: 0 | YV2: 0 | YW2: 0 | YX2: 0 | YY2: 478 | YZ2: 478 | ZA2: 478 | ZB2: 0 | ZC2: 0 | ZD2: 0 | ZE2: 0 | ZF2: 0 | ZG2: 0 | ZH2: 1 | ZI2: 0 | ZJ2: 438 | ZK2: 4 | ZL2: 3 | ZM2: 441 | ZN2: 1 | ZO2: 0 | ZP2: 438 | ZQ2: 1 | ZR2: 0 | ZS2: 438 | ZT2: 5 | ZU2: 4 | ZV2: 442 | ZW2: 1 | ZX2: 0 | ZY2: 438 | ZZ2: 1 | AAA2: 0 | AAB2: 438 | AAC2: 1 | AAD2: 0 | AAE2: 438 | AAF2: 0 | AAG2: 0 | AAH2: 0 | AAI2: 1 | AAJ2: 0 | AAK2: 438 | AAL2: 1 | AAM2: 0 | AAN2: 438 | AAO2: 0 | AAP2: 0 | AAQ2: 2 | AAR2: 4 | AAS2: 0 | AAT2: 0 | AAU2: 0 | AAV2: 0 | AAW2: 0 | AAX2: 0 | AAY2: 0 | AAZ2: 0 | ABA2: 0 | ABB2: 1 | ABC2: 0 | ABD2: 0 | ABE2: 0 | ABF2: 0 | ABG2: 0 | ABH2: 0 | ABI2: 0 | ABJ2: 0 | ABK2: 0 | ABL2: 0 | ABM2: 0 | ABN2: 0 | ABO2: 0 | ABP2: 0 | ABQ2: 1 | ABR2: 0 | ABS2: 0 | ABT2: 0 | ABU2: 0 | ABV2: 0 | ABW2: 0 | ABX2: 0 | ABY2: 0 | ABZ2: 0 | ACA2: 0 | ACB2: 0 | ACC2: 0 | ACD2: 0 | ACE2: 0 | ACF2: 0 | ACG2: 0 | ACH2: 0 | ACI2: 0 | ACJ2: 0 | ACK2: 0 | ACL2: 0 | ACM2: 0 | ACN2: 0 | ACO2: 0 | ACP2: 0 | ACQ2: 0 | ACR2: 0 | ACS2: 0 | ACT2: 0 | ACU2: 0 | ACV2: 0 | ACW2: 0 | ACX2: 0 | ACY2: 0 | ACZ2: 0 | ADA2: 0 | ADB2: 0 | ADC2: 0 | ADD2: 0 | ADE2: 0 | ADF2: 0 | ADG2: 0 | ADH2: 0 | ADI2: 0 | ADJ2: 2 | ADK2: 1 | ADL2: 0 | ADM2: 0 | ADN2: 0 | ADO2: 0 | ADP2: 0 | ADQ2: 0 | ADR2: 0 | ADS2: 0 | ADT2: 0 | ADU2: 0 | ADV2: 0 | ADW2: 0 | ADX2: 0 | ADY2: 0 | ADZ2: 0 | AEA2: 0 | AEB2: 0 | AEC2: 0 | AED2: 0 | AEE2: 0 | AEF2: 0 | AEG2: 0 | AEH2: 0 | AEI2: 0 | AEJ2: 0 | AEK2: 0 | AEL2: 0 | AEM2: 0 | AEN2: 0 | AEO2: 0 | AEP2: 0 | AEQ2: 0 | AER2: 0 | AES2: 0 | AET2: 0 | AEU2: 0 | AEV2: 0 | AEW2: 0 | AEX2: 0 | AEY2: 0 | AEZ2: 0 | AFA2: 0 | AFB2: 0 | AFC2: 0 | AFD2: 0 | AFE2: 0 | AFF2: 0 | AFG2: 0 | AFH2: 0 | AFI2: 0 | AFJ2: 0 | AFK2: 0 | AFL2: 0 | AFM2: 0 | AFN2: 0 | AFO2: 0 | AFP2: 1 | AFQ2: 0 | AFR2: 2 | AFS2: 1 | AFT2: 0 | AFU2: 0 | AFV2: 0 | AFW2: 0 | AFX2: 0 | AFY2: 0 | AFZ2: 0 | AGA2: 0 | AGB2: 0 | AGC2: 0 | AGD2: 0 | AGE2: 0 | AGF2: 0 | AGG2: 0 | AGH2: 0 | AGI2: 0 | AGJ2: 0 | AGK2: 0 | AGL2: 0 | AGM2: 0 | AGN2: 0 | AGO2: 0 | AGP2: 0 | AGQ2: 0 | AGR2: 0 | AGS2: 0 | AGT2: 0 | AGU2: 0 | AGV2: 0 | AGW2: 0 | AGX2: 0 | AGY2: 0 | AGZ2: 0 | AHA2: 0 | AHB2: 0 | AHC2: 0 | AHD2: 0 | AHE2: 0 | AHF2: 0 | AHG2: 0 | AHH2: 0 | AHI2: 0 | AHJ2: 0 | AHK2: 0 | AHL2: 0 | AHM2: 0 | AHN2: 0 | AHO2: 0 | AHP2: 0 | AHQ2: 0 | AHR2: 0 | AHS2: 0 | AHT2: 0 | AHU2: 0 | AHV2: 0 | AHW2: 0 | AHX2: 0 | AHY2: 0 | AHZ2: 0 | AIA2: 0 | AIB2: 0 | AIC2: 0 | AID2: 0 | AIE2: 0 | AIF2: 0 | AIG2: 0 | AIH2: 0 | AII2: 0 | AIJ2: 0 | AIK2: 0 | AIL2: 0 | AIM2: 0 | AIN2: 0 | AIO2: 0 | AIP2: 0 | AIQ2: 0 | AIR2: 0 | AIS2: 0 | AIT2: 0 | AIU2: 0 | AIV2: 0 | AIW2: 0 | AIX2: 0 | AIY2: 0 | AIZ2: 0 | AJA2: 0 | AJB2: 0 | AJC2: 0 | AJD2: 0 | AJE2: 0 | AJF2: 0 | AJG2: 0 | AJH2: 0 | AJI2: 0 | AJJ2: 0 | AJK2: 0 | AJL2: 0 | AJM2: 0 | AJN2: 0 | AJO2: 0 | AJP2: 0 | AJQ2: 0 | AJR2: 0 | AJS2: 0 | AJT2: 0 | AJU2: 0 | AJV2: 0 | AJW2: 0 | AJX2: 0 | AJY2: 0 | AJZ2: 0 | AKA2: 0 | AKB2: 0 | AKC2: 0 | AKD2: 0 | AKE2: 0 | AKF2: 0 | AKG2: 0 | AKH2: 0 | AKI2: 0 | AKJ2: 0 | AKK2: 0 | AKL2: 0 | AKM2: 0 | AKN2: 0 | AKO2: 0 | AKP2: 0 | AKQ2: 0 | AKR2: 0 | AKS2: 0 | AKT2: 0 | AKU2: 0 | AKV2: 0 | AKW2: 0 | AKX2: 0 | AKY2: 0 | AKZ2: 0 | ALA2: 0 | ALB2: 0 | ALC2: 0 | ALD2: 0 | ALE2: 0 | ALF2: 0 | ALG2: 0 | ALH2: 0 | ALI2: 1 | ALJ2: 2 | ALK2: 0 | ALL2: 0 | ALM2: 0 | ALN2: 0 | ALO2: 0 | ALP2: 0 | ALQ2: 0 | ALR2: 0 | ALS2: 0 | ALT2: 0 | ALU2: 0 | ALV2: 0 | ALW2: 0 | ALX2: 0 | ALY2: 0 | ALZ2: 0 | AMA2: 0 | AMB2: 0 | AMC2: 0 | AMD2: 0 | AME2: 0 | AMF2: 0 | AMG2: 0 | AMH2: 0 | AMI2: 0 | AMJ2: 0 | AMK2: 0 | AML2: 0 | AMM2: 0 | AMN2: 0 | AMO2: 0 | AMP2: 0 | AMQ2: 0 | AMR2: 0 | AMS2: 0 | AMT2: 0 | AMU2: 0 | AMV2: 0 | AMW2: 0 | AMX2: 0 | AMY2: 0 | AMZ2: 0 | ANA2: 0 | ANB2: 0 | ANC2: 0 | AND2: 0 | ANE2: 0 | ANF2: 0 | ANG2: 0 | ANH2: 0 | ANI2: 0 | ANJ2: 0 | ANK2: 0 | ANL2: 0 | ANM2: 0 | ANN2: 0 | ANO2: 0 | ANP2: 0 | ANQ2: 0 | ANR2: 0 | ANS2: 0 | ANT2: 0 | ANU2: 0 | ANV2: 0 | ANW2: 0 | ANX2: 0 | ANY2: 0 | ANZ2: 0 | AOA2: 0 | AOB2: 0 | AOC2: 0 | AOD2: 0 | AOE2: 0 | AOF2: 0 | AOG2: 0 | AOH2: 0 | AOI2: 0 | AOJ2: 0 | AOK2: 0 | AOL2: 0 | AOM2: 0 | AON2: 0 | AOO2: 0 | AOP2: 0 | AOQ2: 0 | AOR2: 0 | AOS2: 0 | AOT2: 0 | AOU2: 0 | AOV2: 0 | AOW2: 0 | AOX2: 0 | AOY2: 0 | AOZ2: 0 | APA2: 0 | APB2: 0 | APC2: 0 | APD2: 0 | APE2: 0 | APF2: 0 | APG2: 0 | APH2: 0 | API2: 0 | APJ2: 0 | APK2: 0 | APL2: 0 | APM2: 0 | APN2: 0 | APO2: 0 | APP2: 0 | APQ2: 0 | APR2: 0 | APS2: 0 | APT2: 0 | APU2: 0 | APV2: 0 | APW2: 0 | APX2: 0 | APY2: 0 | APZ2: 0 | AQA2: 0 | AQB2: 0 | AQC2: 0 | AQD2: 0 | AQE2: 0 | AQF2: 0 | AQG2: 0 | AQH2: 0 | AQI2: 0 | AQJ2: 0 | AQK2: 0 | AQL2: 0 | AQM2: 0 | AQN2: 0 | AQO2: 0 | AQP2: 0 | AQQ2: 0 | AQR2: 0 | AQS2: 0 | AQT2: 0 | AQU2: 0 | AQV2: 0 | AQW2: 0 | AQX2: 0 | AQY2: 0 | AQZ2: 0 | ARA2: 0 | ARB2: 0 | ARC2: 0 | ARD2: 0 | ARE2: 0 | ARF2: 0 | ARG2: 0 | ARH2: 0 | ARI2: 0 | ARJ2: 0 | ARK2: 0 | ARL2: 0 | ARM2: 0 | ARN2: 0
A3: LUCIANO CASTILLO COLONNA | B3: AYABACA | C3: 200201 | D3: AYABACA | E3: I-4 | F3: AYABACA | G3: NINGUN CLAS | H3: AYABACA | I3: AYABACA | J3: SALUD LUCIANO CASTILLO COLONNA | K3: 1911 | L3: 1 | M3: 0 | N3: 0 | O3: 0 | P3: 0 | Q3: 2 | R3: 1 | S3: 2 | T3: 2 | U3: 0 | V3: 0 | W3: 0 | X3: 0 | Y3: 0 | Z3: 0 | AA3: 0 | AB3: 0 | AC3: 0 | AD3: 0 | AE3: 0 | AF3: 0 | AG3: 0 | AH3: 0 | AI3: 0 | AJ3: 0 | AK3: 0 | AL3: 0 | AM3: 0 | AN3: 0 | AO3: 0 | AP3: 0 | AQ3: 0 | AR3: 0 | AS3: 0 | AT3: 0 | AU3: 2 | AV3: 1 | AW3: 2 | AX3: 2 | AY3: 0 | AZ3: 0 | BA3: 0 | BB3: 0 | BC3: 0 | BD3: 0 | BE3: 0 | BF3: 0 | BG3: 0 | BH3: 0 | BI3: 0 | BJ3: 0 | BK3: 0 | BL3: 0 | BM3: 0 | BN3: 0 | BO3: 0 | BP3: 0 | BQ3: 0 | BR3: 0 | BS3: 0 | BT3: 0 | BU3: 0 | BV3: 0 | BW3: 0 | BX3: 0 | BY3: 0 | BZ3: 0 | CA3: 0 | CB3: 0 | CC3: 0 | CD3: 0 | CE3: 0 | CF3: 0 | CG3: 0 | CH3: 0 | CI3: 0 | CJ3: 0 | CK3: 0 | CL3: 0 | CM3: 0 | CN3: 0 | CO3: 0 | CP3: 0 | CQ3: 0 | CR3: 0 | CS3: 0 | CT3: 0 | CU3: 0 | CV3: 0 | CW3: 0 | CX3: 0 | CY3: 0 | CZ3: 0 | DA3: 0 | DB3: 0 | DC3: 0 | DD3: 0 | DE3: 0 | DF3: 0 | DG3: 0 | DH3: 0 | DI3: 0 | DJ3: 0 | DK3: 0 | DL3: 0 | DM3: 0 | DN3: 0 | DO3: 0 | DP3: 0 | DQ3: 0 | DR3: 0 | DS3: 0 | DT3: 0 | DU3: 0 | DV3: 0 | DW3: 0 | DX3: 0 | DY3: 0 | DZ3: 0 | EA3: 0 | EB3: 0 | EC3: 0 | ED3: 0 | EE3: 0 | EF3: 0 | EG3: 0 | EH3: 0 | EI3: 0 | EJ3: 0 | EK3: 0 | EL3: 0 | EM3: 0 | EN3: 0 | EO3: 0 | EP3: 0 | EQ3: 0 | ER3: 0 | ES3: 0 | ET3: 0 | EU3: 0 | EV3: 0 | EW3: 0 | EX3: 0 | EY3: 0 | EZ3: 0 | FA3: 0 | FB3: 0 | FC3: 0 | FD3: 0 | FE3: 0 | FF3: 0 | FG3: 0 | FH3: 0 | FI3: 0 | FJ3: 0 | FK3: 0 | FL3: 0 | FM3: 0 | FN3: 0 | FO3: 0 | FP3: 0 | FQ3: 0 | FR3: 0 | FS3: 0 | FT3: 0 | FU3: 0 | FV3: 0 | FW3: 0 | FX3: 0 | FY3: 0 | FZ3: 0 | GA3: 0 | GB3: 1 | GC3: 2 | GD3: 0 | GE3: 0 | GF3: 0 | GG3: 0 | GH3: 0 | GI3: 0 | GJ3: 0 | GK3: 0 | GL3: 0 | GM3: 0 | GN3: 0 | GO3: 0 | GP3: 0 | GQ3: 0 | GR3: 0 | GS3: 0 | GT3: 0 | GU3: 6 | GV3: 16 | GW3: 17 | GX3: 0 | GY3: 0 | GZ3: 3 | HA3: 0 | HB3: 0 | HC3: 0 | HD3: 0 | HE3: 0 | HF3: 0 | HG3: 0 | HH3: 0 | HI3: 0 | HJ3: 0 | HK3: 0 | HL3: 0 | HM3: 0 | HN3: 0 | HO3: 0 | HP3: 0 | HQ3: 0 | HR3: 0 | HS3: 0 | HT3: 0 | HU3: 0 | HV3: 0 | HW3: 0 | HX3: 6 | HY3: 7 | HZ3: 4 | IA3: 0 | IB3: 0 | IC3: 0 | ID3: 0 | IE3: 0 | IF3: 0 | IG3: 0 | IH3: 0 | II3: 0 | IJ3: 0 | IK3: 0 | IL3: 0 | IM3: 0 | IN3: 0 | IO3: 0 | IP3: 0 | IQ3: 0 | IR3: 0 | IS3: 0 | IT3: 0 | IU3: 0 | IV3: 0 | IW3: 0 | IX3: 0 | IY3: 0 | IZ3: 0 | JA3: 0 | JB3: 0 | JC3: 0 | JD3: 0 | JE3: 0 | JF3: 0 | JG3: 0 | JH3: 0 | JI3: 0 | JJ3: 0 | JK3: 0 | JL3: 0 | JM3: 0 | JN3: 0 | JO3: 0 | JP3: 0 | JQ3: 0 | JR3: 0 | JS3: 0 | JT3: 0 | JU3: 0 | JV3: 0 | JW3: 0 | JX3: 0 | JY3: 0 | JZ3: 0 | KA3: 0 | KB3: 0 | KC3: 0 | KD3: 0 | KE3: 0 | KF3: 0 | KG3: 0 | KH3: 0 | KI3: 0 | KJ3: 0 | KK3: 0 | KL3: 0 | KM3: 0 | KN3: 0 | KO3: 0 | KP3: 0 | KQ3: 0 | KR3: 0 | KS3: 0 | KT3: 0 | KU3: 0 | KV3: 0 | KW3: 0 | KX3: 0 | KY3: 0 | KZ3: 0 | LA3: 0 | LB3: 0 | LC3: 0 | LD3: 0 | LE3: 0 | LF3: 0 | LG3: 0 | LH3: 0 | LI3: 0 | LJ3: 0 | LK3: 0 | LL3: 0 | LM3: 0 | LN3: 0 | LO3: 0 | LP3: 0 | LQ3: 0 | LR3: 0 | LS3: 0 | LT3: 0 | LU3: 0 | LV3: 0 | LW3: 0 | LX3: 0 | LY3: 0 | LZ3: 0 | MA3: 0 | MB3: 0 | MC3: 0 | MD3: 7 | ME3: 9 | MF3: 7 | MG3: 0 | MH3: 0 | MI3: 0 | MJ3: 14 | MK3: 17 | ML3: 0 | MM3: 0 | MN3: 0 | MO3: 0 | MP3: 0 | MQ3: 0 | MR3: 0 | MS3: 0 | MT3: 0 | MU3: 0 | MV3: 0 | MW3: 0 | MX3: 0 | MY3: 0 | MZ3: 0 | NA3: 0 | NB3: 0 | NC3: 0 | ND3: 0 | NE3: 0 | NF3: 0 | NG3: 0 | NH3: 0 | NI3: 0 | NJ3: 0 | NK3: 0 | NL3: 0 | NM3: 0 | NN3: 0 | NO3: 0 | NP3: 0 | NQ3: 0 | NR3: 0 | NS3: 0 | NT3: 0 | NU3: 0 | NV3: 0 | NW3: 0 | NX3: 0 | NY3: 0 | NZ3: 0 | OA3: 0 | OB3: 0 | OC3: 0 | OD3: 0 | OE3: 0 | OF3: 0 | OG3: 0 | OH3: 0 | OI3: 0 | OJ3: 0 | OK3: 0 | OL3: 0 | OM3: 0 | ON3: 0 | OO3: 0 | OP3: 0 | OQ3: 0 | OR3: 0 | OS3: 0 | OT3: 0 | OU3: 0 | OV3: 0 | OW3: 0 | OX3: 0 | OY3: 0 | OZ3: 0 | PA3: 0 | PB3: 0 | PC3: 0 | PD3: 0 | PE3: 0 | PF3: 0 | PG3: 0 | PH3: 0 | PI3: 0 | PJ3: 0 | PK3: 0 | PL3: 0 | PM3: 0 | PN3: 0 | PO3: 0 | PP3: 0 | PQ3: 0 | PR3: 0 | PS3: 0 | PT3: 0 | PU3: 0 | PV3: 0 | PW3: 0 | PX3: 0 | PY3: 0 | PZ3: 0 | QA3: 0 | QB3: 0 | QC3: 0 | QD3: 0 | QE3: 0 | QF3: 0 | QG3: 0 | QH3: 0 | QI3: 0 | QJ3: 0 | QK3: 0 | QL3: 0 | QM3: 0 | QN3: 0 | QO3: 0 | QP3: 0 | QQ3: 0 | QR3: 0 | QS3: 0 | QT3: 0 | QU3: 0 | QV3: 0 | QW3: 0 | QX3: 0 | QY3: 0 | QZ3: 0 | RA3: 0 | RB3: 0 | RC3: 0 | RD3: 0 | RE3: 0 | RF3: 0 | RG3: 0 | RH3: 0 | RI3: 0 | RJ3: 0 | RK3: 0 | RL3: 0 | RM3: 0 | RN3: 0 | RO3: 0 | RP3: 0 | RQ3: 0 | RR3: 0 | RS3: 0 | RT3: 0 | RU3: 0 | RV3: 0 | RW3: 0 | RX3: 0 | RY3: 0 | RZ3: 0 | SA3: 0 | SB3: 0 | SC3: 0 | SD3: 0 | SE3: 0 | SF3: 0 | SG3: 0 | SH3: 0 | SI3: 0 | SJ3: 0 | SK3: 0 | SL3: 0 | SM3: 0 | SN3: 0 | SO3: 0 | SP3: 0 | SQ3: 0 | SR3: 0 | SS3: 0 | ST3: 0 | SU3: 0 | SV3: 0 | SW3: 0 | SX3: 0 | SY3: 0 | SZ3: 0 | TA3: 0 | TB3: 0 | TC3: 0 | TD3: 0 | TE3: 0 | TF3: 0 | TG3: 0 | TH3: 0 | TI3: 0 | TJ3: 0 | TK3: 0 | TL3: 0 | TM3: 0 | TN3: 0 | TO3: 0 | TP3: 0 | TQ3: 0 | TR3: 0 | TS3: 0 | TT3: 0 | TU3: 0 | TV3: 0 | TW3: 0 | TX3: 0 | TY3: 0 | TZ3: 0 | UA3: 0 | UB3: 0 | UC3: 0 | UD3: 0 | UE3: 0 | UF3: 0 | UG3: 0 | UH3: 0 | UI3: 0 | UJ3: 0 | UK3: 0 | UL3: 0 | UM3: 0 | UN3: 0 | UO3: 0 | UP3: 0 | UQ3: 0 | UR3: 0 | US3: 0 | UT3: 0 | UU3: 0 | UV3: 0 | UW3: 0 | UX3: 0 | UY3: 0 | UZ3: 0 | VA3: 0 | VB3: 0 | VC3: 0 | VD3: 0 | VE3: 0 | VF3: 0 | VG3: 0 | VH3: 0 | VI3: 0 | VJ3: 0 | VK3: 0 | VL3: 0 | VM3: 0 | VN3: 0 | VO3: 0 | VP3: 0 | VQ3: 0 | VR3: 0 | VS3: 0 | VT3: 0 | VU3: 0 | VV3: 0 | VW3: 0 | VX3: 0 | VY3: 0 | VZ3: 0 | WA3: 0 | WB3: 0 | WC3: 0 | WD3: 0 | WE3: 0 | WF3: 0 | WG3: 0 | WH3: 0 | WI3: 0 | WJ3: 0 | WK3: 0 | WL3: 0 | WM3: 0 | WN3: 0 | WO3: 0 | WP3: 0 | WQ3: 0 | WR3: 0 | WS3: 0 | WT3: 0 | WU3: 0 | WV3: 0 | WW3: 0 | WX3: 0 | WY3: 0 | WZ3: 0 | XA3: 0 | XB3: 0 | XC3: 0 | XD3: 0 | XE3: 0 | XF3: 0 | XG3: 0 | XH3: 0 | XI3: 0 | XJ3: 0 | XK3: 0 | XL3: 0 | XM3: 0 | XN3: 0 | XO3: 0 | XP3: 0 | XQ3: 0 | XR3: 0 | XS3: 0 | XT3: 0 | XU3: 0 | XV3: 0 | XW3: 0 | XX3: 0 | XY3: 0 | XZ3: 0 | YA3: 0 | YB3: 0 | YC3: 0 | YD3: 0 | YE3: 0 | YF3: 0 | YG3: 0 | YH3: 0 | YI3: 0 | YJ3: 0 | YK3: 0 | YL3: 0 | YM3: 0 | YN3: 0 | YO3: 0 | YP3: 21 | YQ3: 21 | YR3: 21 | YS3: 0 | YT3: 0 | YU3: 0 | YV3: 0 | YW3: 0 | YX3: 0 | YY3: 21 | YZ3: 21 | ZA3: 21 | ZB3: 0 | ZC3: 0 | ZD3: 0 | ZE3: 0 | ZF3: 0 | ZG3: 0 | ZH3: 1 | ZI3: 1 | ZJ3: 0 | ZK3: 1 | ZL3: 1 | ZM3: 0 | ZN3: 1 | ZO3: 1 | ZP3: 0 | ZQ3: 1 | ZR3: 1 | ZS3: 0 | ZT3: 1 | ZU3: 1 | ZV3: 0 | ZW3: 1 | ZX3: 1 | ZY3: 0 | ZZ3: 1 | AAA3: 1 | AAB3: 0 | AAC3: 1 | AAD3: 1 | AAE3: 0 | AAF3: 0 | AAG3: 0 | AAH3: 0 | AAI3: 1 | AAJ3: 1 | AAK3: 0 | AAL3: 1 | AAM3: 1 | AAN3: 0 | AAO3: 0 | AAP3: 0 | AAQ3: 0 | AAR3: 0 | AAS3: 0 | AAT3: 0 | AAU3: 0 | AAV3: 0 | AAW3: 0 | AAX3: 0 | AAY3: 0 | AAZ3: 0 | ABA3: 0 | ABB3: 0 | ABC3: 0 | ABD3: 0 | ABE3: 0 | ABF3: 0 | ABG3: 0 | ABH3: 0 | ABI3: 0 | ABJ3: 0 | ABK3: 0 | ABL3: 0 | ABM3: 0 | ABN3: 0 | ABO3: 0 | ABP3: 0 | ABQ3: 0 | ABR3: 0 | ABS3: 0 | ABT3: 0 | ABU3: 0 | ABV3: 0 | ABW3: 0 | ABX3: 0 | ABY3: 0 | ABZ3: 0 | ACA3: 0 | ACB3: 0 | ACC3: 0 | ACD3: 0 | ACE3: 0 | ACF3: 0 | ACG3: 0 | ACH3: 0 | ACI3: 0 | ACJ3: 0 | ACK3: 0 | ACL3: 0 | ACM3: 0 | ACN3: 0 | ACO3: 0 | ACP3: 0 | ACQ3: 0 | ACR3: 0 | ACS3: 0 | ACT3: 0 | ACU3: 0 | ACV3: 0 | ACW3: 0 | ACX3: 0 | ACY3: 0 | ACZ3: 0 | ADA3: 0 | ADB3: 0 | ADC3: 0 | ADD3: 0 | ADE3: 0 | ADF3: 0 | ADG3: 0 | ADH3: 0 | ADI3: 0 | ADJ3: 0 | ADK3: 0 | ADL3: 0 | ADM3: 0 | ADN3: 0 | ADO3: 0 | ADP3: 0 | ADQ3: 0 | ADR3: 0 | ADS3: 0 | ADT3: 0 | ADU3: 0 | ADV3: 0 | ADW3: 0 | ADX3: 0 | ADY3: 0 | ADZ3: 0 | AEA3: 0 | AEB3: 0 | AEC3: 0 | AED3: 0 | AEE3: 0 | AEF3: 0 | AEG3: 0 | AEH3: 0 | AEI3: 0 | AEJ3: 0 | AEK3: 0 | AEL3: 0 | AEM3: 0 | AEN3: 0 | AEO3: 0 | AEP3: 0 | AEQ3: 0 | AER3: 0 | AES3: 0 | AET3: 0 | AEU3: 0 | AEV3: 0 | AEW3: 0 | AEX3: 0 | AEY3: 0 | AEZ3: 0 | AFA3: 0 | AFB3: 0 | AFC3: 0 | AFD3: 0 | AFE3: 0 | AFF3: 0 | AFG3: 0 | AFH3: 0 | AFI3: 0 | AFJ3: 0 | AFK3: 0 | AFL3: 0 | AFM3: 0 | AFN3: 0 | AFO3: 0 | AFP3: 0 | AFQ3: 0 | AFR3: 0 | AFS3: 0 | AFT3: 0 | AFU3: 0 | AFV3: 0 | AFW3: 0 | AFX3: 0 | AFY3: 0 | AFZ3: 0 | AGA3: 0 | AGB3: 0 | AGC3: 0 | AGD3: 0 | AGE3: 0 | AGF3: 0 | AGG3: 0 | AGH3: 0 | AGI3: 0 | AGJ3: 0 | AGK3: 0 | AGL3: 0 | AGM3: 0 | AGN3: 0 | AGO3: 0 | AGP3: 0 | AGQ3: 0 | AGR3: 0 | AGS3: 0 | AGT3: 0 | AGU3: 0 | AGV3: 0 | AGW3: 0 | AGX3: 0 | AGY3: 0 | AGZ3: 0 | AHA3: 0 | AHB3: 0 | AHC3: 0 | AHD3: 0 | AHE3: 0 | AHF3: 0 | AHG3: 0 | AHH3: 0 | AHI3: 0 | AHJ3: 0 | AHK3: 0 | AHL3: 0 | AHM3: 0 | AHN3: 0 | AHO3: 0 | AHP3: 0 | AHQ3: 0 | AHR3: 0 | AHS3: 0 | AHT3: 0 | AHU3: 0 | AHV3: 0 | AHW3: 0 | AHX3: 0 | AHY3: 0 | AHZ3: 0 | AIA3: 0 | AIB3: 0 | AIC3: 0 | AID3: 0 | AIE3: 0 | AIF3: 0 | AIG3: 0 | AIH3: 0 | AII3: 0 | AIJ3: 0 | AIK3: 0 | AIL3: 0 | AIM3: 0 | AIN3: 0 | AIO3: 0 | AIP3: 0 | AIQ3: 0 | AIR3: 0 | AIS3: 0 | AIT3: 0 | AIU3: 0 | AIV3: 0 | AIW3: 0 | AIX3: 0 | AIY3: 0 | AIZ3: 0 | AJA3: 0 | AJB3: 0 | AJC3: 0 | AJD3: 0 | AJE3: 0 | AJF3: 0 | AJG3: 0 | AJH3: 0 | AJI3: 0 | AJJ3: 0 | AJK3: 0 | AJL3: 0 | AJM3: 0 | AJN3: 0 | AJO3: 0 | AJP3: 0 | AJQ3: 0 | AJR3: 0 | AJS3: 0 | AJT3: 0 | AJU3: 0 | AJV3: 0 | AJW3: 0 | AJX3: 0 | AJY3: 0 | AJZ3: 0 | AKA3: 0 | AKB3: 0 | AKC3: 0 | AKD3: 0 | AKE3: 0 | AKF3: 0 | AKG3: 0 | AKH3: 0 | AKI3: 0 | AKJ3: 0 | AKK3: 0 | AKL3: 0 | AKM3: 0 | AKN3: 0 | AKO3: 0 | AKP3: 0 | AKQ3: 0 | AKR3: 0 | AKS3: 0 | AKT3: 0 | AKU3: 0 | AKV3: 0 | AKW3: 0 | AKX3: 0 | AKY3: 0 | AKZ3: 0 | ALA3: 0 | ALB3: 0 | ALC3: 0 | ALD3: 0 | ALE3: 0 | ALF3: 0 | ALG3: 0 | ALH3: 0 | ALI3: 0 | ALJ3: 0 | ALK3: 0 | ALL3: 0 | ALM3: 0 | ALN3: 0 | ALO3: 0 | ALP3: 0 | ALQ3: 0 | ALR3: 0 | ALS3: 0 | ALT3: 0 | ALU3: 0 | ALV3: 0 | ALW3: 0 | ALX3: 0 | ALY3: 0 | ALZ3: 0 | AMA3: 0 | AMB3: 0 | AMC3: 0 | AMD3: 0 | AME3: 0 | AMF3: 0 | AMG3: 0 | AMH3: 0 | AMI3: 0 | AMJ3: 0 | AMK3: 0 | AML3: 0 | AMM3: 0 | AMN3: 0 | AMO3: 0 | AMP3: 0 | AMQ3: 0 | AMR3: 0 | AMS3: 0 | AMT3: 0 | AMU3: 0 | AMV3: 0 | AMW3: 0 | AMX3: 0 | AMY3: 0 | AMZ3: 0 | ANA3: 0 | ANB3: 0 | ANC3: 0 | AND3: 0 | ANE3: 0 | ANF3: 0 | ANG3: 0 | ANH3: 0 | ANI3: 0 | ANJ3: 0 | ANK3: 0 | ANL3: 0 | ANM3: 0 | ANN3: 0 | ANO3: 0 | ANP3: 0 | ANQ3: 0 | ANR3: 0 | ANS3: 0 | ANT3: 0 | ANU3: 0 | ANV3: 0 | ANW3: 0 | ANX3: 0 | ANY3: 0 | ANZ3: 0 | AOA3: 0 | AOB3: 0 | AOC3: 0 | AOD3: 0 | AOE3: 0 | AOF3: 0 | AOG3: 0 | AOH3: 0 | AOI3: 0 | AOJ3: 0 | AOK3: 0 | AOL3: 0 | AOM3: 0 | AON3: 0 | AOO3: 0 | AOP3: 0 | AOQ3: 0 | AOR3: 0 | AOS3: 0 | AOT3: 0 | AOU3: 0 | AOV3: 0 | AOW3: 0 | AOX3: 0 | AOY3: 0 | AOZ3: 0 | APA3: 0 | APB3: 0 | APC3: 0 | APD3: 0 | APE3: 0 | APF3: 0 | APG3: 0 | APH3: 0 | API3: 0 | APJ3: 0 | APK3: 0 | APL3: 0 | APM3: 0 | APN3: 0 | APO3: 0 | APP3: 0 | APQ3: 0 | APR3: 0 | APS3: 0 | APT3: 0 | APU3: 0 | APV3: 0 | APW3: 0 | APX3: 0 | APY3: 0 | APZ3: 0 | AQA3: 0 | AQB3: 0 | AQC3: 0 | AQD3: 0 | AQE3: 0 | AQF3: 0 | AQG3: 0 | AQH3: 0 | AQI3: 0 | AQJ3: 0 | AQK3: 0 | AQL3: 0 | AQM3: 0 | AQN3: 0 | AQO3: 0 | AQP3: 0 | AQQ3: 0 | AQR3: 0 | AQS3: 0 | AQT3: 0 | AQU3: 0 | AQV3: 0 | AQW3: 0 | AQX3: 0 | AQY3: 0 | AQZ3: 0 | ARA3: 0 | ARB3: 0 | ARC3: 0 | ARD3: 0 | ARE3: 0 | ARF3: 0 | ARG3: 0 | ARH3: 0 | ARI3: 0 | ARJ3: 0 | ARK3: 0 | ARL3: 0 | ARM3: 0 | ARN3: 0
A4: LUCIANO CASTILLO COLONNA | B4: AYABACA | C4: 200201 | D4: TAPAL | E4: I-2 | F4: AYABACA | G4: NINGUN CLAS | H4: AYABACA | I4: AYABACA | J4: SALUD LUCIANO CASTILLO COLONNA | K4: 1912 | L4: 1 | M4: 0 | N4: 0 | O4: 0 | P4: 0 | Q4: 2 | R4: 2 | S4: 9 | T4: 9 | U4: 0 | V4: 0 | W4: 0 | X4: 0 | Y4: 0 | Z4: 0 | AA4: 0 | AB4: 0 | AC4: 0 | AD4: 0 | AE4: 0 | AF4: 0 | AG4: 0 | AH4: 0 | AI4: 0 | AJ4: 0 | AK4: 0 | AL4: 0 | AM4: 0 | AN4: 0 | AO4: 0 | AP4: 0 | AQ4: 0 | AR4: 0 | AS4: 0 | AT4: 0 | AU4: 2 | AV4: 2 | AW4: 8 | AX4: 8 | AY4: 0 | AZ4: 0 | BA4: 0 | BB4: 0 | BC4: 0 | BD4: 0 | BE4: 0 | BF4: 0 | BG4: 0 | BH4: 0 | BI4: 0 | BJ4: 0 | BK4: 0 | BL4: 0 | BM4: 0 | BN4: 0 | BO4: 0 | BP4: 0 | BQ4: 0 | BR4: 0 | BS4: 0 | BT4: 0 | BU4: 0 | BV4: 0 | BW4: 0 | BX4: 0 | BY4: 0 | BZ4: 0 | CA4: 0 | CB4: 0 | CC4: 0 | CD4: 0 | CE4: 0 | CF4: 0 | CG4: 0 | CH4: 0 | CI4: 0 | CJ4: 0 | CK4: 0 | CL4: 0 | CM4: 0 | CN4: 0 | CO4: 0 | CP4: 0 | CQ4: 0 | CR4: 0 | CS4: 0 | CT4: 0 | CU4: 1 | CV4: 1 | CW4: 0 | CX4: 0 | CY4: 0 | CZ4: 0 | DA4: 0 | DB4: 0 | DC4: 0 | DD4: 0 | DE4: 0 | DF4: 0 | DG4: 0 | DH4: 0 | DI4: 0 | DJ4: 0 | DK4: 0 | DL4: 0 | DM4: 0 | DN4: 0 | DO4: 0 | DP4: 0 | DQ4: 0 | DR4: 0 | DS4: 0 | DT4: 0 | DU4: 0 | DV4: 0 | DW4: 0 | DX4: 0 | DY4: 0 | DZ4: 0 | EA4: 0 | EB4: 0 | EC4: 0 | ED4: 0 | EE4: 0 | EF4: 0 | EG4: 0 | EH4: 0 | EI4: 0 | EJ4: 0 | EK4: 0 | EL4: 0 | EM4: 0 | EN4: 0 | EO4: 0 | EP4: 0 | EQ4: 0 | ER4: 0 | ES4: 0 | ET4: 0 | EU4: 0 | EV4: 0 | EW4: 0 | EX4: 0 | EY4: 0 | EZ4: 0 | FA4: 0 | FB4: 0 | FC4: 0 | FD4: 0 | FE4: 0 | FF4: 0 | FG4: 0 | FH4: 0 | FI4: 0 | FJ4: 0 | FK4: 0 | FL4: 0 | FM4: 0 | FN4: 0 | FO4: 0 | FP4: 0 | FQ4: 0 | FR4: 0 | FS4: 0 | FT4: 0 | FU4: 0 | FV4: 0 | FW4: 0 | FX4: 0 | FY4: 0 | FZ4: 0 | GA4: 0 | GB4: 0 | GC4: 0 | GD4: 0 | GE4: 0 | GF4: 0 | GG4: 0 | GH4: 0 | GI4: 0 | GJ4: 0 | GK4: 0 | GL4: 0 | GM4: 0 | GN4: 0 | GO4: 0 | GP4: 0 | GQ4: 0 | GR4: 0 | GS4: 0 | GT4: 0 | GU4: 5 | GV4: 5 | GW4: 12 | GX4: 0 | GY4: 6 | GZ4: 4 | HA4: 7 | HB4: 0 | HC4: 0 | HD4: 0 | HE4: 0 | HF4: 0 | HG4: 0 | HH4: 0 | HI4: 0 | HJ4: 0 | HK4: 0 | HL4: 0 | HM4: 0 | HN4: 0 | HO4: 0 | HP4: 0 | HQ4: 0 | HR4: 0 | HS4: 0 | HT4: 0 | HU4: 0 | HV4: 0 | HW4: 0 | HX4: 1 | HY4: 3 | HZ4: 2 | IA4: 0 | IB4: 0 | IC4: 0 | ID4: 1 | IE4: 1 | IF4: 0 | IG4: 0 | IH4: 0 | II4: 0 | IJ4: 0 | IK4: 0 | IL4: 0 | IM4: 0 | IN4: 0 | IO4: 0 | IP4: 0 | IQ4: 0 | IR4: 0 | IS4: 0 | IT4: 0 | IU4: 0 | IV4: 0 | IW4: 0 | IX4: 0 | IY4: 0 | IZ4: 0 | JA4: 0 | JB4: 0 | JC4: 0 | JD4: 0 | JE4: 0 | JF4: 0 | JG4: 0 | JH4: 0 | JI4: 0 | JJ4: 0 | JK4: 0 | JL4: 0 | JM4: 0 | JN4: 0 | JO4: 0 | JP4: 0 | JQ4: 0 | JR4: 0 | JS4: 0 | JT4: 0 | JU4: 0 | JV4: 0 | JW4: 0 | JX4: 0 | JY4: 0 | JZ4: 0 | KA4: 0 | KB4: 0 | KC4: 0 | KD4: 0 | KE4: 0 | KF4: 0 | KG4: 0 | KH4: 0 | KI4: 0 | KJ4: 0 | KK4: 0 | KL4: 0 | KM4: 0 | KN4: 0 | KO4: 0 | KP4: 0 | KQ4: 0 | KR4: 0 | KS4: 0 | KT4: 0 | KU4: 0 | KV4: 0 | KW4: 0 | KX4: 0 | KY4: 0 | KZ4: 0 | LA4: 0 | LB4: 0 | LC4: 0 | LD4: 0 | LE4: 0 | LF4: 0 | LG4: 0 | LH4: 0 | LI4: 0 | LJ4: 0 | LK4: 0 | LL4: 0 | LM4: 0 | LN4: 0 | LO4: 0 | LP4: 0 | LQ4: 0 | LR4: 0 | LS4: 0 | LT4: 0 | LU4: 0 | LV4: 0 | LW4: 0 | LX4: 0 | LY4: 0 | LZ4: 0 | MA4: 0 | MB4: 0 | MC4: 0 | MD4: 1 | ME4: 3 | MF4: 2 | MG4: 0 | MH4: 0 | MI4: 0 | MJ4: 3 | MK4: 7 | ML4: 0 | MM4: 0 | MN4: 0 | MO4: 0 | MP4: 0 | MQ4: 0 | MR4: 0 | MS4: 0 | MT4: 0 | MU4: 0 | MV4: 0 | MW4: 0 | MX4: 0 | MY4: 0 | MZ4: 0 | NA4: 0 | NB4: 0 | NC4: 0 | ND4: 0 | NE4: 0 | NF4: 0 | NG4: 0 | NH4: 0 | NI4: 0 | NJ4: 0 | NK4: 0 | NL4: 0 | NM4: 0 | NN4: 0 | NO4: 0 | NP4: 0 | NQ4: 0 | NR4: 0 | NS4: 0 | NT4: 0 | NU4: 0 | NV4: 0 | NW4: 0 | NX4: 0 | NY4: 0 | NZ4: 0 | OA4: 0 | OB4: 0 | OC4: 0 | OD4: 0 | OE4: 0 | OF4: 0 | OG4: 0 | OH4: 0 | OI4: 0 | OJ4: 0 | OK4: 0 | OL4: 0 | OM4: 0 | ON4: 0 | OO4: 0 | OP4: 0 | OQ4: 0 | OR4: 0 | OS4: 0 | OT4: 0 | OU4: 0 | OV4: 0 | OW4: 0 | OX4: 0 | OY4: 0 | OZ4: 0 | PA4: 0 | PB4: 0 | PC4: 0 | PD4: 0 | PE4: 0 | PF4: 0 | PG4: 0 | PH4: 0 | PI4: 0 | PJ4: 0 | PK4: 0 | PL4: 0 | PM4: 0 | PN4: 0 | PO4: 0 | PP4: 0 | PQ4: 0 | PR4: 0 | PS4: 0 | PT4: 0 | PU4: 0 | PV4: 0 | PW4: 0 | PX4: 0 | PY4: 0 | PZ4: 0 | QA4: 0 | QB4: 0 | QC4: 0 | QD4: 0 | QE4: 0 | QF4: 0 | QG4: 0 | QH4: 0 | QI4: 0 | QJ4: 0 | QK4: 0 | QL4: 0 | QM4: 0 | QN4: 0 | QO4: 0 | QP4: 0 | QQ4: 0 | QR4: 0 | QS4: 0 | QT4: 0 | QU4: 0 | QV4: 0 | QW4: 0 | QX4: 0 | QY4: 0 | QZ4: 0 | RA4: 0 | RB4: 0 | RC4: 0 | RD4: 0 | RE4: 0 | RF4: 0 | RG4: 0 | RH4: 0 | RI4: 0 | RJ4: 0 | RK4: 0 | RL4: 0 | RM4: 0 | RN4: 0 | RO4: 0 | RP4: 0 | RQ4: 0 | RR4: 0 | RS4: 0 | RT4: 0 | RU4: 0 | RV4: 0 | RW4: 0 | RX4: 0 | RY4: 0 | RZ4: 0 | SA4: 0 | SB4: 0 | SC4: 0 | SD4: 0 | SE4: 0 | SF4: 0 | SG4: 0 | SH4: 0 | SI4: 0 | SJ4: 0 | SK4: 0 | SL4: 0 | SM4: 0 | SN4: 0 | SO4: 0 | SP4: 0 | SQ4: 0 | SR4: 0 | SS4: 0 | ST4: 0 | SU4: 0 | SV4: 0 | SW4: 0 | SX4: 0 | SY4: 0 | SZ4: 0 | TA4: 0 | TB4: 0 | TC4: 0 | TD4: 0 | TE4: 0 | TF4: 0 | TG4: 0 | TH4: 0 | TI4: 0 | TJ4: 0 | TK4: 0 | TL4: 0 | TM4: 0 | TN4: 0 | TO4: 0 | TP4: 0 | TQ4: 0 | TR4: 0 | TS4: 0 | TT4: 0 | TU4: 0 | TV4: 0 | TW4: 0 | TX4: 0 | TY4: 0 | TZ4: 0 | UA4: 0 | UB4: 0 | UC4: 0 | UD4: 0 | UE4: 0 | UF4: 0 | UG4: 0 | UH4: 0 | UI4: 0 | UJ4: 0 | UK4: 0 | UL4: 0 | UM4: 0 | UN4: 0 | UO4: 0 | UP4: 0 | UQ4: 0 | UR4: 0 | US4: 0 | UT4: 0 | UU4: 0 | UV4: 0 | UW4: 0 | UX4: 0 | UY4: 0 | UZ4: 0 | VA4: 0 | VB4: 0 | VC4: 0 | VD4: 0 | VE4: 0 | VF4: 0 | VG4: 0 | VH4: 0 | VI4: 0 | VJ4: 0 | VK4: 0 | VL4: 0 | VM4: 0 | VN4: 0 | VO4: 0 | VP4: 0 | VQ4: 0 | VR4: 0 | VS4: 0 | VT4: 0 | VU4: 0 | VV4: 0 | VW4: 0 | VX4: 0 | VY4: 0 | VZ4: 0 | WA4: 0 | WB4: 0 | WC4: 0 | WD4: 0 | WE4: 0 | WF4: 0 | WG4: 0 | WH4: 0 | WI4: 0 | WJ4: 0 | WK4: 0 | WL4: 0 | WM4: 0 | WN4: 0 | WO4: 0 | WP4: 0 | WQ4: 0 | WR4: 0 | WS4: 0 | WT4: 0 | WU4: 0 | WV4: 0 | WW4: 0 | WX4: 0 | WY4: 0 | WZ4: 0 | XA4: 0 | XB4: 0 | XC4: 0 | XD4: 0 | XE4: 0 | XF4: 0 | XG4: 0 | XH4: 0 | XI4: 0 | XJ4: 0 | XK4: 0 | XL4: 0 | XM4: 0 | XN4: 0 | XO4: 0 | XP4: 0 | XQ4: 0 | XR4: 0 | XS4: 0 | XT4: 0 | XU4: 0 | XV4: 0 | XW4: 0 | XX4: 0 | XY4: 0 | XZ4: 0 | YA4: 0 | YB4: 0 | YC4: 0 | YD4: 0 | YE4: 0 | YF4: 0 | YG4: 0 | YH4: 0 | YI4: 0 | YJ4: 0 | YK4: 0 | YL4: 0 | YM4: 0 | YN4: 0 | YO4: 0 | YP4: 0 | YQ4: 0 | YR4: 0 | YS4: 0 | YT4: 0 | YU4: 0 | YV4: 0 | YW4: 0 | YX4: 0 | YY4: 0 | YZ4: 0 | ZA4: 0 | ZB4: 0 | ZC4: 0 | ZD4: 0 | ZE4: 0 | ZF4: 0 | ZG4: 0 | ZH4: 0 | ZI4: 0 | ZJ4: 0 | ZK4: 0 | ZL4: 0 | ZM4: 0 | ZN4: 0 | ZO4: 0 | ZP4: 0 | ZQ4: 0 | ZR4: 0 | ZS4: 0 | ZT4: 0 | ZU4: 0 | ZV4: 0 | ZW4: 0 | ZX4: 0 | ZY4: 0 | ZZ4: 0 | AAA4: 0 | AAB4: 0 | AAC4: 0 | AAD4: 0 | AAE4: 0 | AAF4: 0 | AAG4: 0 | AAH4: 0 | AAI4: 0 | AAJ4: 0 | AAK4: 0 | AAL4: 0 | AAM4: 0 | AAN4: 0 | AAO4: 0 | AAP4: 0 | AAQ4: 0 | AAR4: 0 | AAS4: 0 | AAT4: 0 | AAU4: 0 | AAV4: 0 | AAW4: 0 | AAX4: 0 | AAY4: 0 | AAZ4: 0 | ABA4: 0 | ABB4: 0 | ABC4: 0 | ABD4: 0 | ABE4: 0 | ABF4: 0 | ABG4: 0 | ABH4: 0 | ABI4: 0 | ABJ4: 0 | ABK4: 0 | ABL4: 0 | ABM4: 0 | ABN4: 0 | ABO4: 0 | ABP4: 0 | ABQ4: 0 | ABR4: 0 | ABS4: 0 | ABT4: 0 | ABU4: 0 | ABV4: 0 | ABW4: 0 | ABX4: 0 | ABY4: 0 | ABZ4: 0 | ACA4: 0 | ACB4: 0 | ACC4: 0 | ACD4: 0 | ACE4: 0 | ACF4: 0 | ACG4: 0 | ACH4: 0 | ACI4: 0 | ACJ4: 0 | ACK4: 0 | ACL4: 0 | ACM4: 0 | ACN4: 0 | ACO4: 0 | ACP4: 0 | ACQ4: 0 | ACR4: 0 | ACS4: 0 | ACT4: 0 | ACU4: 0 | ACV4: 0 | ACW4: 0 | ACX4: 0 | ACY4: 0 | ACZ4: 0 | ADA4: 0 | ADB4: 0 | ADC4: 0 | ADD4: 0 | ADE4: 0 | ADF4: 0 | ADG4: 0 | ADH4: 0 | ADI4: 0 | ADJ4: 0 | ADK4: 0 | ADL4: 0 | ADM4: 0 | ADN4: 0 | ADO4: 0 | ADP4: 0 | ADQ4: 0 | ADR4: 0 | ADS4: 0 | ADT4: 0 | ADU4: 0 | ADV4: 0 | ADW4: 0 | ADX4: 0 | ADY4: 0 | ADZ4: 0 | AEA4: 0 | AEB4: 0 | AEC4: 0 | AED4: 0 | AEE4: 0 | AEF4: 0 | AEG4: 0 | AEH4: 0 | AEI4: 0 | AEJ4: 0 | AEK4: 0 | AEL4: 0 | AEM4: 0 | AEN4: 0 | AEO4: 0 | AEP4: 0 | AEQ4: 0 | AER4: 0 | AES4: 0 | AET4: 0 | AEU4: 0 | AEV4: 0 | AEW4: 0 | AEX4: 0 | AEY4: 0 | AEZ4: 0 | AFA4: 0 | AFB4: 0 | AFC4: 0 | AFD4: 0 | AFE4: 0 | AFF4: 0 | AFG4: 0 | AFH4: 0 | AFI4: 0 | AFJ4: 0 | AFK4: 0 | AFL4: 0 | AFM4: 0 | AFN4: 0 | AFO4: 0 | AFP4: 0 | AFQ4: 0 | AFR4: 0 | AFS4: 0 | AFT4: 0 | AFU4: 0 | AFV4: 0 | AFW4: 0 | AFX4: 0 | AFY4: 0 | AFZ4: 0 | AGA4: 0 | AGB4: 0 | AGC4: 0 | AGD4: 0 | AGE4: 0 | AGF4: 0 | AGG4: 0 | AGH4: 0 | AGI4: 0 | AGJ4: 0 | AGK4: 0 | AGL4: 0 | AGM4: 0 | AGN4: 0 | AGO4: 0 | AGP4: 0 | AGQ4: 0 | AGR4: 0 | AGS4: 0 | AGT4: 0 | AGU4: 0 | AGV4: 0 | AGW4: 0 | AGX4: 0 | AGY4: 0 | AGZ4: 0 | AHA4: 0 | AHB4: 0 | AHC4: 0 | AHD4: 0 | AHE4: 0 | AHF4: 0 | AHG4: 0 | AHH4: 0 | AHI4: 0 | AHJ4: 0 | AHK4: 0 | AHL4: 0 | AHM4: 0 | AHN4: 0 | AHO4: 0 | AHP4: 0 | AHQ4: 0 | AHR4: 0 | AHS4: 0 | AHT4: 0 | AHU4: 0 | AHV4: 0 | AHW4: 0 | AHX4: 0 | AHY4: 0 | AHZ4: 0 | AIA4: 0 | AIB4: 0 | AIC4: 0 | AID4: 0 | AIE4: 0 | AIF4: 0 | AIG4: 0 | AIH4: 0 | AII4: 0 | AIJ4: 0 | AIK4: 0 | AIL4: 0 | AIM4: 0 | AIN4: 0 | AIO4: 0 | AIP4: 0 | AIQ4: 0 | AIR4: 0 | AIS4: 0 | AIT4: 0 | AIU4: 0 | AIV4: 0 | AIW4: 0 | AIX4: 0 | AIY4: 0 | AIZ4: 0 | AJA4: 0 | AJB4: 0 | AJC4: 0 | AJD4: 0 | AJE4: 0 | AJF4: 0 | AJG4: 0 | AJH4: 0 | AJI4: 0 | AJJ4: 0 | AJK4: 0 | AJL4: 0 | AJM4: 0 | AJN4: 0 | AJO4: 0 | AJP4: 0 | AJQ4: 0 | AJR4: 0 | AJS4: 0 | AJT4: 0 | AJU4: 0 | AJV4: 0 | AJW4: 0 | AJX4: 0 | AJY4: 0 | AJZ4: 0 | AKA4: 0 | AKB4: 0 | AKC4: 0 | AKD4: 0 | AKE4: 0 | AKF4: 0 | AKG4: 0 | AKH4: 0 | AKI4: 0 | AKJ4: 0 | AKK4: 0 | AKL4: 0 | AKM4: 0 | AKN4: 0 | AKO4: 0 | AKP4: 0 | AKQ4: 0 | AKR4: 0 | AKS4: 0 | AKT4: 0 | AKU4: 0 | AKV4: 0 | AKW4: 0 | AKX4: 0 | AKY4: 0 | AKZ4: 0 | ALA4: 0 | ALB4: 0 | ALC4: 0 | ALD4: 0 | ALE4: 0 | ALF4: 0 | ALG4: 0 | ALH4: 0 | ALI4: 0 | ALJ4: 0 | ALK4: 0 | ALL4: 0 | ALM4: 0 | ALN4: 0 | ALO4: 0 | ALP4: 0 | ALQ4: 0 | ALR4: 0 | ALS4: 0 | ALT4: 0 | ALU4: 0 | ALV4: 0 | ALW4: 0 | ALX4: 0 | ALY4: 0 | ALZ4: 0 | AMA4: 0 | AMB4: 0 | AMC4: 0 | AMD4: 0 | AME4: 0 | AMF4: 0 | AMG4: 0 | AMH4: 0 | AMI4: 0 | AMJ4: 0 | AMK4: 0 | AML4: 0 | AMM4: 0 | AMN4: 0 | AMO4: 0 | AMP4: 0 | AMQ4: 0 | AMR4: 0 | AMS4: 0 | AMT4: 0 | AMU4: 0 | AMV4: 0 | AMW4: 0 | AMX4: 0 | AMY4: 0 | AMZ4: 0 | ANA4: 0 | ANB4: 0 | ANC4: 0 | AND4: 0 | ANE4: 0 | ANF4: 0 | ANG4: 0 | ANH4: 0 | ANI4: 0 | ANJ4: 0 | ANK4: 0 | ANL4: 0 | ANM4: 0 | ANN4: 0 | ANO4: 0 | ANP4: 0 | ANQ4: 0 | ANR4: 0 | ANS4: 0 | ANT4: 0 | ANU4: 0 | ANV4: 0 | ANW4: 0 | ANX4: 0 | ANY4: 0 | ANZ4: 0 | AOA4: 0 | AOB4: 0 | AOC4: 0 | AOD4: 0 | AOE4: 0 | AOF4: 0 | AOG4: 0 | AOH4: 0 | AOI4: 0 | AOJ4: 0 | AOK4: 0 | AOL4: 0 | AOM4: 0 | AON4: 0 | AOO4: 0 | AOP4: 0 | AOQ4: 0 | AOR4: 0 | AOS4: 0 | AOT4: 0 | AOU4: 0 | AOV4: 0 | AOW4: 0 | AOX4: 0 | AOY4: 0 | AOZ4: 0 | APA4: 0 | APB4: 0 | APC4: 0 | APD4: 0 | APE4: 0 | APF4: 0 | APG4: 0 | APH4: 0 | API4: 0 | APJ4: 0 | APK4: 0 | APL4: 0 | APM4: 0 | APN4: 0 | APO4: 0 | APP4: 0 | APQ4: 0 | APR4: 0 | APS4: 0 | APT4: 0 | APU4: 0 | APV4: 0 | APW4: 0 | APX4: 0 | APY4: 0 | APZ4: 0 | AQA4: 0 | AQB4: 0 | AQC4: 0 | AQD4: 0 | AQE4: 0 | AQF4: 0 | AQG4: 0 | AQH4: 0 | AQI4: 0 | AQJ4: 0 | AQK4: 0 | AQL4: 0 | AQM4: 0 | AQN4: 0 | AQO4: 0 | AQP4: 0 | AQQ4: 0 | AQR4: 0 | AQS4: 0 | AQT4: 0 | AQU4: 0 | AQV4: 0 | AQW4: 0 | AQX4: 0 | AQY4: 0 | AQZ4: 0 | ARA4: 0 | ARB4: 0 | ARC4: 0 | ARD4: 0 | ARE4: 0 | ARF4: 0 | ARG4: 0 | ARH4: 0 | ARI4: 0 | ARJ4: 0 | ARK4: 0 | ARL4: 0 | ARM4: 0 | ARN4: 0
A5: LUCIANO CASTILLO COLONNA | B5: AYABACA | C5: 200201 | D5: CHINCHIN | E5: I-1 | F5: AYABACA | G5: NINGUN CLAS | H5: AYABACA | I5: AYABACA | J5: SALUD LUCIANO CASTILLO COLONNA | K5: 1913 | L5: 1 | M5: 0 | N5: 0 | O5: 0 | P5: 0 | Q5: 0 | R5: 0 | S5: 0 | T5: 0 | U5: 0 | V5: 0 | W5: 0 | X5: 0 | Y5: 0 | Z5: 0 | AA5: 0 | AB5: 0 | AC5: 0 | AD5: 0 | AE5: 0 | AF5: 0 | AG5: 0 | AH5: 0 | AI5: 0 | AJ5: 0 | AK5: 0 | AL5: 0 | AM5: 0 | AN5: 0 | AO5: 0 | AP5: 0 | AQ5: 0 | AR5: 0 | AS5: 0 | AT5: 0 | AU5: 0 | AV5: 0 | AW5: 0 | AX5: 0 | AY5: 0 | AZ5: 0 | BA5: 0 | BB5: 0 | BC5: 0 | BD5: 0 | BE5: 0 | BF5: 0 | BG5: 0 | BH5: 0 | BI5: 0 | BJ5: 0 | BK5: 0 | BL5: 0 | BM5: 0 | BN5: 0 | BO5: 0 | BP5: 0 | BQ5: 0 | BR5: 0 | BS5: 0 | BT5: 0 | BU5: 0 | BV5: 0 | BW5: 0 | BX5: 0 | BY5: 0 | BZ5: 0 | CA5: 0 | CB5: 0 | CC5: 0 | CD5: 0 | CE5: 0 | CF5: 0 | CG5: 0 | CH5: 0 | CI5: 0 | CJ5: 0 | CK5: 0 | CL5: 0 | CM5: 0 | CN5: 0 | CO5: 0 | CP5: 0 | CQ5: 0 | CR5: 0 | CS5: 0 | CT5: 0 | CU5: 0 | CV5: 0 | CW5: 0 | CX5: 0 | CY5: 0 | CZ5: 0 | DA5: 0 | DB5: 0 | DC5: 0 | DD5: 0 | DE5: 0 | DF5: 0 | DG5: 0 | DH5: 0 | DI5: 0 | DJ5: 0 | DK5: 0 | DL5: 0 | DM5: 0 | DN5: 0 | DO5: 0 | DP5: 0 | DQ5: 0 | DR5: 0 | DS5: 0 | DT5: 0 | DU5: 0 | DV5: 0 | DW5: 0 | DX5: 0 | DY5: 0 | DZ5: 0 | EA5: 0 | EB5: 0 | EC5: 0 | ED5: 0 | EE5: 0 | EF5: 0 | EG5: 0 | EH5: 0 | EI5: 0 | EJ5: 0 | EK5: 0 | EL5: 0 | EM5: 0 | EN5: 0 | EO5: 0 | EP5: 0 | EQ5: 0 | ER5: 0 | ES5: 0 | ET5: 0 | EU5: 0 | EV5: 0 | EW5: 0 | EX5: 0 | EY5: 0 | EZ5: 0 | FA5: 0 | FB5: 0 | FC5: 0 | FD5: 0 | FE5: 0 | FF5: 0 | FG5: 0 | FH5: 0 | FI5: 0 | FJ5: 0 | FK5: 0 | FL5: 0 | FM5: 0 | FN5: 0 | FO5: 0 | FP5: 0 | FQ5: 0 | FR5: 0 | FS5: 0 | FT5: 0 | FU5: 0 | FV5: 0 | FW5: 0 | FX5: 0 | FY5: 0 | FZ5: 0 | GA5: 0 | GB5: 0 | GC5: 0 | GD5: 2 | GE5: 0 | GF5: 0 | GG5: 0 | GH5: 0 | GI5: 0 | GJ5: 0 | GK5: 0 | GL5: 0 | GM5: 0 | GN5: 0 | GO5: 0 | GP5: 0 | GQ5: 0 | GR5: 0 | GS5: 0 | GT5: 0 | GU5: 0 | GV5: 0 | GW5: 3 | GX5: 0 | GY5: 0 | GZ5: 0 | HA5: 0 | HB5: 0 | HC5: 0 | HD5: 0 | HE5: 0 | HF5: 0 | HG5: 0 | HH5: 0 | HI5: 0 | HJ5: 0 | HK5: 0 | HL5: 0 | HM5: 0 | HN5: 0 | HO5: 0 | HP5: 0 | HQ5: 0 | HR5: 0 | HS5: 0 | HT5: 0 | HU5: 0 | HV5: 0 | HW5: 0 | HX5: 0 | HY5: 0 | HZ5: 1 | IA5: 0 | IB5: 0 | IC5: 0 | ID5: 0 | IE5: 0 | IF5: 0 | IG5: 0 | IH5: 0 | II5: 0 | IJ5: 0 | IK5: 0 | IL5: 0 | IM5: 0 | IN5: 0 | IO5: 0 | IP5: 0 | IQ5: 0 | IR5: 0 | IS5: 0 | IT5: 0 | IU5: 0 | IV5: 0 | IW5: 0 | IX5: 0 | IY5: 0 | IZ5: 0 | JA5: 0 | JB5: 0 | JC5: 0 | JD5: 0 | JE5: 0 | JF5: 0 | JG5: 0 | JH5: 0 | JI5: 0 | JJ5: 0 | JK5: 0 | JL5: 0 | JM5: 0 | JN5: 0 | JO5: 0 | JP5: 0 | JQ5: 0 | JR5: 0 | JS5: 0 | JT5: 0 | JU5: 0 | JV5: 0 | JW5: 0 | JX5: 0 | JY5: 0 | JZ5: 0 | KA5: 0 | KB5: 0 | KC5: 0 | KD5: 0 | KE5: 0 | KF5: 0 | KG5: 0 | KH5: 0 | KI5: 0 | KJ5: 0 | KK5: 0 | KL5: 0 | KM5: 0 | KN5: 0 | KO5: 0 | KP5: 0 | KQ5: 0 | KR5: 0 | KS5: 0 | KT5: 0 | KU5: 0 | KV5: 0 | KW5: 0 | KX5: 0 | KY5: 0 | KZ5: 0 | LA5: 0 | LB5: 0 | LC5: 0 | LD5: 0 | LE5: 0 | LF5: 0 | LG5: 0 | LH5: 0 | LI5: 0 | LJ5: 0 | LK5: 0 | LL5: 0 | LM5: 0 | LN5: 0 | LO5: 0 | LP5: 0 | LQ5: 0 | LR5: 0 | LS5: 0 | LT5: 0 | LU5: 0 | LV5: 0 | LW5: 0 | LX5: 0 | LY5: 0 | LZ5: 0 | MA5: 0 | MB5: 0 | MC5: 0 | MD5: 0 | ME5: 0 | MF5: 5 | MG5: 0 | MH5: 0 | MI5: 0 | MJ5: 0 | MK5: 2 | ML5: 0 | MM5: 0 | MN5: 0 | MO5: 0 | MP5: 0 | MQ5: 0 | MR5: 0 | MS5: 0 | MT5: 0 | MU5: 0 | MV5: 0 | MW5: 0 | MX5: 0 | MY5: 0 | MZ5: 0 | NA5: 0 | NB5: 0 | NC5: 0 | ND5: 0 | NE5: 0 | NF5: 0 | NG5: 0 | NH5: 0 | NI5: 0 | NJ5: 0 | NK5: 0 | NL5: 0 | NM5: 0 | NN5: 0 | NO5: 0 | NP5: 0 | NQ5: 0 | NR5: 0 | NS5: 0 | NT5: 0 | NU5: 0 | NV5: 0 | NW5: 0 | NX5: 0 | NY5: 0 | NZ5: 0 | OA5: 0 | OB5: 0 | OC5: 0 | OD5: 0 | OE5: 0 | OF5: 0 | OG5: 0 | OH5: 0 | OI5: 0 | OJ5: 0 | OK5: 0 | OL5: 0 | OM5: 0 | ON5: 0 | OO5: 0 | OP5: 0 | OQ5: 0 | OR5: 0 | OS5: 0 | OT5: 0 | OU5: 0 | OV5: 0 | OW5: 0 | OX5: 0 | OY5: 0 | OZ5: 0 | PA5: 0 | PB5: 0 | PC5: 0 | PD5: 0 | PE5: 0 | PF5: 0 | PG5: 0 | PH5: 0 | PI5: 0 | PJ5: 0 | PK5: 0 | PL5: 0 | PM5: 0 | PN5: 0 | PO5: 0 | PP5: 0 | PQ5: 0 | PR5: 0 | PS5: 0 | PT5: 0 | PU5: 0 | PV5: 0 | PW5: 0 | PX5: 0 | PY5: 0 | PZ5: 0 | QA5: 0 | QB5: 0 | QC5: 0 | QD5: 0 | QE5: 0 | QF5: 0 | QG5: 0 | QH5: 0 | QI5: 0 | QJ5: 0 | QK5: 0 | QL5: 0 | QM5: 0 | QN5: 0 | QO5: 0 | QP5: 0 | QQ5: 0 | QR5: 0 | QS5: 0 | QT5: 0 | QU5: 0 | QV5: 0 | QW5: 0 | QX5: 0 | QY5: 0 | QZ5: 0 | RA5: 0 | RB5: 0 | RC5: 0 | RD5: 0 | RE5: 0 | RF5: 0 | RG5: 0 | RH5: 0 | RI5: 0 | RJ5: 0 | RK5: 0 | RL5: 0 | RM5: 0 | RN5: 0 | RO5: 0 | RP5: 0 | RQ5: 0 | RR5: 0 | RS5: 0 | RT5: 0 | RU5: 0 | RV5: 0 | RW5: 0 | RX5: 0 | RY5: 0 | RZ5: 0 | SA5: 0 | SB5: 0 | SC5: 0 | SD5: 0 | SE5: 0 | SF5: 0 | SG5: 0 | SH5: 0 | SI5: 0 | SJ5: 0 | SK5: 0 | SL5: 0 | SM5: 0 | SN5: 0 | SO5: 0 | SP5: 0 | SQ5: 0 | SR5: 0 | SS5: 0 | ST5: 0 | SU5: 0 | SV5: 0 | SW5: 0 | SX5: 0 | SY5: 0 | SZ5: 0 | TA5: 0 | TB5: 0 | TC5: 0 | TD5: 0 | TE5: 0 | TF5: 0 | TG5: 0 | TH5: 0 | TI5: 0 | TJ5: 0 | TK5: 0 | TL5: 0 | TM5: 0 | TN5: 0 | TO5: 0 | TP5: 0 | TQ5: 0 | TR5: 0 | TS5: 0 | TT5: 0 | TU5: 0 | TV5: 0 | TW5: 0 | TX5: 0 | TY5: 0 | TZ5: 0 | UA5: 0 | UB5: 0 | UC5: 0 | UD5: 0 | UE5: 0 | UF5: 0 | UG5: 0 | UH5: 0 | UI5: 0 | UJ5: 0 | UK5: 0 | UL5: 0 | UM5: 0 | UN5: 0 | UO5: 0 | UP5: 0 | UQ5: 0 | UR5: 0 | US5: 0 | UT5: 0 | UU5: 0 | UV5: 0 | UW5: 0 | UX5: 0 | UY5: 0 | UZ5: 0 | VA5: 0 | VB5: 0 | VC5: 0 | VD5: 0 | VE5: 0 | VF5: 0 | VG5: 0 | VH5: 0 | VI5: 0 | VJ5: 0 | VK5: 0 | VL5: 0 | VM5: 0 | VN5: 0 | VO5: 0 | VP5: 0 | VQ5: 0 | VR5: 0 | VS5: 0 | VT5: 0 | VU5: 0 | VV5: 0 | VW5: 0 | VX5: 0 | VY5: 0 | VZ5: 0 | WA5: 0 | WB5: 0 | WC5: 0 | WD5: 0 | WE5: 0 | WF5: 0 | WG5: 0 | WH5: 0 | WI5: 0 | WJ5: 0 | WK5: 0 | WL5: 0 | WM5: 0 | WN5: 0 | WO5: 0 | WP5: 0 | WQ5: 0 | WR5: 0 | WS5: 0 | WT5: 0 | WU5: 0 | WV5: 0 | WW5: 0 | WX5: 0 | WY5: 0 | WZ5: 0 | XA5: 0 | XB5: 0 | XC5: 0 | XD5: 0 | XE5: 0 | XF5: 0 | XG5: 0 | XH5: 0 | XI5: 0 | XJ5: 0 | XK5: 0 | XL5: 0 | XM5: 0 | XN5: 0 | XO5: 0 | XP5: 0 | XQ5: 0 | XR5: 0 | XS5: 0 | XT5: 0 | XU5: 0 | XV5: 0 | XW5: 0 | XX5: 0 | XY5: 0 | XZ5: 0 | YA5: 0 | YB5: 0 | YC5: 0 | YD5: 0 | YE5: 0 | YF5: 0 | YG5: 0 | YH5: 0 | YI5: 0 | YJ5: 0 | YK5: 0 | YL5: 0 | YM5: 0 | YN5: 0 | YO5: 0 | YP5: 0 | YQ5: 0 | YR5: 0 | YS5: 0 | YT5: 0 | YU5: 0 | YV5: 0 | YW5: 0 | YX5: 0 | YY5: 0 | YZ5: 0 | ZA5: 0 | ZB5: 0 | ZC5: 0 | ZD5: 0 | ZE5: 0 | ZF5: 0 | ZG5: 0 | ZH5: 0 | ZI5: 0 | ZJ5: 0 | ZK5: 0 | ZL5: 0 | ZM5: 0 | ZN5: 0 | ZO5: 0 | ZP5: 0 | ZQ5: 0 | ZR5: 0 | ZS5: 0 | ZT5: 0 | ZU5: 0 | ZV5: 0 | ZW5: 0 | ZX5: 0 | ZY5: 0 | ZZ5: 0 | AAA5: 0 | AAB5: 0 | AAC5: 0 | AAD5: 0 | AAE5: 0 | AAF5: 0 | AAG5: 0 | AAH5: 0 | AAI5: 0 | AAJ5: 0 | AAK5: 0 | AAL5: 0 | AAM5: 0 | AAN5: 0 | AAO5: 0 | AAP5: 0 | AAQ5: 0 | AAR5: 0 | AAS5: 0 | AAT5: 0 | AAU5: 0 | AAV5: 0 | AAW5: 0 | AAX5: 0 | AAY5: 0 | AAZ5: 0 | ABA5: 0 | ABB5: 0 | ABC5: 0 | ABD5: 0 | ABE5: 0 | ABF5: 0 | ABG5: 0 | ABH5: 0 | ABI5: 0 | ABJ5: 0 | ABK5: 0 | ABL5: 0 | ABM5: 0 | ABN5: 0 | ABO5: 0 | ABP5: 0 | ABQ5: 0 | ABR5: 0 | ABS5: 0 | ABT5: 0 | ABU5: 0 | ABV5: 0 | ABW5: 0 | ABX5: 0 | ABY5: 0 | ABZ5: 0 | ACA5: 0 | ACB5: 0 | ACC5: 0 | ACD5: 0 | ACE5: 0 | ACF5: 0 | ACG5: 0 | ACH5: 0 | ACI5: 0 | ACJ5: 0 | ACK5: 0 | ACL5: 0 | ACM5: 0 | ACN5: 0 | ACO5: 0 | ACP5: 0 | ACQ5: 0 | ACR5: 0 | ACS5: 0 | ACT5: 0 | ACU5: 0 | ACV5: 0 | ACW5: 0 | ACX5: 0 | ACY5: 0 | ACZ5: 0 | ADA5: 0 | ADB5: 0 | ADC5: 0 | ADD5: 0 | ADE5: 0 | ADF5: 0 | ADG5: 0 | ADH5: 0 | ADI5: 0 | ADJ5: 0 | ADK5: 0 | ADL5: 0 | ADM5: 0 | ADN5: 0 | ADO5: 0 | ADP5: 0 | ADQ5: 0 | ADR5: 0 | ADS5: 0 | ADT5: 0 | ADU5: 0 | ADV5: 0 | ADW5: 0 | ADX5: 0 | ADY5: 0 | ADZ5: 0 | AEA5: 0 | AEB5: 0 | AEC5: 0 | AED5: 0 | AEE5: 0 | AEF5: 0 | AEG5: 0 | AEH5: 0 | AEI5: 0 | AEJ5: 0 | AEK5: 0 | AEL5: 0 | AEM5: 0 | AEN5: 0 | AEO5: 0 | AEP5: 0 | AEQ5: 0 | AER5: 0 | AES5: 0 | AET5: 0 | AEU5: 0 | AEV5: 0 | AEW5: 0 | AEX5: 0 | AEY5: 0 | AEZ5: 0 | AFA5: 0 | AFB5: 0 | AFC5: 0 | AFD5: 0 | AFE5: 0 | AFF5: 0 | AFG5: 0 | AFH5: 0 | AFI5: 0 | AFJ5: 0 | AFK5: 0 | AFL5: 0 | AFM5: 0 | AFN5: 0 | AFO5: 0 | AFP5: 0 | AFQ5: 0 | AFR5: 0 | AFS5: 0 | AFT5: 0 | AFU5: 0 | AFV5: 0 | AFW5: 0 | AFX5: 0 | AFY5: 0 | AFZ5: 0 | AGA5: 0 | AGB5: 0 | AGC5: 0 | AGD5: 0 | AGE5: 0 | AGF5: 0 | AGG5: 0 | AGH5: 0 | AGI5: 0 | AGJ5: 0 | AGK5: 0 | AGL5: 0 | AGM5: 0 | AGN5: 0 | AGO5: 0 | AGP5: 0 | AGQ5: 0 | AGR5: 0 | AGS5: 0 | AGT5: 0 | AGU5: 0 | AGV5: 0 | AGW5: 0 | AGX5: 0 | AGY5: 0 | AGZ5: 0 | AHA5: 0 | AHB5: 0 | AHC5: 0 | AHD5: 0 | AHE5: 0 | AHF5: 0 | AHG5: 0 | AHH5: 0 | AHI5: 0 | AHJ5: 0 | AHK5: 0 | AHL5: 0 | AHM5: 0 | AHN5: 0 | AHO5: 0 | AHP5: 0 | AHQ5: 0 | AHR5: 0 | AHS5: 0 | AHT5: 0 | AHU5: 0 | AHV5: 0 | AHW5: 0 | AHX5: 0 | AHY5: 0 | AHZ5: 0 | AIA5: 0 | AIB5: 0 | AIC5: 0 | AID5: 0 | AIE5: 0 | AIF5: 0 | AIG5: 0 | AIH5: 0 | AII5: 0 | AIJ5: 0 | AIK5: 0 | AIL5: 0 | AIM5: 0 | AIN5: 0 | AIO5: 0 | AIP5: 0 | AIQ5: 0 | AIR5: 0 | AIS5: 0 | AIT5: 0 | AIU5: 0 | AIV5: 0 | AIW5: 0 | AIX5: 0 | AIY5: 0 | AIZ5: 0 | AJA5: 0 | AJB5: 0 | AJC5: 0 | AJD5: 0 | AJE5: 0 | AJF5: 0 | AJG5: 0 | AJH5: 0 | AJI5: 0 | AJJ5: 0 | AJK5: 0 | AJL5: 0 | AJM5: 0 | AJN5: 0 | AJO5: 0 | AJP5: 0 | AJQ5: 0 | AJR5: 0 | AJS5: 0 | AJT5: 0 | AJU5: 0 | AJV5: 0 | AJW5: 0 | AJX5: 0 | AJY5: 0 | AJZ5: 0 | AKA5: 0 | AKB5: 0 | AKC5: 0 | AKD5: 0 | AKE5: 0 | AKF5: 0 | AKG5: 0 | AKH5: 0 | AKI5: 0 | AKJ5: 0 | AKK5: 0 | AKL5: 0 | AKM5: 0 | AKN5: 0 | AKO5: 0 | AKP5: 0 | AKQ5: 0 | AKR5: 0 | AKS5: 0 | AKT5: 0 | AKU5: 0 | AKV5: 0 | AKW5: 0 | AKX5: 0 | AKY5: 0 | AKZ5: 0 | ALA5: 0 | ALB5: 0 | ALC5: 0 | ALD5: 0 | ALE5: 0 | ALF5: 0 | ALG5: 0 | ALH5: 0 | ALI5: 0 | ALJ5: 0 | ALK5: 0 | ALL5: 0 | ALM5: 0 | ALN5: 0 | ALO5: 0 | ALP5: 0 | ALQ5: 0 | ALR5: 0 | ALS5: 0 | ALT5: 0 | ALU5: 0 | ALV5: 0 | ALW5: 0 | ALX5: 0 | ALY5: 0 | ALZ5: 0 | AMA5: 0 | AMB5: 0 | AMC5: 0 | AMD5: 0 | AME5: 0 | AMF5: 0 | AMG5: 0 | AMH5: 0 | AMI5: 0 | AMJ5: 0 | AMK5: 0 | AML5: 0 | AMM5: 0 | AMN5: 0 | AMO5: 0 | AMP5: 0 | AMQ5: 0 | AMR5: 0 | AMS5: 0 | AMT5: 0 | AMU5: 0 | AMV5: 0 | AMW5: 0 | AMX5: 0 | AMY5: 0 | AMZ5: 0 | ANA5: 0 | ANB5: 0 | ANC5: 0 | AND5: 0 | ANE5: 0 | ANF5: 0 | ANG5: 0 | ANH5: 0 | ANI5: 0 | ANJ5: 0 | ANK5: 0 | ANL5: 0 | ANM5: 0 | ANN5: 0 | ANO5: 0 | ANP5: 0 | ANQ5: 0 | ANR5: 0 | ANS5: 0 | ANT5: 0 | ANU5: 0 | ANV5: 0 | ANW5: 0 | ANX5: 0 | ANY5: 0 | ANZ5: 0 | AOA5: 0 | AOB5: 0 | AOC5: 0 | AOD5: 0 | AOE5: 0 | AOF5: 0 | AOG5: 0 | AOH5: 0 | AOI5: 0 | AOJ5: 0 | AOK5: 0 | AOL5: 0 | AOM5: 0 | AON5: 0 | AOO5: 0 | AOP5: 0 | AOQ5: 0 | AOR5: 0 | AOS5: 0 | AOT5: 0 | AOU5: 0 | AOV5: 0 | AOW5: 0 | AOX5: 0 | AOY5: 0 | AOZ5: 0 | APA5: 0 | APB5: 0 | APC5: 0 | APD5: 0 | APE5: 0 | APF5: 0 | APG5: 0 | APH5: 0 | API5: 0 | APJ5: 0 | APK5: 0 | APL5: 0 | APM5: 0 | APN5: 0 | APO5: 0 | APP5: 0 | APQ5: 0 | APR5: 0 | APS5: 0 | APT5: 0 | APU5: 0 | APV5: 0 | APW5: 0 | APX5: 0 | APY5: 0 | APZ5: 0 | AQA5: 0 | AQB5: 0 | AQC5: 0 | AQD5: 0 | AQE5: 0 | AQF5: 0 | AQG5: 0 | AQH5: 0 | AQI5: 0 | AQJ5: 0 | AQK5: 0 | AQL5: 0 | AQM5: 0 | AQN5: 0 | AQO5: 0 | AQP5: 0 | AQQ5: 0 | AQR5: 0 | AQS5: 0 | AQT5: 0 | AQU5: 0 | AQV5: 0 | AQW5: 0 | AQX5: 0 | AQY5: 0 | AQZ5: 0 | ARA5: 0 | ARB5: 0 | ARC5: 0 | ARD5: 0 | ARE5: 0 | ARF5: 0 | ARG5: 0 | ARH5: 0 | ARI5: 0 | ARJ5: 0 | ARK5: 0 | ARL5: 0 | ARM5: 0 | ARN5: 0
A6: LUCIANO CASTILLO COLONNA | B6: AYABACA | C6: 200201 | D6: OLLEROS | E6: I-2 | F6: AYABACA | G6: NINGUN CLAS | H6: AYABACA | I6: AYABACA | J6: SALUD LUCIANO CASTILLO COLONNA | K6: 1914 | L6: 1 | M6: 0 | N6: 0 | O6: 0 | P6: 0 | Q6: 0 | R6: 0 | S6: 4 | T6: 3 | U6: 0 | V6: 0 | W6: 0 | X6: 0 | Y6: 0 | Z6: 0 | AA6: 0 | AB6: 0 | AC6: 0 | AD6: 0 | AE6: 0 | AF6: 0 | AG6: 0 | AH6: 0 | AI6: 0 | AJ6: 0 | AK6: 0 | AL6: 0 | AM6: 0 | AN6: 0 | AO6: 0 | AP6: 0 | AQ6: 0 | AR6: 0 | AS6: 0 | AT6: 0 | AU6: 0 | AV6: 0 | AW6: 4 | AX6: 3 | AY6: 0 | AZ6: 0 | BA6: 0 | BB6: 0 | BC6: 0 | BD6: 0 | BE6: 0 | BF6: 0 | BG6: 0 | BH6: 0 | BI6: 0 | BJ6: 0 | BK6: 0 | BL6: 0 | BM6: 0 | BN6: 0 | BO6: 0 | BP6: 0 | BQ6: 0 | BR6: 0 | BS6: 0 | BT6: 0 | BU6: 0 | BV6: 0 | BW6: 0 | BX6: 0 | BY6: 0 | BZ6: 0 | CA6: 0 | CB6: 0 | CC6: 0 | CD6: 0 | CE6: 0 | CF6: 0 | CG6: 0 | CH6: 0 | CI6: 0 | CJ6: 0 | CK6: 0 | CL6: 0 | CM6: 0 | CN6: 0 | CO6: 0 | CP6: 0 | CQ6: 0 | CR6: 0 | CS6: 0 | CT6: 0 | CU6: 0 | CV6: 0 | CW6: 0 | CX6: 0 | CY6: 0 | CZ6: 0 | DA6: 0 | DB6: 0 | DC6: 0 | DD6: 0 | DE6: 0 | DF6: 0 | DG6: 0 | DH6: 0 | DI6: 0 | DJ6: 0 | DK6: 0 | DL6: 0 | DM6: 0 | DN6: 0 | DO6: 0 | DP6: 0 | DQ6: 0 | DR6: 0 | DS6: 0 | DT6: 0 | DU6: 0 | DV6: 0 | DW6: 0 | DX6: 0 | DY6: 0 | DZ6: 0 | EA6: 0 | EB6: 0 | EC6: 0 | ED6: 0 | EE6: 0 | EF6: 0 | EG6: 0 | EH6: 0 | EI6: 0 | EJ6: 0 | EK6: 0 | EL6: 0 | EM6: 0 | EN6: 0 | EO6: 0 | EP6: 0 | EQ6: 0 | ER6: 0 | ES6: 0 | ET6: 0 | EU6: 0 | EV6: 0 | EW6: 0 | EX6: 0 | EY6: 0 | EZ6: 0 | FA6: 0 | FB6: 0 | FC6: 0 | FD6: 0 | FE6: 0 | FF6: 0 | FG6: 0 | FH6: 0 | FI6: 0 | FJ6: 0 | FK6: 0 | FL6: 0 | FM6: 0 | FN6: 0 | FO6: 0 | FP6: 0 | FQ6: 0 | FR6: 0 | FS6: 0 | FT6: 0 | FU6: 0 | FV6: 0 | FW6: 0 | FX6: 0 | FY6: 0 | FZ6: 0 | GA6: 0 | GB6: 0 | GC6: 0 | GD6: 0 | GE6: 0 | GF6: 0 | GG6: 0 | GH6: 4 | GI6: 14 | GJ6: 0 | GK6: 0 | GL6: 0 | GM6: 0 | GN6: 0 | GO6: 0 | GP6: 0 | GQ6: 0 | GR6: 0 | GS6: 0 | GT6: 0 | GU6: 6 | GV6: 2 | GW6: 11 | GX6: 0 | GY6: 2 | GZ6: 5 | HA6: 15 | HB6: 1 | HC6: 0 | HD6: 0 | HE6: 0 | HF6: 0 | HG6: 0 | HH6: 0 | HI6: 0 | HJ6: 0 | HK6: 0 | HL6: 0 | HM6: 0 | HN6: 0 | HO6: 0 | HP6: 0 | HQ6: 0 | HR6: 0 | HS6: 0 | HT6: 0 | HU6: 0 | HV6: 0 | HW6: 0 | HX6: 0 | HY6: 2 | HZ6: 5 | IA6: 0 | IB6: 0 | IC6: 0 | ID6: 4 | IE6: 14 | IF6: 0 | IG6: 0 | IH6: 0 | II6: 0 | IJ6: 0 | IK6: 0 | IL6: 0 | IM6: 0 | IN6: 0 | IO6: 0 | IP6: 0 | IQ6: 0 | IR6: 0 | IS6: 0 | IT6: 0 | IU6: 0 | IV6: 0 | IW6: 0 | IX6: 0 | IY6: 0 | IZ6: 0 | JA6: 0 | JB6: 0 | JC6: 0 | JD6: 0 | JE6: 0 | JF6: 0 | JG6: 0 | JH6: 0 | JI6: 0 | JJ6: 0 | JK6: 0 | JL6: 0 | JM6: 0 | JN6: 0 | JO6: 0 | JP6: 0 | JQ6: 0 | JR6: 0 | JS6: 0 | JT6: 0 | JU6: 0 | JV6: 0 | JW6: 0 | JX6: 0 | JY6: 0 | JZ6: 0 | KA6: 0 | KB6: 0 | KC6: 0 | KD6: 0 | KE6: 0 | KF6: 0 | KG6: 0 | KH6: 0 | KI6: 0 | KJ6: 0 | KK6: 0 | KL6: 0 | KM6: 0 | KN6: 0 | KO6: 0 | KP6: 0 | KQ6: 0 | KR6: 0 | KS6: 0 | KT6: 0 | KU6: 0 | KV6: 0 | KW6: 0 | KX6: 0 | KY6: 0 | KZ6: 0 | LA6: 0 | LB6: 0 | LC6: 0 | LD6: 0 | LE6: 0 | LF6: 0 | LG6: 0 | LH6: 0 | LI6: 0 | LJ6: 0 | LK6: 0 | LL6: 0 | LM6: 0 | LN6: 0 | LO6: 0 | LP6: 0 | LQ6: 0 | LR6: 0 | LS6: 0 | LT6: 0 | LU6: 0 | LV6: 0 | LW6: 0 | LX6: 0 | LY6: 0 | LZ6: 0 | MA6: 0 | MB6: 0 | MC6: 0 | MD6: 0 | ME6: 2 | MF6: 5 | MG6: 0 | MH6: 0 | MI6: 0 | MJ6: 4 | MK6: 14 | ML6: 0 | MM6: 0 | MN6: 0 | MO6: 0 | MP6: 0 | MQ6: 0 | MR6: 0 | MS6: 0 | MT6: 0 | MU6: 0 | MV6: 0 | MW6: 0 | MX6: 0 | MY6: 0 | MZ6: 0 | NA6: 0 | NB6: 0 | NC6: 0 | ND6: 0 | NE6: 0 | NF6: 0 | NG6: 0 | NH6: 0 | NI6: 0 | NJ6: 0 | NK6: 0 | NL6: 0 | NM6: 0 | NN6: 0 | NO6: 0 | NP6: 0 | NQ6: 0 | NR6: 0 | NS6: 0 | NT6: 0 | NU6: 0 | NV6: 0 | NW6: 0 | NX6: 0 | NY6: 0 | NZ6: 0 | OA6: 0 | OB6: 0 | OC6: 0 | OD6: 0 | OE6: 0 | OF6: 0 | OG6: 0 | OH6: 0 | OI6: 0 | OJ6: 0 | OK6: 0 | OL6: 0 | OM6: 0 | ON6: 0 | OO6: 0 | OP6: 0 | OQ6: 0 | OR6: 0 | OS6: 0 | OT6: 0 | OU6: 0 | OV6: 0 | OW6: 0 | OX6: 0 | OY6: 0 | OZ6: 0 | PA6: 0 | PB6: 0 | PC6: 0 | PD6: 0 | PE6: 0 | PF6: 0 | PG6: 0 | PH6: 0 | PI6: 0 | PJ6: 0 | PK6: 0 | PL6: 0 | PM6: 0 | PN6: 0 | PO6: 0 | PP6: 0 | PQ6: 0 | PR6: 0 | PS6: 0 | PT6: 0 | PU6: 0 | PV6: 0 | PW6: 0 | PX6: 0 | PY6: 0 | PZ6: 0 | QA6: 0 | QB6: 0 | QC6: 0 | QD6: 0 | QE6: 0 | QF6: 0 | QG6: 0 | QH6: 0 | QI6: 0 | QJ6: 0 | QK6: 0 | QL6: 0 | QM6: 0 | QN6: 0 | QO6: 0 | QP6: 0 | QQ6: 0 | QR6: 0 | QS6: 0 | QT6: 0 | QU6: 0 | QV6: 0 | QW6: 0 | QX6: 0 | QY6: 0 | QZ6: 0 | RA6: 0 | RB6: 0 | RC6: 0 | RD6: 0 | RE6: 0 | RF6: 0 | RG6: 0 | RH6: 0 | RI6: 0 | RJ6: 0 | RK6: 0 | RL6: 0 | RM6: 0 | RN6: 0 | RO6: 0 | RP6: 0 | RQ6: 0 | RR6: 0 | RS6: 0 | RT6: 0 | RU6: 0 | RV6: 0 | RW6: 0 | RX6: 0 | RY6: 0 | RZ6: 0 | SA6: 0 | SB6: 0 | SC6: 0 | SD6: 0 | SE6: 0 | SF6: 0 | SG6: 0 | SH6: 0 | SI6: 0 | SJ6: 0 | SK6: 0 | SL6: 0 | SM6: 0 | SN6: 0 | SO6: 0 | SP6: 0 | SQ6: 0 | SR6: 0 | SS6: 0 | ST6: 0 | SU6: 0 | SV6: 0 | SW6: 0 | SX6: 0 | SY6: 0 | SZ6: 0 | TA6: 0 | TB6: 0 | TC6: 0 | TD6: 0 | TE6: 0 | TF6: 0 | TG6: 0 | TH6: 0 | TI6: 0 | TJ6: 0 | TK6: 0 | TL6: 0 | TM6: 0 | TN6: 0 | TO6: 0 | TP6: 0 | TQ6: 0 | TR6: 0 | TS6: 0 | TT6: 0 | TU6: 0 | TV6: 0 | TW6: 0 | TX6: 0 | TY6: 0 | TZ6: 0 | UA6: 0 | UB6: 0 | UC6: 0 | UD6: 0 | UE6: 0 | UF6: 0 | UG6: 0 | UH6: 0 | UI6: 0 | UJ6: 0 | UK6: 0 | UL6: 0 | UM6: 0 | UN6: 0 | UO6: 0 | UP6: 0 | UQ6: 0 | UR6: 0 | US6: 0 | UT6: 0 | UU6: 0 | UV6: 0 | UW6: 0 | UX6: 0 | UY6: 0 | UZ6: 0 | VA6: 0 | VB6: 0 | VC6: 0 | VD6: 0 | VE6: 0 | VF6: 0 | VG6: 0 | VH6: 0 | VI6: 0 | VJ6: 0 | VK6: 0 | VL6: 0 | VM6: 0 | VN6: 0 | VO6: 0 | VP6: 0 | VQ6: 0 | VR6: 0 | VS6: 0 | VT6: 0 | VU6: 0 | VV6: 0 | VW6: 0 | VX6: 0 | VY6: 0 | VZ6: 0 | WA6: 0 | WB6: 0 | WC6: 0 | WD6: 0 | WE6: 0 | WF6: 0 | WG6: 0 | WH6: 0 | WI6: 0 | WJ6: 0 | WK6: 0 | WL6: 0 | WM6: 0 | WN6: 0 | WO6: 0 | WP6: 0 | WQ6: 0 | WR6: 0 | WS6: 0 | WT6: 0 | WU6: 0 | WV6: 0 | WW6: 0 | WX6: 0 | WY6: 0 | WZ6: 0 | XA6: 0 | XB6: 0 | XC6: 0 | XD6: 0 | XE6: 0 | XF6: 0 | XG6: 0 | XH6: 0 | XI6: 0 | XJ6: 0 | XK6: 0 | XL6: 0 | XM6: 0 | XN6: 0 | XO6: 0 | XP6: 0 | XQ6: 0 | XR6: 0 | XS6: 0 | XT6: 0 | XU6: 0 | XV6: 0 | XW6: 0 | XX6: 0 | XY6: 0 | XZ6: 0 | YA6: 0 | YB6: 0 | YC6: 0 | YD6: 0 | YE6: 0 | YF6: 0 | YG6: 0 | YH6: 0 | YI6: 0 | YJ6: 0 | YK6: 0 | YL6: 0 | YM6: 0 | YN6: 0 | YO6: 0 | YP6: 2 | YQ6: 2 | YR6: 2 | YS6: 0 | YT6: 0 | YU6: 0 | YV6: 0 | YW6: 0 | YX6: 0 | YY6: 2 | YZ6: 2 | ZA6: 2 | ZB6: 0 | ZC6: 0 | ZD6: 0 | ZE6: 0 | ZF6: 0 | ZG6: 0 | ZH6: 0 | ZI6: 0 | ZJ6: 0 | ZK6: 0 | ZL6: 0 | ZM6: 0 | ZN6: 0 | ZO6: 0 | ZP6: 0 | ZQ6: 0 | ZR6: 0 | ZS6: 0 | ZT6: 0 | ZU6: 0 | ZV6: 0 | ZW6: 0 | ZX6: 0 | ZY6: 0 | ZZ6: 0 | AAA6: 0 | AAB6: 0 | AAC6: 0 | AAD6: 0 | AAE6: 0 | AAF6: 0 | AAG6: 0 | AAH6: 0 | AAI6: 0 | AAJ6: 0 | AAK6: 0 | AAL6: 0 | AAM6: 0 | AAN6: 0 | AAO6: 0 | AAP6: 0 | AAQ6: 0 | AAR6: 0 | AAS6: 0 | AAT6: 0 | AAU6: 0 | AAV6: 0 | AAW6: 0 | AAX6: 0 | AAY6: 0 | AAZ6: 0 | ABA6: 0 | ABB6: 0 | ABC6: 0 | ABD6: 0 | ABE6: 0 | ABF6: 0 | ABG6: 0 | ABH6: 0 | ABI6: 0 | ABJ6: 0 | ABK6: 0 | ABL6: 0 | ABM6: 0 | ABN6: 0 | ABO6: 0 | ABP6: 0 | ABQ6: 0 | ABR6: 0 | ABS6: 0 | ABT6: 0 | ABU6: 0 | ABV6: 0 | ABW6: 0 | ABX6: 0 | ABY6: 0 | ABZ6: 0 | ACA6: 0 | ACB6: 0 | ACC6: 0 | ACD6: 0 | ACE6: 0 | ACF6: 0 | ACG6: 0 | ACH6: 0 | ACI6: 0 | ACJ6: 0 | ACK6: 0 | ACL6: 0 | ACM6: 0 | ACN6: 0 | ACO6: 0 | ACP6: 0 | ACQ6: 0 | ACR6: 0 | ACS6: 0 | ACT6: 0 | ACU6: 0 | ACV6: 0 | ACW6: 0 | ACX6: 0 | ACY6: 0 | ACZ6: 0 | ADA6: 0 | ADB6: 0 | ADC6: 0 | ADD6: 0 | ADE6: 0 | ADF6: 0 | ADG6: 0 | ADH6: 0 | ADI6: 0 | ADJ6: 0 | ADK6: 0 | ADL6: 0 | ADM6: 0 | ADN6: 0 | ADO6: 0 | ADP6: 0 | ADQ6: 0 | ADR6: 0 | ADS6: 0 | ADT6: 0 | ADU6: 0 | ADV6: 0 | ADW6: 0 | ADX6: 0 | ADY6: 0 | ADZ6: 0 | AEA6: 0 | AEB6: 0 | AEC6: 0 | AED6: 0 | AEE6: 0 | AEF6: 0 | AEG6: 0 | AEH6: 0 | AEI6: 0 | AEJ6: 0 | AEK6: 0 | AEL6: 0 | AEM6: 0 | AEN6: 0 | AEO6: 0 | AEP6: 0 | AEQ6: 0 | AER6: 0 | AES6: 0 | AET6: 0 | AEU6: 0 | AEV6: 0 | AEW6: 0 | AEX6: 0 | AEY6: 0 | AEZ6: 0 | AFA6: 0 | AFB6: 0 | AFC6: 0 | AFD6: 0 | AFE6: 0 | AFF6: 0 | AFG6: 0 | AFH6: 0 | AFI6: 0 | AFJ6: 0 | AFK6: 0 | AFL6: 0 | AFM6: 0 | AFN6: 0 | AFO6: 0 | AFP6: 0 | AFQ6: 0 | AFR6: 0 | AFS6: 0 | AFT6: 0 | AFU6: 0 | AFV6: 0 | AFW6: 0 | AFX6: 0 | AFY6: 0 | AFZ6: 0 | AGA6: 0 | AGB6: 0 | AGC6: 0 | AGD6: 0 | AGE6: 0 | AGF6: 0 | AGG6: 0 | AGH6: 0 | AGI6: 0 | AGJ6: 0 | AGK6: 0 | AGL6: 0 | AGM6: 0 | AGN6: 0 | AGO6: 0 | AGP6: 0 | AGQ6: 0 | AGR6: 0 | AGS6: 0 | AGT6: 0 | AGU6: 0 | AGV6: 0 | AGW6: 0 | AGX6: 0 | AGY6: 0 | AGZ6: 0 | AHA6: 0 | AHB6: 0 | AHC6: 0 | AHD6: 0 | AHE6: 0 | AHF6: 0 | AHG6: 0 | AHH6: 0 | AHI6: 0 | AHJ6: 0 | AHK6: 0 | AHL6: 0 | AHM6: 0 | AHN6: 0 | AHO6: 0 | AHP6: 0 | AHQ6: 0 | AHR6: 0 | AHS6: 0 | AHT6: 0 | AHU6: 0 | AHV6: 0 | AHW6: 0 | AHX6: 0 | AHY6: 0 | AHZ6: 0 | AIA6: 0 | AIB6: 0 | AIC6: 0 | AID6: 0 | AIE6: 0 | AIF6: 0 | AIG6: 0 | AIH6: 0 | AII6: 0 | AIJ6: 0 | AIK6: 0 | AIL6: 0 | AIM6: 0 | AIN6: 0 | AIO6: 0 | AIP6: 0 | AIQ6: 0 | AIR6: 0 | AIS6: 0 | AIT6: 0 | AIU6: 0 | AIV6: 0 | AIW6: 0 | AIX6: 0 | AIY6: 0 | AIZ6: 0 | AJA6: 0 | AJB6: 0 | AJC6: 0 | AJD6: 0 | AJE6: 0 | AJF6: 0 | AJG6: 0 | AJH6: 0 | AJI6: 0 | AJJ6: 0 | AJK6: 0 | AJL6: 0 | AJM6: 0 | AJN6: 0 | AJO6: 0 | AJP6: 0 | AJQ6: 0 | AJR6: 0 | AJS6: 0 | AJT6: 0 | AJU6: 0 | AJV6: 0 | AJW6: 0 | AJX6: 0 | AJY6: 0 | AJZ6: 0 | AKA6: 0 | AKB6: 0 | AKC6: 0 | AKD6: 0 | AKE6: 0 | AKF6: 0 | AKG6: 0 | AKH6: 0 | AKI6: 0 | AKJ6: 0 | AKK6: 0 | AKL6: 0 | AKM6: 0 | AKN6: 0 | AKO6: 0 | AKP6: 0 | AKQ6: 0 | AKR6: 0 | AKS6: 0 | AKT6: 0 | AKU6: 0 | AKV6: 0 | AKW6: 0 | AKX6: 0 | AKY6: 0 | AKZ6: 0 | ALA6: 0 | ALB6: 0 | ALC6: 0 | ALD6: 0 | ALE6: 0 | ALF6: 0 | ALG6: 0 | ALH6: 0 | ALI6: 0 | ALJ6: 0 | ALK6: 0 | ALL6: 0 | ALM6: 0 | ALN6: 0 | ALO6: 0 | ALP6: 0 | ALQ6: 0 | ALR6: 0 | ALS6: 0 | ALT6: 0 | ALU6: 0 | ALV6: 0 | ALW6: 0 | ALX6: 0 | ALY6: 0 | ALZ6: 0 | AMA6: 0 | AMB6: 0 | AMC6: 0 | AMD6: 0 | AME6: 0 | AMF6: 0 | AMG6: 0 | AMH6: 0 | AMI6: 0 | AMJ6: 0 | AMK6: 0 | AML6: 0 | AMM6: 0 | AMN6: 0 | AMO6: 0 | AMP6: 0 | AMQ6: 0 | AMR6: 0 | AMS6: 0 | AMT6: 0 | AMU6: 0 | AMV6: 0 | AMW6: 0 | AMX6: 0 | AMY6: 0 | AMZ6: 0 | ANA6: 0 | ANB6: 0 | ANC6: 0 | AND6: 0 | ANE6: 0 | ANF6: 0 | ANG6: 0 | ANH6: 0 | ANI6: 0 | ANJ6: 0 | ANK6: 0 | ANL6: 0 | ANM6: 0 | ANN6: 0 | ANO6: 0 | ANP6: 0 | ANQ6: 0 | ANR6: 0 | ANS6: 0 | ANT6: 0 | ANU6: 0 | ANV6: 0 | ANW6: 0 | ANX6: 0 | ANY6: 0 | ANZ6: 0 | AOA6: 0 | AOB6: 0 | AOC6: 0 | AOD6: 0 | AOE6: 0 | AOF6: 0 | AOG6: 0 | AOH6: 0 | AOI6: 0 | AOJ6: 0 | AOK6: 0 | AOL6: 0 | AOM6: 0 | AON6: 0 | AOO6: 0 | AOP6: 0 | AOQ6: 0 | AOR6: 0 | AOS6: 0 | AOT6: 0 | AOU6: 0 | AOV6: 0 | AOW6: 0 | AOX6: 0 | AOY6: 0 | AOZ6: 0 | APA6: 0 | APB6: 0 | APC6: 0 | APD6: 0 | APE6: 0 | APF6: 0 | APG6: 0 | APH6: 0 | API6: 0 | APJ6: 0 | APK6: 0 | APL6: 0 | APM6: 0 | APN6: 0 | APO6: 0 | APP6: 0 | APQ6: 0 | APR6: 0 | APS6: 0 | APT6: 0 | APU6: 0 | APV6: 0 | APW6: 0 | APX6: 0 | APY6: 0 | APZ6: 0 | AQA6: 0 | AQB6: 0 | AQC6: 0 | AQD6: 0 | AQE6: 0 | AQF6: 0 | AQG6: 0 | AQH6: 0 | AQI6: 0 | AQJ6: 0 | AQK6: 0 | AQL6: 0 | AQM6: 0 | AQN6: 0 | AQO6: 0 | AQP6: 0 | AQQ6: 0 | AQR6: 0 | AQS6: 0 | AQT6: 0 | AQU6: 0 | AQV6: 0 | AQW6: 0 | AQX6: 0 | AQY6: 0 | AQZ6: 0 | ARA6: 0 | ARB6: 0 | ARC6: 0 | ARD6: 0 | ARE6: 0 | ARF6: 0 | ARG6: 0 | ARH6: 0 | ARI6: 0 | ARJ6: 0 | ARK6: 0 | ARL6: 0 | ARM6: 0 | ARN6: 0
A7: LUCIANO CASTILLO COLONNA | B7: AYABACA | C7: 200201 | D7: ARAGOTO | E7: I-2 | F7: AYABACA | G7: NINGUN CLAS | H7: AYABACA | I7: AYABACA | J7: SALUD LUCIANO CASTILLO COLONNA | K7: 1915 | L7: 1 | M7: 0 | N7: 0 | O7: 0 | P7: 0 | Q7: 0 | R7: 0 | S7: 0 | T7: 0 | U7: 0 | V7: 0 | W7: 0 | X7: 0 | Y7: 0 | Z7: 0 | AA7: 0 | AB7: 0 | AC7: 0 | AD7: 0 | AE7: 0 | AF7: 0 | AG7: 0 | AH7: 0 | AI7: 0 | AJ7: 0 | AK7: 0 | AL7: 0 | AM7: 0 | AN7: 0 | AO7: 0 | AP7: 0 | AQ7: 0 | AR7: 0 | AS7: 0 | AT7: 0 | AU7: 0 | AV7: 0 | AW7: 0 | AX7: 0 | AY7: 0 | AZ7: 0 | BA7: 0 | BB7: 0 | BC7: 0 | BD7: 0 | BE7: 0 | BF7: 0 | BG7: 0 | BH7: 0 | BI7: 0 | BJ7: 0 | BK7: 0 | BL7: 0 | BM7: 0 | BN7: 0 | BO7: 0 | BP7: 0 | BQ7: 0 | BR7: 0 | BS7: 0 | BT7: 0 | BU7: 0 | BV7: 0 | BW7: 0 | BX7: 0 | BY7: 0 | BZ7: 0 | CA7: 0 | CB7: 0 | CC7: 0 | CD7: 0 | CE7: 0 | CF7: 0 | CG7: 0 | CH7: 0 | CI7: 0 | CJ7: 0 | CK7: 0 | CL7: 0 | CM7: 0 | CN7: 0 | CO7: 0 | CP7: 0 | CQ7: 0 | CR7: 0 | CS7: 0 | CT7: 0 | CU7: 0 | CV7: 0 | CW7: 0 | CX7: 0 | CY7: 0 | CZ7: 0 | DA7: 0 | DB7: 0 | DC7: 0 | DD7: 0 | DE7: 0 | DF7: 0 | DG7: 0 | DH7: 0 | DI7: 0 | DJ7: 0 | DK7: 0 | DL7: 0 | DM7: 0 | DN7: 0 | DO7: 0 | DP7: 0 | DQ7: 0 | DR7: 0 | DS7: 0 | DT7: 0 | DU7: 0 | DV7: 0 | DW7: 0 | DX7: 0 | DY7: 0 | DZ7: 0 | EA7: 0 | EB7: 0 | EC7: 0 | ED7: 0 | EE7: 0 | EF7: 0 | EG7: 0 | EH7: 0 | EI7: 0 | EJ7: 0 | EK7: 0 | EL7: 0 | EM7: 0 | EN7: 0 | EO7: 0 | EP7: 0 | EQ7: 0 | ER7: 0 | ES7: 0 | ET7: 0 | EU7: 0 | EV7: 0 | EW7: 0 | EX7: 0 | EY7: 0 | EZ7: 0 | FA7: 0 | FB7: 0 | FC7: 0 | FD7: 0 | FE7: 0 | FF7: 0 | FG7: 0 | FH7: 0 | FI7: 0 | FJ7: 0 | FK7: 0 | FL7: 0 | FM7: 0 | FN7: 0 | FO7: 0 | FP7: 0 | FQ7: 0 | FR7: 0 | FS7: 0 | FT7: 0 | FU7: 0 | FV7: 0 | FW7: 0 | FX7: 0 | FY7: 0 | FZ7: 0 | GA7: 0 | GB7: 0 | GC7: 0 | GD7: 0 | GE7: 0 | GF7: 0 | GG7: 0 | GH7: 0 | GI7: 0 | GJ7: 0 | GK7: 0 | GL7: 0 | GM7: 0 | GN7: 0 | GO7: 0 | GP7: 0 | GQ7: 0 | GR7: 0 | GS7: 0 | GT7: 0 | GU7: 6 | GV7: 0 | GW7: 1 | GX7: 0 | GY7: 4 | GZ7: 0 | HA7: 0 | HB7: 0 | HC7: 0 | HD7: 0 | HE7: 0 | HF7: 0 | HG7: 0 | HH7: 0 | HI7: 0 | HJ7: 0 | HK7: 0 | HL7: 0 | HM7: 0 | HN7: 0 | HO7: 0 | HP7: 0 | HQ7: 0 | HR7: 0 | HS7: 0 | HT7: 0 | HU7: 0 | HV7: 0 | HW7: 0 | HX7: 0 | HY7: 0 | HZ7: 1 | IA7: 0 | IB7: 0 | IC7: 0 | ID7: 0 | IE7: 0 | IF7: 0 | IG7: 0 | IH7: 0 | II7: 0 | IJ7: 0 | IK7: 0 | IL7: 0 | IM7: 0 | IN7: 0 | IO7: 0 | IP7: 0 | IQ7: 0 | IR7: 0 | IS7: 0 | IT7: 0 | IU7: 0 | IV7: 0 | IW7: 0 | IX7: 0 | IY7: 0 | IZ7: 0 | JA7: 0 | JB7: 0 | JC7: 0 | JD7: 0 | JE7: 0 | JF7: 0 | JG7: 0 | JH7: 0 | JI7: 0 | JJ7: 0 | JK7: 0 | JL7: 0 | JM7: 0 | JN7: 0 | JO7: 0 | JP7: 0 | JQ7: 0 | JR7: 0 | JS7: 0 | JT7: 0 | JU7: 0 | JV7: 0 | JW7: 0 | JX7: 0 | JY7: 0 | JZ7: 0 | KA7: 0 | KB7: 0 | KC7: 0 | KD7: 0 | KE7: 0 | KF7: 0 | KG7: 0 | KH7: 0 | KI7: 0 | KJ7: 0 | KK7: 0 | KL7: 0 | KM7: 0 | KN7: 0 | KO7: 0 | KP7: 0 | KQ7: 0 | KR7: 0 | KS7: 0 | KT7: 0 | KU7: 0 | KV7: 0 | KW7: 0 | KX7: 0 | KY7: 0 | KZ7: 0 | LA7: 0 | LB7: 0 | LC7: 0 | LD7: 0 | LE7: 0 | LF7: 0 | LG7: 0 | LH7: 0 | LI7: 0 | LJ7: 0 | LK7: 0 | LL7: 0 | LM7: 0 | LN7: 0 | LO7: 0 | LP7: 0 | LQ7: 0 | LR7: 0 | LS7: 0 | LT7: 0 | LU7: 0 | LV7: 0 | LW7: 0 | LX7: 0 | LY7: 0 | LZ7: 0 | MA7: 0 | MB7: 0 | MC7: 0 | MD7: 0 | ME7: 0 | MF7: 1 | MG7: 0 | MH7: 0 | MI7: 0 | MJ7: 1 | MK7: 0 | ML7: 1 | MM7: 0 | MN7: 0 | MO7: 0 | MP7: 0 | MQ7: 0 | MR7: 0 | MS7: 0 | MT7: 0 | MU7: 0 | MV7: 0 | MW7: 0 | MX7: 0 | MY7: 0 | MZ7: 0 | NA7: 0 | NB7: 0 | NC7: 0 | ND7: 0 | NE7: 0 | NF7: 0 | NG7: 0 | NH7: 0 | NI7: 0 | NJ7: 0 | NK7: 0 | NL7: 0 | NM7: 0 | NN7: 0 | NO7: 0 | NP7: 0 | NQ7: 0 | NR7: 0 | NS7: 0 | NT7: 0 | NU7: 0 | NV7: 0 | NW7: 0 | NX7: 0 | NY7: 0 | NZ7: 0 | OA7: 0 | OB7: 0 | OC7: 0 | OD7: 0 | OE7: 0 | OF7: 0 | OG7: 0 | OH7: 0 | OI7: 0 | OJ7: 0 | OK7: 0 | OL7: 0 | OM7: 0 | ON7: 0 | OO7: 0 | OP7: 0 | OQ7: 0 | OR7: 0 | OS7: 0 | OT7: 0 | OU7: 0 | OV7: 0 | OW7: 0 | OX7: 0 | OY7: 0 | OZ7: 0 | PA7: 0 | PB7: 0 | PC7: 0 | PD7: 0 | PE7: 0 | PF7: 0 | PG7: 0 | PH7: 0 | PI7: 0 | PJ7: 0 | PK7: 0 | PL7: 0 | PM7: 0 | PN7: 0 | PO7: 0 | PP7: 0 | PQ7: 0 | PR7: 0 | PS7: 0 | PT7: 0 | PU7: 0 | PV7: 0 | PW7: 0 | PX7: 0 | PY7: 0 | PZ7: 0 | QA7: 0 | QB7: 0 | QC7: 0 | QD7: 0 | QE7: 0 | QF7: 0 | QG7: 0 | QH7: 0 | QI7: 0 | QJ7: 0 | QK7: 0 | QL7: 0 | QM7: 0 | QN7: 0 | QO7: 0 | QP7: 0 | QQ7: 0 | QR7: 0 | QS7: 0 | QT7: 0 | QU7: 0 | QV7: 0 | QW7: 0 | QX7: 0 | QY7: 0 | QZ7: 0 | RA7: 0 | RB7: 0 | RC7: 0 | RD7: 0 | RE7: 0 | RF7: 0 | RG7: 0 | RH7: 0 | RI7: 0 | RJ7: 0 | RK7: 0 | RL7: 0 | RM7: 0 | RN7: 0 | RO7: 0 | RP7: 0 | RQ7: 0 | RR7: 0 | RS7: 0 | RT7: 0 | RU7: 0 | RV7: 0 | RW7: 0 | RX7: 0 | RY7: 0 | RZ7: 0 | SA7: 0 | SB7: 0 | SC7: 0 | SD7: 0 | SE7: 0 | SF7: 0 | SG7: 0 | SH7: 0 | SI7: 0 | SJ7: 0 | SK7: 0 | SL7: 0 | SM7: 0 | SN7: 0 | SO7: 0 | SP7: 0 | SQ7: 0 | SR7: 0 | SS7: 0 | ST7: 0 | SU7: 0 | SV7: 0 | SW7: 0 | SX7: 0 | SY7: 0 | SZ7: 0 | TA7: 0 | TB7: 0 | TC7: 0 | TD7: 0 | TE7: 0 | TF7: 0 | TG7: 0 | TH7: 0 | TI7: 0 | TJ7: 0 | TK7: 0 | TL7: 0 | TM7: 0 | TN7: 0 | TO7: 0 | TP7: 0 | TQ7: 0 | TR7: 0 | TS7: 0 | TT7: 0 | TU7: 0 | TV7: 0 | TW7: 0 | TX7: 0 | TY7: 0 | TZ7: 0 | UA7: 0 | UB7: 0 | UC7: 0 | UD7: 0 | UE7: 0 | UF7: 0 | UG7: 0 | UH7: 0 | UI7: 0 | UJ7: 0 | UK7: 0 | UL7: 0 | UM7: 0 | UN7: 0 | UO7: 0 | UP7: 0 | UQ7: 0 | UR7: 0 | US7: 0 | UT7: 0 | UU7: 0 | UV7: 0 | UW7: 0 | UX7: 0 | UY7: 0 | UZ7: 0 | VA7: 0 | VB7: 0 | VC7: 0 | VD7: 0 | VE7: 0 | VF7: 0 | VG7: 0 | VH7: 0 | VI7: 0 | VJ7: 0 | VK7: 0 | VL7: 0 | VM7: 0 | VN7: 0 | VO7: 0 | VP7: 0 | VQ7: 0 | VR7: 0 | VS7: 0 | VT7: 0 | VU7: 0 | VV7: 0 | VW7: 0 | VX7: 0 | VY7: 0 | VZ7: 0 | WA7: 0 | WB7: 0 | WC7: 0 | WD7: 0 | WE7: 0 | WF7: 0 | WG7: 0 | WH7: 0 | WI7: 0 | WJ7: 0 | WK7: 0 | WL7: 0 | WM7: 0 | WN7: 0 | WO7: 0 | WP7: 0 | WQ7: 0 | WR7: 0 | WS7: 0 | WT7: 0 | WU7: 0 | WV7: 0 | WW7: 0 | WX7: 0 | WY7: 0 | WZ7: 0 | XA7: 0 | XB7: 0 | XC7: 0 | XD7: 0 | XE7: 0 | XF7: 0 | XG7: 0 | XH7: 0 | XI7: 0 | XJ7: 0 | XK7: 0 | XL7: 0 | XM7: 0 | XN7: 0 | XO7: 0 | XP7: 0 | XQ7: 0 | XR7: 0 | XS7: 0 | XT7: 0 | XU7: 0 | XV7: 0 | XW7: 0 | XX7: 0 | XY7: 0 | XZ7: 0 | YA7: 0 | YB7: 0 | YC7: 0 | YD7: 0 | YE7: 0 | YF7: 0 | YG7: 0 | YH7: 0 | YI7: 0 | YJ7: 0 | YK7: 0 | YL7: 0 | YM7: 0 | YN7: 0 | YO7: 0 | YP7: 3 | YQ7: 3 | YR7: 3 | YS7: 0 | YT7: 0 | YU7: 0 | YV7: 0 | YW7: 0 | YX7: 0 | YY7: 3 | YZ7: 3 | ZA7: 3 | ZB7: 0 | ZC7: 0 | ZD7: 0 | ZE7: 0 | ZF7: 0 | ZG7: 0 | ZH7: 1 | ZI7: 2 | ZJ7: 0 | ZK7: 1 | ZL7: 2 | ZM7: 0 | ZN7: 1 | ZO7: 2 | ZP7: 0 | ZQ7: 1 | ZR7: 2 | ZS7: 0 | ZT7: 1 | ZU7: 2 | ZV7: 0 | ZW7: 1 | ZX7: 2 | ZY7: 0 | ZZ7: 1 | AAA7: 2 | AAB7: 0 | AAC7: 1 | AAD7: 2 | AAE7: 0 | AAF7: 0 | AAG7: 0 | AAH7: 0 | AAI7: 1 | AAJ7: 2 | AAK7: 0 | AAL7: 1 | AAM7: 2 | AAN7: 0 | AAO7: 0 | AAP7: 0 | AAQ7: 0 | AAR7: 0 | AAS7: 0 | AAT7: 0 | AAU7: 0 | AAV7: 0 | AAW7: 0 | AAX7: 0 | AAY7: 0 | AAZ7: 0 | ABA7: 0 | ABB7: 0 | ABC7: 0 | ABD7: 0 | ABE7: 0 | ABF7: 0 | ABG7: 0 | ABH7: 0 | ABI7: 0 | ABJ7: 0 | ABK7: 0 | ABL7: 0 | ABM7: 0 | ABN7: 0 | ABO7: 0 | ABP7: 0 | ABQ7: 0 | ABR7: 0 | ABS7: 0 | ABT7: 0 | ABU7: 0 | ABV7: 0 | ABW7: 0 | ABX7: 0 | ABY7: 0 | ABZ7: 0 | ACA7: 0 | ACB7: 0 | ACC7: 0 | ACD7: 0 | ACE7: 0 | ACF7: 0 | ACG7: 0 | ACH7: 0 | ACI7: 0 | ACJ7: 0 | ACK7: 0 | ACL7: 0 | ACM7: 0 | ACN7: 0 | ACO7: 0 | ACP7: 0 | ACQ7: 0 | ACR7: 0 | ACS7: 0 | ACT7: 0 | ACU7: 0 | ACV7: 0 | ACW7: 0 | ACX7: 0 | ACY7: 0 | ACZ7: 0 | ADA7: 0 | ADB7: 0 | ADC7: 0 | ADD7: 0 | ADE7: 0 | ADF7: 0 | ADG7: 0 | ADH7: 0 | ADI7: 0 | ADJ7: 0 | ADK7: 0 | ADL7: 0 | ADM7: 0 | ADN7: 0 | ADO7: 0 | ADP7: 0 | ADQ7: 0 | ADR7: 0 | ADS7: 0 | ADT7: 0 | ADU7: 0 | ADV7: 0 | ADW7: 0 | ADX7: 0 | ADY7: 0 | ADZ7: 0 | AEA7: 0 | AEB7: 0 | AEC7: 0 | AED7: 0 | AEE7: 0 | AEF7: 0 | AEG7: 0 | AEH7: 0 | AEI7: 0 | AEJ7: 0 | AEK7: 0 | AEL7: 0 | AEM7: 0 | AEN7: 0 | AEO7: 0 | AEP7: 0 | AEQ7: 0 | AER7: 0 | AES7: 0 | AET7: 0 | AEU7: 0 | AEV7: 0 | AEW7: 0 | AEX7: 0 | AEY7: 0 | AEZ7: 0 | AFA7: 0 | AFB7: 0 | AFC7: 0 | AFD7: 0 | AFE7: 0 | AFF7: 0 | AFG7: 0 | AFH7: 0 | AFI7: 0 | AFJ7: 0 | AFK7: 0 | AFL7: 0 | AFM7: 0 | AFN7: 0 | AFO7: 0 | AFP7: 0 | AFQ7: 0 | AFR7: 0 | AFS7: 0 | AFT7: 0 | AFU7: 0 | AFV7: 0 | AFW7: 0 | AFX7: 0 | AFY7: 0 | AFZ7: 0 | AGA7: 0 | AGB7: 0 | AGC7: 0 | AGD7: 0 | AGE7: 0 | AGF7: 0 | AGG7: 0 | AGH7: 0 | AGI7: 0 | AGJ7: 0 | AGK7: 0 | AGL7: 0 | AGM7: 0 | AGN7: 0 | AGO7: 0 | AGP7: 0 | AGQ7: 0 | AGR7: 0 | AGS7: 0 | AGT7: 0 | AGU7: 0 | AGV7: 0 | AGW7: 0 | AGX7: 0 | AGY7: 0 | AGZ7: 0 | AHA7: 0 | AHB7: 0 | AHC7: 0 | AHD7: 0 | AHE7: 0 | AHF7: 0 | AHG7: 0 | AHH7: 0 | AHI7: 0 | AHJ7: 0 | AHK7: 0 | AHL7: 0 | AHM7: 0 | AHN7: 0 | AHO7: 0 | AHP7: 0 | AHQ7: 0 | AHR7: 0 | AHS7: 0 | AHT7: 0 | AHU7: 0 | AHV7: 0 | AHW7: 0 | AHX7: 0 | AHY7: 0 | AHZ7: 0 | AIA7: 0 | AIB7: 0 | AIC7: 0 | AID7: 0 | AIE7: 0 | AIF7: 0 | AIG7: 0 | AIH7: 0 | AII7: 0 | AIJ7: 0 | AIK7: 0 | AIL7: 0 | AIM7: 0 | AIN7: 0 | AIO7: 0 | AIP7: 0 | AIQ7: 0 | AIR7: 0 | AIS7: 0 | AIT7: 0 | AIU7: 0 | AIV7: 0 | AIW7: 0 | AIX7: 0 | AIY7: 0 | AIZ7: 0 | AJA7: 0 | AJB7: 0 | AJC7: 0 | AJD7: 0 | AJE7: 0 | AJF7: 0 | AJG7: 0 | AJH7: 0 | AJI7: 0 | AJJ7: 0 | AJK7: 0 | AJL7: 0 | AJM7: 0 | AJN7: 0 | AJO7: 0 | AJP7: 0 | AJQ7: 0 | AJR7: 0 | AJS7: 0 | AJT7: 0 | AJU7: 0 | AJV7: 0 | AJW7: 0 | AJX7: 0 | AJY7: 0 | AJZ7: 0 | AKA7: 0 | AKB7: 0 | AKC7: 0 | AKD7: 0 | AKE7: 0 | AKF7: 0 | AKG7: 0 | AKH7: 0 | AKI7: 0 | AKJ7: 0 | AKK7: 0 | AKL7: 0 | AKM7: 0 | AKN7: 0 | AKO7: 0 | AKP7: 0 | AKQ7: 0 | AKR7: 0 | AKS7: 0 | AKT7: 0 | AKU7: 0 | AKV7: 0 | AKW7: 0 | AKX7: 0 | AKY7: 0 | AKZ7: 0 | ALA7: 0 | ALB7: 0 | ALC7: 0 | ALD7: 0 | ALE7: 0 | ALF7: 0 | ALG7: 0 | ALH7: 0 | ALI7: 0 | ALJ7: 0 | ALK7: 0 | ALL7: 0 | ALM7: 0 | ALN7: 0 | ALO7: 0 | ALP7: 0 | ALQ7: 0 | ALR7: 0 | ALS7: 0 | ALT7: 0 | ALU7: 0 | ALV7: 0 | ALW7: 0 | ALX7: 0 | ALY7: 0 | ALZ7: 0 | AMA7: 0 | AMB7: 0 | AMC7: 0 | AMD7: 0 | AME7: 0 | AMF7: 0 | AMG7: 0 | AMH7: 0 | AMI7: 0 | AMJ7: 0 | AMK7: 0 | AML7: 0 | AMM7: 0 | AMN7: 0 | AMO7: 0 | AMP7: 0 | AMQ7: 0 | AMR7: 0 | AMS7: 0 | AMT7: 0 | AMU7: 0 | AMV7: 0 | AMW7: 0 | AMX7: 0 | AMY7: 0 | AMZ7: 0 | ANA7: 0 | ANB7: 0 | ANC7: 0 | AND7: 0 | ANE7: 0 | ANF7: 0 | ANG7: 0 | ANH7: 0 | ANI7: 0 | ANJ7: 0 | ANK7: 0 | ANL7: 0 | ANM7: 0 | ANN7: 0 | ANO7: 0 | ANP7: 0 | ANQ7: 0 | ANR7: 0 | ANS7: 0 | ANT7: 0 | ANU7: 0 | ANV7: 0 | ANW7: 0 | ANX7: 0 | ANY7: 0 | ANZ7: 0 | AOA7: 0 | AOB7: 0 | AOC7: 0 | AOD7: 0 | AOE7: 0 | AOF7: 0 | AOG7: 0 | AOH7: 0 | AOI7: 0 | AOJ7: 0 | AOK7: 0 | AOL7: 0 | AOM7: 0 | AON7: 0 | AOO7: 0 | AOP7: 0 | AOQ7: 0 | AOR7: 0 | AOS7: 0 | AOT7: 0 | AOU7: 0 | AOV7: 0 | AOW7: 0 | AOX7: 0 | AOY7: 0 | AOZ7: 0 | APA7: 0 | APB7: 0 | APC7: 0 | APD7: 0 | APE7: 0 | APF7: 0 | APG7: 0 | APH7: 0 | API7: 0 | APJ7: 0 | APK7: 0 | APL7: 0 | APM7: 0 | APN7: 0 | APO7: 0 | APP7: 0 | APQ7: 0 | APR7: 0 | APS7: 0 | APT7: 0 | APU7: 0 | APV7: 0 | APW7: 0 | APX7: 0 | APY7: 0 | APZ7: 0 | AQA7: 0 | AQB7: 0 | AQC7: 0 | AQD7: 0 | AQE7: 0 | AQF7: 0 | AQG7: 0 | AQH7: 0 | AQI7: 0 | AQJ7: 0 | AQK7: 0 | AQL7: 0 | AQM7: 0 | AQN7: 0 | AQO7: 0 | AQP7: 0 | AQQ7: 0 | AQR7: 0 | AQS7: 0 | AQT7: 0 | AQU7: 0 | AQV7: 0 | AQW7: 0 | AQX7: 0 | AQY7: 0 | AQZ7: 0 | ARA7: 0 | ARB7: 0 | ARC7: 0 | ARD7: 0 | ARE7: 0 | ARF7: 0 | ARG7: 0 | ARH7: 0 | ARI7: 0 | ARJ7: 0 | ARK7: 0 | ARL7: 0 | ARM7: 0 | ARN7: 0
A8: LUCIANO CASTILLO COLONNA | B8: AYABACA | C8: 200201 | D8: CHOCAN | E8: I-2 | F8: AYABACA | G8: NINGUN CLAS | H8: AYABACA | I8: AYABACA | J8: SALUD LUCIANO CASTILLO COLONNA | K8: 1916 | L8: 1 | M8: 0 | N8: 0 | O8: 0 | P8: 0 | Q8: 0 | R8: 0 | S8: 2 | T8: 2 | U8: 0 | V8: 0 | W8: 0 | X8: 0 | Y8: 0 | Z8: 0 | AA8: 0 | AB8: 0 | AC8: 0 | AD8: 0 | AE8: 0 | AF8: 0 | AG8: 0 | AH8: 0 | AI8: 0 | AJ8: 0 | AK8: 0 | AL8: 0 | AM8: 0 | AN8: 0 | AO8: 0 | AP8: 0 | AQ8: 0 | AR8: 0 | AS8: 0 | AT8: 0 | AU8: 0 | AV8: 0 | AW8: 2 | AX8: 2 | AY8: 0 | AZ8: 0 | BA8: 0 | BB8: 0 | BC8: 0 | BD8: 0 | BE8: 0 | BF8: 0 | BG8: 0 | BH8: 0 | BI8: 0 | BJ8: 0 | BK8: 0 | BL8: 0 | BM8: 0 | BN8: 0 | BO8: 0 | BP8: 0 | BQ8: 0 | BR8: 0 | BS8: 0 | BT8: 0 | BU8: 0 | BV8: 0 | BW8: 0 | BX8: 0 | BY8: 0 | BZ8: 0 | CA8: 0 | CB8: 0 | CC8: 0 | CD8: 0 | CE8: 0 | CF8: 0 | CG8: 0 | CH8: 0 | CI8: 0 | CJ8: 0 | CK8: 0 | CL8: 0 | CM8: 0 | CN8: 0 | CO8: 0 | CP8: 0 | CQ8: 0 | CR8: 0 | CS8: 0 | CT8: 0 | CU8: 0 | CV8: 0 | CW8: 0 | CX8: 0 | CY8: 0 | CZ8: 0 | DA8: 0 | DB8: 0 | DC8: 0 | DD8: 0 | DE8: 0 | DF8: 0 | DG8: 0 | DH8: 0 | DI8: 0 | DJ8: 0 | DK8: 0 | DL8: 0 | DM8: 0 | DN8: 0 | DO8: 0 | DP8: 0 | DQ8: 0 | DR8: 0 | DS8: 0 | DT8: 0 | DU8: 0 | DV8: 0 | DW8: 0 | DX8: 0 | DY8: 0 | DZ8: 0 | EA8: 0 | EB8: 0 | EC8: 0 | ED8: 0 | EE8: 0 | EF8: 0 | EG8: 0 | EH8: 0 | EI8: 0 | EJ8: 0 | EK8: 0 | EL8: 0 | EM8: 0 | EN8: 0 | EO8: 0 | EP8: 0 | EQ8: 0 | ER8: 0 | ES8: 0 | ET8: 0 | EU8: 0 | EV8: 0 | EW8: 0 | EX8: 0 | EY8: 0 | EZ8: 0 | FA8: 0 | FB8: 0 | FC8: 0 | FD8: 0 | FE8: 0 | FF8: 0 | FG8: 0 | FH8: 0 | FI8: 0 | FJ8: 0 | FK8: 0 | FL8: 0 | FM8: 0 | FN8: 0 | FO8: 0 | FP8: 0 | FQ8: 0 | FR8: 0 | FS8: 0 | FT8: 0 | FU8: 0 | FV8: 0 | FW8: 0 | FX8: 0 | FY8: 0 | FZ8: 0 | GA8: 0 | GB8: 0 | GC8: 0 | GD8: 0 | GE8: 0 | GF8: 0 | GG8: 0 | GH8: 0 | GI8: 0 | GJ8: 0 | GK8: 0 | GL8: 0 | GM8: 0 | GN8: 0 | GO8: 0 | GP8: 0 | GQ8: 0 | GR8: 0 | GS8: 0 | GT8: 0 | GU8: 2 | GV8: 1 | GW8: 2 | GX8: 0 | GY8: 1 | GZ8: 0 | HA8: 0 | HB8: 0 | HC8: 0 | HD8: 0 | HE8: 0 | HF8: 0 | HG8: 0 | HH8: 0 | HI8: 0 | HJ8: 0 | HK8: 0 | HL8: 0 | HM8: 0 | HN8: 0 | HO8: 0 | HP8: 0 | HQ8: 0 | HR8: 0 | HS8: 0 | HT8: 0 | HU8: 0 | HV8: 0 | HW8: 0 | HX8: 0 | HY8: 1 | HZ8: 0 | IA8: 0 | IB8: 0 | IC8: 0 | ID8: 0 | IE8: 0 | IF8: 0 | IG8: 0 | IH8: 0 | II8: 0 | IJ8: 0 | IK8: 0 | IL8: 0 | IM8: 0 | IN8: 0 | IO8: 0 | IP8: 0 | IQ8: 0 | IR8: 0 | IS8: 0 | IT8: 0 | IU8: 0 | IV8: 0 | IW8: 0 | IX8: 0 | IY8: 0 | IZ8: 0 | JA8: 0 | JB8: 0 | JC8: 0 | JD8: 0 | JE8: 0 | JF8: 0 | JG8: 0 | JH8: 0 | JI8: 0 | JJ8: 0 | JK8: 0 | JL8: 0 | JM8: 0 | JN8: 0 | JO8: 0 | JP8: 0 | JQ8: 0 | JR8: 0 | JS8: 0 | JT8: 0 | JU8: 0 | JV8: 0 | JW8: 0 | JX8: 0 | JY8: 0 | JZ8: 0 | KA8: 0 | KB8: 0 | KC8: 0 | KD8: 0 | KE8: 0 | KF8: 0 | KG8: 0 | KH8: 0 | KI8: 0 | KJ8: 0 | KK8: 0 | KL8: 0 | KM8: 0 | KN8: 0 | KO8: 0 | KP8: 0 | KQ8: 0 | KR8: 0 | KS8: 0 | KT8: 0 | KU8: 0 | KV8: 0 | KW8: 0 | KX8: 0 | KY8: 0 | KZ8: 0 | LA8: 0 | LB8: 0 | LC8: 0 | LD8: 0 | LE8: 0 | LF8: 0 | LG8: 0 | LH8: 0 | LI8: 0 | LJ8: 0 | LK8: 0 | LL8: 0 | LM8: 0 | LN8: 0 | LO8: 0 | LP8: 0 | LQ8: 0 | LR8: 0 | LS8: 0 | LT8: 0 | LU8: 0 | LV8: 0 | LW8: 0 | LX8: 0 | LY8: 0 | LZ8: 0 | MA8: 0 | MB8: 0 | MC8: 0 | MD8: 0 | ME8: 1 | MF8: 1 | MG8: 0 | MH8: 0 | MI8: 0 | MJ8: 0 | MK8: 0 | ML8: 0 | MM8: 0 | MN8: 0 | MO8: 0 | MP8: 0 | MQ8: 0 | MR8: 0 | MS8: 0 | MT8: 0 | MU8: 0 | MV8: 0 | MW8: 0 | MX8: 0 | MY8: 0 | MZ8: 0 | NA8: 0 | NB8: 0 | NC8: 0 | ND8: 0 | NE8: 0 | NF8: 0 | NG8: 0 | NH8: 0 | NI8: 0 | NJ8: 0 | NK8: 0 | NL8: 0 | NM8: 0 | NN8: 0 | NO8: 0 | NP8: 0 | NQ8: 0 | NR8: 0 | NS8: 0 | NT8: 0 | NU8: 0 | NV8: 0 | NW8: 0 | NX8: 0 | NY8: 0 | NZ8: 0 | OA8: 0 | OB8: 0 | OC8: 0 | OD8: 0 | OE8: 0 | OF8: 0 | OG8: 0 | OH8: 0 | OI8: 0 | OJ8: 0 | OK8: 0 | OL8: 0 | OM8: 0 | ON8: 0 | OO8: 0 | OP8: 0 | OQ8: 0 | OR8: 0 | OS8: 0 | OT8: 0 | OU8: 0 | OV8: 0 | OW8: 0 | OX8: 0 | OY8: 0 | OZ8: 0 | PA8: 0 | PB8: 0 | PC8: 0 | PD8: 0 | PE8: 0 | PF8: 0 | PG8: 0 | PH8: 0 | PI8: 0 | PJ8: 0 | PK8: 0 | PL8: 0 | PM8: 0 | PN8: 0 | PO8: 0 | PP8: 0 | PQ8: 0 | PR8: 0 | PS8: 0 | PT8: 0 | PU8: 0 | PV8: 0 | PW8: 0 | PX8: 0 | PY8: 0 | PZ8: 0 | QA8: 0 | QB8: 0 | QC8: 0 | QD8: 0 | QE8: 0 | QF8: 0 | QG8: 0 | QH8: 0 | QI8: 0 | QJ8: 0 | QK8: 0 | QL8: 0 | QM8: 0 | QN8: 0 | QO8: 0 | QP8: 0 | QQ8: 0 | QR8: 0 | QS8: 0 | QT8: 0 | QU8: 0 | QV8: 0 | QW8: 0 | QX8: 0 | QY8: 0 | QZ8: 0 | RA8: 0 | RB8: 0 | RC8: 0 | RD8: 0 | RE8: 0 | RF8: 0 | RG8: 0 | RH8: 0 | RI8: 0 | RJ8: 0 | RK8: 0 | RL8: 0 | RM8: 0 | RN8: 0 | RO8: 0 | RP8: 0 | RQ8: 0 | RR8: 0 | RS8: 0 | RT8: 0 | RU8: 0 | RV8: 0 | RW8: 0 | RX8: 0 | RY8: 0 | RZ8: 0 | SA8: 0 | SB8: 0 | SC8: 0 | SD8: 0 | SE8: 0 | SF8: 0 | SG8: 0 | SH8: 0 | SI8: 0 | SJ8: 0 | SK8: 0 | SL8: 0 | SM8: 0 | SN8: 0 | SO8: 0 | SP8: 0 | SQ8: 0 | SR8: 0 | SS8: 0 | ST8: 0 | SU8: 0 | SV8: 0 | SW8: 0 | SX8: 0 | SY8: 0 | SZ8: 0 | TA8: 0 | TB8: 0 | TC8: 0 | TD8: 0 | TE8: 0 | TF8: 0 | TG8: 0 | TH8: 0 | TI8: 0 | TJ8: 0 | TK8: 0 | TL8: 0 | TM8: 0 | TN8: 0 | TO8: 0 | TP8: 0 | TQ8: 0 | TR8: 0 | TS8: 0 | TT8: 0 | TU8: 0 | TV8: 0 | TW8: 0 | TX8: 0 | TY8: 0 | TZ8: 0 | UA8: 0 | UB8: 0 | UC8: 0 | UD8: 0 | UE8: 0 | UF8: 0 | UG8: 0 | UH8: 0 | UI8: 0 | UJ8: 0 | UK8: 0 | UL8: 0 | UM8: 0 | UN8: 0 | UO8: 0 | UP8: 0 | UQ8: 0 | UR8: 0 | US8: 0 | UT8: 0 | UU8: 0 | UV8: 0 | UW8: 0 | UX8: 0 | UY8: 0 | UZ8: 0 | VA8: 0 | VB8: 0 | VC8: 0 | VD8: 0 | VE8: 0 | VF8: 0 | VG8: 0 | VH8: 0 | VI8: 0 | VJ8: 0 | VK8: 0 | VL8: 0 | VM8: 0 | VN8: 0 | VO8: 0 | VP8: 0 | VQ8: 0 | VR8: 0 | VS8: 0 | VT8: 0 | VU8: 0 | VV8: 0 | VW8: 0 | VX8: 0 | VY8: 0 | VZ8: 0 | WA8: 0 | WB8: 0 | WC8: 0 | WD8: 0 | WE8: 0 | WF8: 0 | WG8: 0 | WH8: 0 | WI8: 0 | WJ8: 0 | WK8: 0 | WL8: 0 | WM8: 0 | WN8: 0 | WO8: 0 | WP8: 0 | WQ8: 0 | WR8: 0 | WS8: 0 | WT8: 0 | WU8: 0 | WV8: 0 | WW8: 0 | WX8: 0 | WY8: 0 | WZ8: 0 | XA8: 0 | XB8: 0 | XC8: 0 | XD8: 0 | XE8: 0 | XF8: 0 | XG8: 0 | XH8: 0 | XI8: 0 | XJ8: 0 | XK8: 0 | XL8: 0 | XM8: 0 | XN8: 0 | XO8: 0 | XP8: 0 | XQ8: 0 | XR8: 0 | XS8: 0 | XT8: 0 | XU8: 0 | XV8: 0 | XW8: 0 | XX8: 0 | XY8: 0 | XZ8: 0 | YA8: 0 | YB8: 0 | YC8: 0 | YD8: 0 | YE8: 0 | YF8: 0 | YG8: 0 | YH8: 0 | YI8: 0 | YJ8: 0 | YK8: 0 | YL8: 0 | YM8: 0 | YN8: 0 | YO8: 0 | YP8: 0 | YQ8: 0 | YR8: 0 | YS8: 0 | YT8: 0 | YU8: 0 | YV8: 0 | YW8: 0 | YX8: 0 | YY8: 0 | YZ8: 0 | ZA8: 0 | ZB8: 0 | ZC8: 0 | ZD8: 0 | ZE8: 0 | ZF8: 0 | ZG8: 0 | ZH8: 0 | ZI8: 0 | ZJ8: 0 | ZK8: 0 | ZL8: 0 | ZM8: 0 | ZN8: 0 | ZO8: 0 | ZP8: 0 | ZQ8: 0 | ZR8: 0 | ZS8: 0 | ZT8: 0 | ZU8: 0 | ZV8: 0 | ZW8: 0 | ZX8: 0 | ZY8: 0 | ZZ8: 0 | AAA8: 0 | AAB8: 0 | AAC8: 0 | AAD8: 0 | AAE8: 0 | AAF8: 0 | AAG8: 0 | AAH8: 0 | AAI8: 0 | AAJ8: 0 | AAK8: 0 | AAL8: 0 | AAM8: 0 | AAN8: 0 | AAO8: 0 | AAP8: 0 | AAQ8: 0 | AAR8: 0 | AAS8: 0 | AAT8: 0 | AAU8: 0 | AAV8: 0 | AAW8: 0 | AAX8: 0 | AAY8: 0 | AAZ8: 0 | ABA8: 0 | ABB8: 0 | ABC8: 0 | ABD8: 0 | ABE8: 0 | ABF8: 0 | ABG8: 0 | ABH8: 0 | ABI8: 0 | ABJ8: 0 | ABK8: 0 | ABL8: 0 | ABM8: 0 | ABN8: 0 | ABO8: 0 | ABP8: 0 | ABQ8: 0 | ABR8: 0 | ABS8: 0 | ABT8: 0 | ABU8: 0 | ABV8: 0 | ABW8: 0 | ABX8: 0 | ABY8: 0 | ABZ8: 0 | ACA8: 0 | ACB8: 0 | ACC8: 0 | ACD8: 0 | ACE8: 0 | ACF8: 0 | ACG8: 0 | ACH8: 0 | ACI8: 0 | ACJ8: 0 | ACK8: 0 | ACL8: 0 | ACM8: 0 | ACN8: 0 | ACO8: 0 | ACP8: 0 | ACQ8: 0 | ACR8: 0 | ACS8: 0 | ACT8: 0 | ACU8: 0 | ACV8: 0 | ACW8: 0 | ACX8: 0 | ACY8: 0 | ACZ8: 0 | ADA8: 0 | ADB8: 0 | ADC8: 0 | ADD8: 0 | ADE8: 0 | ADF8: 0 | ADG8: 0 | ADH8: 0 | ADI8: 0 | ADJ8: 0 | ADK8: 0 | ADL8: 0 | ADM8: 0 | ADN8: 0 | ADO8: 0 | ADP8: 0 | ADQ8: 0 | ADR8: 0 | ADS8: 0 | ADT8: 0 | ADU8: 0 | ADV8: 0 | ADW8: 0 | ADX8: 0 | ADY8: 0 | ADZ8: 0 | AEA8: 0 | AEB8: 0 | AEC8: 0 | AED8: 0 | AEE8: 0 | AEF8: 0 | AEG8: 0 | AEH8: 0 | AEI8: 0 | AEJ8: 0 | AEK8: 0 | AEL8: 0 | AEM8: 0 | AEN8: 0 | AEO8: 0 | AEP8: 0 | AEQ8: 0 | AER8: 0 | AES8: 0 | AET8: 0 | AEU8: 0 | AEV8: 0 | AEW8: 0 | AEX8: 0 | AEY8: 0 | AEZ8: 0 | AFA8: 0 | AFB8: 0 | AFC8: 0 | AFD8: 0 | AFE8: 0 | AFF8: 0 | AFG8: 0 | AFH8: 0 | AFI8: 0 | AFJ8: 0 | AFK8: 0 | AFL8: 0 | AFM8: 0 | AFN8: 0 | AFO8: 0 | AFP8: 0 | AFQ8: 0 | AFR8: 0 | AFS8: 0 | AFT8: 0 | AFU8: 0 | AFV8: 0 | AFW8: 0 | AFX8: 0 | AFY8: 0 | AFZ8: 0 | AGA8: 0 | AGB8: 0 | AGC8: 0 | AGD8: 0 | AGE8: 0 | AGF8: 0 | AGG8: 0 | AGH8: 0 | AGI8: 0 | AGJ8: 0 | AGK8: 0 | AGL8: 0 | AGM8: 0 | AGN8: 0 | AGO8: 0 | AGP8: 0 | AGQ8: 0 | AGR8: 0 | AGS8: 0 | AGT8: 0 | AGU8: 0 | AGV8: 0 | AGW8: 0 | AGX8: 0 | AGY8: 0 | AGZ8: 0 | AHA8: 0 | AHB8: 0 | AHC8: 0 | AHD8: 0 | AHE8: 0 | AHF8: 0 | AHG8: 0 | AHH8: 0 | AHI8: 0 | AHJ8: 0 | AHK8: 0 | AHL8: 0 | AHM8: 0 | AHN8: 0 | AHO8: 0 | AHP8: 0 | AHQ8: 0 | AHR8: 0 | AHS8: 0 | AHT8: 0 | AHU8: 0 | AHV8: 0 | AHW8: 0 | AHX8: 0 | AHY8: 0 | AHZ8: 0 | AIA8: 0 | AIB8: 0 | AIC8: 0 | AID8: 0 | AIE8: 0 | AIF8: 0 | AIG8: 0 | AIH8: 0 | AII8: 0 | AIJ8: 0 | AIK8: 0 | AIL8: 0 | AIM8: 0 | AIN8: 0 | AIO8: 0 | AIP8: 0 | AIQ8: 0 | AIR8: 0 | AIS8: 0 | AIT8: 0 | AIU8: 0 | AIV8: 0 | AIW8: 0 | AIX8: 0 | AIY8: 0 | AIZ8: 0 | AJA8: 0 | AJB8: 0 | AJC8: 0 | AJD8: 0 | AJE8: 0 | AJF8: 0 | AJG8: 0 | AJH8: 0 | AJI8: 0 | AJJ8: 0 | AJK8: 0 | AJL8: 0 | AJM8: 0 | AJN8: 0 | AJO8: 0 | AJP8: 0 | AJQ8: 0 | AJR8: 0 | AJS8: 0 | AJT8: 0 | AJU8: 0 | AJV8: 0 | AJW8: 0 | AJX8: 0 | AJY8: 0 | AJZ8: 0 | AKA8: 0 | AKB8: 0 | AKC8: 0 | AKD8: 0 | AKE8: 0 | AKF8: 0 | AKG8: 0 | AKH8: 0 | AKI8: 0 | AKJ8: 0 | AKK8: 0 | AKL8: 0 | AKM8: 0 | AKN8: 0 | AKO8: 0 | AKP8: 0 | AKQ8: 0 | AKR8: 0 | AKS8: 0 | AKT8: 0 | AKU8: 0 | AKV8: 0 | AKW8: 0 | AKX8: 0 | AKY8: 0 | AKZ8: 0 | ALA8: 0 | ALB8: 0 | ALC8: 0 | ALD8: 0 | ALE8: 0 | ALF8: 0 | ALG8: 0 | ALH8: 0 | ALI8: 0 | ALJ8: 0 | ALK8: 0 | ALL8: 0 | ALM8: 0 | ALN8: 0 | ALO8: 0 | ALP8: 0 | ALQ8: 0 | ALR8: 0 | ALS8: 0 | ALT8: 0 | ALU8: 0 | ALV8: 0 | ALW8: 0 | ALX8: 0 | ALY8: 0 | ALZ8: 0 | AMA8: 0 | AMB8: 0 | AMC8: 0 | AMD8: 0 | AME8: 0 | AMF8: 0 | AMG8: 0 | AMH8: 0 | AMI8: 0 | AMJ8: 0 | AMK8: 0 | AML8: 0 | AMM8: 0 | AMN8: 0 | AMO8: 0 | AMP8: 0 | AMQ8: 0 | AMR8: 0 | AMS8: 0 | AMT8: 0 | AMU8: 0 | AMV8: 0 | AMW8: 0 | AMX8: 0 | AMY8: 0 | AMZ8: 0 | ANA8: 0 | ANB8: 0 | ANC8: 0 | AND8: 0 | ANE8: 0 | ANF8: 0 | ANG8: 0 | ANH8: 0 | ANI8: 0 | ANJ8: 0 | ANK8: 0 | ANL8: 0 | ANM8: 0 | ANN8: 0 | ANO8: 0 | ANP8: 0 | ANQ8: 0 | ANR8: 0 | ANS8: 0 | ANT8: 0 | ANU8: 0 | ANV8: 0 | ANW8: 0 | ANX8: 0 | ANY8: 0 | ANZ8: 0 | AOA8: 0 | AOB8: 0 | AOC8: 0 | AOD8: 0 | AOE8: 0 | AOF8: 0 | AOG8: 0 | AOH8: 0 | AOI8: 0 | AOJ8: 0 | AOK8: 0 | AOL8: 0 | AOM8: 0 | AON8: 0 | AOO8: 0 | AOP8: 0 | AOQ8: 0 | AOR8: 0 | AOS8: 0 | AOT8: 0 | AOU8: 0 | AOV8: 0 | AOW8: 0 | AOX8: 0 | AOY8: 0 | AOZ8: 0 | APA8: 0 | APB8: 0 | APC8: 0 | APD8: 0 | APE8: 0 | APF8: 0 | APG8: 0 | APH8: 0 | API8: 0 | APJ8: 0 | APK8: 0 | APL8: 0 | APM8: 0 | APN8: 0 | APO8: 0 | APP8: 0 | APQ8: 0 | APR8: 0 | APS8: 0 | APT8: 0 | APU8: 0 | APV8: 0 | APW8: 0 | APX8: 0 | APY8: 0 | APZ8: 0 | AQA8: 0 | AQB8: 0 | AQC8: 0 | AQD8: 0 | AQE8: 0 | AQF8: 0 | AQG8: 0 | AQH8: 0 | AQI8: 0 | AQJ8: 0 | AQK8: 0 | AQL8: 0 | AQM8: 0 | AQN8: 0 | AQO8: 0 | AQP8: 0 | AQQ8: 0 | AQR8: 0 | AQS8: 0 | AQT8: 0 | AQU8: 0 | AQV8: 0 | AQW8: 0 | AQX8: 0 | AQY8: 0 | AQZ8: 0 | ARA8: 0 | ARB8: 0 | ARC8: 0 | ARD8: 0 | ARE8: 0 | ARF8: 0 | ARG8: 0 | ARH8: 0 | ARI8: 0 | ARJ8: 0 | ARK8: 0 | ARL8: 0 | ARM8: 0 | ARN8: 0
A9: LUCIANO CASTILLO COLONNA | B9: AYABACA | C9: 200201 | D9: YANCHALA | E9: I-2 | F9: AYABACA | G9: NINGUN CLAS | H9: AYABACA | I9: AYABACA | J9: SALUD LUCIANO CASTILLO COLONNA | K9: 1917 | L9: 1 | M9: 0 | N9: 0 | O9: 0 | P9: 0 | Q9: 1 | R9: 1 | S9: 1 | T9: 1 | U9: 0 | V9: 0 | W9: 0 | X9: 0 | Y9: 0 | Z9: 0 | AA9: 0 | AB9: 0 | AC9: 0 | AD9: 0 | AE9: 0 | AF9: 0 | AG9: 0 | AH9: 0 | AI9: 0 | AJ9: 0 | AK9: 0 | AL9: 0 | AM9: 0 | AN9: 0 | AO9: 0 | AP9: 0 | AQ9: 0 | AR9: 0 | AS9: 0 | AT9: 0 | AU9: 1 | AV9: 1 | AW9: 1 | AX9: 1 | AY9: 0 | AZ9: 0 | BA9: 0 | BB9: 0 | BC9: 0 | BD9: 0 | BE9: 0 | BF9: 0 | BG9: 0 | BH9: 0 | BI9: 0 | BJ9: 0 | BK9: 0 | BL9: 0 | BM9: 0 | BN9: 0 | BO9: 0 | BP9: 0 | BQ9: 0 | BR9: 0 | BS9: 0 | BT9: 0 | BU9: 0 | BV9: 0 | BW9: 0 | BX9: 0 | BY9: 0 | BZ9: 0 | CA9: 0 | CB9: 0 | CC9: 0 | CD9: 0 | CE9: 0 | CF9: 0 | CG9: 0 | CH9: 0 | CI9: 0 | CJ9: 0 | CK9: 0 | CL9: 0 | CM9: 0 | CN9: 0 | CO9: 0 | CP9: 0 | CQ9: 0 | CR9: 0 | CS9: 0 | CT9: 0 | CU9: 0 | CV9: 0 | CW9: 0 | CX9: 0 | CY9: 0 | CZ9: 0 | DA9: 0 | DB9: 0 | DC9: 0 | DD9: 0 | DE9: 0 | DF9: 0 | DG9: 0 | DH9: 0 | DI9: 0 | DJ9: 0 | DK9: 0 | DL9: 0 | DM9: 0 | DN9: 0 | DO9: 0 | DP9: 0 | DQ9: 0 | DR9: 0 | DS9: 0 | DT9: 0 | DU9: 0 | DV9: 0 | DW9: 0 | DX9: 0 | DY9: 0 | DZ9: 0 | EA9: 0 | EB9: 0 | EC9: 0 | ED9: 0 | EE9: 0 | EF9: 0 | EG9: 0 | EH9: 0 | EI9: 1 | EJ9: 0 | EK9: 0 | EL9: 0 | EM9: 0 | EN9: 0 | EO9: 0 | EP9: 0 | EQ9: 0 | ER9: 0 | ES9: 0 | ET9: 0 | EU9: 0 | EV9: 0 | EW9: 0 | EX9: 0 | EY9: 0 | EZ9: 0 | FA9: 0 | FB9: 0 | FC9: 1 | FD9: 0 | FE9: 0 | FF9: 0 | FG9: 0 | FH9: 0 | FI9: 0 | FJ9: 0 | FK9: 0 | FL9: 0 | FM9: 0 | FN9: 0 | FO9: 0 | FP9: 0 | FQ9: 0 | FR9: 0 | FS9: 0 | FT9: 0 | FU9: 0 | FV9: 0 | FW9: 0 | FX9: 0 | FY9: 0 | FZ9: 0 | GA9: 0 | GB9: 1 | GC9: 0 | GD9: 1 | GE9: 0 | GF9: 0 | GG9: 0 | GH9: 0 | GI9: 0 | GJ9: 0 | GK9: 0 | GL9: 0 | GM9: 0 | GN9: 0 | GO9: 0 | GP9: 0 | GQ9: 0 | GR9: 0 | GS9: 0 | GT9: 0 | GU9: 11 | GV9: 6 | GW9: 16 | GX9: 0 | GY9: 3 | GZ9: 0 | HA9: 0 | HB9: 0 | HC9: 0 | HD9: 0 | HE9: 0 | HF9: 0 | HG9: 0 | HH9: 0 | HI9: 0 | HJ9: 0 | HK9: 0 | HL9: 0 | HM9: 0 | HN9: 0 | HO9: 0 | HP9: 0 | HQ9: 0 | HR9: 0 | HS9: 0 | HT9: 0 | HU9: 0 | HV9: 0 | HW9: 0 | HX9: 1 | HY9: 3 | HZ9: 3 | IA9: 0 | IB9: 0 | IC9: 0 | ID9: 0 | IE9: 0 | IF9: 0 | IG9: 0 | IH9: 0 | II9: 0 | IJ9: 0 | IK9: 0 | IL9: 0 | IM9: 0 | IN9: 0 | IO9: 0 | IP9: 0 | IQ9: 0 | IR9: 0 | IS9: 0 | IT9: 0 | IU9: 0 | IV9: 0 | IW9: 0 | IX9: 0 | IY9: 0 | IZ9: 0 | JA9: 0 | JB9: 0 | JC9: 0 | JD9: 0 | JE9: 0 | JF9: 0 | JG9: 0 | JH9: 0 | JI9: 0 | JJ9: 0 | JK9: 0 | JL9: 0 | JM9: 0 | JN9: 0 | JO9: 0 | JP9: 0 | JQ9: 0 | JR9: 0 | JS9: 0 | JT9: 0 | JU9: 0 | JV9: 0 | JW9: 0 | JX9: 0 | JY9: 0 | JZ9: 0 | KA9: 0 | KB9: 0 | KC9: 0 | KD9: 0 | KE9: 0 | KF9: 0 | KG9: 0 | KH9: 0 | KI9: 0 | KJ9: 0 | KK9: 0 | KL9: 0 | KM9: 0 | KN9: 0 | KO9: 0 | KP9: 0 | KQ9: 0 | KR9: 0 | KS9: 0 | KT9: 0 | KU9: 0 | KV9: 0 | KW9: 0 | KX9: 0 | KY9: 0 | KZ9: 0 | LA9: 0 | LB9: 0 | LC9: 0 | LD9: 0 | LE9: 0 | LF9: 0 | LG9: 0 | LH9: 0 | LI9: 0 | LJ9: 0 | LK9: 0 | LL9: 0 | LM9: 0 | LN9: 0 | LO9: 0 | LP9: 0 | LQ9: 0 | LR9: 0 | LS9: 0 | LT9: 0 | LU9: 0 | LV9: 0 | LW9: 0 | LX9: 0 | LY9: 0 | LZ9: 0 | MA9: 0 | MB9: 0 | MC9: 0 | MD9: 1 | ME9: 3 | MF9: 3 | MG9: 0 | MH9: 0 | MI9: 0 | MJ9: 0 | MK9: 0 | ML9: 0 | MM9: 0 | MN9: 0 | MO9: 0 | MP9: 0 | MQ9: 0 | MR9: 0 | MS9: 0 | MT9: 0 | MU9: 0 | MV9: 0 | MW9: 0 | MX9: 0 | MY9: 0 | MZ9: 0 | NA9: 0 | NB9: 0 | NC9: 0 | ND9: 0 | NE9: 0 | NF9: 0 | NG9: 0 | NH9: 0 | NI9: 0 | NJ9: 0 | NK9: 0 | NL9: 0 | NM9: 0 | NN9: 0 | NO9: 0 | NP9: 0 | NQ9: 0 | NR9: 0 | NS9: 0 | NT9: 0 | NU9: 0 | NV9: 0 | NW9: 0 | NX9: 0 | NY9: 0 | NZ9: 0 | OA9: 0 | OB9: 0 | OC9: 0 | OD9: 0 | OE9: 0 | OF9: 0 | OG9: 0 | OH9: 0 | OI9: 0 | OJ9: 0 | OK9: 0 | OL9: 0 | OM9: 0 | ON9: 0 | OO9: 0 | OP9: 0 | OQ9: 0 | OR9: 0 | OS9: 0 | OT9: 0 | OU9: 0 | OV9: 0 | OW9: 0 | OX9: 0 | OY9: 0 | OZ9: 0 | PA9: 0 | PB9: 0 | PC9: 0 | PD9: 0 | PE9: 0 | PF9: 0 | PG9: 0 | PH9: 0 | PI9: 0 | PJ9: 0 | PK9: 0 | PL9: 0 | PM9: 0 | PN9: 0 | PO9: 0 | PP9: 0 | PQ9: 0 | PR9: 0 | PS9: 0 | PT9: 0 | PU9: 0 | PV9: 0 | PW9: 0 | PX9: 0 | PY9: 0 | PZ9: 0 | QA9: 0 | QB9: 0 | QC9: 0 | QD9: 0 | QE9: 0 | QF9: 0 | QG9: 0 | QH9: 0 | QI9: 0 | QJ9: 0 | QK9: 0 | QL9: 0 | QM9: 0 | QN9: 0 | QO9: 0 | QP9: 0 | QQ9: 0 | QR9: 0 | QS9: 0 | QT9: 0 | QU9: 0 | QV9: 0 | QW9: 0 | QX9: 0 | QY9: 0 | QZ9: 0 | RA9: 0 | RB9: 0 | RC9: 0 | RD9: 0 | RE9: 0 | RF9: 0 | RG9: 0 | RH9: 0 | RI9: 0 | RJ9: 0 | RK9: 0 | RL9: 0 | RM9: 0 | RN9: 0 | RO9: 0 | RP9: 0 | RQ9: 0 | RR9: 0 | RS9: 0 | RT9: 0 | RU9: 0 | RV9: 0 | RW9: 0 | RX9: 0 | RY9: 0 | RZ9: 0 | SA9: 0 | SB9: 0 | SC9: 0 | SD9: 0 | SE9: 0 | SF9: 0 | SG9: 0 | SH9: 0 | SI9: 0 | SJ9: 0 | SK9: 0 | SL9: 0 | SM9: 0 | SN9: 0 | SO9: 0 | SP9: 0 | SQ9: 0 | SR9: 0 | SS9: 0 | ST9: 0 | SU9: 0 | SV9: 0 | SW9: 0 | SX9: 0 | SY9: 0 | SZ9: 0 | TA9: 0 | TB9: 0 | TC9: 0 | TD9: 0 | TE9: 0 | TF9: 0 | TG9: 0 | TH9: 0 | TI9: 0 | TJ9: 0 | TK9: 0 | TL9: 0 | TM9: 0 | TN9: 0 | TO9: 0 | TP9: 0 | TQ9: 0 | TR9: 0 | TS9: 0 | TT9: 0 | TU9: 0 | TV9: 0 | TW9: 0 | TX9: 0 | TY9: 0 | TZ9: 0 | UA9: 0 | UB9: 0 | UC9: 0 | UD9: 0 | UE9: 0 | UF9: 0 | UG9: 0 | UH9: 0 | UI9: 0 | UJ9: 0 | UK9: 0 | UL9: 0 | UM9: 0 | UN9: 0 | UO9: 0 | UP9: 0 | UQ9: 0 | UR9: 0 | US9: 0 | UT9: 0 | UU9: 0 | UV9: 0 | UW9: 0 | UX9: 0 | UY9: 0 | UZ9: 0 | VA9: 0 | VB9: 0 | VC9: 0 | VD9: 0 | VE9: 0 | VF9: 0 | VG9: 0 | VH9: 0 | VI9: 0 | VJ9: 0 | VK9: 0 | VL9: 0 | VM9: 0 | VN9: 0 | VO9: 0 | VP9: 0 | VQ9: 0 | VR9: 0 | VS9: 0 | VT9: 0 | VU9: 0 | VV9: 0 | VW9: 0 | VX9: 0 | VY9: 0 | VZ9: 0 | WA9: 0 | WB9: 0 | WC9: 0 | WD9: 0 | WE9: 0 | WF9: 0 | WG9: 0 | WH9: 0 | WI9: 0 | WJ9: 0 | WK9: 0 | WL9: 0 | WM9: 0 | WN9: 0 | WO9: 0 | WP9: 0 | WQ9: 0 | WR9: 0 | WS9: 0 | WT9: 0 | WU9: 0 | WV9: 0 | WW9: 0 | WX9: 0 | WY9: 0 | WZ9: 0 | XA9: 0 | XB9: 0 | XC9: 0 | XD9: 0 | XE9: 0 | XF9: 0 | XG9: 0 | XH9: 0 | XI9: 0 | XJ9: 0 | XK9: 0 | XL9: 0 | XM9: 0 | XN9: 0 | XO9: 0 | XP9: 0 | XQ9: 0 | XR9: 0 | XS9: 0 | XT9: 0 | XU9: 0 | XV9: 0 | XW9: 0 | XX9: 0 | XY9: 0 | XZ9: 0 | YA9: 0 | YB9: 0 | YC9: 0 | YD9: 0 | YE9: 0 | YF9: 0 | YG9: 0 | YH9: 0 | YI9: 0 | YJ9: 0 | YK9: 0 | YL9: 0 | YM9: 0 | YN9: 0 | YO9: 0 | YP9: 0 | YQ9: 0 | YR9: 0 | YS9: 0 | YT9: 0 | YU9: 0 | YV9: 0 | YW9: 0 | YX9: 0 | YY9: 0 | YZ9: 0 | ZA9: 0 | ZB9: 0 | ZC9: 0 | ZD9: 0 | ZE9: 0 | ZF9: 0 | ZG9: 0 | ZH9: 0 | ZI9: 0 | ZJ9: 0 | ZK9: 0 | ZL9: 0 | ZM9: 0 | ZN9: 0 | ZO9: 0 | ZP9: 0 | ZQ9: 0 | ZR9: 0 | ZS9: 0 | ZT9: 0 | ZU9: 0 | ZV9: 0 | ZW9: 0 | ZX9: 0 | ZY9: 0 | ZZ9: 0 | AAA9: 0 | AAB9: 0 | AAC9: 0 | AAD9: 0 | AAE9: 0 | AAF9: 0 | AAG9: 0 | AAH9: 0 | AAI9: 0 | AAJ9: 0 | AAK9: 0 | AAL9: 0 | AAM9: 0 | AAN9: 0 | AAO9: 0 | AAP9: 0 | AAQ9: 0 | AAR9: 0 | AAS9: 0 | AAT9: 0 | AAU9: 0 | AAV9: 0 | AAW9: 0 | AAX9: 0 | AAY9: 0 | AAZ9: 0 | ABA9: 0 | ABB9: 0 | ABC9: 0 | ABD9: 0 | ABE9: 0 | ABF9: 0 | ABG9: 0 | ABH9: 0 | ABI9: 0 | ABJ9: 0 | ABK9: 0 | ABL9: 0 | ABM9: 0 | ABN9: 0 | ABO9: 0 | ABP9: 0 | ABQ9: 0 | ABR9: 0 | ABS9: 0 | ABT9: 0 | ABU9: 0 | ABV9: 0 | ABW9: 0 | ABX9: 0 | ABY9: 0 | ABZ9: 0 | ACA9: 0 | ACB9: 0 | ACC9: 0 | ACD9: 0 | ACE9: 0 | ACF9: 0 | ACG9: 0 | ACH9: 0 | ACI9: 0 | ACJ9: 0 | ACK9: 0 | ACL9: 0 | ACM9: 0 | ACN9: 0 | ACO9: 0 | ACP9: 0 | ACQ9: 0 | ACR9: 0 | ACS9: 0 | ACT9: 0 | ACU9: 0 | ACV9: 0 | ACW9: 0 | ACX9: 0 | ACY9: 0 | ACZ9: 0 | ADA9: 0 | ADB9: 0 | ADC9: 0 | ADD9: 0 | ADE9: 0 | ADF9: 0 | ADG9: 0 | ADH9: 0 | ADI9: 0 | ADJ9: 0 | ADK9: 0 | ADL9: 0 | ADM9: 0 | ADN9: 0 | ADO9: 0 | ADP9: 0 | ADQ9: 0 | ADR9: 0 | ADS9: 0 | ADT9: 0 | ADU9: 0 | ADV9: 0 | ADW9: 0 | ADX9: 0 | ADY9: 0 | ADZ9: 0 | AEA9: 0 | AEB9: 0 | AEC9: 0 | AED9: 0 | AEE9: 0 | AEF9: 0 | AEG9: 0 | AEH9: 0 | AEI9: 0 | AEJ9: 0 | AEK9: 0 | AEL9: 0 | AEM9: 0 | AEN9: 0 | AEO9: 0 | AEP9: 0 | AEQ9: 0 | AER9: 0 | AES9: 0 | AET9: 0 | AEU9: 0 | AEV9: 0 | AEW9: 0 | AEX9: 0 | AEY9: 0 | AEZ9: 0 | AFA9: 0 | AFB9: 0 | AFC9: 0 | AFD9: 0 | AFE9: 0 | AFF9: 0 | AFG9: 0 | AFH9: 0 | AFI9: 0 | AFJ9: 0 | AFK9: 0 | AFL9: 0 | AFM9: 0 | AFN9: 0 | AFO9: 0 | AFP9: 0 | AFQ9: 0 | AFR9: 0 | AFS9: 0 | AFT9: 0 | AFU9: 0 | AFV9: 0 | AFW9: 0 | AFX9: 0 | AFY9: 0 | AFZ9: 0 | AGA9: 0 | AGB9: 0 | AGC9: 0 | AGD9: 0 | AGE9: 0 | AGF9: 0 | AGG9: 0 | AGH9: 0 | AGI9: 0 | AGJ9: 0 | AGK9: 0 | AGL9: 0 | AGM9: 0 | AGN9: 0 | AGO9: 0 | AGP9: 0 | AGQ9: 0 | AGR9: 0 | AGS9: 0 | AGT9: 0 | AGU9: 0 | AGV9: 0 | AGW9: 0 | AGX9: 0 | AGY9: 0 | AGZ9: 0 | AHA9: 0 | AHB9: 0 | AHC9: 0 | AHD9: 0 | AHE9: 0 | AHF9: 0 | AHG9: 0 | AHH9: 0 | AHI9: 0 | AHJ9: 0 | AHK9: 0 | AHL9: 0 | AHM9: 0 | AHN9: 0 | AHO9: 0 | AHP9: 0 | AHQ9: 0 | AHR9: 0 | AHS9: 0 | AHT9: 0 | AHU9: 0 | AHV9: 0 | AHW9: 0 | AHX9: 0 | AHY9: 0 | AHZ9: 0 | AIA9: 0 | AIB9: 0 | AIC9: 0 | AID9: 0 | AIE9: 0 | AIF9: 0 | AIG9: 0 | AIH9: 0 | AII9: 0 | AIJ9: 0 | AIK9: 0 | AIL9: 0 | AIM9: 0 | AIN9: 0 | AIO9: 0 | AIP9: 0 | AIQ9: 0 | AIR9: 0 | AIS9: 0 | AIT9: 0 | AIU9: 0 | AIV9: 0 | AIW9: 0 | AIX9: 0 | AIY9: 0 | AIZ9: 0 | AJA9: 0 | AJB9: 0 | AJC9: 0 | AJD9: 0 | AJE9: 0 | AJF9: 0 | AJG9: 0 | AJH9: 0 | AJI9: 0 | AJJ9: 0 | AJK9: 0 | AJL9: 0 | AJM9: 0 | AJN9: 0 | AJO9: 0 | AJP9: 0 | AJQ9: 0 | AJR9: 0 | AJS9: 0 | AJT9: 0 | AJU9: 0 | AJV9: 0 | AJW9: 0 | AJX9: 0 | AJY9: 0 | AJZ9: 0 | AKA9: 0 | AKB9: 0 | AKC9: 0 | AKD9: 0 | AKE9: 0 | AKF9: 0 | AKG9: 0 | AKH9: 0 | AKI9: 0 | AKJ9: 0 | AKK9: 0 | AKL9: 0 | AKM9: 0 | AKN9: 0 | AKO9: 0 | AKP9: 0 | AKQ9: 0 | AKR9: 0 | AKS9: 0 | AKT9: 0 | AKU9: 0 | AKV9: 0 | AKW9: 0 | AKX9: 0 | AKY9: 0 | AKZ9: 0 | ALA9: 0 | ALB9: 0 | ALC9: 0 | ALD9: 0 | ALE9: 0 | ALF9: 0 | ALG9: 0 | ALH9: 0 | ALI9: 0 | ALJ9: 0 | ALK9: 0 | ALL9: 0 | ALM9: 0 | ALN9: 0 | ALO9: 0 | ALP9: 0 | ALQ9: 0 | ALR9: 0 | ALS9: 0 | ALT9: 0 | ALU9: 0 | ALV9: 0 | ALW9: 0 | ALX9: 0 | ALY9: 0 | ALZ9: 0 | AMA9: 0 | AMB9: 0 | AMC9: 0 | AMD9: 0 | AME9: 0 | AMF9: 0 | AMG9: 0 | AMH9: 0 | AMI9: 0 | AMJ9: 0 | AMK9: 0 | AML9: 0 | AMM9: 0 | AMN9: 0 | AMO9: 0 | AMP9: 0 | AMQ9: 0 | AMR9: 0 | AMS9: 0 | AMT9: 0 | AMU9: 0 | AMV9: 0 | AMW9: 0 | AMX9: 0 | AMY9: 0 | AMZ9: 0 | ANA9: 0 | ANB9: 0 | ANC9: 0 | AND9: 0 | ANE9: 0 | ANF9: 0 | ANG9: 0 | ANH9: 0 | ANI9: 0 | ANJ9: 0 | ANK9: 0 | ANL9: 0 | ANM9: 0 | ANN9: 0 | ANO9: 0 | ANP9: 0 | ANQ9: 0 | ANR9: 0 | ANS9: 0 | ANT9: 0 | ANU9: 0 | ANV9: 0 | ANW9: 0 | ANX9: 0 | ANY9: 0 | ANZ9: 0 | AOA9: 0 | AOB9: 0 | AOC9: 0 | AOD9: 0 | AOE9: 0 | AOF9: 0 | AOG9: 0 | AOH9: 0 | AOI9: 0 | AOJ9: 0 | AOK9: 0 | AOL9: 0 | AOM9: 0 | AON9: 0 | AOO9: 0 | AOP9: 0 | AOQ9: 0 | AOR9: 0 | AOS9: 0 | AOT9: 0 | AOU9: 0 | AOV9: 0 | AOW9: 0 | AOX9: 0 | AOY9: 0 | AOZ9: 0 | APA9: 0 | APB9: 0 | APC9: 0 | APD9: 0 | APE9: 0 | APF9: 0 | APG9: 0 | APH9: 0 | API9: 0 | APJ9: 0 | APK9: 0 | APL9: 0 | APM9: 0 | APN9: 0 | APO9: 0 | APP9: 0 | APQ9: 0 | APR9: 0 | APS9: 0 | APT9: 0 | APU9: 0 | APV9: 0 | APW9: 0 | APX9: 0 | APY9: 0 | APZ9: 0 | AQA9: 0 | AQB9: 0 | AQC9: 0 | AQD9: 0 | AQE9: 0 | AQF9: 0 | AQG9: 0 | AQH9: 0 | AQI9: 0 | AQJ9: 0 | AQK9: 0 | AQL9: 0 | AQM9: 0 | AQN9: 0 | AQO9: 0 | AQP9: 0 | AQQ9: 0 | AQR9: 0 | AQS9: 0 | AQT9: 0 | AQU9: 0 | AQV9: 0 | AQW9: 0 | AQX9: 0 | AQY9: 0 | AQZ9: 0 | ARA9: 0 | ARB9: 0 | ARC9: 0 | ARD9: 0 | ARE9: 0 | ARF9: 0 | ARG9: 0 | ARH9: 0 | ARI9: 0 | ARJ9: 0 | ARK9: 0 | ARL9: 0 | ARM9: 0 | ARN9: 0
A10: LUCIANO CASTILLO COLONNA | B10: AYABACA | C10: 200201 | D10: ARREYPITE - PINGOLA | E10: I-1 | F10: AYABACA | G10: NINGUN CLAS | H10: AYABACA | I10: AYABACA | J10: SALUD LUCIANO CASTILLO COLONNA | K10: 1918 | L10: 1 | M10: 0 | N10: 0 | O10: 0 | P10: 0 | Q10: 0 | R10: 0 | S10: 0 | T10: 0 | U10: 0 | V10: 0 | W10: 0 | X10: 0 | Y10: 0 | Z10: 0 | AA10: 0 | AB10: 0 | AC10: 0 | AD10: 0 | AE10: 0 | AF10: 0 | AG10: 0 | AH10: 0 | AI10: 0 | AJ10: 0 | AK10: 0 | AL10: 0 | AM10: 0 | AN10: 0 | AO10: 0 | AP10: 0 | AQ10: 0 | AR10: 0 | AS10: 0 | AT10: 0 | AU10: 0 | AV10: 0 | AW10: 0 | AX10: 0 | AY10: 0 | AZ10: 0 | BA10: 0 | BB10: 0 | BC10: 0 | BD10: 0 | BE10: 0 | BF10: 0 | BG10: 0 | BH10: 0 | BI10: 0 | BJ10: 0 | BK10: 0 | BL10: 0 | BM10: 0 | BN10: 0 | BO10: 0 | BP10: 0 | BQ10: 0 | BR10: 0 | BS10: 0 | BT10: 0 | BU10: 0 | BV10: 0 | BW10: 0 | BX10: 0 | BY10: 0 | BZ10: 0 | CA10: 0 | CB10: 0 | CC10: 0 | CD10: 0 | CE10: 0 | CF10: 0 | CG10: 0 | CH10: 0 | CI10: 0 | CJ10: 0 | CK10: 0 | CL10: 0 | CM10: 0 | CN10: 0 | CO10: 0 | CP10: 0 | CQ10: 0 | CR10: 0 | CS10: 0 | CT10: 0 | CU10: 0 | CV10: 0 | CW10: 0 | CX10: 0 | CY10: 0 | CZ10: 0 | DA10: 0 | DB10: 0 | DC10: 0 | DD10: 0 | DE10: 0 | DF10: 0 | DG10: 0 | DH10: 0 | DI10: 0 | DJ10: 0 | DK10: 0 | DL10: 0 | DM10: 0 | DN10: 0 | DO10: 0 | DP10: 0 | DQ10: 0 | DR10: 0 | DS10: 0 | DT10: 0 | DU10: 0 | DV10: 0 | DW10: 0 | DX10: 0 | DY10: 0 | DZ10: 0 | EA10: 0 | EB10: 0 | EC10: 0 | ED10: 0 | EE10: 0 | EF10: 0 | EG10: 0 | EH10: 0 | EI10: 0 | EJ10: 0 | EK10: 0 | EL10: 0 | EM10: 0 | EN10: 0 | EO10: 0 | EP10: 0 | EQ10: 0 | ER10: 0 | ES10: 0 | ET10: 0 | EU10: 0 | EV10: 0 | EW10: 0 | EX10: 0 | EY10: 0 | EZ10: 0 | FA10: 0 | FB10: 0 | FC10: 0 | FD10: 0 | FE10: 0 | FF10: 0 | FG10: 0 | FH10: 0 | FI10: 0 | FJ10: 0 | FK10: 0 | FL10: 0 | FM10: 0 | FN10: 0 | FO10: 0 | FP10: 0 | FQ10: 0 | FR10: 0 | FS10: 0 | FT10: 0 | FU10: 0 | FV10: 0 | FW10: 0 | FX10: 0 | FY10: 0 | FZ10: 0 | GA10: 0 | GB10: 6 | GC10: 0 | GD10: 0 | GE10: 0 | GF10: 1 | GG10: 5 | GH10: 0 | GI10: 0 | GJ10: 0 | GK10: 0 | GL10: 0 | GM10: 0 | GN10: 0 | GO10: 0 | GP10: 0 | GQ10: 0 | GR10: 0 | GS10: 0 | GT10: 0 | GU10: 6 | GV10: 3 | GW10: 0 | GX10: 0 | GY10: 5 | GZ10: 0 | HA10: 0 | HB10: 0 | HC10: 0 | HD10: 0 | HE10: 0 | HF10: 0 | HG10: 0 | HH10: 0 | HI10: 0 | HJ10: 0 | HK10: 0 | HL10: 0 | HM10: 0 | HN10: 0 | HO10: 0 | HP10: 0 | HQ10: 0 | HR10: 0 | HS10: 0 | HT10: 0 | HU10: 0 | HV10: 0 | HW10: 0 | HX10: 6 | HY10: 3 | HZ10: 0 | IA10: 0 | IB10: 1 | IC10: 5 | ID10: 0 | IE10: 0 | IF10: 0 | IG10: 0 | IH10: 0 | II10: 0 | IJ10: 0 | IK10: 0 | IL10: 0 | IM10: 0 | IN10: 0 | IO10: 0 | IP10: 0 | IQ10: 0 | IR10: 0 | IS10: 0 | IT10: 0 | IU10: 0 | IV10: 0 | IW10: 0 | IX10: 0 | IY10: 0 | IZ10: 0 | JA10: 0 | JB10: 0 | JC10: 0 | JD10: 0 | JE10: 0 | JF10: 0 | JG10: 0 | JH10: 0 | JI10: 0 | JJ10: 0 | JK10: 0 | JL10: 0 | JM10: 0 | JN10: 0 | JO10: 0 | JP10: 0 | JQ10: 0 | JR10: 0 | JS10: 0 | JT10: 0 | JU10: 0 | JV10: 0 | JW10: 0 | JX10: 0 | JY10: 0 | JZ10: 0 | KA10: 0 | KB10: 0 | KC10: 0 | KD10: 0 | KE10: 0 | KF10: 0 | KG10: 0 | KH10: 0 | KI10: 0 | KJ10: 0 | KK10: 0 | KL10: 0 | KM10: 0 | KN10: 0 | KO10: 0 | KP10: 0 | KQ10: 0 | KR10: 0 | KS10: 0 | KT10: 0 | KU10: 0 | KV10: 0 | KW10: 0 | KX10: 0 | KY10: 0 | KZ10: 0 | LA10: 0 | LB10: 0 | LC10: 0 | LD10: 0 | LE10: 0 | LF10: 0 | LG10: 0 | LH10: 0 | LI10: 0 | LJ10: 0 | LK10: 0 | LL10: 0 | LM10: 0 | LN10: 0 | LO10: 0 | LP10: 0 | LQ10: 0 | LR10: 0 | LS10: 0 | LT10: 0 | LU10: 0 | LV10: 0 | LW10: 0 | LX10: 0 | LY10: 0 | LZ10: 0 | MA10: 0 | MB10: 0 | MC10: 0 | MD10: 6 | ME10: 3 | MF10: 0 | MG10: 0 | MH10: 1 | MI10: 5 | MJ10: 0 | MK10: 0 | ML10: 0 | MM10: 0 | MN10: 0 | MO10: 0 | MP10: 0 | MQ10: 0 | MR10: 0 | MS10: 0 | MT10: 0 | MU10: 0 | MV10: 0 | MW10: 0 | MX10: 0 | MY10: 0 | MZ10: 0 | NA10: 0 | NB10: 0 | NC10: 0 | ND10: 0 | NE10: 0 | NF10: 0 | NG10: 0 | NH10: 0 | NI10: 0 | NJ10: 0 | NK10: 0 | NL10: 0 | NM10: 0 | NN10: 0 | NO10: 0 | NP10: 0 | NQ10: 0 | NR10: 0 | NS10: 0 | NT10: 0 | NU10: 0 | NV10: 0 | NW10: 0 | NX10: 0 | NY10: 0 | NZ10: 0 | OA10: 0 | OB10: 0 | OC10: 0 | OD10: 0 | OE10: 0 | OF10: 0 | OG10: 0 | OH10: 0 | OI10: 0 | OJ10: 0 | OK10: 0 | OL10: 0 | OM10: 0 | ON10: 0 | OO10: 0 | OP10: 0 | OQ10: 0 | OR10: 0 | OS10: 0 | OT10: 0 | OU10: 0 | OV10: 0 | OW10: 0 | OX10: 0 | OY10: 0 | OZ10: 0 | PA10: 0 | PB10: 0 | PC10: 0 | PD10: 0 | PE10: 0 | PF10: 0 | PG10: 0 | PH10: 0 | PI10: 0 | PJ10: 0 | PK10: 0 | PL10: 0 | PM10: 0 | PN10: 0 | PO10: 0 | PP10: 0 | PQ10: 0 | PR10: 0 | PS10: 0 | PT10: 0 | PU10: 0 | PV10: 0 | PW10: 0 | PX10: 0 | PY10: 0 | PZ10: 0 | QA10: 0 | QB10: 0 | QC10: 0 | QD10: 0 | QE10: 0 | QF10: 0 | QG10: 0 | QH10: 0 | QI10: 0 | QJ10: 0 | QK10: 0 | QL10: 0 | QM10: 0 | QN10: 0 | QO10: 0 | QP10: 0 | QQ10: 0 | QR10: 0 | QS10: 0 | QT10: 0 | QU10: 0 | QV10: 0 | QW10: 0 | QX10: 0 | QY10: 0 | QZ10: 0 | RA10: 0 | RB10: 0 | RC10: 0 | RD10: 0 | RE10: 0 | RF10: 0 | RG10: 0 | RH10: 0 | RI10: 0 | RJ10: 0 | RK10: 0 | RL10: 0 | RM10: 0 | RN10: 0 | RO10: 0 | RP10: 0 | RQ10: 0 | RR10: 0 | RS10: 0 | RT10: 0 | RU10: 0 | RV10: 0 | RW10: 0 | RX10: 0 | RY10: 0 | RZ10: 0 | SA10: 0 | SB10: 0 | SC10: 0 | SD10: 0 | SE10: 0 | SF10: 0 | SG10: 0 | SH10: 0 | SI10: 0 | SJ10: 0 | SK10: 0 | SL10: 0 | SM10: 0 | SN10: 0 | SO10: 0 | SP10: 0 | SQ10: 0 | SR10: 0 | SS10: 0 | ST10: 0 | SU10: 0 | SV10: 0 | SW10: 0 | SX10: 0 | SY10: 0 | SZ10: 0 | TA10: 0 | TB10: 0 | TC10: 0 | TD10: 0 | TE10: 0 | TF10: 0 | TG10: 0 | TH10: 0 | TI10: 0 | TJ10: 0 | TK10: 0 | TL10: 0 | TM10: 0 | TN10: 0 | TO10: 0 | TP10: 0 | TQ10: 0 | TR10: 0 | TS10: 0 | TT10: 0 | TU10: 0 | TV10: 0 | TW10: 0 | TX10: 0 | TY10: 0 | TZ10: 0 | UA10: 0 | UB10: 0 | UC10: 0 | UD10: 0 | UE10: 0 | UF10: 0 | UG10: 0 | UH10: 0 | UI10: 0 | UJ10: 0 | UK10: 0 | UL10: 0 | UM10: 0 | UN10: 0 | UO10: 0 | UP10: 0 | UQ10: 0 | UR10: 0 | US10: 0 | UT10: 0 | UU10: 0 | UV10: 0 | UW10: 0 | UX10: 0 | UY10: 0 | UZ10: 0 | VA10: 0 | VB10: 0 | VC10: 0 | VD10: 0 | VE10: 0 | VF10: 0 | VG10: 0 | VH10: 0 | VI10: 0 | VJ10: 0 | VK10: 0 | VL10: 0 | VM10: 0 | VN10: 0 | VO10: 0 | VP10: 0 | VQ10: 0 | VR10: 0 | VS10: 0 | VT10: 0 | VU10: 0 | VV10: 0 | VW10: 0 | VX10: 0 | VY10: 0 | VZ10: 0 | WA10: 0 | WB10: 0 | WC10: 0 | WD10: 0 | WE10: 0 | WF10: 0 | WG10: 0 | WH10: 0 | WI10: 0 | WJ10: 0 | WK10: 0 | WL10: 0 | WM10: 0 | WN10: 0 | WO10: 0 | WP10: 0 | WQ10: 0 | WR10: 0 | WS10: 0 | WT10: 0 | WU10: 0 | WV10: 0 | WW10: 0 | WX10: 0 | WY10: 0 | WZ10: 0 | XA10: 0 | XB10: 0 | XC10: 0 | XD10: 0 | XE10: 0 | XF10: 0 | XG10: 0 | XH10: 0 | XI10: 0 | XJ10: 0 | XK10: 0 | XL10: 0 | XM10: 0 | XN10: 0 | XO10: 0 | XP10: 0 | XQ10: 0 | XR10: 0 | XS10: 0 | XT10: 0 | XU10: 0 | XV10: 0 | XW10: 0 | XX10: 0 | XY10: 0 | XZ10: 0 | YA10: 0 | YB10: 0 | YC10: 0 | YD10: 0 | YE10: 0 | YF10: 0 | YG10: 0 | YH10: 0 | YI10: 0 | YJ10: 0 | YK10: 0 | YL10: 0 | YM10: 0 | YN10: 0 | YO10: 0 | YP10: 3 | YQ10: 3 | YR10: 3 | YS10: 0 | YT10: 0 | YU10: 0 | YV10: 0 | YW10: 0 | YX10: 0 | YY10: 3 | YZ10: 3 | ZA10: 3 | ZB10: 0 | ZC10: 0 | ZD10: 0 | ZE10: 0 | ZF10: 0 | ZG10: 0 | ZH10: 1 | ZI10: 2 | ZJ10: 0 | ZK10: 1 | ZL10: 2 | ZM10: 0 | ZN10: 1 | ZO10: 2 | ZP10: 0 | ZQ10: 1 | ZR10: 2 | ZS10: 0 | ZT10: 1 | ZU10: 2 | ZV10: 0 | ZW10: 1 | ZX10: 2 | ZY10: 0 | ZZ10: 1 | AAA10: 2 | AAB10: 0 | AAC10: 1 | AAD10: 2 | AAE10: 0 | AAF10: 0 | AAG10: 0 | AAH10: 0 | AAI10: 1 | AAJ10: 2 | AAK10: 0 | AAL10: 1 | AAM10: 2 | AAN10: 0 | AAO10: 0 | AAP10: 0 | AAQ10: 0 | AAR10: 0 | AAS10: 0 | AAT10: 0 | AAU10: 0 | AAV10: 0 | AAW10: 0 | AAX10: 0 | AAY10: 0 | AAZ10: 0 | ABA10: 0 | ABB10: 0 | ABC10: 0 | ABD10: 0 | ABE10: 0 | ABF10: 0 | ABG10: 0 | ABH10: 0 | ABI10: 0 | ABJ10: 0 | ABK10: 0 | ABL10: 0 | ABM10: 0 | ABN10: 0 | ABO10: 0 | ABP10: 0 | ABQ10: 0 | ABR10: 0 | ABS10: 0 | ABT10: 0 | ABU10: 0 | ABV10: 0 | ABW10: 0 | ABX10: 0 | ABY10: 0 | ABZ10: 0 | ACA10: 0 | ACB10: 0 | ACC10: 0 | ACD10: 0 | ACE10: 0 | ACF10: 0 | ACG10: 0 | ACH10: 0 | ACI10: 0 | ACJ10: 0 | ACK10: 0 | ACL10: 0 | ACM10: 0 | ACN10: 0 | ACO10: 0 | ACP10: 0 | ACQ10: 0 | ACR10: 0 | ACS10: 0 | ACT10: 0 | ACU10: 0 | ACV10: 0 | ACW10: 0 | ACX10: 0 | ACY10: 0 | ACZ10: 0 | ADA10: 0 | ADB10: 0 | ADC10: 0 | ADD10: 0 | ADE10: 0 | ADF10: 0 | ADG10: 0 | ADH10: 0 | ADI10: 0 | ADJ10: 0 | ADK10: 0 | ADL10: 0 | ADM10: 0 | ADN10: 0 | ADO10: 0 | ADP10: 0 | ADQ10: 0 | ADR10: 0 | ADS10: 0 | ADT10: 0 | ADU10: 0 | ADV10: 0 | ADW10: 0 | ADX10: 0 | ADY10: 0 | ADZ10: 0 | AEA10: 0 | AEB10: 0 | AEC10: 0 | AED10: 0 | AEE10: 0 | AEF10: 0 | AEG10: 0 | AEH10: 0 | AEI10: 0 | AEJ10: 0 | AEK10: 0 | AEL10: 0 | AEM10: 0 | AEN10: 0 | AEO10: 0 | AEP10: 0 | AEQ10: 0 | AER10: 0 | AES10: 0 | AET10: 0 | AEU10: 0 | AEV10: 0 | AEW10: 0 | AEX10: 0 | AEY10: 0 | AEZ10: 0 | AFA10: 0 | AFB10: 0 | AFC10: 0 | AFD10: 0 | AFE10: 0 | AFF10: 0 | AFG10: 0 | AFH10: 0 | AFI10: 0 | AFJ10: 0 | AFK10: 0 | AFL10: 0 | AFM10: 0 | AFN10: 0 | AFO10: 0 | AFP10: 0 | AFQ10: 0 | AFR10: 0 | AFS10: 0 | AFT10: 0 | AFU10: 0 | AFV10: 0 | AFW10: 0 | AFX10: 0 | AFY10: 0 | AFZ10: 0 | AGA10: 0 | AGB10: 0 | AGC10: 0 | AGD10: 0 | AGE10: 0 | AGF10: 0 | AGG10: 0 | AGH10: 0 | AGI10: 0 | AGJ10: 0 | AGK10: 0 | AGL10: 0 | AGM10: 0 | AGN10: 0 | AGO10: 0 | AGP10: 0 | AGQ10: 0 | AGR10: 0 | AGS10: 0 | AGT10: 0 | AGU10: 0 | AGV10: 0 | AGW10: 0 | AGX10: 0 | AGY10: 0 | AGZ10: 0 | AHA10: 0 | AHB10: 0 | AHC10: 0 | AHD10: 0 | AHE10: 0 | AHF10: 0 | AHG10: 0 | AHH10: 0 | AHI10: 0 | AHJ10: 0 | AHK10: 0 | AHL10: 0 | AHM10: 0 | AHN10: 0 | AHO10: 0 | AHP10: 0 | AHQ10: 0 | AHR10: 0 | AHS10: 0 | AHT10: 0 | AHU10: 0 | AHV10: 0 | AHW10: 0 | AHX10: 0 | AHY10: 0 | AHZ10: 0 | AIA10: 0 | AIB10: 0 | AIC10: 0 | AID10: 0 | AIE10: 0 | AIF10: 0 | AIG10: 0 | AIH10: 0 | AII10: 0 | AIJ10: 0 | AIK10: 0 | AIL10: 0 | AIM10: 0 | AIN10: 0 | AIO10: 0 | AIP10: 0 | AIQ10: 0 | AIR10: 0 | AIS10: 0 | AIT10: 0 | AIU10: 0 | AIV10: 0 | AIW10: 0 | AIX10: 0 | AIY10: 0 | AIZ10: 0 | AJA10: 0 | AJB10: 0 | AJC10: 0 | AJD10: 0 | AJE10: 0 | AJF10: 0 | AJG10: 0 | AJH10: 0 | AJI10: 0 | AJJ10: 0 | AJK10: 0 | AJL10: 0 | AJM10: 0 | AJN10: 0 | AJO10: 0 | AJP10: 0 | AJQ10: 0 | AJR10: 0 | AJS10: 0 | AJT10: 0 | AJU10: 0 | AJV10: 0 | AJW10: 0 | AJX10: 0 | AJY10: 0 | AJZ10: 0 | AKA10: 0 | AKB10: 0 | AKC10: 0 | AKD10: 0 | AKE10: 0 | AKF10: 0 | AKG10: 0 | AKH10: 0 | AKI10: 0 | AKJ10: 0 | AKK10: 0 | AKL10: 0 | AKM10: 0 | AKN10: 0 | AKO10: 0 | AKP10: 0 | AKQ10: 0 | AKR10: 0 | AKS10: 0 | AKT10: 0 | AKU10: 0 | AKV10: 0 | AKW10: 0 | AKX10: 0 | AKY10: 0 | AKZ10: 0 | ALA10: 0 | ALB10: 0 | ALC10: 0 | ALD10: 0 | ALE10: 0 | ALF10: 0 | ALG10: 0 | ALH10: 0 | ALI10: 0 | ALJ10: 0 | ALK10: 0 | ALL10: 0 | ALM10: 0 | ALN10: 0 | ALO10: 0 | ALP10: 0 | ALQ10: 0 | ALR10: 0 | ALS10: 0 | ALT10: 0 | ALU10: 0 | ALV10: 0 | ALW10: 0 | ALX10: 0 | ALY10: 0 | ALZ10: 0 | AMA10: 0 | AMB10: 0 | AMC10: 0 | AMD10: 0 | AME10: 0 | AMF10: 0 | AMG10: 0 | AMH10: 0 | AMI10: 0 | AMJ10: 0 | AMK10: 0 | AML10: 0 | AMM10: 0 | AMN10: 0 | AMO10: 0 | AMP10: 0 | AMQ10: 0 | AMR10: 0 | AMS10: 0 | AMT10: 0 | AMU10: 0 | AMV10: 0 | AMW10: 0 | AMX10: 0 | AMY10: 0 | AMZ10: 0 | ANA10: 0 | ANB10: 0 | ANC10: 0 | AND10: 0 | ANE10: 0 | ANF10: 0 | ANG10: 0 | ANH10: 0 | ANI10: 0 | ANJ10: 0 | ANK10: 0 | ANL10: 0 | ANM10: 0 | ANN10: 0 | ANO10: 0 | ANP10: 0 | ANQ10: 0 | ANR10: 0 | ANS10: 0 | ANT10: 0 | ANU10: 0 | ANV10: 0 | ANW10: 0 | ANX10: 0 | ANY10: 0 | ANZ10: 0 | AOA10: 0 | AOB10: 0 | AOC10: 0 | AOD10: 0 | AOE10: 0 | AOF10: 0 | AOG10: 0 | AOH10: 0 | AOI10: 0 | AOJ10: 0 | AOK10: 0 | AOL10: 0 | AOM10: 0 | AON10: 0 | AOO10: 0 | AOP10: 0 | AOQ10: 0 | AOR10: 0 | AOS10: 0 | AOT10: 0 | AOU10: 0 | AOV10: 0 | AOW10: 0 | AOX10: 0 | AOY10: 0 | AOZ10: 0 | APA10: 0 | APB10: 0 | APC10: 0 | APD10: 0 | APE10: 0 | APF10: 0 | APG10: 0 | APH10: 0 | API10: 0 | APJ10: 0 | APK10: 0 | APL10: 0 | APM10: 0 | APN10: 0 | APO10: 0 | APP10: 0 | APQ10: 0 | APR10: 0 | APS10: 0 | APT10: 0 | APU10: 0 | APV10: 0 | APW10: 0 | APX10: 0 | APY10: 0 | APZ10: 0 | AQA10: 0 | AQB10: 0 | AQC10: 0 | AQD10: 0 | AQE10: 0 | AQF10: 0 | AQG10: 0 | AQH10: 0 | AQI10: 0 | AQJ10: 0 | AQK10: 0 | AQL10: 0 | AQM10: 0 | AQN10: 0 | AQO10: 0 | AQP10: 0 | AQQ10: 0 | AQR10: 0 | AQS10: 0 | AQT10: 0 | AQU10: 0 | AQV10: 0 | AQW10: 0 | AQX10: 0 | AQY10: 0 | AQZ10: 0 | ARA10: 0 | ARB10: 0 | ARC10: 0 | ARD10: 0 | ARE10: 0 | ARF10: 0 | ARG10: 0 | ARH10: 0 | ARI10: 0 | ARJ10: 0 | ARK10: 0 | ARL10: 0 | ARM10: 0 | ARN10: 0
